Workbook

Sheet Examples (hidden)
A1: IPART COLOUR CODES FOR MODELS AND INFORMATION REQUESTS
B2: NB ALWAYS DESCRIBE THE COLOUR CODE USED IN YOUR MODEL
B3: Note: If you use the formats for the inputs provided in this template, input cells will always be unprotected even when you protect the worksheet
H4: use this column cell to "paint" input cells for numbers (NOT for percentages)
I5: use this column cell to "paint" input cells for percentages (NOT numbers)
B6: Models
B7: Option 1 (best for models that will be used repeatedly) | G7: =G22 -> numbers | H7: =H22 -> % | I7: Option 2 (best for smaller models for once-off and/or own use)
B8: Inputs | G8: 4442 | H8: 0.08 | I8: Inputs | J8: 67 | K8: 0.03
B9: Links from other files (green) | I9: =B9 -> Links from other files (green)
B10: Error check (check =0) | I10: Error check (check =0)
B11: Error warnings, messages and unusual calculation assumptions | I11: =B11 -> Error warnings, messages and unusual calculation assumptions
B12: Indicate change in formula across row with a double red line | I12: ..change in formula across row with a double red line
B13: Key outputs | I13: =B13 -> Key outputs
B14: Note: can combine options, eg:
B15: Example 1 | D15: Inputs for model runs | F15: AND
C16: Hard-coded protected inputs that can't be changed (eg credit ratio and ratings tables)
B18: Example 2 | D18: Inputs can be links to other files in some runs
D19: Attention can be drawn to different/unusual inputs
H20: use this column cell to "paint" input cells for numbers (NOT for percentages)
B21: Information Requests | I21: use this column cell to "paint" input cells for percentages (NOT numbers)
G22: numbers | H22: %
B23: compulsory inputs (numbers and text) | G23: 234 | H23: 0.24
B24: Forecast Inputs | G24: 667 | H24: 0.05
B25: Error warnings and messages
B26: Error check (check =0)
B28: QA notes - annotation or documenation by QA staff
A31: User Instructions - IPART CHARTS
B33: Dark blue | C33: Lime | D33: Red | E33: Blue | F33: Light gold | G33: Green | H33: Maroon | I33: Light blue | L33: Blue solid | M33: Lime solid | N33: Red solid | O33: Blue dashes | P33: Lime dashes | Q33: Red dashes | S33: X value | T33: 1st Y value | U33: 2nd Y value | X33: Black | Y33: Red 100% | Z33: Red 70% | AA33: Grey 40%
A34: 1975-76 | B34: 36.19 | C34: 36.88 | D34: 21.56 | E34: 5.36 | F34: 3.01 | G34: 10 | H34: 3.01 | I34: 10 | K34: 1975-76 | L34: 33.19 | M34: 36.88 | N34: 21.56 | O34: 5.36 | P34: 3.01 | Q34: 10 | S34: 1.8 | T34: 10 | U34: 17 | W34: 1975-76 | X34: 33.19 | Y34: 36.88 | Z34: 21.56 | AA34: 5.36
A35: 1983-84 | B35: 39.39 | C35: 32.02 | D35: 21.6 | E35: 7.01 | F35: 3.36 | G35: 12 | H35: 3.36 | I35: 12 | K35: 1983-84 | L35: 39.39 | M35: 32.02 | N35: 21.6 | O35: 7.01 | P35: 3.36 | Q35: 12 | S35: 2.3 | T35: 12 | U35: 9 | W35: 1983-84 | X35: 39.39 | Y35: 32.02 | Z35: 21.6 | AA35: 7.01
A36: 1988-89 | B36: 42.78 | C36: 29.91 | D36: 18.35 | E36: 6.33 | F36: 2.63 | G36: 14 | H36: 2.63 | I36: 14 | K36: 1988-89 | L36: 42.78 | M36: 29.91 | N36: 18.35 | O36: 6.33 | P36: 2.63 | Q36: 14 | S36: 3.7 | T36: 16 | U36: 14 | W36: 1988-89 | X36: 42.78 | Y36: 29.91 | Z36: 18.35 | AA36: 6.33
A37: 1993-94 | B37: 42.13 | C37: 26.53 | D37: 21.6 | E37: 7.01 | F37: 2.72 | G37: 16 | H37: 2.72 | I37: 16 | K37: 1993-94 | L37: 42.13 | M37: 26.53 | N37: 21.6 | O37: 7.01 | P37: 2.72 | Q37: 16 | S37: 4.1 | T37: 8 | U37: 23 | W37: 1993-94 | X37: 42.13 | Y37: 26.53 | Z37: 21.6 | AA37: 7.01
A38: 1996-97 | B38: 41.69 | C38: 24.76 | D38: 23.98 | E38: 7 | F38: 2.57 | G38: 18 | H38: 2.57 | I38: 18 | K38: 1996-97 | L38: 41.69 | M38: 24.76 | N38: 23.98 | O38: 7 | P38: 2.57 | Q38: 18 | S38: 5.5 | T38: 14 | U38: 27 | W38: 1996-97 | X38: 41.69 | Y38: 24.76 | Z38: 23.98 | AA38: 7
A39: 1997-98 | B39: 39.39 | C39: 32.02 | D39: 21.6 | E39: 7.01 | F39: 3.36 | G39: 12 | H39: 3.36 | I39: 12 | K39: 1997-98 | L39: 39.39 | M39: 32.02 | N39: 21.6 | O39: 7.01 | P39: 3.36 | Q39: 12 | W39: 1997-98 | X39: 39.39 | Y39: 32.02 | Z39: 21.6 | AA39: 7.01
A40: 1998-99 | B40: 42.13 | C40: 26.53 | D40: 21.6 | E40: 7.01 | F40: 2.72 | G40: 16 | H40: 2.72 | I40: 16 | K40: 1998-99 | L40: 42.13 | M40: 26.53 | N40: 21.6 | O40: 7.01 | P40: 2.72 | Q40: 16 | W40: 1998-99 | X40: 42.13 | Y40: 26.53 | Z40: 21.6 | AA40: 7.01
A41: 1999-00 | B41: 45 | C41: 22 | D41: 26 | E41: 8 | F41: 2 | G41: 20 | H41: 2 | I41: 20 | K41: 1999-00 | L41: 45 | M41: 22 | N41: 26 | O41: 8 | P41: 2 | Q41: 20 | W41: 1999-00 | X41: 45 | Y41: 22 | Z41: 26 | AA41: 8
A42: – en rule for when needed

Sheet Instructions
B1: THE INDEPENDENT PRICING AND REGULATORY TRIBUNAL OF NSW
B3: NAVIGATING THE MODEL AND OBTAINING THE RECOMMENDED MAXIMUM PRICE FOR WHOLESALE ETHANOL
B5: This model calculates the recommended maximum price for wholesale ethanol based on an import parity price (IPP) approach.
B6: Before use
B7: This model contains macros and data connections, which must be enabled for the model to function as intended. Enabling the macros and data connections in this model is at user's own risk - see disclaimer below. If macros or data connections are not currently enabled, you will get a security warning when opening this excel model. The macros and data connections in this model can be enabled by pressing the 'Enable Content' button in the security warning.
B9: Disclaimer
B10: Users must take their own precautions to ensure that the process which they employ for accessing the IPP Excel Model does not expose them to the risk of viruses, malicious computer code or other forms of interference which may damage their computer system or the computer system of others. IPART does not accept responsibility for any interference or damage to computer systems which arises in connection with use of the IPP Excel Model.
B12: Contents | J12: How to obtain the recommended maximum price for wholesale ethanol
B13: 1. User information
C14: a) Instructions (this page) | K14: All relevant outputs are displayed on the 'MAIN' page.
D15: Explains how the model is structured and how to obtain the maximum prices for wholesale ethanol
K16: 1. Refresh the model by importing the most up-to-date data
C17: b) Methodology | K17: This requires an internet connection. Press the 'Refresh all data' button on the MAIN page. Please wait while the update is taking place - this could take up to 30 seconds.
D18: Provides detail around the methodology used to calculate the maximum prices for wholesale ethanol
B20: 2. Main outputs | K20: 2. View the most recent maximum prices
C21: a) MAIN
D22: This page shows the recommended maximum prices for wholesale ethanol in any given pricing period, including the components in the underlying Import Parity Price calculation. | K22: The MAIN page presents the recommended maximum pries for wholesale ethanol for ten most recent pricing periods available. Where these are pricing periods prior to 1 January 2017, the maximum prices are indicative, showing approximately what the maximum prices would have been using the IPP methodology. These indicative maximum prices use historical mill-gate prices, but otherwise use current estimates of IPP components.
B25: 3. Calculations
C26: a) Pricing Period IPPs | K26: The chart shows the latest available maximum price, as well as up to five years of prior (indicative) maximum prices, depending on the users selection.
D27: Calculates the components of the IPPs underlying the recommended maximum prices in every pricing period. These IPPs are lagged 9-month averages of the lowest weekly IPPs based on US and Brazilian ethanol imports.
K28: Finally, the user can choose to show the breakdown of the IPP components underlying the maximum price for any pricing period.
C29: b) USDA ESALQ weekly IPPs
D30: Calculates weekly IPPs based on US and Brazilian ethanol imports.
C31: c) USDA calcs
D32: Calculates a weekly mill-gate price for US ethanol using imported prices for several US locations
C33: d) USDA historical daily prices
D34: Calculates a weekly mill-gate price for US ethanol using hard-coded daily historical prices - these are only used where the weekly price could not be imported.
C35: e) ESALQ calcs
D36: Assigns weekly average mill-gate prices for Brazilian ethanol to the appropriate week under the Australian date system.
C37: f) ExRate calcs
D38: Calculates weekly average exchange rates from USD and BRL to AUD
B39: 4. Data inputs
C40: a) Other inputs
D41: Key static convesion rates and other inputs
C42: b) BRL USD ExRates
D43: USD to BRL exchange rates imported from the US Federal Reserve
C44: c) USDA prices import
D45: US weekly ethanol prices imported from US Department of Agriculture (USDA)
C46: d) ESALQ prices
D47: Brazilian weekly ethanol prices imported from The School of Agriculture at the University of Sao Paulo (ESAQL)
C48: e) RBA ExRate latest
D49: AUD to USD exchange rates from 1 January 2014 imported from the Reserve Bank of Australia (RBA)
C50: f) RBA ExRates pre2014
D51: AUD to USD exchange rates from before 1 January 2014 from the Reserve Bank of Australia (RBA)

Sheet Methodology
B2: METHODOLOGY FOR CALCULATING THE RECOMMENDED MAXIMUM PRICE FOR WHOLESALE ETHANOL
B4: This page sets out the methodology used to calculate the recommended maximum price for wholesale ethanol in each quarterly pricing period in 2017. The first pricing period is from 1 January 2017 until 31 March 2017.
B6: Step 1: Calculating weekly IPPs for US and Brazilian ethanol
B7: The first step in calculating the recommended maximum price for wholesale ethanol is calculating weekly IPPs for US and Brazilian ethanol for nine months up to one month prior to the commencement of the pricing period. This is illustrated in Figure 1, which shows that for the pricing period commencing at Month 1, the averaging period for weekly IPPs covers Month -9 through Month -1. Weekly IPPs need to be calculated for every week for which the Friday of that week is within the averaging pricing period. The averaging period will include between 37 and 39 weeks of weekly IPPs.
B8: Table 1 sets out volume and mass conversion factors required. Tables 2 through 4 describe how the weekly IPPs are calculated for US and Brazilian ethanol. These weekly IPPs include relevant fuel excise and customs duties, but exclude GST.
B10: Figure 1 | C10: Pricing periods and corresponding averaging periods for weekly IPPs
B24: Table 1 Conversion factors
B25: Parameter | C25: Definition | D25: Unit
B26: Ethanol kg per litre at 20°C | C26: 1 litre = 0.7893 kg | D26: Kg per litre
B28: Gallon to litre conversion factor | C28: 1 gallon = 3.78541 litres | D28: Litres per gallon
B33: Table 2 Parameters common to the calculation of weekly IPPs for US ethanol and Brazilian ethanol
B34: Parameter | C34: Definition | G34: Unit
C35: Daily AUD/USD (A$1=USD) exchange rate as published by the Reserve Bank of Australia (RBA) at | G35: AUD/USD
C36: http://www.rba.gov.au/statistics/historical-data.html#exchange-rates
C38: Daily USD/BRL (US$1=BRL) exchange rates as published by the US Federal Reserve at | G38: USD/BRL
C39: https://www.federalreserve.gov/releases/h10/hist/dat00_bz.htm
C41: Arithmetic mean of | G41: AUD/USD
C42: for Monday through Friday in week t
C44: Arithmetic mean of | G44: AUD/BRL
C45: for Monday through Friday in week t
C47: Wharfage charges at Australian import terminal in week t, based on ex-GST bulk liquids tariffs at Port Botany, published at | G47: AUD/litre
C48: http://www.nswportsbotany.com.au/trade/port-charges/
C49: For the pricing period commencing 1 January 2017, the relevant wharfage charges for the weekly IPP calculations are:
C50: ● 1 July 2015 to 30 June 2016: AUD 2.43/tonne
C51: ● 1 July 2016 to 30 June 2017: AUD 2.48/tonne
C52: For the purpose of our methodology, these amounts are converted to AUD/litre.
C53: Wharfage charges in the calculation of weekly IPPs from 1 July 2017 will reflect updates to Port Botany’s bulk liquids tariffs.
C55: Cost of storage and handling at import terminal, assumed constant at AUD 0.03/litre | G55: AUD/litre
C57: Cost of freight from import terminal to fuel wholesaler’s terminal, assumed constant at AUD 0.015/litre | G57: AUD/litre
C59: Fuel excise tariffs applicable to imported ethanol in week t, as published by the ATO at | G59: AUD/litre
C60: https://www.ato.gov.au/business/excise-and-excise-equivalent-goods/fuel-excise/excise-rates-for-fuel/
C61: For the pricing period commencing 1 January 2017, the relevant fuel excise tariffs for the weekly IPP calculations are:
C62: ● 1 February 2016 to 30 July 2016: AUD 0.3950/litre
C63: ● 1 August 2016 to 30 January 2017: AUD 0.3960/litre
C64: Excise tariffs in the calculation of weekly IPPs from 1 February 2017 will reflect updates to the excise tariffs published by the ATO.
B68: Table 3 Calculation of weekly US IPPs
B69: Parameters | C69: Definition | G69: Unit
C70: Price of wholesale ethanol at the mill gate in the US in week t. | G70: USD/litre
C71: The USDA publishes end-of-week (EOW) low/high spot bids for wholesale ethanol at the mill-gate for seven major ethanol producing regions. Bids are presented in USD/gallon, and are converted to USD/litre.
C72: For each week,
C73: is calculated as the median of the mid-points of the EOW bids in each of the seven regions (where available).
C74: Occasionally, the USDA does not publish the EOW bids. In those cases, we will seek daily price information directly from USDA, and use the latest of the bids obtained for the relevant week. Each
D75: used in the calculation of the IPP will be
C76: published in the IPP model on our website
C77: www.ipart.nsw.gov.au
C78: In the case that we do not obtain the necessary prices for the relevant week, we will use the last price previously available.
D80: converted from USD to AUD in week t | G80: AUD/litre
C82: Sum of the costs of transporting the ethanol from the mill-gate in the US to Houston Port, plus any port and handling costs at Houston Port. | G82: USD/litre
C83: ● US freight costs assumed to be constant at 0.0553 USD per litre
C84: ● Houston port costs assumed to be constant at 0.0242 USD per litre
D86: converted from USD to AUD in week t | G86: AUD/litre
C88: Estimated price of the ethanol delivered ‘Free-On-Board’ (FOB) the vessel at Houston port in week t, calculated as | G88: AUD/litre
C91: Cost of sea freight from US to Australia. | G91: USD/litre
C92: Assumed constant at 88.68 USD per tonne, converted to USD/litre
D94: converted from USD to AUD in week t | G94: AUD/litre
C96: Insurance of ethanol in transit from the US to Australia in week t, calculated as: | G96: AUD/litre
C100: Total costs associated with the shipping of ethanol from the US to fuel wholesaler’s terminal in NSW in week t, excluding taxes. Calculated as: | G100: AUD/litre
C103: For the pricing period commencing 1 January 2017, customs duty on ethanol imported from the US was nil for all relevant weeks, as set out in the Australia – United States Free Trade Agreement (FTA), found here: | G103: AUD/litre
C104: http://dfat.gov.au/trade/agreements/ausfta/pages/australia-united-states-fta.aspx
C105: The customs duty for US ethanol is thus calculated as:
C107: If relevant changes are made to the FTA, the changes will be reflected in the calculation of weekly US IPPs for the subsequent pricing period.
C109: Total import taxes on US ethanol in week t, calculated as: | G109: AUD/litre
C112: Total IPP for US ethanol in week t, calculated as: | G112: AUD/litre
B118: Table 4 Calculation of weekly Brazilian IPPs
B119: Parameters | C119: Definition | G119: Unit
C120: Price of wholesale ethanol at the mill gate in São Paulo, Brazil in week t. | G120: USD/litre
C121: The Centre of Advanced Studies on Applied Economics (CEPEA) at the “Luiz de Queiroz” College of Agriculture (ESALQ) at the University of São Paulo publishes weekly volume-weighted average spot prices for wholesale anhydrous ethanol at the mill‑gate for ethanol producers in São Paulo. This publication is referred to as the CEPA/ESALQ Anhydrous Ethanol Index - São Paulo (ESALQ index), and is published at:
C122: http://www.cepea.esalq.usp.br/en/indicator/ethanol.aspx
C123: The index is published in USD per litre.
D125: converted from USD to AUD in week t | G125: AUD/litre
C127: Sum of the costs of transporting the ethanol from the mill-gate in São Paulo to Santos Port, plus any port and handling costs at Santos Port. | G127: BRL/litre
C128: ● São Paulo freight costs assumed to be constant at 0.10 BRL per litre
C129: ● Santos port costs assumed to be constant at 0.10 BRL per litre
D131: converted from USD to AUD in week t | G131: AUD/litre
C133: Estimated price of the ethanol delivered ‘Free-On-Board’ (FOB) the vessel at Santos port in week t, calculated as | G133: AUD/litre
C136: Cost of sea freight from Brazil to Australia. | G136: USD/litre
C137: Assumed constant at 87.50 USD per tonne, converted to USD/litre
D139: converted from USD to AUD in week t | G139: AUD/litre
C141: Insurance of ethanol in transit from Brazil to Australia in week t, calculated as: | G141: AUD/litre
C144: Total costs associated with the shipping of ethanol from Brazil to fuel wholesaler’s terminal in NSW in week t, excluding taxes. Calculated as: | G144: AUD/litre
C147: For the pricing period commencing 1 January 2017, customs duty on ethanol imported from Brazil was 4.0% for all relevant weeks, as specified in Schedule 3 to the Customs Tariff Act 1995 – Item 2207.20.10. | G147: AUD/litre
C148: The customs duty for Brazilian ethanol is thus calculated as:
C151: If relevant changes are made to the customs duty that applies to ethanol imported from Brazil, the changes will be reflected in the calculation of weekly Brazilian IPPs for the subsequent pricing period.
C153: Total import taxes on Brazilian ethanol in week t, calculated as: | G153: AUD/litre
C156: Total IPP for Brazilian ethanol in week t, calculated as: | G156: AUD/litre
B163: Step 2: Calculating the recommended maximum price for wholesale ethanol
B164: After weekly IPPs for US and Brazilian ethanol have been calculated for all relevant weeks in the averaging period, they are combined to produce the recommended maximum price for wholesale ethanol. Let t represent the week-number of a given week in an averaging period, so Week 1 is the first week in the averaging period, etc.
B165: The recommended maximum price for wholesale ethanol is calculated as follows:
B168: Where:
C169: Week 1 = the first week ending on a Friday within the averaging period
C170: n = the number of Fridays in the averaging period
B172: Table 5 sets out the averaging periods and corresponding week numbers for the pricing periods in 2017.
B174: Table 5 Averaging periods and week numbers
B175: Pricing period | C175: Week 1 is the week ending on the following Friday | D175: Week n is the week ending on the following Friday | E175: Number of Fridays in period, n
B176: 2017 Q1 | C176: 2016-03-04 | D176: 2016-11-25 | E176: 38
B177: 2017 Q2 | C177: 2016-06-03 | D177: 2016-02-24 | E177: 38
B178: 2017 Q3 | C178: 2016-09-02 | D178: 2017-05-26 | E178: 38
B179: 2017 Q4 | C179: 2016-12-02 | D179: 2017-08-25 | E179: 38

Sheet MAIN
B2: Recommended maximum price for wholesale ethanol
K4: HISTORICAL RECOMMENDED MAXIMUM PRICES
L6: ="The ten most recent maximum prices available as of "&TEXT(TODAY(),"d mmmm yyyy") -> The ten most recent maximum prices available as of 22 December 2016
B7: MAXIMUM PRICE IN CHOSEN PRICING PERIOD
M8: Pricing period | O8: Maximum price
C9: Commencement date of pricing period: | G9: 2017-01-01 | M9: Start date | N9: End date | O9: AU cents per litre (ex GST)
M10: =MAX(IF(ISNUMBER('Pricing Period IPPs'!$P$6:$P$101),'Pricing Period IPPs'!$B$6:$B$101)) -> 2017-01-01 | N10: =DATE(YEAR(M10),MONTH(M10)+3,DAY(M10)-1) -> 2017-03-31 | O10: =INDEX('Pricing Period IPPs'!$P$6:$P$101,MATCH(M10,'Pricing Period IPPs'!$B$6:$B$101,0)) -> 115.2202493 | P10: =IF(M10<DATE(2017,1,1),"Indicative only*","") ->  | Q10: =IF(M10<DATE(2017,1,1),"Indicative only!*","") -> 
C11: Pricing period: | E11: =TEXT(G9,"d mmmm yyyy")&" to "&TEXT(DATE(YEAR($G$9),MONTH($G$9)+3,DAY($G$9)-1),"d mmmm yyyy") -> 1 January 2017 to 31 March 2017 | M11: =DATE(YEAR(M10),MONTH(M10)-3,DAY(M10)) -> 2016-10-01 | N11: =DATE(YEAR(M11),MONTH(M11)+3,DAY(M11)-1) -> 2016-12-31 | O11: =INDEX('Pricing Period IPPs'!$P$6:$P$101,MATCH(M11,'Pricing Period IPPs'!$B$6:$B$101,0)) -> 114.231814 | P11: =IF(M11<DATE(2017,1,1),"Indicative only*","") -> Indicative only*
M12: =DATE(YEAR(M11),MONTH(M11)-3,DAY(M11)) -> 2016-07-01 | N12: 2016-09-30 | O12: =INDEX('Pricing Period IPPs'!$P$6:$P$101,MATCH(M12,'Pricing Period IPPs'!$B$6:$B$101,0)) -> 114.7058043 | P12: =IF(M12<DATE(2017,1,1),"Indicative only*","") -> Indicative only*
C13: Recommended maximum price (ex GST): | G13: =IF(ISNA(INDEX('Pricing Period IPPs'!$P$6:$P$101,MATCH(MAIN!$G$9,'Pricing Period IPPs'!$B$6:$B$101,0))),"Not available",INDEX('Pricing Period IPPs'!$P$6:$P$101,MATCH(MAIN!$G$9,'Pricing Period IPPs'!$B$6:$B$101,0))) -> 115.2202493 | H13: =IF(ISNUMBER($G$13)," AU cents/litre","") -> AU cents/litre | M13: 2016-04-01 | N13: 2016-06-30 | O13: =INDEX('Pricing Period IPPs'!$P$6:$P$101,MATCH(M13,'Pricing Period IPPs'!$B$6:$B$101,0)) -> 115.3584402 | P13: Indicative only*
G14: =IF($G$9<DATE(2017,1,1),"Indicative only!*","") ->  | M14: 2016-01-01 | N14: 2016-03-31 | O14: =INDEX('Pricing Period IPPs'!$P$6:$P$101,MATCH(M14,'Pricing Period IPPs'!$B$6:$B$101,0)) -> 115.6318689 | P14: Indicative only*
M15: 2015-10-01 | N15: 2015-12-31 | O15: =INDEX('Pricing Period IPPs'!$P$6:$P$101,MATCH(M15,'Pricing Period IPPs'!$B$6:$B$101,0)) -> 114.0042647 | P15: Indicative only*
B16: BREAKDOWN OF IMPORT PARITY PRICE CALCULATION | M16: 2015-07-01 | N16: 2015-09-30 | O16: =INDEX('Pricing Period IPPs'!$P$6:$P$101,MATCH(M16,'Pricing Period IPPs'!$B$6:$B$101,0)) -> 113.6013914 | P16: Indicative only*
G17: =IF($G$9<DATE(2017,1,1),"Indicative only!*","") ->  | M17: 2015-04-01 | N17: 2015-06-30 | O17: =INDEX('Pricing Period IPPs'!$P$6:$P$101,MATCH(M17,'Pricing Period IPPs'!$B$6:$B$101,0)) -> 115.6634433 | P17: Indicative only*
C18: IPP Component | G18: AU cents per litre | M18: 2015-01-01 | N18: 2015-03-31 | O18: =INDEX('Pricing Period IPPs'!$P$6:$P$101,MATCH(M18,'Pricing Period IPPs'!$B$6:$B$101,0)) -> 121.8563376 | P18: Indicative only*
D19: Mill-gate price | G19: =IFERROR(100*INDEX('Pricing Period IPPs'!$F$6:$F$101,MATCH($G$9,'Pricing Period IPPs'!$B$6:$B$101,0)),"N/A") -> 50.83595476 | M19: 2014-10-01 | N19: 2014-12-31 | O19: =INDEX('Pricing Period IPPs'!$P$6:$P$101,MATCH(M19,'Pricing Period IPPs'!$B$6:$B$101,0)) -> 125.0067817 | P19: =IF(M19<DATE(2017,1,1),"Indicative only*","") -> Indicative only*
D20: Origin country freight | G20: =IFERROR(100*INDEX('Pricing Period IPPs'!$G$6:$G$101,MATCH($G$9,'Pricing Period IPPs'!$B$6:$B$101,0)),"N/A") -> 7.347881985
D21: Origin country port costs | G21: =IFERROR(100*INDEX('Pricing Period IPPs'!$H$6:$H$101,MATCH($G$9,'Pricing Period IPPs'!$B$6:$B$101,0)),"N/A") -> 3.215528825 | M21: Number of years to display in chart: | P21: 3 years
C22: Total FOB price | G22: =SUM(G19:G21) -> 61.39936557
D23: Sea freight | G23: =IFERROR(100*INDEX('Pricing Period IPPs'!$I$6:$I$101,MATCH($G$9,'Pricing Period IPPs'!$B$6:$B$101,0)),"N/A") -> 9.300468547
D24: Insurance costs | G24: =IFERROR(100*INDEX('Pricing Period IPPs'!$J$6:$J$101,MATCH($G$9,'Pricing Period IPPs'!$B$6:$B$101,0)),"N/A") -> 0.2827993365
D25: Wharfage import terminal | G25: =IFERROR(100*INDEX('Pricing Period IPPs'!$M$6:$M$101,MATCH($G$9,'Pricing Period IPPs'!$B$6:$B$101,0)),"N/A") -> 0.1940261308 | M25: 1 year | N25: =LEFT(P21,1) -> 3
D26: Storage and handling import terminal | G26: =IFERROR(100*INDEX('Pricing Period IPPs'!$N$6:$N$101,MATCH($G$9,'Pricing Period IPPs'!$B$6:$B$101,0)),"N/A") -> 3 | M26: 2 years
D27: Transport to fuel wholesale terminal | G27: =IFERROR(100*INDEX('Pricing Period IPPs'!$O$6:$O$101,MATCH($G$9,'Pricing Period IPPs'!$B$6:$B$101,0)),"N/A") -> 1.5 | M27: 3 years | N27: Max x-axis | O27: =N10 -> 2017-03-31
C28: Total transit costs | G28: =SUM(G23:G27) -> 14.27729401 | M28: 4 years | N28: Min x-axis | O28: =DATE(YEAR(O27)-N25,MONTH(O27),DAY(O27)+1) -> 2014-04-01
D29: Customs value duty | G29: =IFERROR(100*INDEX('Pricing Period IPPs'!$K$6:$K$101,MATCH($G$9,'Pricing Period IPPs'!$B$6:$B$101,0)),"N/A") -> 0 | M29: 5 years
D30: Fuel excise | G30: =IFERROR(100*INDEX('Pricing Period IPPs'!$L$6:$L$101,MATCH($G$9,'Pricing Period IPPs'!$B$6:$B$101,0)),"N/A") -> 39.54358974
C31: Total landing costs (taxes) | G31: =SUM(G29:G30) -> 39.54358974
C32: Total IPP delivered to wholesale terminal (ex GST) | G32: =SUM(G22,G28,G31) -> 115.2202493
B36: * | C36: These are indicative values only, since maximum wholesale prices did not apply prior to 1 January 2017. The calculation uses historical mill-gate prices, but otherwise uses current estimates of IPP components.

Sheet CALCULATIONS -->
E16: This page is intentionally left blank
L37: `

Sheet Pricing Period IPPs
B2: Pricing Period IPP Calculations
B4: Pricing period IPPs | F4: IPP components (AUD/litre) | P4: Maximum prices (AUc/litre) | U4: List of pricing periods for chart
B5: Pricing period start date | C5: Pricing period end date | D5: Averaging period start date | E5: Averaging period end date | F5: Mill gate prices | G5: Local transport | H5: Local port costs | I5: Sea Freight | J5: Insurance | K5: Customes value duty | L5: Fuel excise | M5: Wharfage | N5: Import terminal storage and handling | O5: Transport from import terminal to fuel wholesale terminal | P5: Maximum price | Q5: Indicative historical maximum prices | R5: Actual maximum prices | S5: For charting purposes only | U5: Pricing period start date
B6: 2012-01-01 | C6: =DATE(YEAR(B6),MONTH(B6)+3,DAY(B6)-1) -> 2012-03-31 | D6: =DATE(YEAR(B6),MONTH(B6)-10,DAY(B6)) -> 2011-03-01 | E6: =DATE(YEAR(D6),MONTH(D6)+9,DAY(D6)-1) -> 2011-11-30 | F6: =AVERAGEIFS('USDA ESALQ weekly IPPs'!$E$10:$E$739,'USDA ESALQ weekly IPPs'!$B$10:$B$739,">="&$D6,'USDA ESALQ weekly IPPs'!$B$10:$B$739,"<="&$E6) -> 0.6743380947 | G6: =AVERAGEIFS('USDA ESALQ weekly IPPs'!$F$10:$F$739,'USDA ESALQ weekly IPPs'!$B$10:$B$739,">="&$D6,'USDA ESALQ weekly IPPs'!$B$10:$B$739,"<="&$E6) -> 0.05315220184 | H6: =AVERAGEIFS('USDA ESALQ weekly IPPs'!$G$10:$G$739,'USDA ESALQ weekly IPPs'!$B$10:$B$739,">="&$D6,'USDA ESALQ weekly IPPs'!$B$10:$B$739,"<="&$E6) -> 0.02326009556 | I6: =AVERAGEIFS('USDA ESALQ weekly IPPs'!$H$10:$H$739,'USDA ESALQ weekly IPPs'!$B$10:$B$739,">="&$D6,'USDA ESALQ weekly IPPs'!$B$10:$B$739,"<="&$E6) -> 0.06727658153 | J6: =AVERAGEIFS('USDA ESALQ weekly IPPs'!$I$10:$I$739,'USDA ESALQ weekly IPPs'!$B$10:$B$739,">="&$D6,'USDA ESALQ weekly IPPs'!$B$10:$B$739,"<="&$E6) -> 0.003272107895 | K6: =AVERAGEIFS('USDA ESALQ weekly IPPs'!$J$10:$J$739,'USDA ESALQ weekly IPPs'!$B$10:$B$739,">="&$D6,'USDA ESALQ weekly IPPs'!$B$10:$B$739,"<="&$E6) -> 0 | L6: =AVERAGEIFS('USDA ESALQ weekly IPPs'!$L$10:$L$739,'USDA ESALQ weekly IPPs'!$B$10:$B$739,">="&$D6,'USDA ESALQ weekly IPPs'!$B$10:$B$739,"<="&$E6) -> 0.395 | M6: =AVERAGEIFS('USDA ESALQ weekly IPPs'!$M$10:$M$739,'USDA ESALQ weekly IPPs'!$B$10:$B$739,">="&$D6,'USDA ESALQ weekly IPPs'!$B$10:$B$739,"<="&$E6) -> 0.001917999 | N6: =AVERAGEIFS('USDA ESALQ weekly IPPs'!$N$10:$N$739,'USDA ESALQ weekly IPPs'!$B$10:$B$739,">="&$D6,'USDA ESALQ weekly IPPs'!$B$10:$B$739,"<="&$E6) -> 0.03 | O6: =AVERAGEIFS('USDA ESALQ weekly IPPs'!$O$10:$O$739,'USDA ESALQ weekly IPPs'!$B$10:$B$739,">="&$D6,'USDA ESALQ weekly IPPs'!$B$10:$B$739,"<="&$E6) -> 0.015 | P6: =100*IFERROR(SUM(F6:O6),NA()) -> 126.3217081 | Q6: =IF(B6<DATE(2017,1,1),P6,NA()) -> 126.3217081 | R6: =IF(C6>=DATE(2017,1,1),P6,NA()) ->  | S6: =NA() ->  | U6: =B29 -> 2017-10-01
B7: =C6+1 -> 2012-04-01 | C7: =DATE(YEAR(B7),MONTH(B7)+3,DAY(B7)-1) -> 2012-06-30 | D7: =DATE(YEAR(B7),MONTH(B7)-10,DAY(B7)) -> 2011-06-01 | E7: =DATE(YEAR(D7),MONTH(D7)+9,DAY(D7)-1) -> 2012-02-29 | F7: =AVERAGEIFS('USDA ESALQ weekly IPPs'!$E$10:$E$739,'USDA ESALQ weekly IPPs'!$B$10:$B$739,">="&$D7,'USDA ESALQ weekly IPPs'!$B$10:$B$739,"<="&$E7) -> 0.6462344342 | G7: =AVERAGEIFS('USDA ESALQ weekly IPPs'!$F$10:$F$739,'USDA ESALQ weekly IPPs'!$B$10:$B$739,">="&$D7,'USDA ESALQ weekly IPPs'!$B$10:$B$739,"<="&$E7) -> 0.05327073344 | H7: =AVERAGEIFS('USDA ESALQ weekly IPPs'!$G$10:$G$739,'USDA ESALQ weekly IPPs'!$B$10:$B$739,">="&$D7,'USDA ESALQ weekly IPPs'!$B$10:$B$739,"<="&$E7) -> 0.02331196653 | I7: =AVERAGEIFS('USDA ESALQ weekly IPPs'!$H$10:$H$739,'USDA ESALQ weekly IPPs'!$B$10:$B$739,">="&$D7,'USDA ESALQ weekly IPPs'!$B$10:$B$739,"<="&$E7) -> 0.06742661109 | J7: =AVERAGEIFS('USDA ESALQ weekly IPPs'!$I$10:$I$739,'USDA ESALQ weekly IPPs'!$B$10:$B$739,">="&$D7,'USDA ESALQ weekly IPPs'!$B$10:$B$739,"<="&$E7) -> 0.003160974981 | K7: =AVERAGEIFS('USDA ESALQ weekly IPPs'!$J$10:$J$739,'USDA ESALQ weekly IPPs'!$B$10:$B$739,">="&$D7,'USDA ESALQ weekly IPPs'!$B$10:$B$739,"<="&$E7) -> 0 | L7: =AVERAGEIFS('USDA ESALQ weekly IPPs'!$L$10:$L$739,'USDA ESALQ weekly IPPs'!$B$10:$B$739,">="&$D7,'USDA ESALQ weekly IPPs'!$B$10:$B$739,"<="&$E7) -> 0.395 | M7: =AVERAGEIFS('USDA ESALQ weekly IPPs'!$M$10:$M$739,'USDA ESALQ weekly IPPs'!$B$10:$B$739,">="&$D7,'USDA ESALQ weekly IPPs'!$B$10:$B$739,"<="&$E7) -> 0.001917999 | N7: =AVERAGEIFS('USDA ESALQ weekly IPPs'!$N$10:$N$739,'USDA ESALQ weekly IPPs'!$B$10:$B$739,">="&$D7,'USDA ESALQ weekly IPPs'!$B$10:$B$739,"<="&$E7) -> 0.03 | O7: =AVERAGEIFS('USDA ESALQ weekly IPPs'!$O$10:$O$739,'USDA ESALQ weekly IPPs'!$B$10:$B$739,">="&$D7,'USDA ESALQ weekly IPPs'!$B$10:$B$739,"<="&$E7) -> 0.015 | P7: =100*IFERROR(SUM(F7:O7),NA()) -> 123.5322719 | Q7: =IF(B7<DATE(2017,1,1),P7,NA()) -> 123.5322719 | R7: =IF(C7>=DATE(2017,1,1),P7,NA()) ->  | S7: =NA() ->  | U7: =DATE(YEAR(U6),MONTH(U6)-3,DAY(U6)) -> 2017-07-01
B8: =C7+1 -> 2012-07-01 | C8: 2012-09-30 | D8: 2011-09-01 | E8: 2012-05-31 | F8: =AVERAGEIFS('USDA ESALQ weekly IPPs'!$E$10:$E$739,'USDA ESALQ weekly IPPs'!$B$10:$B$739,">="&$D8,'USDA ESALQ weekly IPPs'!$B$10:$B$739,"<="&$E8) -> 0.6026453784 | G8: =AVERAGEIFS('USDA ESALQ weekly IPPs'!$F$10:$F$739,'USDA ESALQ weekly IPPs'!$B$10:$B$739,">="&$D8,'USDA ESALQ weekly IPPs'!$B$10:$B$739,"<="&$E8) -> 0.05374139367 | H8: =AVERAGEIFS('USDA ESALQ weekly IPPs'!$G$10:$G$739,'USDA ESALQ weekly IPPs'!$B$10:$B$739,">="&$D8,'USDA ESALQ weekly IPPs'!$B$10:$B$739,"<="&$E8) -> 0.02351793358 | I8: =AVERAGEIFS('USDA ESALQ weekly IPPs'!$H$10:$H$739,'USDA ESALQ weekly IPPs'!$B$10:$B$739,">="&$D8,'USDA ESALQ weekly IPPs'!$B$10:$B$739,"<="&$E8) -> 0.06802234203 | J8: =AVERAGEIFS('USDA ESALQ weekly IPPs'!$I$10:$I$739,'USDA ESALQ weekly IPPs'!$B$10:$B$739,">="&$D8,'USDA ESALQ weekly IPPs'!$B$10:$B$739,"<="&$E8) -> 0.002991708191 | K8: =AVERAGEIFS('USDA ESALQ weekly IPPs'!$J$10:$J$739,'USDA ESALQ weekly IPPs'!$B$10:$B$739,">="&$D8,'USDA ESALQ weekly IPPs'!$B$10:$B$739,"<="&$E8) -> 0 | L8: =AVERAGEIFS('USDA ESALQ weekly IPPs'!$L$10:$L$739,'USDA ESALQ weekly IPPs'!$B$10:$B$739,">="&$D8,'USDA ESALQ weekly IPPs'!$B$10:$B$739,"<="&$E8) -> 0.395 | M8: =AVERAGEIFS('USDA ESALQ weekly IPPs'!$M$10:$M$739,'USDA ESALQ weekly IPPs'!$B$10:$B$739,">="&$D8,'USDA ESALQ weekly IPPs'!$B$10:$B$739,"<="&$E8) -> 0.001917999 | N8: =AVERAGEIFS('USDA ESALQ weekly IPPs'!$N$10:$N$739,'USDA ESALQ weekly IPPs'!$B$10:$B$739,">="&$D8,'USDA ESALQ weekly IPPs'!$B$10:$B$739,"<="&$E8) -> 0.03 | O8: =AVERAGEIFS('USDA ESALQ weekly IPPs'!$O$10:$O$739,'USDA ESALQ weekly IPPs'!$B$10:$B$739,">="&$D8,'USDA ESALQ weekly IPPs'!$B$10:$B$739,"<="&$E8) -> 0.015 | P8: 119.2836755 | Q8: 119.2836755 | S8: =NA() ->  | U8: =DATE(YEAR(U7),MONTH(U7)-3,DAY(U7)) -> 2017-04-01
B9: 2012-10-01 | C9: 2012-12-31 | D9: 2011-12-01 | E9: 2012-08-31 | F9: =AVERAGEIFS('USDA ESALQ weekly IPPs'!$E$10:$E$739,'USDA ESALQ weekly IPPs'!$B$10:$B$739,">="&$D9,'USDA ESALQ weekly IPPs'!$B$10:$B$739,"<="&$E9) -> 0.5578659718 | G9: =AVERAGEIFS('USDA ESALQ weekly IPPs'!$F$10:$F$739,'USDA ESALQ weekly IPPs'!$B$10:$B$739,">="&$D9,'USDA ESALQ weekly IPPs'!$B$10:$B$739,"<="&$E9) -> 0.05265280432 | H9: =AVERAGEIFS('USDA ESALQ weekly IPPs'!$G$10:$G$739,'USDA ESALQ weekly IPPs'!$B$10:$B$739,">="&$D9,'USDA ESALQ weekly IPPs'!$B$10:$B$739,"<="&$E9) -> 0.027691943 | I9: =AVERAGEIFS('USDA ESALQ weekly IPPs'!$H$10:$H$739,'USDA ESALQ weekly IPPs'!$B$10:$B$739,">="&$D9,'USDA ESALQ weekly IPPs'!$B$10:$B$739,"<="&$E9) -> 0.06776641752 | J9: =AVERAGEIFS('USDA ESALQ weekly IPPs'!$I$10:$I$739,'USDA ESALQ weekly IPPs'!$B$10:$B$739,">="&$D9,'USDA ESALQ weekly IPPs'!$B$10:$B$739,"<="&$E9) -> 0.002823908547 | K9: =AVERAGEIFS('USDA ESALQ weekly IPPs'!$J$10:$J$739,'USDA ESALQ weekly IPPs'!$B$10:$B$739,">="&$D9,'USDA ESALQ weekly IPPs'!$B$10:$B$739,"<="&$E9) -> 0.004791662945 | L9: =AVERAGEIFS('USDA ESALQ weekly IPPs'!$L$10:$L$739,'USDA ESALQ weekly IPPs'!$B$10:$B$739,">="&$D9,'USDA ESALQ weekly IPPs'!$B$10:$B$739,"<="&$E9) -> 0.395 | M9: =AVERAGEIFS('USDA ESALQ weekly IPPs'!$M$10:$M$739,'USDA ESALQ weekly IPPs'!$B$10:$B$739,">="&$D9,'USDA ESALQ weekly IPPs'!$B$10:$B$739,"<="&$E9) -> 0.001917999 | N9: =AVERAGEIFS('USDA ESALQ weekly IPPs'!$N$10:$N$739,'USDA ESALQ weekly IPPs'!$B$10:$B$739,">="&$D9,'USDA ESALQ weekly IPPs'!$B$10:$B$739,"<="&$E9) -> 0.03 | O9: =AVERAGEIFS('USDA ESALQ weekly IPPs'!$O$10:$O$739,'USDA ESALQ weekly IPPs'!$B$10:$B$739,">="&$D9,'USDA ESALQ weekly IPPs'!$B$10:$B$739,"<="&$E9) -> 0.015 | P9: 115.5510707 | Q9: 115.5510707 | S9: =NA() ->  | U9: 2017-01-01
B10: 2013-01-01 | C10: 2013-03-31 | D10: 2012-03-01 | E10: 2012-11-30 | F10: =AVERAGEIFS('USDA ESALQ weekly IPPs'!$E$10:$E$739,'USDA ESALQ weekly IPPs'!$B$10:$B$739,">="&$D10,'USDA ESALQ weekly IPPs'!$B$10:$B$739,"<="&$E10) -> 0.5631901667 | G10: =AVERAGEIFS('USDA ESALQ weekly IPPs'!$F$10:$F$739,'USDA ESALQ weekly IPPs'!$B$10:$B$739,">="&$D10,'USDA ESALQ weekly IPPs'!$B$10:$B$739,"<="&$E10) -> 0.05191026278 | H10: =AVERAGEIFS('USDA ESALQ weekly IPPs'!$G$10:$G$739,'USDA ESALQ weekly IPPs'!$B$10:$B$739,">="&$D10,'USDA ESALQ weekly IPPs'!$B$10:$B$739,"<="&$E10) -> 0.03072460054 | I10: =AVERAGEIFS('USDA ESALQ weekly IPPs'!$H$10:$H$739,'USDA ESALQ weekly IPPs'!$B$10:$B$739,">="&$D10,'USDA ESALQ weekly IPPs'!$B$10:$B$739,"<="&$E10) -> 0.06765193975 | J10: =AVERAGEIFS('USDA ESALQ weekly IPPs'!$I$10:$I$739,'USDA ESALQ weekly IPPs'!$B$10:$B$739,">="&$D10,'USDA ESALQ weekly IPPs'!$B$10:$B$739,"<="&$E10) -> 0.002853907879 | K10: =AVERAGEIFS('USDA ESALQ weekly IPPs'!$J$10:$J$739,'USDA ESALQ weekly IPPs'!$B$10:$B$739,">="&$D10,'USDA ESALQ weekly IPPs'!$B$10:$B$739,"<="&$E10) -> 0.0080076835 | L10: =AVERAGEIFS('USDA ESALQ weekly IPPs'!$L$10:$L$739,'USDA ESALQ weekly IPPs'!$B$10:$B$739,">="&$D10,'USDA ESALQ weekly IPPs'!$B$10:$B$739,"<="&$E10) -> 0.395 | M10: =AVERAGEIFS('USDA ESALQ weekly IPPs'!$M$10:$M$739,'USDA ESALQ weekly IPPs'!$B$10:$B$739,">="&$D10,'USDA ESALQ weekly IPPs'!$B$10:$B$739,"<="&$E10) -> 0.001917999 | N10: =AVERAGEIFS('USDA ESALQ weekly IPPs'!$N$10:$N$739,'USDA ESALQ weekly IPPs'!$B$10:$B$739,">="&$D10,'USDA ESALQ weekly IPPs'!$B$10:$B$739,"<="&$E10) -> 0.03 | O10: =AVERAGEIFS('USDA ESALQ weekly IPPs'!$O$10:$O$739,'USDA ESALQ weekly IPPs'!$B$10:$B$739,">="&$D10,'USDA ESALQ weekly IPPs'!$B$10:$B$739,"<="&$E10) -> 0.015 | P10: 116.625656 | Q10: 116.625656 | S10: =NA() ->  | U10: 2016-10-01
B11: 2013-04-01 | C11: 2013-06-30 | D11: 2012-06-01 | E11: 2013-02-28 | F11: =AVERAGEIFS('USDA ESALQ weekly IPPs'!$E$10:$E$739,'USDA ESALQ weekly IPPs'!$B$10:$B$739,">="&$D11,'USDA ESALQ weekly IPPs'!$B$10:$B$739,"<="&$E11) -> 0.5705485434 | G11: =AVERAGEIFS('USDA ESALQ weekly IPPs'!$F$10:$F$739,'USDA ESALQ weekly IPPs'!$B$10:$B$739,">="&$D11,'USDA ESALQ weekly IPPs'!$B$10:$B$739,"<="&$E11) -> 0.05170308526 | H11: =AVERAGEIFS('USDA ESALQ weekly IPPs'!$G$10:$G$739,'USDA ESALQ weekly IPPs'!$B$10:$B$739,">="&$D11,'USDA ESALQ weekly IPPs'!$B$10:$B$739,"<="&$E11) -> 0.03083927013 | I11: =AVERAGEIFS('USDA ESALQ weekly IPPs'!$H$10:$H$739,'USDA ESALQ weekly IPPs'!$B$10:$B$739,">="&$D11,'USDA ESALQ weekly IPPs'!$B$10:$B$739,"<="&$E11) -> 0.06743963935 | J11: =AVERAGEIFS('USDA ESALQ weekly IPPs'!$I$10:$I$739,'USDA ESALQ weekly IPPs'!$B$10:$B$739,">="&$D11,'USDA ESALQ weekly IPPs'!$B$10:$B$739,"<="&$E11) -> 0.002882122153 | K11: =AVERAGEIFS('USDA ESALQ weekly IPPs'!$J$10:$J$739,'USDA ESALQ weekly IPPs'!$B$10:$B$739,">="&$D11,'USDA ESALQ weekly IPPs'!$B$10:$B$739,"<="&$E11) -> 0.008213008718 | L11: =AVERAGEIFS('USDA ESALQ weekly IPPs'!$L$10:$L$739,'USDA ESALQ weekly IPPs'!$B$10:$B$739,">="&$D11,'USDA ESALQ weekly IPPs'!$B$10:$B$739,"<="&$E11) -> 0.395 | M11: =AVERAGEIFS('USDA ESALQ weekly IPPs'!$M$10:$M$739,'USDA ESALQ weekly IPPs'!$B$10:$B$739,">="&$D11,'USDA ESALQ weekly IPPs'!$B$10:$B$739,"<="&$E11) -> 0.001917999 | N11: =AVERAGEIFS('USDA ESALQ weekly IPPs'!$N$10:$N$739,'USDA ESALQ weekly IPPs'!$B$10:$B$739,">="&$D11,'USDA ESALQ weekly IPPs'!$B$10:$B$739,"<="&$E11) -> 0.03 | O11: =AVERAGEIFS('USDA ESALQ weekly IPPs'!$O$10:$O$739,'USDA ESALQ weekly IPPs'!$B$10:$B$739,">="&$D11,'USDA ESALQ weekly IPPs'!$B$10:$B$739,"<="&$E11) -> 0.015 | P11: 117.3543668 | Q11: 117.3543668 | S11: =NA() ->  | U11: 2016-07-01
B12: 2013-07-01 | C12: 2013-09-30 | D12: 2012-09-01 | E12: 2013-05-31 | F12: =AVERAGEIFS('USDA ESALQ weekly IPPs'!$E$10:$E$739,'USDA ESALQ weekly IPPs'!$B$10:$B$739,">="&$D12,'USDA ESALQ weekly IPPs'!$B$10:$B$739,"<="&$E12) -> 0.5967656722 | G12: =AVERAGEIFS('USDA ESALQ weekly IPPs'!$F$10:$F$739,'USDA ESALQ weekly IPPs'!$B$10:$B$739,">="&$D12,'USDA ESALQ weekly IPPs'!$B$10:$B$739,"<="&$E12) -> 0.05257627529 | H12: =AVERAGEIFS('USDA ESALQ weekly IPPs'!$G$10:$G$739,'USDA ESALQ weekly IPPs'!$B$10:$B$739,">="&$D12,'USDA ESALQ weekly IPPs'!$B$10:$B$739,"<="&$E12) -> 0.02716528513 | I12: =AVERAGEIFS('USDA ESALQ weekly IPPs'!$H$10:$H$739,'USDA ESALQ weekly IPPs'!$B$10:$B$739,">="&$D12,'USDA ESALQ weekly IPPs'!$B$10:$B$739,"<="&$E12) -> 0.06762739493 | J12: =AVERAGEIFS('USDA ESALQ weekly IPPs'!$I$10:$I$739,'USDA ESALQ weekly IPPs'!$B$10:$B$739,">="&$D12,'USDA ESALQ weekly IPPs'!$B$10:$B$739,"<="&$E12) -> 0.00297653851 | K12: =AVERAGEIFS('USDA ESALQ weekly IPPs'!$J$10:$J$739,'USDA ESALQ weekly IPPs'!$B$10:$B$739,">="&$D12,'USDA ESALQ weekly IPPs'!$B$10:$B$739,"<="&$E12) -> 0.004056879205 | L12: =AVERAGEIFS('USDA ESALQ weekly IPPs'!$L$10:$L$739,'USDA ESALQ weekly IPPs'!$B$10:$B$739,">="&$D12,'USDA ESALQ weekly IPPs'!$B$10:$B$739,"<="&$E12) -> 0.395 | M12: =AVERAGEIFS('USDA ESALQ weekly IPPs'!$M$10:$M$739,'USDA ESALQ weekly IPPs'!$B$10:$B$739,">="&$D12,'USDA ESALQ weekly IPPs'!$B$10:$B$739,"<="&$E12) -> 0.001917999 | N12: =AVERAGEIFS('USDA ESALQ weekly IPPs'!$N$10:$N$739,'USDA ESALQ weekly IPPs'!$B$10:$B$739,">="&$D12,'USDA ESALQ weekly IPPs'!$B$10:$B$739,"<="&$E12) -> 0.03 | O12: =AVERAGEIFS('USDA ESALQ weekly IPPs'!$O$10:$O$739,'USDA ESALQ weekly IPPs'!$B$10:$B$739,">="&$D12,'USDA ESALQ weekly IPPs'!$B$10:$B$739,"<="&$E12) -> 0.015 | P12: 119.3086044 | Q12: 119.3086044 | S12: =NA() ->  | U12: 2016-04-01
B13: 2013-10-01 | C13: 2013-12-31 | D13: 2012-12-01 | E13: 2013-08-31 | F13: =AVERAGEIFS('USDA ESALQ weekly IPPs'!$E$10:$E$739,'USDA ESALQ weekly IPPs'!$B$10:$B$739,">="&$D13,'USDA ESALQ weekly IPPs'!$B$10:$B$739,"<="&$E13) -> 0.6125220918 | G13: =AVERAGEIFS('USDA ESALQ weekly IPPs'!$F$10:$F$739,'USDA ESALQ weekly IPPs'!$B$10:$B$739,">="&$D13,'USDA ESALQ weekly IPPs'!$B$10:$B$739,"<="&$E13) -> 0.05159610669 | H13: =AVERAGEIFS('USDA ESALQ weekly IPPs'!$G$10:$G$739,'USDA ESALQ weekly IPPs'!$B$10:$B$739,">="&$D13,'USDA ESALQ weekly IPPs'!$B$10:$B$739,"<="&$E13) -> 0.03231785106 | I13: =AVERAGEIFS('USDA ESALQ weekly IPPs'!$H$10:$H$739,'USDA ESALQ weekly IPPs'!$B$10:$B$739,">="&$D13,'USDA ESALQ weekly IPPs'!$B$10:$B$739,"<="&$E13) -> 0.0702354756 | J13: =AVERAGEIFS('USDA ESALQ weekly IPPs'!$I$10:$I$739,'USDA ESALQ weekly IPPs'!$B$10:$B$739,">="&$D13,'USDA ESALQ weekly IPPs'!$B$10:$B$739,"<="&$E13) -> 0.003066686101 | K13: =AVERAGEIFS('USDA ESALQ weekly IPPs'!$J$10:$J$739,'USDA ESALQ weekly IPPs'!$B$10:$B$739,">="&$D13,'USDA ESALQ weekly IPPs'!$B$10:$B$739,"<="&$E13) -> 0.0102611081 | L13: =AVERAGEIFS('USDA ESALQ weekly IPPs'!$L$10:$L$739,'USDA ESALQ weekly IPPs'!$B$10:$B$739,">="&$D13,'USDA ESALQ weekly IPPs'!$B$10:$B$739,"<="&$E13) -> 0.395 | M13: =AVERAGEIFS('USDA ESALQ weekly IPPs'!$M$10:$M$739,'USDA ESALQ weekly IPPs'!$B$10:$B$739,">="&$D13,'USDA ESALQ weekly IPPs'!$B$10:$B$739,"<="&$E13) -> 0.001917999 | N13: =AVERAGEIFS('USDA ESALQ weekly IPPs'!$N$10:$N$739,'USDA ESALQ weekly IPPs'!$B$10:$B$739,">="&$D13,'USDA ESALQ weekly IPPs'!$B$10:$B$739,"<="&$E13) -> 0.03 | O13: =AVERAGEIFS('USDA ESALQ weekly IPPs'!$O$10:$O$739,'USDA ESALQ weekly IPPs'!$B$10:$B$739,">="&$D13,'USDA ESALQ weekly IPPs'!$B$10:$B$739,"<="&$E13) -> 0.015 | P13: 122.1917318 | Q13: 122.1917318 | S13: =NA() ->  | U13: 2016-01-01
B14: 2014-01-01 | C14: 2014-03-31 | D14: 2013-03-01 | E14: 2013-11-30 | F14: =AVERAGEIFS('USDA ESALQ weekly IPPs'!$E$10:$E$739,'USDA ESALQ weekly IPPs'!$B$10:$B$739,">="&$D14,'USDA ESALQ weekly IPPs'!$B$10:$B$739,"<="&$E14) -> 0.6153209421 | G14: =AVERAGEIFS('USDA ESALQ weekly IPPs'!$F$10:$F$739,'USDA ESALQ weekly IPPs'!$B$10:$B$739,">="&$D14,'USDA ESALQ weekly IPPs'!$B$10:$B$739,"<="&$E14) -> 0.05292554493 | H14: =AVERAGEIFS('USDA ESALQ weekly IPPs'!$G$10:$G$739,'USDA ESALQ weekly IPPs'!$B$10:$B$739,">="&$D14,'USDA ESALQ weekly IPPs'!$B$10:$B$739,"<="&$E14) -> 0.03398269642 | I14: =AVERAGEIFS('USDA ESALQ weekly IPPs'!$H$10:$H$739,'USDA ESALQ weekly IPPs'!$B$10:$B$739,">="&$D14,'USDA ESALQ weekly IPPs'!$B$10:$B$739,"<="&$E14) -> 0.07257836329 | J14: =AVERAGEIFS('USDA ESALQ weekly IPPs'!$I$10:$I$739,'USDA ESALQ weekly IPPs'!$B$10:$B$739,">="&$D14,'USDA ESALQ weekly IPPs'!$B$10:$B$739,"<="&$E14) -> 0.003099230187 | K14: =AVERAGEIFS('USDA ESALQ weekly IPPs'!$J$10:$J$739,'USDA ESALQ weekly IPPs'!$B$10:$B$739,">="&$D14,'USDA ESALQ weekly IPPs'!$B$10:$B$739,"<="&$E14) -> 0.01140260768 | L14: =AVERAGEIFS('USDA ESALQ weekly IPPs'!$L$10:$L$739,'USDA ESALQ weekly IPPs'!$B$10:$B$739,">="&$D14,'USDA ESALQ weekly IPPs'!$B$10:$B$739,"<="&$E14) -> 0.395 | M14: =AVERAGEIFS('USDA ESALQ weekly IPPs'!$M$10:$M$739,'USDA ESALQ weekly IPPs'!$B$10:$B$739,">="&$D14,'USDA ESALQ weekly IPPs'!$B$10:$B$739,"<="&$E14) -> 0.001917999 | N14: =AVERAGEIFS('USDA ESALQ weekly IPPs'!$N$10:$N$739,'USDA ESALQ weekly IPPs'!$B$10:$B$739,">="&$D14,'USDA ESALQ weekly IPPs'!$B$10:$B$739,"<="&$E14) -> 0.03 | O14: =AVERAGEIFS('USDA ESALQ weekly IPPs'!$O$10:$O$739,'USDA ESALQ weekly IPPs'!$B$10:$B$739,">="&$D14,'USDA ESALQ weekly IPPs'!$B$10:$B$739,"<="&$E14) -> 0.015 | P14: 123.1227384 | Q14: 123.1227384 | S14: =NA() ->  | U14: 2015-10-01
B15: 2014-04-01 | C15: 2014-06-30 | D15: 2013-06-01 | E15: 2014-02-28 | F15: =AVERAGEIFS('USDA ESALQ weekly IPPs'!$E$10:$E$739,'USDA ESALQ weekly IPPs'!$B$10:$B$739,">="&$D15,'USDA ESALQ weekly IPPs'!$B$10:$B$739,"<="&$E15) -> 0.6083680719 | G15: =AVERAGEIFS('USDA ESALQ weekly IPPs'!$F$10:$F$739,'USDA ESALQ weekly IPPs'!$B$10:$B$739,">="&$D15,'USDA ESALQ weekly IPPs'!$B$10:$B$739,"<="&$E15) -> 0.05566431237 | H15: =AVERAGEIFS('USDA ESALQ weekly IPPs'!$G$10:$G$739,'USDA ESALQ weekly IPPs'!$B$10:$B$739,">="&$D15,'USDA ESALQ weekly IPPs'!$B$10:$B$739,"<="&$E15) -> 0.03474517172 | I15: =AVERAGEIFS('USDA ESALQ weekly IPPs'!$H$10:$H$739,'USDA ESALQ weekly IPPs'!$B$10:$B$739,">="&$D15,'USDA ESALQ weekly IPPs'!$B$10:$B$739,"<="&$E15) -> 0.07595497808 | J15: =AVERAGEIFS('USDA ESALQ weekly IPPs'!$I$10:$I$739,'USDA ESALQ weekly IPPs'!$B$10:$B$739,">="&$D15,'USDA ESALQ weekly IPPs'!$B$10:$B$739,"<="&$E15) -> 0.003098930136 | K15: =AVERAGEIFS('USDA ESALQ weekly IPPs'!$J$10:$J$739,'USDA ESALQ weekly IPPs'!$B$10:$B$739,">="&$D15,'USDA ESALQ weekly IPPs'!$B$10:$B$739,"<="&$E15) -> 0.01093658565 | L15: =AVERAGEIFS('USDA ESALQ weekly IPPs'!$L$10:$L$739,'USDA ESALQ weekly IPPs'!$B$10:$B$739,">="&$D15,'USDA ESALQ weekly IPPs'!$B$10:$B$739,"<="&$E15) -> 0.395 | M15: =AVERAGEIFS('USDA ESALQ weekly IPPs'!$M$10:$M$739,'USDA ESALQ weekly IPPs'!$B$10:$B$739,">="&$D15,'USDA ESALQ weekly IPPs'!$B$10:$B$739,"<="&$E15) -> 0.001917999 | N15: =AVERAGEIFS('USDA ESALQ weekly IPPs'!$N$10:$N$739,'USDA ESALQ weekly IPPs'!$B$10:$B$739,">="&$D15,'USDA ESALQ weekly IPPs'!$B$10:$B$739,"<="&$E15) -> 0.03 | O15: =AVERAGEIFS('USDA ESALQ weekly IPPs'!$O$10:$O$739,'USDA ESALQ weekly IPPs'!$B$10:$B$739,">="&$D15,'USDA ESALQ weekly IPPs'!$B$10:$B$739,"<="&$E15) -> 0.015 | P15: 123.0686049 | Q15: 123.0686049 | S15: =NA() ->  | U15: 2015-07-01
B16: 2014-07-01 | C16: 2014-09-30 | D16: 2013-09-01 | E16: 2014-05-31 | F16: =AVERAGEIFS('USDA ESALQ weekly IPPs'!$E$10:$E$739,'USDA ESALQ weekly IPPs'!$B$10:$B$739,">="&$D16,'USDA ESALQ weekly IPPs'!$B$10:$B$739,"<="&$E16) -> 0.6314078067 | G16: =AVERAGEIFS('USDA ESALQ weekly IPPs'!$F$10:$F$739,'USDA ESALQ weekly IPPs'!$B$10:$B$739,">="&$D16,'USDA ESALQ weekly IPPs'!$B$10:$B$739,"<="&$E16) -> 0.05802759798 | H16: =AVERAGEIFS('USDA ESALQ weekly IPPs'!$G$10:$G$739,'USDA ESALQ weekly IPPs'!$B$10:$B$739,">="&$D16,'USDA ESALQ weekly IPPs'!$B$10:$B$739,"<="&$E16) -> 0.03020481097 | I16: =AVERAGEIFS('USDA ESALQ weekly IPPs'!$H$10:$H$739,'USDA ESALQ weekly IPPs'!$B$10:$B$739,">="&$D16,'USDA ESALQ weekly IPPs'!$B$10:$B$739,"<="&$E16) -> 0.0760875723 | J16: =AVERAGEIFS('USDA ESALQ weekly IPPs'!$I$10:$I$739,'USDA ESALQ weekly IPPs'!$B$10:$B$739,">="&$D16,'USDA ESALQ weekly IPPs'!$B$10:$B$739,"<="&$E16) -> 0.003182911152 | K16: =AVERAGEIFS('USDA ESALQ weekly IPPs'!$J$10:$J$739,'USDA ESALQ weekly IPPs'!$B$10:$B$739,">="&$D16,'USDA ESALQ weekly IPPs'!$B$10:$B$739,"<="&$E16) -> 0.005665899932 | L16: =AVERAGEIFS('USDA ESALQ weekly IPPs'!$L$10:$L$739,'USDA ESALQ weekly IPPs'!$B$10:$B$739,">="&$D16,'USDA ESALQ weekly IPPs'!$B$10:$B$739,"<="&$E16) -> 0.395 | M16: =AVERAGEIFS('USDA ESALQ weekly IPPs'!$M$10:$M$739,'USDA ESALQ weekly IPPs'!$B$10:$B$739,">="&$D16,'USDA ESALQ weekly IPPs'!$B$10:$B$739,"<="&$E16) -> 0.001917999 | N16: =AVERAGEIFS('USDA ESALQ weekly IPPs'!$N$10:$N$739,'USDA ESALQ weekly IPPs'!$B$10:$B$739,">="&$D16,'USDA ESALQ weekly IPPs'!$B$10:$B$739,"<="&$E16) -> 0.03 | O16: =AVERAGEIFS('USDA ESALQ weekly IPPs'!$O$10:$O$739,'USDA ESALQ weekly IPPs'!$B$10:$B$739,">="&$D16,'USDA ESALQ weekly IPPs'!$B$10:$B$739,"<="&$E16) -> 0.015 | P16: 124.6494598 | Q16: 124.6494598 | S16: =NA() ->  | U16: 2015-04-01
B17: 2014-10-01 | C17: 2014-12-31 | D17: 2013-12-01 | E17: 2014-08-31 | F17: =AVERAGEIFS('USDA ESALQ weekly IPPs'!$E$10:$E$739,'USDA ESALQ weekly IPPs'!$B$10:$B$739,">="&$D17,'USDA ESALQ weekly IPPs'!$B$10:$B$739,"<="&$E17) -> 0.6366186502 | G17: =AVERAGEIFS('USDA ESALQ weekly IPPs'!$F$10:$F$739,'USDA ESALQ weekly IPPs'!$B$10:$B$739,">="&$D17,'USDA ESALQ weekly IPPs'!$B$10:$B$739,"<="&$E17) -> 0.0587453451 | H17: =AVERAGEIFS('USDA ESALQ weekly IPPs'!$G$10:$G$739,'USDA ESALQ weekly IPPs'!$B$10:$B$739,">="&$D17,'USDA ESALQ weekly IPPs'!$B$10:$B$739,"<="&$E17) -> 0.02915835881 | I17: =AVERAGEIFS('USDA ESALQ weekly IPPs'!$H$10:$H$739,'USDA ESALQ weekly IPPs'!$B$10:$B$739,">="&$D17,'USDA ESALQ weekly IPPs'!$B$10:$B$739,"<="&$E17) -> 0.07619257878 | J17: =AVERAGEIFS('USDA ESALQ weekly IPPs'!$I$10:$I$739,'USDA ESALQ weekly IPPs'!$B$10:$B$739,">="&$D17,'USDA ESALQ weekly IPPs'!$B$10:$B$739,"<="&$E17) -> 0.003202859731 | K17: =AVERAGEIFS('USDA ESALQ weekly IPPs'!$J$10:$J$739,'USDA ESALQ weekly IPPs'!$B$10:$B$739,">="&$D17,'USDA ESALQ weekly IPPs'!$B$10:$B$739,"<="&$E17) -> 0.004232025795 | L17: =AVERAGEIFS('USDA ESALQ weekly IPPs'!$L$10:$L$739,'USDA ESALQ weekly IPPs'!$B$10:$B$739,">="&$D17,'USDA ESALQ weekly IPPs'!$B$10:$B$739,"<="&$E17) -> 0.395 | M17: =AVERAGEIFS('USDA ESALQ weekly IPPs'!$M$10:$M$739,'USDA ESALQ weekly IPPs'!$B$10:$B$739,">="&$D17,'USDA ESALQ weekly IPPs'!$B$10:$B$739,"<="&$E17) -> 0.001917999 | N17: =AVERAGEIFS('USDA ESALQ weekly IPPs'!$N$10:$N$739,'USDA ESALQ weekly IPPs'!$B$10:$B$739,">="&$D17,'USDA ESALQ weekly IPPs'!$B$10:$B$739,"<="&$E17) -> 0.03 | O17: =AVERAGEIFS('USDA ESALQ weekly IPPs'!$O$10:$O$739,'USDA ESALQ weekly IPPs'!$B$10:$B$739,">="&$D17,'USDA ESALQ weekly IPPs'!$B$10:$B$739,"<="&$E17) -> 0.015 | P17: 125.0067817 | Q17: 125.0067817 | S17: =NA() ->  | U17: 2015-01-01
B18: 2015-01-01 | C18: 2015-03-31 | D18: 2014-03-01 | E18: 2014-11-30 | F18: =AVERAGEIFS('USDA ESALQ weekly IPPs'!$E$10:$E$739,'USDA ESALQ weekly IPPs'!$B$10:$B$739,">="&$D18,'USDA ESALQ weekly IPPs'!$B$10:$B$739,"<="&$E18) -> 0.6026632173 | G18: =AVERAGEIFS('USDA ESALQ weekly IPPs'!$F$10:$F$739,'USDA ESALQ weekly IPPs'!$B$10:$B$739,">="&$D18,'USDA ESALQ weekly IPPs'!$B$10:$B$739,"<="&$E18) -> 0.05753729612 | H18: =AVERAGEIFS('USDA ESALQ weekly IPPs'!$G$10:$G$739,'USDA ESALQ weekly IPPs'!$B$10:$B$739,">="&$D18,'USDA ESALQ weekly IPPs'!$B$10:$B$739,"<="&$E18) -> 0.03058353796 | I18: =AVERAGEIFS('USDA ESALQ weekly IPPs'!$H$10:$H$739,'USDA ESALQ weekly IPPs'!$B$10:$B$739,">="&$D18,'USDA ESALQ weekly IPPs'!$B$10:$B$739,"<="&$E18) -> 0.07641203379 | J18: =AVERAGEIFS('USDA ESALQ weekly IPPs'!$I$10:$I$739,'USDA ESALQ weekly IPPs'!$B$10:$B$739,">="&$D18,'USDA ESALQ weekly IPPs'!$B$10:$B$739,"<="&$E18) -> 0.003068784341 | K18: =AVERAGEIFS('USDA ESALQ weekly IPPs'!$J$10:$J$739,'USDA ESALQ weekly IPPs'!$B$10:$B$739,">="&$D18,'USDA ESALQ weekly IPPs'!$B$10:$B$739,"<="&$E18) -> 0.006380507712 | L18: =AVERAGEIFS('USDA ESALQ weekly IPPs'!$L$10:$L$739,'USDA ESALQ weekly IPPs'!$B$10:$B$739,">="&$D18,'USDA ESALQ weekly IPPs'!$B$10:$B$739,"<="&$E18) -> 0.395 | M18: =AVERAGEIFS('USDA ESALQ weekly IPPs'!$M$10:$M$739,'USDA ESALQ weekly IPPs'!$B$10:$B$739,">="&$D18,'USDA ESALQ weekly IPPs'!$B$10:$B$739,"<="&$E18) -> 0.001917999 | N18: =AVERAGEIFS('USDA ESALQ weekly IPPs'!$N$10:$N$739,'USDA ESALQ weekly IPPs'!$B$10:$B$739,">="&$D18,'USDA ESALQ weekly IPPs'!$B$10:$B$739,"<="&$E18) -> 0.03 | O18: =AVERAGEIFS('USDA ESALQ weekly IPPs'!$O$10:$O$739,'USDA ESALQ weekly IPPs'!$B$10:$B$739,">="&$D18,'USDA ESALQ weekly IPPs'!$B$10:$B$739,"<="&$E18) -> 0.015 | P18: 121.8563376 | Q18: 121.8563376 | S18: =NA() ->  | U18: 2014-10-01
B19: 2015-04-01 | C19: 2015-06-30 | D19: 2014-06-01 | E19: 2015-02-28 | F19: =AVERAGEIFS('USDA ESALQ weekly IPPs'!$E$10:$E$739,'USDA ESALQ weekly IPPs'!$B$10:$B$739,">="&$D19,'USDA ESALQ weekly IPPs'!$B$10:$B$739,"<="&$E19) -> 0.5376525594 | G19: =AVERAGEIFS('USDA ESALQ weekly IPPs'!$F$10:$F$739,'USDA ESALQ weekly IPPs'!$B$10:$B$739,">="&$D19,'USDA ESALQ weekly IPPs'!$B$10:$B$739,"<="&$E19) -> 0.06153671504 | H19: =AVERAGEIFS('USDA ESALQ weekly IPPs'!$G$10:$G$739,'USDA ESALQ weekly IPPs'!$B$10:$B$739,">="&$D19,'USDA ESALQ weekly IPPs'!$B$10:$B$739,"<="&$E19) -> 0.02954795867 | I19: =AVERAGEIFS('USDA ESALQ weekly IPPs'!$H$10:$H$739,'USDA ESALQ weekly IPPs'!$B$10:$B$739,">="&$D19,'USDA ESALQ weekly IPPs'!$B$10:$B$739,"<="&$E19) -> 0.08024284138 | J19: =AVERAGEIFS('USDA ESALQ weekly IPPs'!$I$10:$I$739,'USDA ESALQ weekly IPPs'!$B$10:$B$739,">="&$D19,'USDA ESALQ weekly IPPs'!$B$10:$B$739,"<="&$E19) -> 0.002835920298 | K19: =AVERAGEIFS('USDA ESALQ weekly IPPs'!$J$10:$J$739,'USDA ESALQ weekly IPPs'!$B$10:$B$739,">="&$D19,'USDA ESALQ weekly IPPs'!$B$10:$B$739,"<="&$E19) -> 0.002900438966 | L19: =AVERAGEIFS('USDA ESALQ weekly IPPs'!$L$10:$L$739,'USDA ESALQ weekly IPPs'!$B$10:$B$739,">="&$D19,'USDA ESALQ weekly IPPs'!$B$10:$B$739,"<="&$E19) -> 0.395 | M19: =AVERAGEIFS('USDA ESALQ weekly IPPs'!$M$10:$M$739,'USDA ESALQ weekly IPPs'!$B$10:$B$739,">="&$D19,'USDA ESALQ weekly IPPs'!$B$10:$B$739,"<="&$E19) -> 0.001917999 | N19: =AVERAGEIFS('USDA ESALQ weekly IPPs'!$N$10:$N$739,'USDA ESALQ weekly IPPs'!$B$10:$B$739,">="&$D19,'USDA ESALQ weekly IPPs'!$B$10:$B$739,"<="&$E19) -> 0.03 | O19: =AVERAGEIFS('USDA ESALQ weekly IPPs'!$O$10:$O$739,'USDA ESALQ weekly IPPs'!$B$10:$B$739,">="&$D19,'USDA ESALQ weekly IPPs'!$B$10:$B$739,"<="&$E19) -> 0.015 | P19: 115.6634433 | Q19: 115.6634433 | S19: =NA() ->  | U19: 2014-07-01
B20: 2015-07-01 | C20: 2015-09-30 | D20: 2014-09-01 | E20: 2015-05-31 | F20: =AVERAGEIFS('USDA ESALQ weekly IPPs'!$E$10:$E$739,'USDA ESALQ weekly IPPs'!$B$10:$B$739,">="&$D20,'USDA ESALQ weekly IPPs'!$B$10:$B$739,"<="&$E20) -> 0.5063576123 | G20: =AVERAGEIFS('USDA ESALQ weekly IPPs'!$F$10:$F$739,'USDA ESALQ weekly IPPs'!$B$10:$B$739,">="&$D20,'USDA ESALQ weekly IPPs'!$B$10:$B$739,"<="&$E20) -> 0.06551570077 | H20: =AVERAGEIFS('USDA ESALQ weekly IPPs'!$G$10:$G$739,'USDA ESALQ weekly IPPs'!$B$10:$B$739,">="&$D20,'USDA ESALQ weekly IPPs'!$B$10:$B$739,"<="&$E20) -> 0.03128921464 | I20: =AVERAGEIFS('USDA ESALQ weekly IPPs'!$H$10:$H$739,'USDA ESALQ weekly IPPs'!$B$10:$B$739,">="&$D20,'USDA ESALQ weekly IPPs'!$B$10:$B$739,"<="&$E20) -> 0.08527918134 | J20: =AVERAGEIFS('USDA ESALQ weekly IPPs'!$I$10:$I$739,'USDA ESALQ weekly IPPs'!$B$10:$B$739,">="&$D20,'USDA ESALQ weekly IPPs'!$B$10:$B$739,"<="&$E20) -> 0.002753766836 | K20: =AVERAGEIFS('USDA ESALQ weekly IPPs'!$J$10:$J$739,'USDA ESALQ weekly IPPs'!$B$10:$B$739,">="&$D20,'USDA ESALQ weekly IPPs'!$B$10:$B$739,"<="&$E20) -> 0.002900438966 | L20: =AVERAGEIFS('USDA ESALQ weekly IPPs'!$L$10:$L$739,'USDA ESALQ weekly IPPs'!$B$10:$B$739,">="&$D20,'USDA ESALQ weekly IPPs'!$B$10:$B$739,"<="&$E20) -> 0.395 | M20: =AVERAGEIFS('USDA ESALQ weekly IPPs'!$M$10:$M$739,'USDA ESALQ weekly IPPs'!$B$10:$B$739,">="&$D20,'USDA ESALQ weekly IPPs'!$B$10:$B$739,"<="&$E20) -> 0.001917999 | N20: =AVERAGEIFS('USDA ESALQ weekly IPPs'!$N$10:$N$739,'USDA ESALQ weekly IPPs'!$B$10:$B$739,">="&$D20,'USDA ESALQ weekly IPPs'!$B$10:$B$739,"<="&$E20) -> 0.03 | O20: =AVERAGEIFS('USDA ESALQ weekly IPPs'!$O$10:$O$739,'USDA ESALQ weekly IPPs'!$B$10:$B$739,">="&$D20,'USDA ESALQ weekly IPPs'!$B$10:$B$739,"<="&$E20) -> 0.015 | P20: 113.6013914 | Q20: 113.6013914 | S20: =NA() ->  | U20: 2014-04-01
B21: 2015-10-01 | C21: 2015-12-31 | D21: 2014-12-01 | E21: 2015-08-31 | F21: =AVERAGEIFS('USDA ESALQ weekly IPPs'!$E$10:$E$739,'USDA ESALQ weekly IPPs'!$B$10:$B$739,">="&$D21,'USDA ESALQ weekly IPPs'!$B$10:$B$739,"<="&$E21) -> 0.5025890046 | G21: =AVERAGEIFS('USDA ESALQ weekly IPPs'!$F$10:$F$739,'USDA ESALQ weekly IPPs'!$B$10:$B$739,">="&$D21,'USDA ESALQ weekly IPPs'!$B$10:$B$739,"<="&$E21) -> 0.06881794403 | H21: =AVERAGEIFS('USDA ESALQ weekly IPPs'!$G$10:$G$739,'USDA ESALQ weekly IPPs'!$B$10:$B$739,">="&$D21,'USDA ESALQ weekly IPPs'!$B$10:$B$739,"<="&$E21) -> 0.03190624593 | I21: =AVERAGEIFS('USDA ESALQ weekly IPPs'!$H$10:$H$739,'USDA ESALQ weekly IPPs'!$B$10:$B$739,">="&$D21,'USDA ESALQ weekly IPPs'!$B$10:$B$739,"<="&$E21) -> 0.09005749777 | J21: =AVERAGEIFS('USDA ESALQ weekly IPPs'!$I$10:$I$739,'USDA ESALQ weekly IPPs'!$B$10:$B$739,">="&$D21,'USDA ESALQ weekly IPPs'!$B$10:$B$739,"<="&$E21) -> 0.002773482769 | K21: =AVERAGEIFS('USDA ESALQ weekly IPPs'!$J$10:$J$739,'USDA ESALQ weekly IPPs'!$B$10:$B$739,">="&$D21,'USDA ESALQ weekly IPPs'!$B$10:$B$739,"<="&$E21) -> 0.001980472753 | L21: =AVERAGEIFS('USDA ESALQ weekly IPPs'!$L$10:$L$739,'USDA ESALQ weekly IPPs'!$B$10:$B$739,">="&$D21,'USDA ESALQ weekly IPPs'!$B$10:$B$739,"<="&$E21) -> 0.395 | M21: =AVERAGEIFS('USDA ESALQ weekly IPPs'!$M$10:$M$739,'USDA ESALQ weekly IPPs'!$B$10:$B$739,">="&$D21,'USDA ESALQ weekly IPPs'!$B$10:$B$739,"<="&$E21) -> 0.001917999 | N21: =AVERAGEIFS('USDA ESALQ weekly IPPs'!$N$10:$N$739,'USDA ESALQ weekly IPPs'!$B$10:$B$739,">="&$D21,'USDA ESALQ weekly IPPs'!$B$10:$B$739,"<="&$E21) -> 0.03 | O21: =AVERAGEIFS('USDA ESALQ weekly IPPs'!$O$10:$O$739,'USDA ESALQ weekly IPPs'!$B$10:$B$739,">="&$D21,'USDA ESALQ weekly IPPs'!$B$10:$B$739,"<="&$E21) -> 0.015 | P21: 114.0042647 | Q21: 114.0042647 | S21: =NA() ->  | U21: 2014-01-01
B22: 2016-01-01 | C22: 2016-03-31 | D22: 2015-03-01 | E22: 2015-11-30 | F22: =AVERAGEIFS('USDA ESALQ weekly IPPs'!$E$10:$E$739,'USDA ESALQ weekly IPPs'!$B$10:$B$739,">="&$D22,'USDA ESALQ weekly IPPs'!$B$10:$B$739,"<="&$E22) -> 0.5138453175 | G22: =AVERAGEIFS('USDA ESALQ weekly IPPs'!$F$10:$F$739,'USDA ESALQ weekly IPPs'!$B$10:$B$739,">="&$D22,'USDA ESALQ weekly IPPs'!$B$10:$B$739,"<="&$E22) -> 0.06685250793 | H22: =AVERAGEIFS('USDA ESALQ weekly IPPs'!$G$10:$G$739,'USDA ESALQ weekly IPPs'!$B$10:$B$739,">="&$D22,'USDA ESALQ weekly IPPs'!$B$10:$B$739,"<="&$E22) -> 0.03300515715 | I22: =AVERAGEIFS('USDA ESALQ weekly IPPs'!$H$10:$H$739,'USDA ESALQ weekly IPPs'!$B$10:$B$739,">="&$D22,'USDA ESALQ weekly IPPs'!$B$10:$B$739,"<="&$E22) -> 0.09360672349 | J22: =AVERAGEIFS('USDA ESALQ weekly IPPs'!$I$10:$I$739,'USDA ESALQ weekly IPPs'!$B$10:$B$739,">="&$D22,'USDA ESALQ weekly IPPs'!$B$10:$B$739,"<="&$E22) -> 0.002829238824 | K22: =AVERAGEIFS('USDA ESALQ weekly IPPs'!$J$10:$J$739,'USDA ESALQ weekly IPPs'!$B$10:$B$739,">="&$D22,'USDA ESALQ weekly IPPs'!$B$10:$B$739,"<="&$E22) -> 0.004261744789 | L22: =AVERAGEIFS('USDA ESALQ weekly IPPs'!$L$10:$L$739,'USDA ESALQ weekly IPPs'!$B$10:$B$739,">="&$D22,'USDA ESALQ weekly IPPs'!$B$10:$B$739,"<="&$E22) -> 0.395 | M22: =AVERAGEIFS('USDA ESALQ weekly IPPs'!$M$10:$M$739,'USDA ESALQ weekly IPPs'!$B$10:$B$739,">="&$D22,'USDA ESALQ weekly IPPs'!$B$10:$B$739,"<="&$E22) -> 0.001917999 | N22: =AVERAGEIFS('USDA ESALQ weekly IPPs'!$N$10:$N$739,'USDA ESALQ weekly IPPs'!$B$10:$B$739,">="&$D22,'USDA ESALQ weekly IPPs'!$B$10:$B$739,"<="&$E22) -> 0.03 | O22: =AVERAGEIFS('USDA ESALQ weekly IPPs'!$O$10:$O$739,'USDA ESALQ weekly IPPs'!$B$10:$B$739,">="&$D22,'USDA ESALQ weekly IPPs'!$B$10:$B$739,"<="&$E22) -> 0.015 | P22: 115.6318689 | Q22: 115.6318689 | S22: =NA() ->  | U22: 2013-10-01
B23: 2016-04-01 | C23: 2016-06-30 | D23: 2015-06-01 | E23: 2016-02-29 | F23: =AVERAGEIFS('USDA ESALQ weekly IPPs'!$E$10:$E$739,'USDA ESALQ weekly IPPs'!$B$10:$B$739,">="&$D23,'USDA ESALQ weekly IPPs'!$B$10:$B$739,"<="&$E23) -> 0.5053269794 | G23: =AVERAGEIFS('USDA ESALQ weekly IPPs'!$F$10:$F$739,'USDA ESALQ weekly IPPs'!$B$10:$B$739,">="&$D23,'USDA ESALQ weekly IPPs'!$B$10:$B$739,"<="&$E23) -> 0.0689961259 | H23: =AVERAGEIFS('USDA ESALQ weekly IPPs'!$G$10:$G$739,'USDA ESALQ weekly IPPs'!$B$10:$B$739,">="&$D23,'USDA ESALQ weekly IPPs'!$B$10:$B$739,"<="&$E23) -> 0.03394323228 | I23: =AVERAGEIFS('USDA ESALQ weekly IPPs'!$H$10:$H$739,'USDA ESALQ weekly IPPs'!$B$10:$B$739,">="&$D23,'USDA ESALQ weekly IPPs'!$B$10:$B$739,"<="&$E23) -> 0.09631997496 | J23: =AVERAGEIFS('USDA ESALQ weekly IPPs'!$I$10:$I$739,'USDA ESALQ weekly IPPs'!$B$10:$B$739,">="&$D23,'USDA ESALQ weekly IPPs'!$B$10:$B$739,"<="&$E23) -> 0.00281834525 | K23: =AVERAGEIFS('USDA ESALQ weekly IPPs'!$J$10:$J$739,'USDA ESALQ weekly IPPs'!$B$10:$B$739,">="&$D23,'USDA ESALQ weekly IPPs'!$B$10:$B$739,"<="&$E23) -> 0.004261744789 | L23: =AVERAGEIFS('USDA ESALQ weekly IPPs'!$L$10:$L$739,'USDA ESALQ weekly IPPs'!$B$10:$B$739,">="&$D23,'USDA ESALQ weekly IPPs'!$B$10:$B$739,"<="&$E23) -> 0.395 | M23: =AVERAGEIFS('USDA ESALQ weekly IPPs'!$M$10:$M$739,'USDA ESALQ weekly IPPs'!$B$10:$B$739,">="&$D23,'USDA ESALQ weekly IPPs'!$B$10:$B$739,"<="&$E23) -> 0.001917999 | N23: =AVERAGEIFS('USDA ESALQ weekly IPPs'!$N$10:$N$739,'USDA ESALQ weekly IPPs'!$B$10:$B$739,">="&$D23,'USDA ESALQ weekly IPPs'!$B$10:$B$739,"<="&$E23) -> 0.03 | O23: =AVERAGEIFS('USDA ESALQ weekly IPPs'!$O$10:$O$739,'USDA ESALQ weekly IPPs'!$B$10:$B$739,">="&$D23,'USDA ESALQ weekly IPPs'!$B$10:$B$739,"<="&$E23) -> 0.015 | P23: 115.3584402 | Q23: 115.3584402 | S23: =NA() ->  | U23: 2013-07-01
B24: 2016-07-01 | C24: 2016-09-30 | D24: 2015-09-01 | E24: 2016-05-31 | F24: =AVERAGEIFS('USDA ESALQ weekly IPPs'!$E$10:$E$739,'USDA ESALQ weekly IPPs'!$B$10:$B$739,">="&$D24,'USDA ESALQ weekly IPPs'!$B$10:$B$739,"<="&$E24) -> 0.4984209751 | G24: =AVERAGEIFS('USDA ESALQ weekly IPPs'!$F$10:$F$739,'USDA ESALQ weekly IPPs'!$B$10:$B$739,">="&$D24,'USDA ESALQ weekly IPPs'!$B$10:$B$739,"<="&$E24) -> 0.07088345595 | H24: =AVERAGEIFS('USDA ESALQ weekly IPPs'!$G$10:$G$739,'USDA ESALQ weekly IPPs'!$B$10:$B$739,">="&$D24,'USDA ESALQ weekly IPPs'!$B$10:$B$739,"<="&$E24) -> 0.03364338873 | I24: =AVERAGEIFS('USDA ESALQ weekly IPPs'!$H$10:$H$739,'USDA ESALQ weekly IPPs'!$B$10:$B$739,">="&$D24,'USDA ESALQ weekly IPPs'!$B$10:$B$739,"<="&$E24) -> 0.09636175665 | J24: =AVERAGEIFS('USDA ESALQ weekly IPPs'!$I$10:$I$739,'USDA ESALQ weekly IPPs'!$B$10:$B$739,">="&$D24,'USDA ESALQ weekly IPPs'!$B$10:$B$739,"<="&$E24) -> 0.002797238306 | K24: =AVERAGEIFS('USDA ESALQ weekly IPPs'!$J$10:$J$739,'USDA ESALQ weekly IPPs'!$B$10:$B$739,">="&$D24,'USDA ESALQ weekly IPPs'!$B$10:$B$739,"<="&$E24) -> 0.003033229085 | L24: =AVERAGEIFS('USDA ESALQ weekly IPPs'!$L$10:$L$739,'USDA ESALQ weekly IPPs'!$B$10:$B$739,">="&$D24,'USDA ESALQ weekly IPPs'!$B$10:$B$739,"<="&$E24) -> 0.395 | M24: =AVERAGEIFS('USDA ESALQ weekly IPPs'!$M$10:$M$739,'USDA ESALQ weekly IPPs'!$B$10:$B$739,">="&$D24,'USDA ESALQ weekly IPPs'!$B$10:$B$739,"<="&$E24) -> 0.001917999 | N24: =AVERAGEIFS('USDA ESALQ weekly IPPs'!$N$10:$N$739,'USDA ESALQ weekly IPPs'!$B$10:$B$739,">="&$D24,'USDA ESALQ weekly IPPs'!$B$10:$B$739,"<="&$E24) -> 0.03 | O24: =AVERAGEIFS('USDA ESALQ weekly IPPs'!$O$10:$O$739,'USDA ESALQ weekly IPPs'!$B$10:$B$739,">="&$D24,'USDA ESALQ weekly IPPs'!$B$10:$B$739,"<="&$E24) -> 0.015 | P24: 114.7058043 | Q24: 114.7058043 | S24: =NA() ->  | U24: 2013-04-01
B25: 2016-10-01 | C25: 2016-12-31 | D25: 2015-12-01 | E25: 2016-08-31 | F25: =AVERAGEIFS('USDA ESALQ weekly IPPs'!$E$10:$E$739,'USDA ESALQ weekly IPPs'!$B$10:$B$739,">="&$D25,'USDA ESALQ weekly IPPs'!$B$10:$B$739,"<="&$E25) -> 0.4947510395 | G25: =AVERAGEIFS('USDA ESALQ weekly IPPs'!$F$10:$F$739,'USDA ESALQ weekly IPPs'!$B$10:$B$739,">="&$D25,'USDA ESALQ weekly IPPs'!$B$10:$B$739,"<="&$E25) -> 0.07499865501 | H25: =AVERAGEIFS('USDA ESALQ weekly IPPs'!$G$10:$G$739,'USDA ESALQ weekly IPPs'!$B$10:$B$739,">="&$D25,'USDA ESALQ weekly IPPs'!$B$10:$B$739,"<="&$E25) -> 0.03282038791 | I25: =AVERAGEIFS('USDA ESALQ weekly IPPs'!$H$10:$H$739,'USDA ESALQ weekly IPPs'!$B$10:$B$739,">="&$D25,'USDA ESALQ weekly IPPs'!$B$10:$B$739,"<="&$E25) -> 0.09492839344 | J25: =AVERAGEIFS('USDA ESALQ weekly IPPs'!$I$10:$I$739,'USDA ESALQ weekly IPPs'!$B$10:$B$739,">="&$D25,'USDA ESALQ weekly IPPs'!$B$10:$B$739,"<="&$E25) -> 0.002789993904 | K25: =AVERAGEIFS('USDA ESALQ weekly IPPs'!$J$10:$J$739,'USDA ESALQ weekly IPPs'!$B$10:$B$739,">="&$D25,'USDA ESALQ weekly IPPs'!$B$10:$B$739,"<="&$E25) -> 0 | L25: =AVERAGEIFS('USDA ESALQ weekly IPPs'!$L$10:$L$739,'USDA ESALQ weekly IPPs'!$B$10:$B$739,">="&$D25,'USDA ESALQ weekly IPPs'!$B$10:$B$739,"<="&$E25) -> 0.3951025641 | M25: =AVERAGEIFS('USDA ESALQ weekly IPPs'!$M$10:$M$739,'USDA ESALQ weekly IPPs'!$B$10:$B$739,">="&$D25,'USDA ESALQ weekly IPPs'!$B$10:$B$739,"<="&$E25) -> 0.001927106308 | N25: =AVERAGEIFS('USDA ESALQ weekly IPPs'!$N$10:$N$739,'USDA ESALQ weekly IPPs'!$B$10:$B$739,">="&$D25,'USDA ESALQ weekly IPPs'!$B$10:$B$739,"<="&$E25) -> 0.03 | O25: =AVERAGEIFS('USDA ESALQ weekly IPPs'!$O$10:$O$739,'USDA ESALQ weekly IPPs'!$B$10:$B$739,">="&$D25,'USDA ESALQ weekly IPPs'!$B$10:$B$739,"<="&$E25) -> 0.015 | P25: 114.231814 | Q25: 114.231814 | S25: =NA() ->  | U25: 2013-01-01
B26: 2017-01-01 | C26: 2017-03-31 | D26: 2016-03-01 | E26: 2016-11-30 | F26: =AVERAGEIFS('USDA ESALQ weekly IPPs'!$E$10:$E$739,'USDA ESALQ weekly IPPs'!$B$10:$B$739,">="&$D26,'USDA ESALQ weekly IPPs'!$B$10:$B$739,"<="&$E26) -> 0.5083595476 | G26: =AVERAGEIFS('USDA ESALQ weekly IPPs'!$F$10:$F$739,'USDA ESALQ weekly IPPs'!$B$10:$B$739,">="&$D26,'USDA ESALQ weekly IPPs'!$B$10:$B$739,"<="&$E26) -> 0.07347881985 | H26: =AVERAGEIFS('USDA ESALQ weekly IPPs'!$G$10:$G$739,'USDA ESALQ weekly IPPs'!$B$10:$B$739,">="&$D26,'USDA ESALQ weekly IPPs'!$B$10:$B$739,"<="&$E26) -> 0.03215528825 | I26: =AVERAGEIFS('USDA ESALQ weekly IPPs'!$H$10:$H$739,'USDA ESALQ weekly IPPs'!$B$10:$B$739,">="&$D26,'USDA ESALQ weekly IPPs'!$B$10:$B$739,"<="&$E26) -> 0.09300468547 | J26: =AVERAGEIFS('USDA ESALQ weekly IPPs'!$I$10:$I$739,'USDA ESALQ weekly IPPs'!$B$10:$B$739,">="&$D26,'USDA ESALQ weekly IPPs'!$B$10:$B$739,"<="&$E26) -> 0.002827993365 | K26: =AVERAGEIFS('USDA ESALQ weekly IPPs'!$J$10:$J$739,'USDA ESALQ weekly IPPs'!$B$10:$B$739,">="&$D26,'USDA ESALQ weekly IPPs'!$B$10:$B$739,"<="&$E26) -> 0 | L26: =AVERAGEIFS('USDA ESALQ weekly IPPs'!$L$10:$L$739,'USDA ESALQ weekly IPPs'!$B$10:$B$739,">="&$D26,'USDA ESALQ weekly IPPs'!$B$10:$B$739,"<="&$E26) -> 0.3954358974 | M26: =AVERAGEIFS('USDA ESALQ weekly IPPs'!$M$10:$M$739,'USDA ESALQ weekly IPPs'!$B$10:$B$739,">="&$D26,'USDA ESALQ weekly IPPs'!$B$10:$B$739,"<="&$E26) -> 0.001940261308 | N26: =AVERAGEIFS('USDA ESALQ weekly IPPs'!$N$10:$N$739,'USDA ESALQ weekly IPPs'!$B$10:$B$739,">="&$D26,'USDA ESALQ weekly IPPs'!$B$10:$B$739,"<="&$E26) -> 0.03 | O26: =AVERAGEIFS('USDA ESALQ weekly IPPs'!$O$10:$O$739,'USDA ESALQ weekly IPPs'!$B$10:$B$739,">="&$D26,'USDA ESALQ weekly IPPs'!$B$10:$B$739,"<="&$E26) -> 0.015 | P26: 115.2202493 | R26: 115.2202493 | S26: =NA() ->  | U26: 2012-10-01
B27: 2017-04-01 | C27: 2017-06-30 | D27: 2016-06-01 | E27: 2017-02-28 | F27: =AVERAGEIFS('USDA ESALQ weekly IPPs'!$E$10:$E$739,'USDA ESALQ weekly IPPs'!$B$10:$B$739,">="&$D27,'USDA ESALQ weekly IPPs'!$B$10:$B$739,"<="&$E27) ->  | G27: =AVERAGEIFS('USDA ESALQ weekly IPPs'!$F$10:$F$739,'USDA ESALQ weekly IPPs'!$B$10:$B$739,">="&$D27,'USDA ESALQ weekly IPPs'!$B$10:$B$739,"<="&$E27) ->  | H27: =AVERAGEIFS('USDA ESALQ weekly IPPs'!$G$10:$G$739,'USDA ESALQ weekly IPPs'!$B$10:$B$739,">="&$D27,'USDA ESALQ weekly IPPs'!$B$10:$B$739,"<="&$E27) ->  | I27: =AVERAGEIFS('USDA ESALQ weekly IPPs'!$H$10:$H$739,'USDA ESALQ weekly IPPs'!$B$10:$B$739,">="&$D27,'USDA ESALQ weekly IPPs'!$B$10:$B$739,"<="&$E27) ->  | J27: =AVERAGEIFS('USDA ESALQ weekly IPPs'!$I$10:$I$739,'USDA ESALQ weekly IPPs'!$B$10:$B$739,">="&$D27,'USDA ESALQ weekly IPPs'!$B$10:$B$739,"<="&$E27) ->  | K27: =AVERAGEIFS('USDA ESALQ weekly IPPs'!$J$10:$J$739,'USDA ESALQ weekly IPPs'!$B$10:$B$739,">="&$D27,'USDA ESALQ weekly IPPs'!$B$10:$B$739,"<="&$E27) ->  | L27: =AVERAGEIFS('USDA ESALQ weekly IPPs'!$L$10:$L$739,'USDA ESALQ weekly IPPs'!$B$10:$B$739,">="&$D27,'USDA ESALQ weekly IPPs'!$B$10:$B$739,"<="&$E27) -> 0.3957692308 | M27: =AVERAGEIFS('USDA ESALQ weekly IPPs'!$M$10:$M$739,'USDA ESALQ weekly IPPs'!$B$10:$B$739,">="&$D27,'USDA ESALQ weekly IPPs'!$B$10:$B$739,"<="&$E27) -> 0.001953416308 | N27: =AVERAGEIFS('USDA ESALQ weekly IPPs'!$N$10:$N$739,'USDA ESALQ weekly IPPs'!$B$10:$B$739,">="&$D27,'USDA ESALQ weekly IPPs'!$B$10:$B$739,"<="&$E27) -> 0.03 | O27: =AVERAGEIFS('USDA ESALQ weekly IPPs'!$O$10:$O$739,'USDA ESALQ weekly IPPs'!$B$10:$B$739,">="&$D27,'USDA ESALQ weekly IPPs'!$B$10:$B$739,"<="&$E27) -> 0.015 | S27: =NA() ->  | U27: 2012-07-01
B28: 2017-07-01 | C28: 2017-09-30 | D28: 2016-09-01 | E28: 2017-05-31 | F28: =AVERAGEIFS('USDA ESALQ weekly IPPs'!$E$10:$E$739,'USDA ESALQ weekly IPPs'!$B$10:$B$739,">="&$D28,'USDA ESALQ weekly IPPs'!$B$10:$B$739,"<="&$E28) ->  | G28: =AVERAGEIFS('USDA ESALQ weekly IPPs'!$F$10:$F$739,'USDA ESALQ weekly IPPs'!$B$10:$B$739,">="&$D28,'USDA ESALQ weekly IPPs'!$B$10:$B$739,"<="&$E28) ->  | H28: =AVERAGEIFS('USDA ESALQ weekly IPPs'!$G$10:$G$739,'USDA ESALQ weekly IPPs'!$B$10:$B$739,">="&$D28,'USDA ESALQ weekly IPPs'!$B$10:$B$739,"<="&$E28) ->  | I28: =AVERAGEIFS('USDA ESALQ weekly IPPs'!$H$10:$H$739,'USDA ESALQ weekly IPPs'!$B$10:$B$739,">="&$D28,'USDA ESALQ weekly IPPs'!$B$10:$B$739,"<="&$E28) ->  | J28: =AVERAGEIFS('USDA ESALQ weekly IPPs'!$I$10:$I$739,'USDA ESALQ weekly IPPs'!$B$10:$B$739,">="&$D28,'USDA ESALQ weekly IPPs'!$B$10:$B$739,"<="&$E28) ->  | K28: =AVERAGEIFS('USDA ESALQ weekly IPPs'!$J$10:$J$739,'USDA ESALQ weekly IPPs'!$B$10:$B$739,">="&$D28,'USDA ESALQ weekly IPPs'!$B$10:$B$739,"<="&$E28) ->  | L28: =AVERAGEIFS('USDA ESALQ weekly IPPs'!$L$10:$L$739,'USDA ESALQ weekly IPPs'!$B$10:$B$739,">="&$D28,'USDA ESALQ weekly IPPs'!$B$10:$B$739,"<="&$E28) -> 0.396 | M28: =AVERAGEIFS('USDA ESALQ weekly IPPs'!$M$10:$M$739,'USDA ESALQ weekly IPPs'!$B$10:$B$739,">="&$D28,'USDA ESALQ weekly IPPs'!$B$10:$B$739,"<="&$E28) -> 0.001957464 | N28: =AVERAGEIFS('USDA ESALQ weekly IPPs'!$N$10:$N$739,'USDA ESALQ weekly IPPs'!$B$10:$B$739,">="&$D28,'USDA ESALQ weekly IPPs'!$B$10:$B$739,"<="&$E28) -> 0.03 | O28: =AVERAGEIFS('USDA ESALQ weekly IPPs'!$O$10:$O$739,'USDA ESALQ weekly IPPs'!$B$10:$B$739,">="&$D28,'USDA ESALQ weekly IPPs'!$B$10:$B$739,"<="&$E28) -> 0.015 | S28: =NA() ->  | U28: 2012-04-01
B29: 2017-10-01 | C29: 2017-12-31 | D29: 2016-12-01 | E29: 2017-08-31 | F29: =AVERAGEIFS('USDA ESALQ weekly IPPs'!$E$10:$E$739,'USDA ESALQ weekly IPPs'!$B$10:$B$739,">="&$D29,'USDA ESALQ weekly IPPs'!$B$10:$B$739,"<="&$E29) ->  | G29: =AVERAGEIFS('USDA ESALQ weekly IPPs'!$F$10:$F$739,'USDA ESALQ weekly IPPs'!$B$10:$B$739,">="&$D29,'USDA ESALQ weekly IPPs'!$B$10:$B$739,"<="&$E29) ->  | H29: =AVERAGEIFS('USDA ESALQ weekly IPPs'!$G$10:$G$739,'USDA ESALQ weekly IPPs'!$B$10:$B$739,">="&$D29,'USDA ESALQ weekly IPPs'!$B$10:$B$739,"<="&$E29) ->  | I29: =AVERAGEIFS('USDA ESALQ weekly IPPs'!$H$10:$H$739,'USDA ESALQ weekly IPPs'!$B$10:$B$739,">="&$D29,'USDA ESALQ weekly IPPs'!$B$10:$B$739,"<="&$E29) ->  | J29: =AVERAGEIFS('USDA ESALQ weekly IPPs'!$I$10:$I$739,'USDA ESALQ weekly IPPs'!$B$10:$B$739,">="&$D29,'USDA ESALQ weekly IPPs'!$B$10:$B$739,"<="&$E29) ->  | K29: =AVERAGEIFS('USDA ESALQ weekly IPPs'!$J$10:$J$739,'USDA ESALQ weekly IPPs'!$B$10:$B$739,">="&$D29,'USDA ESALQ weekly IPPs'!$B$10:$B$739,"<="&$E29) ->  | L29: =AVERAGEIFS('USDA ESALQ weekly IPPs'!$L$10:$L$739,'USDA ESALQ weekly IPPs'!$B$10:$B$739,">="&$D29,'USDA ESALQ weekly IPPs'!$B$10:$B$739,"<="&$E29) -> 0.396 | M29: =AVERAGEIFS('USDA ESALQ weekly IPPs'!$M$10:$M$739,'USDA ESALQ weekly IPPs'!$B$10:$B$739,">="&$D29,'USDA ESALQ weekly IPPs'!$B$10:$B$739,"<="&$E29) -> 0.001957464 | N29: =AVERAGEIFS('USDA ESALQ weekly IPPs'!$N$10:$N$739,'USDA ESALQ weekly IPPs'!$B$10:$B$739,">="&$D29,'USDA ESALQ weekly IPPs'!$B$10:$B$739,"<="&$E29) -> 0.03 | O29: =AVERAGEIFS('USDA ESALQ weekly IPPs'!$O$10:$O$739,'USDA ESALQ weekly IPPs'!$B$10:$B$739,">="&$D29,'USDA ESALQ weekly IPPs'!$B$10:$B$739,"<="&$E29) -> 0.015 | S29: =NA() ->  | U29: =DATE(YEAR(U28),MONTH(U28)-3,DAY(U28)) -> 2012-01-01
B30: 2018-01-01 | C30: 2018-03-31 | D30: 2017-03-01 | E30: 2017-11-30 | F30: =AVERAGEIFS('USDA ESALQ weekly IPPs'!$E$10:$E$739,'USDA ESALQ weekly IPPs'!$B$10:$B$739,">="&$D30,'USDA ESALQ weekly IPPs'!$B$10:$B$739,"<="&$E30) ->  | G30: =AVERAGEIFS('USDA ESALQ weekly IPPs'!$F$10:$F$739,'USDA ESALQ weekly IPPs'!$B$10:$B$739,">="&$D30,'USDA ESALQ weekly IPPs'!$B$10:$B$739,"<="&$E30) ->  | H30: =AVERAGEIFS('USDA ESALQ weekly IPPs'!$G$10:$G$739,'USDA ESALQ weekly IPPs'!$B$10:$B$739,">="&$D30,'USDA ESALQ weekly IPPs'!$B$10:$B$739,"<="&$E30) ->  | I30: =AVERAGEIFS('USDA ESALQ weekly IPPs'!$H$10:$H$739,'USDA ESALQ weekly IPPs'!$B$10:$B$739,">="&$D30,'USDA ESALQ weekly IPPs'!$B$10:$B$739,"<="&$E30) ->  | J30: =AVERAGEIFS('USDA ESALQ weekly IPPs'!$I$10:$I$739,'USDA ESALQ weekly IPPs'!$B$10:$B$739,">="&$D30,'USDA ESALQ weekly IPPs'!$B$10:$B$739,"<="&$E30) ->  | K30: =AVERAGEIFS('USDA ESALQ weekly IPPs'!$J$10:$J$739,'USDA ESALQ weekly IPPs'!$B$10:$B$739,">="&$D30,'USDA ESALQ weekly IPPs'!$B$10:$B$739,"<="&$E30) ->  | L30: =AVERAGEIFS('USDA ESALQ weekly IPPs'!$L$10:$L$739,'USDA ESALQ weekly IPPs'!$B$10:$B$739,">="&$D30,'USDA ESALQ weekly IPPs'!$B$10:$B$739,"<="&$E30) -> 0.396 | M30: =AVERAGEIFS('USDA ESALQ weekly IPPs'!$M$10:$M$739,'USDA ESALQ weekly IPPs'!$B$10:$B$739,">="&$D30,'USDA ESALQ weekly IPPs'!$B$10:$B$739,"<="&$E30) -> 0.001957464 | N30: =AVERAGEIFS('USDA ESALQ weekly IPPs'!$N$10:$N$739,'USDA ESALQ weekly IPPs'!$B$10:$B$739,">="&$D30,'USDA ESALQ weekly IPPs'!$B$10:$B$739,"<="&$E30) -> 0.03 | O30: =AVERAGEIFS('USDA ESALQ weekly IPPs'!$O$10:$O$739,'USDA ESALQ weekly IPPs'!$B$10:$B$739,">="&$D30,'USDA ESALQ weekly IPPs'!$B$10:$B$739,"<="&$E30) -> 0.015 | S30: =NA() -> 
B31: 2018-04-01 | C31: 2018-06-30 | D31: 2017-06-01 | E31: 2018-02-28 | F31: =AVERAGEIFS('USDA ESALQ weekly IPPs'!$E$10:$E$739,'USDA ESALQ weekly IPPs'!$B$10:$B$739,">="&$D31,'USDA ESALQ weekly IPPs'!$B$10:$B$739,"<="&$E31) ->  | G31: =AVERAGEIFS('USDA ESALQ weekly IPPs'!$F$10:$F$739,'USDA ESALQ weekly IPPs'!$B$10:$B$739,">="&$D31,'USDA ESALQ weekly IPPs'!$B$10:$B$739,"<="&$E31) ->  | H31: =AVERAGEIFS('USDA ESALQ weekly IPPs'!$G$10:$G$739,'USDA ESALQ weekly IPPs'!$B$10:$B$739,">="&$D31,'USDA ESALQ weekly IPPs'!$B$10:$B$739,"<="&$E31) ->  | I31: =AVERAGEIFS('USDA ESALQ weekly IPPs'!$H$10:$H$739,'USDA ESALQ weekly IPPs'!$B$10:$B$739,">="&$D31,'USDA ESALQ weekly IPPs'!$B$10:$B$739,"<="&$E31) ->  | J31: =AVERAGEIFS('USDA ESALQ weekly IPPs'!$I$10:$I$739,'USDA ESALQ weekly IPPs'!$B$10:$B$739,">="&$D31,'USDA ESALQ weekly IPPs'!$B$10:$B$739,"<="&$E31) ->  | K31: =AVERAGEIFS('USDA ESALQ weekly IPPs'!$J$10:$J$739,'USDA ESALQ weekly IPPs'!$B$10:$B$739,">="&$D31,'USDA ESALQ weekly IPPs'!$B$10:$B$739,"<="&$E31) ->  | L31: =AVERAGEIFS('USDA ESALQ weekly IPPs'!$L$10:$L$739,'USDA ESALQ weekly IPPs'!$B$10:$B$739,">="&$D31,'USDA ESALQ weekly IPPs'!$B$10:$B$739,"<="&$E31) -> 0.396 | M31: =AVERAGEIFS('USDA ESALQ weekly IPPs'!$M$10:$M$739,'USDA ESALQ weekly IPPs'!$B$10:$B$739,">="&$D31,'USDA ESALQ weekly IPPs'!$B$10:$B$739,"<="&$E31) -> 0.001957464 | N31: =AVERAGEIFS('USDA ESALQ weekly IPPs'!$N$10:$N$739,'USDA ESALQ weekly IPPs'!$B$10:$B$739,">="&$D31,'USDA ESALQ weekly IPPs'!$B$10:$B$739,"<="&$E31) -> 0.03 | O31: =AVERAGEIFS('USDA ESALQ weekly IPPs'!$O$10:$O$739,'USDA ESALQ weekly IPPs'!$B$10:$B$739,">="&$D31,'USDA ESALQ weekly IPPs'!$B$10:$B$739,"<="&$E31) -> 0.015 | S31: =NA() -> 
B32: 2018-07-01 | C32: 2018-09-30 | D32: 2017-09-01 | E32: 2018-05-31 | F32: =AVERAGEIFS('USDA ESALQ weekly IPPs'!$E$10:$E$739,'USDA ESALQ weekly IPPs'!$B$10:$B$739,">="&$D32,'USDA ESALQ weekly IPPs'!$B$10:$B$739,"<="&$E32) ->  | G32: =AVERAGEIFS('USDA ESALQ weekly IPPs'!$F$10:$F$739,'USDA ESALQ weekly IPPs'!$B$10:$B$739,">="&$D32,'USDA ESALQ weekly IPPs'!$B$10:$B$739,"<="&$E32) ->  | H32: =AVERAGEIFS('USDA ESALQ weekly IPPs'!$G$10:$G$739,'USDA ESALQ weekly IPPs'!$B$10:$B$739,">="&$D32,'USDA ESALQ weekly IPPs'!$B$10:$B$739,"<="&$E32) ->  | I32: =AVERAGEIFS('USDA ESALQ weekly IPPs'!$H$10:$H$739,'USDA ESALQ weekly IPPs'!$B$10:$B$739,">="&$D32,'USDA ESALQ weekly IPPs'!$B$10:$B$739,"<="&$E32) ->  | J32: =AVERAGEIFS('USDA ESALQ weekly IPPs'!$I$10:$I$739,'USDA ESALQ weekly IPPs'!$B$10:$B$739,">="&$D32,'USDA ESALQ weekly IPPs'!$B$10:$B$739,"<="&$E32) ->  | K32: =AVERAGEIFS('USDA ESALQ weekly IPPs'!$J$10:$J$739,'USDA ESALQ weekly IPPs'!$B$10:$B$739,">="&$D32,'USDA ESALQ weekly IPPs'!$B$10:$B$739,"<="&$E32) ->  | L32: =AVERAGEIFS('USDA ESALQ weekly IPPs'!$L$10:$L$739,'USDA ESALQ weekly IPPs'!$B$10:$B$739,">="&$D32,'USDA ESALQ weekly IPPs'!$B$10:$B$739,"<="&$E32) -> 0.396 | M32: =AVERAGEIFS('USDA ESALQ weekly IPPs'!$M$10:$M$739,'USDA ESALQ weekly IPPs'!$B$10:$B$739,">="&$D32,'USDA ESALQ weekly IPPs'!$B$10:$B$739,"<="&$E32) -> 0.001957464 | N32: =AVERAGEIFS('USDA ESALQ weekly IPPs'!$N$10:$N$739,'USDA ESALQ weekly IPPs'!$B$10:$B$739,">="&$D32,'USDA ESALQ weekly IPPs'!$B$10:$B$739,"<="&$E32) -> 0.03 | O32: =AVERAGEIFS('USDA ESALQ weekly IPPs'!$O$10:$O$739,'USDA ESALQ weekly IPPs'!$B$10:$B$739,">="&$D32,'USDA ESALQ weekly IPPs'!$B$10:$B$739,"<="&$E32) -> 0.015 | S32: =NA() -> 
B33: =C32+1 -> 2018-10-01 | C33: 2018-12-31 | D33: 2017-12-01 | E33: 2018-08-31 | F33: =AVERAGEIFS('USDA ESALQ weekly IPPs'!$E$10:$E$739,'USDA ESALQ weekly IPPs'!$B$10:$B$739,">="&$D33,'USDA ESALQ weekly IPPs'!$B$10:$B$739,"<="&$E33) ->  | G33: =AVERAGEIFS('USDA ESALQ weekly IPPs'!$F$10:$F$739,'USDA ESALQ weekly IPPs'!$B$10:$B$739,">="&$D33,'USDA ESALQ weekly IPPs'!$B$10:$B$739,"<="&$E33) ->  | H33: =AVERAGEIFS('USDA ESALQ weekly IPPs'!$G$10:$G$739,'USDA ESALQ weekly IPPs'!$B$10:$B$739,">="&$D33,'USDA ESALQ weekly IPPs'!$B$10:$B$739,"<="&$E33) ->  | I33: =AVERAGEIFS('USDA ESALQ weekly IPPs'!$H$10:$H$739,'USDA ESALQ weekly IPPs'!$B$10:$B$739,">="&$D33,'USDA ESALQ weekly IPPs'!$B$10:$B$739,"<="&$E33) ->  | J33: =AVERAGEIFS('USDA ESALQ weekly IPPs'!$I$10:$I$739,'USDA ESALQ weekly IPPs'!$B$10:$B$739,">="&$D33,'USDA ESALQ weekly IPPs'!$B$10:$B$739,"<="&$E33) ->  | K33: =AVERAGEIFS('USDA ESALQ weekly IPPs'!$J$10:$J$739,'USDA ESALQ weekly IPPs'!$B$10:$B$739,">="&$D33,'USDA ESALQ weekly IPPs'!$B$10:$B$739,"<="&$E33) ->  | L33: =AVERAGEIFS('USDA ESALQ weekly IPPs'!$L$10:$L$739,'USDA ESALQ weekly IPPs'!$B$10:$B$739,">="&$D33,'USDA ESALQ weekly IPPs'!$B$10:$B$739,"<="&$E33) -> 0.396 | M33: =AVERAGEIFS('USDA ESALQ weekly IPPs'!$M$10:$M$739,'USDA ESALQ weekly IPPs'!$B$10:$B$739,">="&$D33,'USDA ESALQ weekly IPPs'!$B$10:$B$739,"<="&$E33) -> 0.001957464 | N33: =AVERAGEIFS('USDA ESALQ weekly IPPs'!$N$10:$N$739,'USDA ESALQ weekly IPPs'!$B$10:$B$739,">="&$D33,'USDA ESALQ weekly IPPs'!$B$10:$B$739,"<="&$E33) -> 0.03 | O33: =AVERAGEIFS('USDA ESALQ weekly IPPs'!$O$10:$O$739,'USDA ESALQ weekly IPPs'!$B$10:$B$739,">="&$D33,'USDA ESALQ weekly IPPs'!$B$10:$B$739,"<="&$E33) -> 0.015 | S33: =NA() -> 
B34: 2019-01-01 | C34: 2019-03-31 | D34: 2018-03-01 | E34: 2018-11-30 | F34: =AVERAGEIFS('USDA ESALQ weekly IPPs'!$E$10:$E$739,'USDA ESALQ weekly IPPs'!$B$10:$B$739,">="&$D34,'USDA ESALQ weekly IPPs'!$B$10:$B$739,"<="&$E34) ->  | G34: =AVERAGEIFS('USDA ESALQ weekly IPPs'!$F$10:$F$739,'USDA ESALQ weekly IPPs'!$B$10:$B$739,">="&$D34,'USDA ESALQ weekly IPPs'!$B$10:$B$739,"<="&$E34) ->  | H34: =AVERAGEIFS('USDA ESALQ weekly IPPs'!$G$10:$G$739,'USDA ESALQ weekly IPPs'!$B$10:$B$739,">="&$D34,'USDA ESALQ weekly IPPs'!$B$10:$B$739,"<="&$E34) ->  | I34: =AVERAGEIFS('USDA ESALQ weekly IPPs'!$H$10:$H$739,'USDA ESALQ weekly IPPs'!$B$10:$B$739,">="&$D34,'USDA ESALQ weekly IPPs'!$B$10:$B$739,"<="&$E34) ->  | J34: =AVERAGEIFS('USDA ESALQ weekly IPPs'!$I$10:$I$739,'USDA ESALQ weekly IPPs'!$B$10:$B$739,">="&$D34,'USDA ESALQ weekly IPPs'!$B$10:$B$739,"<="&$E34) ->  | K34: =AVERAGEIFS('USDA ESALQ weekly IPPs'!$J$10:$J$739,'USDA ESALQ weekly IPPs'!$B$10:$B$739,">="&$D34,'USDA ESALQ weekly IPPs'!$B$10:$B$739,"<="&$E34) ->  | L34: =AVERAGEIFS('USDA ESALQ weekly IPPs'!$L$10:$L$739,'USDA ESALQ weekly IPPs'!$B$10:$B$739,">="&$D34,'USDA ESALQ weekly IPPs'!$B$10:$B$739,"<="&$E34) -> 0.396 | M34: =AVERAGEIFS('USDA ESALQ weekly IPPs'!$M$10:$M$739,'USDA ESALQ weekly IPPs'!$B$10:$B$739,">="&$D34,'USDA ESALQ weekly IPPs'!$B$10:$B$739,"<="&$E34) -> 0.001957464 | N34: =AVERAGEIFS('USDA ESALQ weekly IPPs'!$N$10:$N$739,'USDA ESALQ weekly IPPs'!$B$10:$B$739,">="&$D34,'USDA ESALQ weekly IPPs'!$B$10:$B$739,"<="&$E34) -> 0.03 | O34: =AVERAGEIFS('USDA ESALQ weekly IPPs'!$O$10:$O$739,'USDA ESALQ weekly IPPs'!$B$10:$B$739,">="&$D34,'USDA ESALQ weekly IPPs'!$B$10:$B$739,"<="&$E34) -> 0.015 | S34: =NA() -> 
B35: 2019-04-01 | C35: 2019-06-30 | D35: 2018-06-01 | E35: 2019-02-28 | F35: =AVERAGEIFS('USDA ESALQ weekly IPPs'!$E$10:$E$739,'USDA ESALQ weekly IPPs'!$B$10:$B$739,">="&$D35,'USDA ESALQ weekly IPPs'!$B$10:$B$739,"<="&$E35) ->  | G35: =AVERAGEIFS('USDA ESALQ weekly IPPs'!$F$10:$F$739,'USDA ESALQ weekly IPPs'!$B$10:$B$739,">="&$D35,'USDA ESALQ weekly IPPs'!$B$10:$B$739,"<="&$E35) ->  | H35: =AVERAGEIFS('USDA ESALQ weekly IPPs'!$G$10:$G$739,'USDA ESALQ weekly IPPs'!$B$10:$B$739,">="&$D35,'USDA ESALQ weekly IPPs'!$B$10:$B$739,"<="&$E35) ->  | I35: =AVERAGEIFS('USDA ESALQ weekly IPPs'!$H$10:$H$739,'USDA ESALQ weekly IPPs'!$B$10:$B$739,">="&$D35,'USDA ESALQ weekly IPPs'!$B$10:$B$739,"<="&$E35) ->  | J35: =AVERAGEIFS('USDA ESALQ weekly IPPs'!$I$10:$I$739,'USDA ESALQ weekly IPPs'!$B$10:$B$739,">="&$D35,'USDA ESALQ weekly IPPs'!$B$10:$B$739,"<="&$E35) ->  | K35: =AVERAGEIFS('USDA ESALQ weekly IPPs'!$J$10:$J$739,'USDA ESALQ weekly IPPs'!$B$10:$B$739,">="&$D35,'USDA ESALQ weekly IPPs'!$B$10:$B$739,"<="&$E35) ->  | L35: =AVERAGEIFS('USDA ESALQ weekly IPPs'!$L$10:$L$739,'USDA ESALQ weekly IPPs'!$B$10:$B$739,">="&$D35,'USDA ESALQ weekly IPPs'!$B$10:$B$739,"<="&$E35) -> 0.396 | M35: =AVERAGEIFS('USDA ESALQ weekly IPPs'!$M$10:$M$739,'USDA ESALQ weekly IPPs'!$B$10:$B$739,">="&$D35,'USDA ESALQ weekly IPPs'!$B$10:$B$739,"<="&$E35) -> 0.001957464 | N35: =AVERAGEIFS('USDA ESALQ weekly IPPs'!$N$10:$N$739,'USDA ESALQ weekly IPPs'!$B$10:$B$739,">="&$D35,'USDA ESALQ weekly IPPs'!$B$10:$B$739,"<="&$E35) -> 0.03 | O35: =AVERAGEIFS('USDA ESALQ weekly IPPs'!$O$10:$O$739,'USDA ESALQ weekly IPPs'!$B$10:$B$739,">="&$D35,'USDA ESALQ weekly IPPs'!$B$10:$B$739,"<="&$E35) -> 0.015 | S35: =NA() -> 
B36: 2019-07-01 | C36: 2019-09-30 | D36: 2018-09-01 | E36: 2019-05-31 | F36: =AVERAGEIFS('USDA ESALQ weekly IPPs'!$E$10:$E$739,'USDA ESALQ weekly IPPs'!$B$10:$B$739,">="&$D36,'USDA ESALQ weekly IPPs'!$B$10:$B$739,"<="&$E36) ->  | G36: =AVERAGEIFS('USDA ESALQ weekly IPPs'!$F$10:$F$739,'USDA ESALQ weekly IPPs'!$B$10:$B$739,">="&$D36,'USDA ESALQ weekly IPPs'!$B$10:$B$739,"<="&$E36) ->  | H36: =AVERAGEIFS('USDA ESALQ weekly IPPs'!$G$10:$G$739,'USDA ESALQ weekly IPPs'!$B$10:$B$739,">="&$D36,'USDA ESALQ weekly IPPs'!$B$10:$B$739,"<="&$E36) ->  | I36: =AVERAGEIFS('USDA ESALQ weekly IPPs'!$H$10:$H$739,'USDA ESALQ weekly IPPs'!$B$10:$B$739,">="&$D36,'USDA ESALQ weekly IPPs'!$B$10:$B$739,"<="&$E36) ->  | J36: =AVERAGEIFS('USDA ESALQ weekly IPPs'!$I$10:$I$739,'USDA ESALQ weekly IPPs'!$B$10:$B$739,">="&$D36,'USDA ESALQ weekly IPPs'!$B$10:$B$739,"<="&$E36) ->  | K36: =AVERAGEIFS('USDA ESALQ weekly IPPs'!$J$10:$J$739,'USDA ESALQ weekly IPPs'!$B$10:$B$739,">="&$D36,'USDA ESALQ weekly IPPs'!$B$10:$B$739,"<="&$E36) ->  | L36: =AVERAGEIFS('USDA ESALQ weekly IPPs'!$L$10:$L$739,'USDA ESALQ weekly IPPs'!$B$10:$B$739,">="&$D36,'USDA ESALQ weekly IPPs'!$B$10:$B$739,"<="&$E36) -> 0.396 | M36: =AVERAGEIFS('USDA ESALQ weekly IPPs'!$M$10:$M$739,'USDA ESALQ weekly IPPs'!$B$10:$B$739,">="&$D36,'USDA ESALQ weekly IPPs'!$B$10:$B$739,"<="&$E36) -> 0.001957464 | N36: =AVERAGEIFS('USDA ESALQ weekly IPPs'!$N$10:$N$739,'USDA ESALQ weekly IPPs'!$B$10:$B$739,">="&$D36,'USDA ESALQ weekly IPPs'!$B$10:$B$739,"<="&$E36) -> 0.03 | O36: =AVERAGEIFS('USDA ESALQ weekly IPPs'!$O$10:$O$739,'USDA ESALQ weekly IPPs'!$B$10:$B$739,">="&$D36,'USDA ESALQ weekly IPPs'!$B$10:$B$739,"<="&$E36) -> 0.015 | S36: =NA() -> 
B37: 2019-10-01 | C37: 2019-12-31 | D37: 2018-12-01 | E37: 2019-08-31 | F37: =AVERAGEIFS('USDA ESALQ weekly IPPs'!$E$10:$E$739,'USDA ESALQ weekly IPPs'!$B$10:$B$739,">="&$D37,'USDA ESALQ weekly IPPs'!$B$10:$B$739,"<="&$E37) ->  | G37: =AVERAGEIFS('USDA ESALQ weekly IPPs'!$F$10:$F$739,'USDA ESALQ weekly IPPs'!$B$10:$B$739,">="&$D37,'USDA ESALQ weekly IPPs'!$B$10:$B$739,"<="&$E37) ->  | H37: =AVERAGEIFS('USDA ESALQ weekly IPPs'!$G$10:$G$739,'USDA ESALQ weekly IPPs'!$B$10:$B$739,">="&$D37,'USDA ESALQ weekly IPPs'!$B$10:$B$739,"<="&$E37) ->  | I37: =AVERAGEIFS('USDA ESALQ weekly IPPs'!$H$10:$H$739,'USDA ESALQ weekly IPPs'!$B$10:$B$739,">="&$D37,'USDA ESALQ weekly IPPs'!$B$10:$B$739,"<="&$E37) ->  | J37: =AVERAGEIFS('USDA ESALQ weekly IPPs'!$I$10:$I$739,'USDA ESALQ weekly IPPs'!$B$10:$B$739,">="&$D37,'USDA ESALQ weekly IPPs'!$B$10:$B$739,"<="&$E37) ->  | K37: =AVERAGEIFS('USDA ESALQ weekly IPPs'!$J$10:$J$739,'USDA ESALQ weekly IPPs'!$B$10:$B$739,">="&$D37,'USDA ESALQ weekly IPPs'!$B$10:$B$739,"<="&$E37) ->  | L37: =AVERAGEIFS('USDA ESALQ weekly IPPs'!$L$10:$L$739,'USDA ESALQ weekly IPPs'!$B$10:$B$739,">="&$D37,'USDA ESALQ weekly IPPs'!$B$10:$B$739,"<="&$E37) -> 0.396 | M37: =AVERAGEIFS('USDA ESALQ weekly IPPs'!$M$10:$M$739,'USDA ESALQ weekly IPPs'!$B$10:$B$739,">="&$D37,'USDA ESALQ weekly IPPs'!$B$10:$B$739,"<="&$E37) -> 0.001957464 | N37: =AVERAGEIFS('USDA ESALQ weekly IPPs'!$N$10:$N$739,'USDA ESALQ weekly IPPs'!$B$10:$B$739,">="&$D37,'USDA ESALQ weekly IPPs'!$B$10:$B$739,"<="&$E37) -> 0.03 | O37: =AVERAGEIFS('USDA ESALQ weekly IPPs'!$O$10:$O$739,'USDA ESALQ weekly IPPs'!$B$10:$B$739,">="&$D37,'USDA ESALQ weekly IPPs'!$B$10:$B$739,"<="&$E37) -> 0.015 | S37: =NA() -> 
B38: 2020-01-01 | C38: 2020-03-31 | D38: 2019-03-01 | E38: 2019-11-30 | F38: =AVERAGEIFS('USDA ESALQ weekly IPPs'!$E$10:$E$739,'USDA ESALQ weekly IPPs'!$B$10:$B$739,">="&$D38,'USDA ESALQ weekly IPPs'!$B$10:$B$739,"<="&$E38) ->  | G38: =AVERAGEIFS('USDA ESALQ weekly IPPs'!$F$10:$F$739,'USDA ESALQ weekly IPPs'!$B$10:$B$739,">="&$D38,'USDA ESALQ weekly IPPs'!$B$10:$B$739,"<="&$E38) ->  | H38: =AVERAGEIFS('USDA ESALQ weekly IPPs'!$G$10:$G$739,'USDA ESALQ weekly IPPs'!$B$10:$B$739,">="&$D38,'USDA ESALQ weekly IPPs'!$B$10:$B$739,"<="&$E38) ->  | I38: =AVERAGEIFS('USDA ESALQ weekly IPPs'!$H$10:$H$739,'USDA ESALQ weekly IPPs'!$B$10:$B$739,">="&$D38,'USDA ESALQ weekly IPPs'!$B$10:$B$739,"<="&$E38) ->  | J38: =AVERAGEIFS('USDA ESALQ weekly IPPs'!$I$10:$I$739,'USDA ESALQ weekly IPPs'!$B$10:$B$739,">="&$D38,'USDA ESALQ weekly IPPs'!$B$10:$B$739,"<="&$E38) ->  | K38: =AVERAGEIFS('USDA ESALQ weekly IPPs'!$J$10:$J$739,'USDA ESALQ weekly IPPs'!$B$10:$B$739,">="&$D38,'USDA ESALQ weekly IPPs'!$B$10:$B$739,"<="&$E38) ->  | L38: =AVERAGEIFS('USDA ESALQ weekly IPPs'!$L$10:$L$739,'USDA ESALQ weekly IPPs'!$B$10:$B$739,">="&$D38,'USDA ESALQ weekly IPPs'!$B$10:$B$739,"<="&$E38) -> 0.396 | M38: =AVERAGEIFS('USDA ESALQ weekly IPPs'!$M$10:$M$739,'USDA ESALQ weekly IPPs'!$B$10:$B$739,">="&$D38,'USDA ESALQ weekly IPPs'!$B$10:$B$739,"<="&$E38) -> 0.001957464 | N38: =AVERAGEIFS('USDA ESALQ weekly IPPs'!$N$10:$N$739,'USDA ESALQ weekly IPPs'!$B$10:$B$739,">="&$D38,'USDA ESALQ weekly IPPs'!$B$10:$B$739,"<="&$E38) -> 0.03 | O38: =AVERAGEIFS('USDA ESALQ weekly IPPs'!$O$10:$O$739,'USDA ESALQ weekly IPPs'!$B$10:$B$739,">="&$D38,'USDA ESALQ weekly IPPs'!$B$10:$B$739,"<="&$E38) -> 0.015 | S38: =NA() -> 
B39: 2020-04-01 | C39: 2020-06-30 | D39: 2019-06-01 | E39: 2020-02-29 | F39: =AVERAGEIFS('USDA ESALQ weekly IPPs'!$E$10:$E$739,'USDA ESALQ weekly IPPs'!$B$10:$B$739,">="&$D39,'USDA ESALQ weekly IPPs'!$B$10:$B$739,"<="&$E39) ->  | G39: =AVERAGEIFS('USDA ESALQ weekly IPPs'!$F$10:$F$739,'USDA ESALQ weekly IPPs'!$B$10:$B$739,">="&$D39,'USDA ESALQ weekly IPPs'!$B$10:$B$739,"<="&$E39) ->  | H39: =AVERAGEIFS('USDA ESALQ weekly IPPs'!$G$10:$G$739,'USDA ESALQ weekly IPPs'!$B$10:$B$739,">="&$D39,'USDA ESALQ weekly IPPs'!$B$10:$B$739,"<="&$E39) ->  | I39: =AVERAGEIFS('USDA ESALQ weekly IPPs'!$H$10:$H$739,'USDA ESALQ weekly IPPs'!$B$10:$B$739,">="&$D39,'USDA ESALQ weekly IPPs'!$B$10:$B$739,"<="&$E39) ->  | J39: =AVERAGEIFS('USDA ESALQ weekly IPPs'!$I$10:$I$739,'USDA ESALQ weekly IPPs'!$B$10:$B$739,">="&$D39,'USDA ESALQ weekly IPPs'!$B$10:$B$739,"<="&$E39) ->  | K39: =AVERAGEIFS('USDA ESALQ weekly IPPs'!$J$10:$J$739,'USDA ESALQ weekly IPPs'!$B$10:$B$739,">="&$D39,'USDA ESALQ weekly IPPs'!$B$10:$B$739,"<="&$E39) ->  | L39: =AVERAGEIFS('USDA ESALQ weekly IPPs'!$L$10:$L$739,'USDA ESALQ weekly IPPs'!$B$10:$B$739,">="&$D39,'USDA ESALQ weekly IPPs'!$B$10:$B$739,"<="&$E39) -> 0.396 | M39: =AVERAGEIFS('USDA ESALQ weekly IPPs'!$M$10:$M$739,'USDA ESALQ weekly IPPs'!$B$10:$B$739,">="&$D39,'USDA ESALQ weekly IPPs'!$B$10:$B$739,"<="&$E39) -> 0.001957464 | N39: =AVERAGEIFS('USDA ESALQ weekly IPPs'!$N$10:$N$739,'USDA ESALQ weekly IPPs'!$B$10:$B$739,">="&$D39,'USDA ESALQ weekly IPPs'!$B$10:$B$739,"<="&$E39) -> 0.03 | O39: =AVERAGEIFS('USDA ESALQ weekly IPPs'!$O$10:$O$739,'USDA ESALQ weekly IPPs'!$B$10:$B$739,">="&$D39,'USDA ESALQ weekly IPPs'!$B$10:$B$739,"<="&$E39) -> 0.015 | S39: =NA() -> 
B40: 2020-07-01 | C40: 2020-09-30 | D40: 2019-09-01 | E40: 2020-05-31 | F40: =AVERAGEIFS('USDA ESALQ weekly IPPs'!$E$10:$E$739,'USDA ESALQ weekly IPPs'!$B$10:$B$739,">="&$D40,'USDA ESALQ weekly IPPs'!$B$10:$B$739,"<="&$E40) ->  | G40: =AVERAGEIFS('USDA ESALQ weekly IPPs'!$F$10:$F$739,'USDA ESALQ weekly IPPs'!$B$10:$B$739,">="&$D40,'USDA ESALQ weekly IPPs'!$B$10:$B$739,"<="&$E40) ->  | H40: =AVERAGEIFS('USDA ESALQ weekly IPPs'!$G$10:$G$739,'USDA ESALQ weekly IPPs'!$B$10:$B$739,">="&$D40,'USDA ESALQ weekly IPPs'!$B$10:$B$739,"<="&$E40) ->  | I40: =AVERAGEIFS('USDA ESALQ weekly IPPs'!$H$10:$H$739,'USDA ESALQ weekly IPPs'!$B$10:$B$739,">="&$D40,'USDA ESALQ weekly IPPs'!$B$10:$B$739,"<="&$E40) ->  | J40: =AVERAGEIFS('USDA ESALQ weekly IPPs'!$I$10:$I$739,'USDA ESALQ weekly IPPs'!$B$10:$B$739,">="&$D40,'USDA ESALQ weekly IPPs'!$B$10:$B$739,"<="&$E40) ->  | K40: =AVERAGEIFS('USDA ESALQ weekly IPPs'!$J$10:$J$739,'USDA ESALQ weekly IPPs'!$B$10:$B$739,">="&$D40,'USDA ESALQ weekly IPPs'!$B$10:$B$739,"<="&$E40) ->  | L40: =AVERAGEIFS('USDA ESALQ weekly IPPs'!$L$10:$L$739,'USDA ESALQ weekly IPPs'!$B$10:$B$739,">="&$D40,'USDA ESALQ weekly IPPs'!$B$10:$B$739,"<="&$E40) -> 0.396 | M40: =AVERAGEIFS('USDA ESALQ weekly IPPs'!$M$10:$M$739,'USDA ESALQ weekly IPPs'!$B$10:$B$739,">="&$D40,'USDA ESALQ weekly IPPs'!$B$10:$B$739,"<="&$E40) -> 0.001957464 | N40: =AVERAGEIFS('USDA ESALQ weekly IPPs'!$N$10:$N$739,'USDA ESALQ weekly IPPs'!$B$10:$B$739,">="&$D40,'USDA ESALQ weekly IPPs'!$B$10:$B$739,"<="&$E40) -> 0.03 | O40: =AVERAGEIFS('USDA ESALQ weekly IPPs'!$O$10:$O$739,'USDA ESALQ weekly IPPs'!$B$10:$B$739,">="&$D40,'USDA ESALQ weekly IPPs'!$B$10:$B$739,"<="&$E40) -> 0.015 | S40: =NA() -> 
B41: 2020-10-01 | C41: 2020-12-31 | D41: 2019-12-01 | E41: 2020-08-31 | F41: =AVERAGEIFS('USDA ESALQ weekly IPPs'!$E$10:$E$739,'USDA ESALQ weekly IPPs'!$B$10:$B$739,">="&$D41,'USDA ESALQ weekly IPPs'!$B$10:$B$739,"<="&$E41) ->  | G41: =AVERAGEIFS('USDA ESALQ weekly IPPs'!$F$10:$F$739,'USDA ESALQ weekly IPPs'!$B$10:$B$739,">="&$D41,'USDA ESALQ weekly IPPs'!$B$10:$B$739,"<="&$E41) ->  | H41: =AVERAGEIFS('USDA ESALQ weekly IPPs'!$G$10:$G$739,'USDA ESALQ weekly IPPs'!$B$10:$B$739,">="&$D41,'USDA ESALQ weekly IPPs'!$B$10:$B$739,"<="&$E41) ->  | I41: =AVERAGEIFS('USDA ESALQ weekly IPPs'!$H$10:$H$739,'USDA ESALQ weekly IPPs'!$B$10:$B$739,">="&$D41,'USDA ESALQ weekly IPPs'!$B$10:$B$739,"<="&$E41) ->  | J41: =AVERAGEIFS('USDA ESALQ weekly IPPs'!$I$10:$I$739,'USDA ESALQ weekly IPPs'!$B$10:$B$739,">="&$D41,'USDA ESALQ weekly IPPs'!$B$10:$B$739,"<="&$E41) ->  | K41: =AVERAGEIFS('USDA ESALQ weekly IPPs'!$J$10:$J$739,'USDA ESALQ weekly IPPs'!$B$10:$B$739,">="&$D41,'USDA ESALQ weekly IPPs'!$B$10:$B$739,"<="&$E41) ->  | L41: =AVERAGEIFS('USDA ESALQ weekly IPPs'!$L$10:$L$739,'USDA ESALQ weekly IPPs'!$B$10:$B$739,">="&$D41,'USDA ESALQ weekly IPPs'!$B$10:$B$739,"<="&$E41) -> 0.396 | M41: =AVERAGEIFS('USDA ESALQ weekly IPPs'!$M$10:$M$739,'USDA ESALQ weekly IPPs'!$B$10:$B$739,">="&$D41,'USDA ESALQ weekly IPPs'!$B$10:$B$739,"<="&$E41) -> 0.001957464 | N41: =AVERAGEIFS('USDA ESALQ weekly IPPs'!$N$10:$N$739,'USDA ESALQ weekly IPPs'!$B$10:$B$739,">="&$D41,'USDA ESALQ weekly IPPs'!$B$10:$B$739,"<="&$E41) -> 0.03 | O41: =AVERAGEIFS('USDA ESALQ weekly IPPs'!$O$10:$O$739,'USDA ESALQ weekly IPPs'!$B$10:$B$739,">="&$D41,'USDA ESALQ weekly IPPs'!$B$10:$B$739,"<="&$E41) -> 0.015 | S41: =NA() -> 
B42: 2021-01-01 | C42: 2021-03-31 | D42: 2020-03-01 | E42: 2020-11-30 | F42: =AVERAGEIFS('USDA ESALQ weekly IPPs'!$E$10:$E$739,'USDA ESALQ weekly IPPs'!$B$10:$B$739,">="&$D42,'USDA ESALQ weekly IPPs'!$B$10:$B$739,"<="&$E42) ->  | G42: =AVERAGEIFS('USDA ESALQ weekly IPPs'!$F$10:$F$739,'USDA ESALQ weekly IPPs'!$B$10:$B$739,">="&$D42,'USDA ESALQ weekly IPPs'!$B$10:$B$739,"<="&$E42) ->  | H42: =AVERAGEIFS('USDA ESALQ weekly IPPs'!$G$10:$G$739,'USDA ESALQ weekly IPPs'!$B$10:$B$739,">="&$D42,'USDA ESALQ weekly IPPs'!$B$10:$B$739,"<="&$E42) ->  | I42: =AVERAGEIFS('USDA ESALQ weekly IPPs'!$H$10:$H$739,'USDA ESALQ weekly IPPs'!$B$10:$B$739,">="&$D42,'USDA ESALQ weekly IPPs'!$B$10:$B$739,"<="&$E42) ->  | J42: =AVERAGEIFS('USDA ESALQ weekly IPPs'!$I$10:$I$739,'USDA ESALQ weekly IPPs'!$B$10:$B$739,">="&$D42,'USDA ESALQ weekly IPPs'!$B$10:$B$739,"<="&$E42) ->  | K42: =AVERAGEIFS('USDA ESALQ weekly IPPs'!$J$10:$J$739,'USDA ESALQ weekly IPPs'!$B$10:$B$739,">="&$D42,'USDA ESALQ weekly IPPs'!$B$10:$B$739,"<="&$E42) ->  | L42: =AVERAGEIFS('USDA ESALQ weekly IPPs'!$L$10:$L$739,'USDA ESALQ weekly IPPs'!$B$10:$B$739,">="&$D42,'USDA ESALQ weekly IPPs'!$B$10:$B$739,"<="&$E42) -> 0.396 | M42: =AVERAGEIFS('USDA ESALQ weekly IPPs'!$M$10:$M$739,'USDA ESALQ weekly IPPs'!$B$10:$B$739,">="&$D42,'USDA ESALQ weekly IPPs'!$B$10:$B$739,"<="&$E42) -> 0.001957464 | N42: =AVERAGEIFS('USDA ESALQ weekly IPPs'!$N$10:$N$739,'USDA ESALQ weekly IPPs'!$B$10:$B$739,">="&$D42,'USDA ESALQ weekly IPPs'!$B$10:$B$739,"<="&$E42) -> 0.03 | O42: =AVERAGEIFS('USDA ESALQ weekly IPPs'!$O$10:$O$739,'USDA ESALQ weekly IPPs'!$B$10:$B$739,">="&$D42,'USDA ESALQ weekly IPPs'!$B$10:$B$739,"<="&$E42) -> 0.015 | S42: =NA() -> 
B43: 2021-04-01 | C43: 2021-06-30 | D43: 2020-06-01 | E43: 2021-02-28 | F43: =AVERAGEIFS('USDA ESALQ weekly IPPs'!$E$10:$E$739,'USDA ESALQ weekly IPPs'!$B$10:$B$739,">="&$D43,'USDA ESALQ weekly IPPs'!$B$10:$B$739,"<="&$E43) ->  | G43: =AVERAGEIFS('USDA ESALQ weekly IPPs'!$F$10:$F$739,'USDA ESALQ weekly IPPs'!$B$10:$B$739,">="&$D43,'USDA ESALQ weekly IPPs'!$B$10:$B$739,"<="&$E43) ->  | H43: =AVERAGEIFS('USDA ESALQ weekly IPPs'!$G$10:$G$739,'USDA ESALQ weekly IPPs'!$B$10:$B$739,">="&$D43,'USDA ESALQ weekly IPPs'!$B$10:$B$739,"<="&$E43) ->  | I43: =AVERAGEIFS('USDA ESALQ weekly IPPs'!$H$10:$H$739,'USDA ESALQ weekly IPPs'!$B$10:$B$739,">="&$D43,'USDA ESALQ weekly IPPs'!$B$10:$B$739,"<="&$E43) ->  | J43: =AVERAGEIFS('USDA ESALQ weekly IPPs'!$I$10:$I$739,'USDA ESALQ weekly IPPs'!$B$10:$B$739,">="&$D43,'USDA ESALQ weekly IPPs'!$B$10:$B$739,"<="&$E43) ->  | K43: =AVERAGEIFS('USDA ESALQ weekly IPPs'!$J$10:$J$739,'USDA ESALQ weekly IPPs'!$B$10:$B$739,">="&$D43,'USDA ESALQ weekly IPPs'!$B$10:$B$739,"<="&$E43) ->  | L43: =AVERAGEIFS('USDA ESALQ weekly IPPs'!$L$10:$L$739,'USDA ESALQ weekly IPPs'!$B$10:$B$739,">="&$D43,'USDA ESALQ weekly IPPs'!$B$10:$B$739,"<="&$E43) -> 0.396 | M43: =AVERAGEIFS('USDA ESALQ weekly IPPs'!$M$10:$M$739,'USDA ESALQ weekly IPPs'!$B$10:$B$739,">="&$D43,'USDA ESALQ weekly IPPs'!$B$10:$B$739,"<="&$E43) -> 0.001957464 | N43: =AVERAGEIFS('USDA ESALQ weekly IPPs'!$N$10:$N$739,'USDA ESALQ weekly IPPs'!$B$10:$B$739,">="&$D43,'USDA ESALQ weekly IPPs'!$B$10:$B$739,"<="&$E43) -> 0.03 | O43: =AVERAGEIFS('USDA ESALQ weekly IPPs'!$O$10:$O$739,'USDA ESALQ weekly IPPs'!$B$10:$B$739,">="&$D43,'USDA ESALQ weekly IPPs'!$B$10:$B$739,"<="&$E43) -> 0.015 | S43: =NA() -> 
B44: 2021-07-01 | C44: 2021-09-30 | D44: 2020-09-01 | E44: 2021-05-31 | F44: =AVERAGEIFS('USDA ESALQ weekly IPPs'!$E$10:$E$739,'USDA ESALQ weekly IPPs'!$B$10:$B$739,">="&$D44,'USDA ESALQ weekly IPPs'!$B$10:$B$739,"<="&$E44) ->  | G44: =AVERAGEIFS('USDA ESALQ weekly IPPs'!$F$10:$F$739,'USDA ESALQ weekly IPPs'!$B$10:$B$739,">="&$D44,'USDA ESALQ weekly IPPs'!$B$10:$B$739,"<="&$E44) ->  | H44: =AVERAGEIFS('USDA ESALQ weekly IPPs'!$G$10:$G$739,'USDA ESALQ weekly IPPs'!$B$10:$B$739,">="&$D44,'USDA ESALQ weekly IPPs'!$B$10:$B$739,"<="&$E44) ->  | I44: =AVERAGEIFS('USDA ESALQ weekly IPPs'!$H$10:$H$739,'USDA ESALQ weekly IPPs'!$B$10:$B$739,">="&$D44,'USDA ESALQ weekly IPPs'!$B$10:$B$739,"<="&$E44) ->  | J44: =AVERAGEIFS('USDA ESALQ weekly IPPs'!$I$10:$I$739,'USDA ESALQ weekly IPPs'!$B$10:$B$739,">="&$D44,'USDA ESALQ weekly IPPs'!$B$10:$B$739,"<="&$E44) ->  | K44: =AVERAGEIFS('USDA ESALQ weekly IPPs'!$J$10:$J$739,'USDA ESALQ weekly IPPs'!$B$10:$B$739,">="&$D44,'USDA ESALQ weekly IPPs'!$B$10:$B$739,"<="&$E44) ->  | L44: =AVERAGEIFS('USDA ESALQ weekly IPPs'!$L$10:$L$739,'USDA ESALQ weekly IPPs'!$B$10:$B$739,">="&$D44,'USDA ESALQ weekly IPPs'!$B$10:$B$739,"<="&$E44) -> 0.396 | M44: =AVERAGEIFS('USDA ESALQ weekly IPPs'!$M$10:$M$739,'USDA ESALQ weekly IPPs'!$B$10:$B$739,">="&$D44,'USDA ESALQ weekly IPPs'!$B$10:$B$739,"<="&$E44) -> 0.001957464 | N44: =AVERAGEIFS('USDA ESALQ weekly IPPs'!$N$10:$N$739,'USDA ESALQ weekly IPPs'!$B$10:$B$739,">="&$D44,'USDA ESALQ weekly IPPs'!$B$10:$B$739,"<="&$E44) -> 0.03 | O44: =AVERAGEIFS('USDA ESALQ weekly IPPs'!$O$10:$O$739,'USDA ESALQ weekly IPPs'!$B$10:$B$739,">="&$D44,'USDA ESALQ weekly IPPs'!$B$10:$B$739,"<="&$E44) -> 0.015 | S44: =NA() -> 
B45: 2021-10-01 | C45: 2021-12-31 | D45: 2020-12-01 | E45: 2021-08-31 | F45: =AVERAGEIFS('USDA ESALQ weekly IPPs'!$E$10:$E$739,'USDA ESALQ weekly IPPs'!$B$10:$B$739,">="&$D45,'USDA ESALQ weekly IPPs'!$B$10:$B$739,"<="&$E45) ->  | G45: =AVERAGEIFS('USDA ESALQ weekly IPPs'!$F$10:$F$739,'USDA ESALQ weekly IPPs'!$B$10:$B$739,">="&$D45,'USDA ESALQ weekly IPPs'!$B$10:$B$739,"<="&$E45) ->  | H45: =AVERAGEIFS('USDA ESALQ weekly IPPs'!$G$10:$G$739,'USDA ESALQ weekly IPPs'!$B$10:$B$739,">="&$D45,'USDA ESALQ weekly IPPs'!$B$10:$B$739,"<="&$E45) ->  | I45: =AVERAGEIFS('USDA ESALQ weekly IPPs'!$H$10:$H$739,'USDA ESALQ weekly IPPs'!$B$10:$B$739,">="&$D45,'USDA ESALQ weekly IPPs'!$B$10:$B$739,"<="&$E45) ->  | J45: =AVERAGEIFS('USDA ESALQ weekly IPPs'!$I$10:$I$739,'USDA ESALQ weekly IPPs'!$B$10:$B$739,">="&$D45,'USDA ESALQ weekly IPPs'!$B$10:$B$739,"<="&$E45) ->  | K45: =AVERAGEIFS('USDA ESALQ weekly IPPs'!$J$10:$J$739,'USDA ESALQ weekly IPPs'!$B$10:$B$739,">="&$D45,'USDA ESALQ weekly IPPs'!$B$10:$B$739,"<="&$E45) ->  | L45: =AVERAGEIFS('USDA ESALQ weekly IPPs'!$L$10:$L$739,'USDA ESALQ weekly IPPs'!$B$10:$B$739,">="&$D45,'USDA ESALQ weekly IPPs'!$B$10:$B$739,"<="&$E45) -> 0.396 | M45: =AVERAGEIFS('USDA ESALQ weekly IPPs'!$M$10:$M$739,'USDA ESALQ weekly IPPs'!$B$10:$B$739,">="&$D45,'USDA ESALQ weekly IPPs'!$B$10:$B$739,"<="&$E45) -> 0.001957464 | N45: =AVERAGEIFS('USDA ESALQ weekly IPPs'!$N$10:$N$739,'USDA ESALQ weekly IPPs'!$B$10:$B$739,">="&$D45,'USDA ESALQ weekly IPPs'!$B$10:$B$739,"<="&$E45) -> 0.03 | O45: =AVERAGEIFS('USDA ESALQ weekly IPPs'!$O$10:$O$739,'USDA ESALQ weekly IPPs'!$B$10:$B$739,">="&$D45,'USDA ESALQ weekly IPPs'!$B$10:$B$739,"<="&$E45) -> 0.015 | S45: =NA() -> 
B46: 2022-01-01 | C46: 2022-03-31 | D46: 2021-03-01 | E46: 2021-11-30 | F46: =AVERAGEIFS('USDA ESALQ weekly IPPs'!$E$10:$E$739,'USDA ESALQ weekly IPPs'!$B$10:$B$739,">="&$D46,'USDA ESALQ weekly IPPs'!$B$10:$B$739,"<="&$E46) ->  | G46: =AVERAGEIFS('USDA ESALQ weekly IPPs'!$F$10:$F$739,'USDA ESALQ weekly IPPs'!$B$10:$B$739,">="&$D46,'USDA ESALQ weekly IPPs'!$B$10:$B$739,"<="&$E46) ->  | H46: =AVERAGEIFS('USDA ESALQ weekly IPPs'!$G$10:$G$739,'USDA ESALQ weekly IPPs'!$B$10:$B$739,">="&$D46,'USDA ESALQ weekly IPPs'!$B$10:$B$739,"<="&$E46) ->  | I46: =AVERAGEIFS('USDA ESALQ weekly IPPs'!$H$10:$H$739,'USDA ESALQ weekly IPPs'!$B$10:$B$739,">="&$D46,'USDA ESALQ weekly IPPs'!$B$10:$B$739,"<="&$E46) ->  | J46: =AVERAGEIFS('USDA ESALQ weekly IPPs'!$I$10:$I$739,'USDA ESALQ weekly IPPs'!$B$10:$B$739,">="&$D46,'USDA ESALQ weekly IPPs'!$B$10:$B$739,"<="&$E46) ->  | K46: =AVERAGEIFS('USDA ESALQ weekly IPPs'!$J$10:$J$739,'USDA ESALQ weekly IPPs'!$B$10:$B$739,">="&$D46,'USDA ESALQ weekly IPPs'!$B$10:$B$739,"<="&$E46) ->  | L46: =AVERAGEIFS('USDA ESALQ weekly IPPs'!$L$10:$L$739,'USDA ESALQ weekly IPPs'!$B$10:$B$739,">="&$D46,'USDA ESALQ weekly IPPs'!$B$10:$B$739,"<="&$E46) ->  | M46: =AVERAGEIFS('USDA ESALQ weekly IPPs'!$M$10:$M$739,'USDA ESALQ weekly IPPs'!$B$10:$B$739,">="&$D46,'USDA ESALQ weekly IPPs'!$B$10:$B$739,"<="&$E46) ->  | N46: =AVERAGEIFS('USDA ESALQ weekly IPPs'!$N$10:$N$739,'USDA ESALQ weekly IPPs'!$B$10:$B$739,">="&$D46,'USDA ESALQ weekly IPPs'!$B$10:$B$739,"<="&$E46) ->  | O46: =AVERAGEIFS('USDA ESALQ weekly IPPs'!$O$10:$O$739,'USDA ESALQ weekly IPPs'!$B$10:$B$739,">="&$D46,'USDA ESALQ weekly IPPs'!$B$10:$B$739,"<="&$E46) ->  | S46: =NA() -> 
B47: 2022-04-01 | C47: 2022-06-30 | D47: 2021-06-01 | E47: 2022-02-28 | F47: =AVERAGEIFS('USDA ESALQ weekly IPPs'!$E$10:$E$739,'USDA ESALQ weekly IPPs'!$B$10:$B$739,">="&$D47,'USDA ESALQ weekly IPPs'!$B$10:$B$739,"<="&$E47) ->  | G47: =AVERAGEIFS('USDA ESALQ weekly IPPs'!$F$10:$F$739,'USDA ESALQ weekly IPPs'!$B$10:$B$739,">="&$D47,'USDA ESALQ weekly IPPs'!$B$10:$B$739,"<="&$E47) ->  | H47: =AVERAGEIFS('USDA ESALQ weekly IPPs'!$G$10:$G$739,'USDA ESALQ weekly IPPs'!$B$10:$B$739,">="&$D47,'USDA ESALQ weekly IPPs'!$B$10:$B$739,"<="&$E47) ->  | I47: =AVERAGEIFS('USDA ESALQ weekly IPPs'!$H$10:$H$739,'USDA ESALQ weekly IPPs'!$B$10:$B$739,">="&$D47,'USDA ESALQ weekly IPPs'!$B$10:$B$739,"<="&$E47) ->  | J47: =AVERAGEIFS('USDA ESALQ weekly IPPs'!$I$10:$I$739,'USDA ESALQ weekly IPPs'!$B$10:$B$739,">="&$D47,'USDA ESALQ weekly IPPs'!$B$10:$B$739,"<="&$E47) ->  | K47: =AVERAGEIFS('USDA ESALQ weekly IPPs'!$J$10:$J$739,'USDA ESALQ weekly IPPs'!$B$10:$B$739,">="&$D47,'USDA ESALQ weekly IPPs'!$B$10:$B$739,"<="&$E47) ->  | L47: =AVERAGEIFS('USDA ESALQ weekly IPPs'!$L$10:$L$739,'USDA ESALQ weekly IPPs'!$B$10:$B$739,">="&$D47,'USDA ESALQ weekly IPPs'!$B$10:$B$739,"<="&$E47) ->  | M47: =AVERAGEIFS('USDA ESALQ weekly IPPs'!$M$10:$M$739,'USDA ESALQ weekly IPPs'!$B$10:$B$739,">="&$D47,'USDA ESALQ weekly IPPs'!$B$10:$B$739,"<="&$E47) ->  | N47: =AVERAGEIFS('USDA ESALQ weekly IPPs'!$N$10:$N$739,'USDA ESALQ weekly IPPs'!$B$10:$B$739,">="&$D47,'USDA ESALQ weekly IPPs'!$B$10:$B$739,"<="&$E47) ->  | O47: =AVERAGEIFS('USDA ESALQ weekly IPPs'!$O$10:$O$739,'USDA ESALQ weekly IPPs'!$B$10:$B$739,">="&$D47,'USDA ESALQ weekly IPPs'!$B$10:$B$739,"<="&$E47) ->  | S47: =NA() -> 
B48: 2022-07-01 | C48: 2022-09-30 | D48: 2021-09-01 | E48: 2022-05-31 | F48: =AVERAGEIFS('USDA ESALQ weekly IPPs'!$E$10:$E$739,'USDA ESALQ weekly IPPs'!$B$10:$B$739,">="&$D48,'USDA ESALQ weekly IPPs'!$B$10:$B$739,"<="&$E48) ->  | G48: =AVERAGEIFS('USDA ESALQ weekly IPPs'!$F$10:$F$739,'USDA ESALQ weekly IPPs'!$B$10:$B$739,">="&$D48,'USDA ESALQ weekly IPPs'!$B$10:$B$739,"<="&$E48) ->  | H48: =AVERAGEIFS('USDA ESALQ weekly IPPs'!$G$10:$G$739,'USDA ESALQ weekly IPPs'!$B$10:$B$739,">="&$D48,'USDA ESALQ weekly IPPs'!$B$10:$B$739,"<="&$E48) ->  | I48: =AVERAGEIFS('USDA ESALQ weekly IPPs'!$H$10:$H$739,'USDA ESALQ weekly IPPs'!$B$10:$B$739,">="&$D48,'USDA ESALQ weekly IPPs'!$B$10:$B$739,"<="&$E48) ->  | J48: =AVERAGEIFS('USDA ESALQ weekly IPPs'!$I$10:$I$739,'USDA ESALQ weekly IPPs'!$B$10:$B$739,">="&$D48,'USDA ESALQ weekly IPPs'!$B$10:$B$739,"<="&$E48) ->  | K48: =AVERAGEIFS('USDA ESALQ weekly IPPs'!$J$10:$J$739,'USDA ESALQ weekly IPPs'!$B$10:$B$739,">="&$D48,'USDA ESALQ weekly IPPs'!$B$10:$B$739,"<="&$E48) ->  | L48: =AVERAGEIFS('USDA ESALQ weekly IPPs'!$L$10:$L$739,'USDA ESALQ weekly IPPs'!$B$10:$B$739,">="&$D48,'USDA ESALQ weekly IPPs'!$B$10:$B$739,"<="&$E48) ->  | M48: =AVERAGEIFS('USDA ESALQ weekly IPPs'!$M$10:$M$739,'USDA ESALQ weekly IPPs'!$B$10:$B$739,">="&$D48,'USDA ESALQ weekly IPPs'!$B$10:$B$739,"<="&$E48) ->  | N48: =AVERAGEIFS('USDA ESALQ weekly IPPs'!$N$10:$N$739,'USDA ESALQ weekly IPPs'!$B$10:$B$739,">="&$D48,'USDA ESALQ weekly IPPs'!$B$10:$B$739,"<="&$E48) ->  | O48: =AVERAGEIFS('USDA ESALQ weekly IPPs'!$O$10:$O$739,'USDA ESALQ weekly IPPs'!$B$10:$B$739,">="&$D48,'USDA ESALQ weekly IPPs'!$B$10:$B$739,"<="&$E48) ->  | S48: =NA() -> 
B49: 2022-10-01 | C49: 2022-12-31 | D49: 2021-12-01 | E49: 2022-08-31 | F49: =AVERAGEIFS('USDA ESALQ weekly IPPs'!$E$10:$E$739,'USDA ESALQ weekly IPPs'!$B$10:$B$739,">="&$D49,'USDA ESALQ weekly IPPs'!$B$10:$B$739,"<="&$E49) ->  | G49: =AVERAGEIFS('USDA ESALQ weekly IPPs'!$F$10:$F$739,'USDA ESALQ weekly IPPs'!$B$10:$B$739,">="&$D49,'USDA ESALQ weekly IPPs'!$B$10:$B$739,"<="&$E49) ->  | H49: =AVERAGEIFS('USDA ESALQ weekly IPPs'!$G$10:$G$739,'USDA ESALQ weekly IPPs'!$B$10:$B$739,">="&$D49,'USDA ESALQ weekly IPPs'!$B$10:$B$739,"<="&$E49) ->  | I49: =AVERAGEIFS('USDA ESALQ weekly IPPs'!$H$10:$H$739,'USDA ESALQ weekly IPPs'!$B$10:$B$739,">="&$D49,'USDA ESALQ weekly IPPs'!$B$10:$B$739,"<="&$E49) ->  | J49: =AVERAGEIFS('USDA ESALQ weekly IPPs'!$I$10:$I$739,'USDA ESALQ weekly IPPs'!$B$10:$B$739,">="&$D49,'USDA ESALQ weekly IPPs'!$B$10:$B$739,"<="&$E49) ->  | K49: =AVERAGEIFS('USDA ESALQ weekly IPPs'!$J$10:$J$739,'USDA ESALQ weekly IPPs'!$B$10:$B$739,">="&$D49,'USDA ESALQ weekly IPPs'!$B$10:$B$739,"<="&$E49) ->  | L49: =AVERAGEIFS('USDA ESALQ weekly IPPs'!$L$10:$L$739,'USDA ESALQ weekly IPPs'!$B$10:$B$739,">="&$D49,'USDA ESALQ weekly IPPs'!$B$10:$B$739,"<="&$E49) ->  | M49: =AVERAGEIFS('USDA ESALQ weekly IPPs'!$M$10:$M$739,'USDA ESALQ weekly IPPs'!$B$10:$B$739,">="&$D49,'USDA ESALQ weekly IPPs'!$B$10:$B$739,"<="&$E49) ->  | N49: =AVERAGEIFS('USDA ESALQ weekly IPPs'!$N$10:$N$739,'USDA ESALQ weekly IPPs'!$B$10:$B$739,">="&$D49,'USDA ESALQ weekly IPPs'!$B$10:$B$739,"<="&$E49) ->  | O49: =AVERAGEIFS('USDA ESALQ weekly IPPs'!$O$10:$O$739,'USDA ESALQ weekly IPPs'!$B$10:$B$739,">="&$D49,'USDA ESALQ weekly IPPs'!$B$10:$B$739,"<="&$E49) ->  | S49: =NA() -> 
B50: 2023-01-01 | C50: 2023-03-31 | D50: 2022-03-01 | E50: 2022-11-30 | F50: =AVERAGEIFS('USDA ESALQ weekly IPPs'!$E$10:$E$739,'USDA ESALQ weekly IPPs'!$B$10:$B$739,">="&$D50,'USDA ESALQ weekly IPPs'!$B$10:$B$739,"<="&$E50) ->  | G50: =AVERAGEIFS('USDA ESALQ weekly IPPs'!$F$10:$F$739,'USDA ESALQ weekly IPPs'!$B$10:$B$739,">="&$D50,'USDA ESALQ weekly IPPs'!$B$10:$B$739,"<="&$E50) ->  | H50: =AVERAGEIFS('USDA ESALQ weekly IPPs'!$G$10:$G$739,'USDA ESALQ weekly IPPs'!$B$10:$B$739,">="&$D50,'USDA ESALQ weekly IPPs'!$B$10:$B$739,"<="&$E50) ->  | I50: =AVERAGEIFS('USDA ESALQ weekly IPPs'!$H$10:$H$739,'USDA ESALQ weekly IPPs'!$B$10:$B$739,">="&$D50,'USDA ESALQ weekly IPPs'!$B$10:$B$739,"<="&$E50) ->  | J50: =AVERAGEIFS('USDA ESALQ weekly IPPs'!$I$10:$I$739,'USDA ESALQ weekly IPPs'!$B$10:$B$739,">="&$D50,'USDA ESALQ weekly IPPs'!$B$10:$B$739,"<="&$E50) ->  | K50: =AVERAGEIFS('USDA ESALQ weekly IPPs'!$J$10:$J$739,'USDA ESALQ weekly IPPs'!$B$10:$B$739,">="&$D50,'USDA ESALQ weekly IPPs'!$B$10:$B$739,"<="&$E50) ->  | L50: =AVERAGEIFS('USDA ESALQ weekly IPPs'!$L$10:$L$739,'USDA ESALQ weekly IPPs'!$B$10:$B$739,">="&$D50,'USDA ESALQ weekly IPPs'!$B$10:$B$739,"<="&$E50) ->  | M50: =AVERAGEIFS('USDA ESALQ weekly IPPs'!$M$10:$M$739,'USDA ESALQ weekly IPPs'!$B$10:$B$739,">="&$D50,'USDA ESALQ weekly IPPs'!$B$10:$B$739,"<="&$E50) ->  | N50: =AVERAGEIFS('USDA ESALQ weekly IPPs'!$N$10:$N$739,'USDA ESALQ weekly IPPs'!$B$10:$B$739,">="&$D50,'USDA ESALQ weekly IPPs'!$B$10:$B$739,"<="&$E50) ->  | O50: =AVERAGEIFS('USDA ESALQ weekly IPPs'!$O$10:$O$739,'USDA ESALQ weekly IPPs'!$B$10:$B$739,">="&$D50,'USDA ESALQ weekly IPPs'!$B$10:$B$739,"<="&$E50) ->  | S50: =NA() -> 
B51: 2023-04-01 | C51: 2023-06-30 | D51: 2022-06-01 | E51: 2023-02-28 | F51: =AVERAGEIFS('USDA ESALQ weekly IPPs'!$E$10:$E$739,'USDA ESALQ weekly IPPs'!$B$10:$B$739,">="&$D51,'USDA ESALQ weekly IPPs'!$B$10:$B$739,"<="&$E51) ->  | G51: =AVERAGEIFS('USDA ESALQ weekly IPPs'!$F$10:$F$739,'USDA ESALQ weekly IPPs'!$B$10:$B$739,">="&$D51,'USDA ESALQ weekly IPPs'!$B$10:$B$739,"<="&$E51) ->  | H51: =AVERAGEIFS('USDA ESALQ weekly IPPs'!$G$10:$G$739,'USDA ESALQ weekly IPPs'!$B$10:$B$739,">="&$D51,'USDA ESALQ weekly IPPs'!$B$10:$B$739,"<="&$E51) ->  | I51: =AVERAGEIFS('USDA ESALQ weekly IPPs'!$H$10:$H$739,'USDA ESALQ weekly IPPs'!$B$10:$B$739,">="&$D51,'USDA ESALQ weekly IPPs'!$B$10:$B$739,"<="&$E51) ->  | J51: =AVERAGEIFS('USDA ESALQ weekly IPPs'!$I$10:$I$739,'USDA ESALQ weekly IPPs'!$B$10:$B$739,">="&$D51,'USDA ESALQ weekly IPPs'!$B$10:$B$739,"<="&$E51) ->  | K51: =AVERAGEIFS('USDA ESALQ weekly IPPs'!$J$10:$J$739,'USDA ESALQ weekly IPPs'!$B$10:$B$739,">="&$D51,'USDA ESALQ weekly IPPs'!$B$10:$B$739,"<="&$E51) ->  | L51: =AVERAGEIFS('USDA ESALQ weekly IPPs'!$L$10:$L$739,'USDA ESALQ weekly IPPs'!$B$10:$B$739,">="&$D51,'USDA ESALQ weekly IPPs'!$B$10:$B$739,"<="&$E51) ->  | M51: =AVERAGEIFS('USDA ESALQ weekly IPPs'!$M$10:$M$739,'USDA ESALQ weekly IPPs'!$B$10:$B$739,">="&$D51,'USDA ESALQ weekly IPPs'!$B$10:$B$739,"<="&$E51) ->  | N51: =AVERAGEIFS('USDA ESALQ weekly IPPs'!$N$10:$N$739,'USDA ESALQ weekly IPPs'!$B$10:$B$739,">="&$D51,'USDA ESALQ weekly IPPs'!$B$10:$B$739,"<="&$E51) ->  | O51: =AVERAGEIFS('USDA ESALQ weekly IPPs'!$O$10:$O$739,'USDA ESALQ weekly IPPs'!$B$10:$B$739,">="&$D51,'USDA ESALQ weekly IPPs'!$B$10:$B$739,"<="&$E51) ->  | S51: =NA() -> 
B52: 2023-07-01 | C52: 2023-09-30 | D52: 2022-09-01 | E52: 2023-05-31 | F52: =AVERAGEIFS('USDA ESALQ weekly IPPs'!$E$10:$E$739,'USDA ESALQ weekly IPPs'!$B$10:$B$739,">="&$D52,'USDA ESALQ weekly IPPs'!$B$10:$B$739,"<="&$E52) ->  | G52: =AVERAGEIFS('USDA ESALQ weekly IPPs'!$F$10:$F$739,'USDA ESALQ weekly IPPs'!$B$10:$B$739,">="&$D52,'USDA ESALQ weekly IPPs'!$B$10:$B$739,"<="&$E52) ->  | H52: =AVERAGEIFS('USDA ESALQ weekly IPPs'!$G$10:$G$739,'USDA ESALQ weekly IPPs'!$B$10:$B$739,">="&$D52,'USDA ESALQ weekly IPPs'!$B$10:$B$739,"<="&$E52) ->  | I52: =AVERAGEIFS('USDA ESALQ weekly IPPs'!$H$10:$H$739,'USDA ESALQ weekly IPPs'!$B$10:$B$739,">="&$D52,'USDA ESALQ weekly IPPs'!$B$10:$B$739,"<="&$E52) ->  | J52: =AVERAGEIFS('USDA ESALQ weekly IPPs'!$I$10:$I$739,'USDA ESALQ weekly IPPs'!$B$10:$B$739,">="&$D52,'USDA ESALQ weekly IPPs'!$B$10:$B$739,"<="&$E52) ->  | K52: =AVERAGEIFS('USDA ESALQ weekly IPPs'!$J$10:$J$739,'USDA ESALQ weekly IPPs'!$B$10:$B$739,">="&$D52,'USDA ESALQ weekly IPPs'!$B$10:$B$739,"<="&$E52) ->  | L52: =AVERAGEIFS('USDA ESALQ weekly IPPs'!$L$10:$L$739,'USDA ESALQ weekly IPPs'!$B$10:$B$739,">="&$D52,'USDA ESALQ weekly IPPs'!$B$10:$B$739,"<="&$E52) ->  | M52: =AVERAGEIFS('USDA ESALQ weekly IPPs'!$M$10:$M$739,'USDA ESALQ weekly IPPs'!$B$10:$B$739,">="&$D52,'USDA ESALQ weekly IPPs'!$B$10:$B$739,"<="&$E52) ->  | N52: =AVERAGEIFS('USDA ESALQ weekly IPPs'!$N$10:$N$739,'USDA ESALQ weekly IPPs'!$B$10:$B$739,">="&$D52,'USDA ESALQ weekly IPPs'!$B$10:$B$739,"<="&$E52) ->  | O52: =AVERAGEIFS('USDA ESALQ weekly IPPs'!$O$10:$O$739,'USDA ESALQ weekly IPPs'!$B$10:$B$739,">="&$D52,'USDA ESALQ weekly IPPs'!$B$10:$B$739,"<="&$E52) ->  | S52: =NA() -> 
B53: 2023-10-01 | C53: 2023-12-31 | D53: 2022-12-01 | E53: 2023-08-31 | F53: =AVERAGEIFS('USDA ESALQ weekly IPPs'!$E$10:$E$739,'USDA ESALQ weekly IPPs'!$B$10:$B$739,">="&$D53,'USDA ESALQ weekly IPPs'!$B$10:$B$739,"<="&$E53) ->  | G53: =AVERAGEIFS('USDA ESALQ weekly IPPs'!$F$10:$F$739,'USDA ESALQ weekly IPPs'!$B$10:$B$739,">="&$D53,'USDA ESALQ weekly IPPs'!$B$10:$B$739,"<="&$E53) ->  | H53: =AVERAGEIFS('USDA ESALQ weekly IPPs'!$G$10:$G$739,'USDA ESALQ weekly IPPs'!$B$10:$B$739,">="&$D53,'USDA ESALQ weekly IPPs'!$B$10:$B$739,"<="&$E53) ->  | I53: =AVERAGEIFS('USDA ESALQ weekly IPPs'!$H$10:$H$739,'USDA ESALQ weekly IPPs'!$B$10:$B$739,">="&$D53,'USDA ESALQ weekly IPPs'!$B$10:$B$739,"<="&$E53) ->  | J53: =AVERAGEIFS('USDA ESALQ weekly IPPs'!$I$10:$I$739,'USDA ESALQ weekly IPPs'!$B$10:$B$739,">="&$D53,'USDA ESALQ weekly IPPs'!$B$10:$B$739,"<="&$E53) ->  | K53: =AVERAGEIFS('USDA ESALQ weekly IPPs'!$J$10:$J$739,'USDA ESALQ weekly IPPs'!$B$10:$B$739,">="&$D53,'USDA ESALQ weekly IPPs'!$B$10:$B$739,"<="&$E53) ->  | L53: =AVERAGEIFS('USDA ESALQ weekly IPPs'!$L$10:$L$739,'USDA ESALQ weekly IPPs'!$B$10:$B$739,">="&$D53,'USDA ESALQ weekly IPPs'!$B$10:$B$739,"<="&$E53) ->  | M53: =AVERAGEIFS('USDA ESALQ weekly IPPs'!$M$10:$M$739,'USDA ESALQ weekly IPPs'!$B$10:$B$739,">="&$D53,'USDA ESALQ weekly IPPs'!$B$10:$B$739,"<="&$E53) ->  | N53: =AVERAGEIFS('USDA ESALQ weekly IPPs'!$N$10:$N$739,'USDA ESALQ weekly IPPs'!$B$10:$B$739,">="&$D53,'USDA ESALQ weekly IPPs'!$B$10:$B$739,"<="&$E53) ->  | O53: =AVERAGEIFS('USDA ESALQ weekly IPPs'!$O$10:$O$739,'USDA ESALQ weekly IPPs'!$B$10:$B$739,">="&$D53,'USDA ESALQ weekly IPPs'!$B$10:$B$739,"<="&$E53) ->  | S53: =NA() -> 
B54: 2024-01-01 | C54: 2024-03-31 | D54: 2023-03-01 | E54: 2023-11-30 | F54: =AVERAGEIFS('USDA ESALQ weekly IPPs'!$E$10:$E$739,'USDA ESALQ weekly IPPs'!$B$10:$B$739,">="&$D54,'USDA ESALQ weekly IPPs'!$B$10:$B$739,"<="&$E54) ->  | G54: =AVERAGEIFS('USDA ESALQ weekly IPPs'!$F$10:$F$739,'USDA ESALQ weekly IPPs'!$B$10:$B$739,">="&$D54,'USDA ESALQ weekly IPPs'!$B$10:$B$739,"<="&$E54) ->  | H54: =AVERAGEIFS('USDA ESALQ weekly IPPs'!$G$10:$G$739,'USDA ESALQ weekly IPPs'!$B$10:$B$739,">="&$D54,'USDA ESALQ weekly IPPs'!$B$10:$B$739,"<="&$E54) ->  | I54: =AVERAGEIFS('USDA ESALQ weekly IPPs'!$H$10:$H$739,'USDA ESALQ weekly IPPs'!$B$10:$B$739,">="&$D54,'USDA ESALQ weekly IPPs'!$B$10:$B$739,"<="&$E54) ->  | J54: =AVERAGEIFS('USDA ESALQ weekly IPPs'!$I$10:$I$739,'USDA ESALQ weekly IPPs'!$B$10:$B$739,">="&$D54,'USDA ESALQ weekly IPPs'!$B$10:$B$739,"<="&$E54) ->  | K54: =AVERAGEIFS('USDA ESALQ weekly IPPs'!$J$10:$J$739,'USDA ESALQ weekly IPPs'!$B$10:$B$739,">="&$D54,'USDA ESALQ weekly IPPs'!$B$10:$B$739,"<="&$E54) ->  | L54: =AVERAGEIFS('USDA ESALQ weekly IPPs'!$L$10:$L$739,'USDA ESALQ weekly IPPs'!$B$10:$B$739,">="&$D54,'USDA ESALQ weekly IPPs'!$B$10:$B$739,"<="&$E54) ->  | M54: =AVERAGEIFS('USDA ESALQ weekly IPPs'!$M$10:$M$739,'USDA ESALQ weekly IPPs'!$B$10:$B$739,">="&$D54,'USDA ESALQ weekly IPPs'!$B$10:$B$739,"<="&$E54) ->  | N54: =AVERAGEIFS('USDA ESALQ weekly IPPs'!$N$10:$N$739,'USDA ESALQ weekly IPPs'!$B$10:$B$739,">="&$D54,'USDA ESALQ weekly IPPs'!$B$10:$B$739,"<="&$E54) ->  | O54: =AVERAGEIFS('USDA ESALQ weekly IPPs'!$O$10:$O$739,'USDA ESALQ weekly IPPs'!$B$10:$B$739,">="&$D54,'USDA ESALQ weekly IPPs'!$B$10:$B$739,"<="&$E54) ->  | S54: =NA() -> 
B55: 2024-04-01 | C55: 2024-06-30 | D55: 2023-06-01 | E55: 2024-02-29 | F55: =AVERAGEIFS('USDA ESALQ weekly IPPs'!$E$10:$E$739,'USDA ESALQ weekly IPPs'!$B$10:$B$739,">="&$D55,'USDA ESALQ weekly IPPs'!$B$10:$B$739,"<="&$E55) ->  | G55: =AVERAGEIFS('USDA ESALQ weekly IPPs'!$F$10:$F$739,'USDA ESALQ weekly IPPs'!$B$10:$B$739,">="&$D55,'USDA ESALQ weekly IPPs'!$B$10:$B$739,"<="&$E55) ->  | H55: =AVERAGEIFS('USDA ESALQ weekly IPPs'!$G$10:$G$739,'USDA ESALQ weekly IPPs'!$B$10:$B$739,">="&$D55,'USDA ESALQ weekly IPPs'!$B$10:$B$739,"<="&$E55) ->  | I55: =AVERAGEIFS('USDA ESALQ weekly IPPs'!$H$10:$H$739,'USDA ESALQ weekly IPPs'!$B$10:$B$739,">="&$D55,'USDA ESALQ weekly IPPs'!$B$10:$B$739,"<="&$E55) ->  | J55: =AVERAGEIFS('USDA ESALQ weekly IPPs'!$I$10:$I$739,'USDA ESALQ weekly IPPs'!$B$10:$B$739,">="&$D55,'USDA ESALQ weekly IPPs'!$B$10:$B$739,"<="&$E55) ->  | K55: =AVERAGEIFS('USDA ESALQ weekly IPPs'!$J$10:$J$739,'USDA ESALQ weekly IPPs'!$B$10:$B$739,">="&$D55,'USDA ESALQ weekly IPPs'!$B$10:$B$739,"<="&$E55) ->  | L55: =AVERAGEIFS('USDA ESALQ weekly IPPs'!$L$10:$L$739,'USDA ESALQ weekly IPPs'!$B$10:$B$739,">="&$D55,'USDA ESALQ weekly IPPs'!$B$10:$B$739,"<="&$E55) ->  | M55: =AVERAGEIFS('USDA ESALQ weekly IPPs'!$M$10:$M$739,'USDA ESALQ weekly IPPs'!$B$10:$B$739,">="&$D55,'USDA ESALQ weekly IPPs'!$B$10:$B$739,"<="&$E55) ->  | N55: =AVERAGEIFS('USDA ESALQ weekly IPPs'!$N$10:$N$739,'USDA ESALQ weekly IPPs'!$B$10:$B$739,">="&$D55,'USDA ESALQ weekly IPPs'!$B$10:$B$739,"<="&$E55) ->  | O55: =AVERAGEIFS('USDA ESALQ weekly IPPs'!$O$10:$O$739,'USDA ESALQ weekly IPPs'!$B$10:$B$739,">="&$D55,'USDA ESALQ weekly IPPs'!$B$10:$B$739,"<="&$E55) ->  | S55: =NA() -> 
B56: 2024-07-01 | C56: 2024-09-30 | D56: 2023-09-01 | E56: 2024-05-31 | F56: =AVERAGEIFS('USDA ESALQ weekly IPPs'!$E$10:$E$739,'USDA ESALQ weekly IPPs'!$B$10:$B$739,">="&$D56,'USDA ESALQ weekly IPPs'!$B$10:$B$739,"<="&$E56) ->  | G56: =AVERAGEIFS('USDA ESALQ weekly IPPs'!$F$10:$F$739,'USDA ESALQ weekly IPPs'!$B$10:$B$739,">="&$D56,'USDA ESALQ weekly IPPs'!$B$10:$B$739,"<="&$E56) ->  | H56: =AVERAGEIFS('USDA ESALQ weekly IPPs'!$G$10:$G$739,'USDA ESALQ weekly IPPs'!$B$10:$B$739,">="&$D56,'USDA ESALQ weekly IPPs'!$B$10:$B$739,"<="&$E56) ->  | I56: =AVERAGEIFS('USDA ESALQ weekly IPPs'!$H$10:$H$739,'USDA ESALQ weekly IPPs'!$B$10:$B$739,">="&$D56,'USDA ESALQ weekly IPPs'!$B$10:$B$739,"<="&$E56) ->  | J56: =AVERAGEIFS('USDA ESALQ weekly IPPs'!$I$10:$I$739,'USDA ESALQ weekly IPPs'!$B$10:$B$739,">="&$D56,'USDA ESALQ weekly IPPs'!$B$10:$B$739,"<="&$E56) ->  | K56: =AVERAGEIFS('USDA ESALQ weekly IPPs'!$J$10:$J$739,'USDA ESALQ weekly IPPs'!$B$10:$B$739,">="&$D56,'USDA ESALQ weekly IPPs'!$B$10:$B$739,"<="&$E56) ->  | L56: =AVERAGEIFS('USDA ESALQ weekly IPPs'!$L$10:$L$739,'USDA ESALQ weekly IPPs'!$B$10:$B$739,">="&$D56,'USDA ESALQ weekly IPPs'!$B$10:$B$739,"<="&$E56) ->  | M56: =AVERAGEIFS('USDA ESALQ weekly IPPs'!$M$10:$M$739,'USDA ESALQ weekly IPPs'!$B$10:$B$739,">="&$D56,'USDA ESALQ weekly IPPs'!$B$10:$B$739,"<="&$E56) ->  | N56: =AVERAGEIFS('USDA ESALQ weekly IPPs'!$N$10:$N$739,'USDA ESALQ weekly IPPs'!$B$10:$B$739,">="&$D56,'USDA ESALQ weekly IPPs'!$B$10:$B$739,"<="&$E56) ->  | O56: =AVERAGEIFS('USDA ESALQ weekly IPPs'!$O$10:$O$739,'USDA ESALQ weekly IPPs'!$B$10:$B$739,">="&$D56,'USDA ESALQ weekly IPPs'!$B$10:$B$739,"<="&$E56) ->  | S56: =NA() -> 
B57: 2024-10-01 | C57: 2024-12-31 | D57: 2023-12-01 | E57: 2024-08-31 | F57: =AVERAGEIFS('USDA ESALQ weekly IPPs'!$E$10:$E$739,'USDA ESALQ weekly IPPs'!$B$10:$B$739,">="&$D57,'USDA ESALQ weekly IPPs'!$B$10:$B$739,"<="&$E57) ->  | G57: =AVERAGEIFS('USDA ESALQ weekly IPPs'!$F$10:$F$739,'USDA ESALQ weekly IPPs'!$B$10:$B$739,">="&$D57,'USDA ESALQ weekly IPPs'!$B$10:$B$739,"<="&$E57) ->  | H57: =AVERAGEIFS('USDA ESALQ weekly IPPs'!$G$10:$G$739,'USDA ESALQ weekly IPPs'!$B$10:$B$739,">="&$D57,'USDA ESALQ weekly IPPs'!$B$10:$B$739,"<="&$E57) ->  | I57: =AVERAGEIFS('USDA ESALQ weekly IPPs'!$H$10:$H$739,'USDA ESALQ weekly IPPs'!$B$10:$B$739,">="&$D57,'USDA ESALQ weekly IPPs'!$B$10:$B$739,"<="&$E57) ->  | J57: =AVERAGEIFS('USDA ESALQ weekly IPPs'!$I$10:$I$739,'USDA ESALQ weekly IPPs'!$B$10:$B$739,">="&$D57,'USDA ESALQ weekly IPPs'!$B$10:$B$739,"<="&$E57) ->  | K57: =AVERAGEIFS('USDA ESALQ weekly IPPs'!$J$10:$J$739,'USDA ESALQ weekly IPPs'!$B$10:$B$739,">="&$D57,'USDA ESALQ weekly IPPs'!$B$10:$B$739,"<="&$E57) ->  | L57: =AVERAGEIFS('USDA ESALQ weekly IPPs'!$L$10:$L$739,'USDA ESALQ weekly IPPs'!$B$10:$B$739,">="&$D57,'USDA ESALQ weekly IPPs'!$B$10:$B$739,"<="&$E57) ->  | M57: =AVERAGEIFS('USDA ESALQ weekly IPPs'!$M$10:$M$739,'USDA ESALQ weekly IPPs'!$B$10:$B$739,">="&$D57,'USDA ESALQ weekly IPPs'!$B$10:$B$739,"<="&$E57) ->  | N57: =AVERAGEIFS('USDA ESALQ weekly IPPs'!$N$10:$N$739,'USDA ESALQ weekly IPPs'!$B$10:$B$739,">="&$D57,'USDA ESALQ weekly IPPs'!$B$10:$B$739,"<="&$E57) ->  | O57: =AVERAGEIFS('USDA ESALQ weekly IPPs'!$O$10:$O$739,'USDA ESALQ weekly IPPs'!$B$10:$B$739,">="&$D57,'USDA ESALQ weekly IPPs'!$B$10:$B$739,"<="&$E57) ->  | S57: =NA() -> 
B58: 2025-01-01 | C58: 2025-03-31 | D58: 2024-03-01 | E58: 2024-11-30 | F58: =AVERAGEIFS('USDA ESALQ weekly IPPs'!$E$10:$E$739,'USDA ESALQ weekly IPPs'!$B$10:$B$739,">="&$D58,'USDA ESALQ weekly IPPs'!$B$10:$B$739,"<="&$E58) ->  | G58: =AVERAGEIFS('USDA ESALQ weekly IPPs'!$F$10:$F$739,'USDA ESALQ weekly IPPs'!$B$10:$B$739,">="&$D58,'USDA ESALQ weekly IPPs'!$B$10:$B$739,"<="&$E58) ->  | H58: =AVERAGEIFS('USDA ESALQ weekly IPPs'!$G$10:$G$739,'USDA ESALQ weekly IPPs'!$B$10:$B$739,">="&$D58,'USDA ESALQ weekly IPPs'!$B$10:$B$739,"<="&$E58) ->  | I58: =AVERAGEIFS('USDA ESALQ weekly IPPs'!$H$10:$H$739,'USDA ESALQ weekly IPPs'!$B$10:$B$739,">="&$D58,'USDA ESALQ weekly IPPs'!$B$10:$B$739,"<="&$E58) ->  | J58: =AVERAGEIFS('USDA ESALQ weekly IPPs'!$I$10:$I$739,'USDA ESALQ weekly IPPs'!$B$10:$B$739,">="&$D58,'USDA ESALQ weekly IPPs'!$B$10:$B$739,"<="&$E58) ->  | K58: =AVERAGEIFS('USDA ESALQ weekly IPPs'!$J$10:$J$739,'USDA ESALQ weekly IPPs'!$B$10:$B$739,">="&$D58,'USDA ESALQ weekly IPPs'!$B$10:$B$739,"<="&$E58) ->  | L58: =AVERAGEIFS('USDA ESALQ weekly IPPs'!$L$10:$L$739,'USDA ESALQ weekly IPPs'!$B$10:$B$739,">="&$D58,'USDA ESALQ weekly IPPs'!$B$10:$B$739,"<="&$E58) ->  | M58: =AVERAGEIFS('USDA ESALQ weekly IPPs'!$M$10:$M$739,'USDA ESALQ weekly IPPs'!$B$10:$B$739,">="&$D58,'USDA ESALQ weekly IPPs'!$B$10:$B$739,"<="&$E58) ->  | N58: =AVERAGEIFS('USDA ESALQ weekly IPPs'!$N$10:$N$739,'USDA ESALQ weekly IPPs'!$B$10:$B$739,">="&$D58,'USDA ESALQ weekly IPPs'!$B$10:$B$739,"<="&$E58) ->  | O58: =AVERAGEIFS('USDA ESALQ weekly IPPs'!$O$10:$O$739,'USDA ESALQ weekly IPPs'!$B$10:$B$739,">="&$D58,'USDA ESALQ weekly IPPs'!$B$10:$B$739,"<="&$E58) ->  | S58: =NA() -> 
B59: 2025-04-01 | C59: 2025-06-30 | D59: 2024-06-01 | E59: 2025-02-28 | F59: =AVERAGEIFS('USDA ESALQ weekly IPPs'!$E$10:$E$739,'USDA ESALQ weekly IPPs'!$B$10:$B$739,">="&$D59,'USDA ESALQ weekly IPPs'!$B$10:$B$739,"<="&$E59) ->  | G59: =AVERAGEIFS('USDA ESALQ weekly IPPs'!$F$10:$F$739,'USDA ESALQ weekly IPPs'!$B$10:$B$739,">="&$D59,'USDA ESALQ weekly IPPs'!$B$10:$B$739,"<="&$E59) ->  | H59: =AVERAGEIFS('USDA ESALQ weekly IPPs'!$G$10:$G$739,'USDA ESALQ weekly IPPs'!$B$10:$B$739,">="&$D59,'USDA ESALQ weekly IPPs'!$B$10:$B$739,"<="&$E59) ->  | I59: =AVERAGEIFS('USDA ESALQ weekly IPPs'!$H$10:$H$739,'USDA ESALQ weekly IPPs'!$B$10:$B$739,">="&$D59,'USDA ESALQ weekly IPPs'!$B$10:$B$739,"<="&$E59) ->  | J59: =AVERAGEIFS('USDA ESALQ weekly IPPs'!$I$10:$I$739,'USDA ESALQ weekly IPPs'!$B$10:$B$739,">="&$D59,'USDA ESALQ weekly IPPs'!$B$10:$B$739,"<="&$E59) ->  | K59: =AVERAGEIFS('USDA ESALQ weekly IPPs'!$J$10:$J$739,'USDA ESALQ weekly IPPs'!$B$10:$B$739,">="&$D59,'USDA ESALQ weekly IPPs'!$B$10:$B$739,"<="&$E59) ->  | L59: =AVERAGEIFS('USDA ESALQ weekly IPPs'!$L$10:$L$739,'USDA ESALQ weekly IPPs'!$B$10:$B$739,">="&$D59,'USDA ESALQ weekly IPPs'!$B$10:$B$739,"<="&$E59) ->  | M59: =AVERAGEIFS('USDA ESALQ weekly IPPs'!$M$10:$M$739,'USDA ESALQ weekly IPPs'!$B$10:$B$739,">="&$D59,'USDA ESALQ weekly IPPs'!$B$10:$B$739,"<="&$E59) ->  | N59: =AVERAGEIFS('USDA ESALQ weekly IPPs'!$N$10:$N$739,'USDA ESALQ weekly IPPs'!$B$10:$B$739,">="&$D59,'USDA ESALQ weekly IPPs'!$B$10:$B$739,"<="&$E59) ->  | O59: =AVERAGEIFS('USDA ESALQ weekly IPPs'!$O$10:$O$739,'USDA ESALQ weekly IPPs'!$B$10:$B$739,">="&$D59,'USDA ESALQ weekly IPPs'!$B$10:$B$739,"<="&$E59) ->  | S59: =NA() -> 
B60: 2025-07-01 | C60: 2025-09-30 | D60: 2024-09-01 | E60: 2025-05-31 | F60: =AVERAGEIFS('USDA ESALQ weekly IPPs'!$E$10:$E$739,'USDA ESALQ weekly IPPs'!$B$10:$B$739,">="&$D60,'USDA ESALQ weekly IPPs'!$B$10:$B$739,"<="&$E60) ->  | G60: =AVERAGEIFS('USDA ESALQ weekly IPPs'!$F$10:$F$739,'USDA ESALQ weekly IPPs'!$B$10:$B$739,">="&$D60,'USDA ESALQ weekly IPPs'!$B$10:$B$739,"<="&$E60) ->  | H60: =AVERAGEIFS('USDA ESALQ weekly IPPs'!$G$10:$G$739,'USDA ESALQ weekly IPPs'!$B$10:$B$739,">="&$D60,'USDA ESALQ weekly IPPs'!$B$10:$B$739,"<="&$E60) ->  | I60: =AVERAGEIFS('USDA ESALQ weekly IPPs'!$H$10:$H$739,'USDA ESALQ weekly IPPs'!$B$10:$B$739,">="&$D60,'USDA ESALQ weekly IPPs'!$B$10:$B$739,"<="&$E60) ->  | J60: =AVERAGEIFS('USDA ESALQ weekly IPPs'!$I$10:$I$739,'USDA ESALQ weekly IPPs'!$B$10:$B$739,">="&$D60,'USDA ESALQ weekly IPPs'!$B$10:$B$739,"<="&$E60) ->  | K60: =AVERAGEIFS('USDA ESALQ weekly IPPs'!$J$10:$J$739,'USDA ESALQ weekly IPPs'!$B$10:$B$739,">="&$D60,'USDA ESALQ weekly IPPs'!$B$10:$B$739,"<="&$E60) ->  | L60: =AVERAGEIFS('USDA ESALQ weekly IPPs'!$L$10:$L$739,'USDA ESALQ weekly IPPs'!$B$10:$B$739,">="&$D60,'USDA ESALQ weekly IPPs'!$B$10:$B$739,"<="&$E60) ->  | M60: =AVERAGEIFS('USDA ESALQ weekly IPPs'!$M$10:$M$739,'USDA ESALQ weekly IPPs'!$B$10:$B$739,">="&$D60,'USDA ESALQ weekly IPPs'!$B$10:$B$739,"<="&$E60) ->  | N60: =AVERAGEIFS('USDA ESALQ weekly IPPs'!$N$10:$N$739,'USDA ESALQ weekly IPPs'!$B$10:$B$739,">="&$D60,'USDA ESALQ weekly IPPs'!$B$10:$B$739,"<="&$E60) ->  | O60: =AVERAGEIFS('USDA ESALQ weekly IPPs'!$O$10:$O$739,'USDA ESALQ weekly IPPs'!$B$10:$B$739,">="&$D60,'USDA ESALQ weekly IPPs'!$B$10:$B$739,"<="&$E60) ->  | S60: =NA() -> 
B61: 2025-10-01 | C61: 2025-12-31 | D61: 2024-12-01 | E61: 2025-08-31 | F61: =AVERAGEIFS('USDA ESALQ weekly IPPs'!$E$10:$E$739,'USDA ESALQ weekly IPPs'!$B$10:$B$739,">="&$D61,'USDA ESALQ weekly IPPs'!$B$10:$B$739,"<="&$E61) ->  | G61: =AVERAGEIFS('USDA ESALQ weekly IPPs'!$F$10:$F$739,'USDA ESALQ weekly IPPs'!$B$10:$B$739,">="&$D61,'USDA ESALQ weekly IPPs'!$B$10:$B$739,"<="&$E61) ->  | H61: =AVERAGEIFS('USDA ESALQ weekly IPPs'!$G$10:$G$739,'USDA ESALQ weekly IPPs'!$B$10:$B$739,">="&$D61,'USDA ESALQ weekly IPPs'!$B$10:$B$739,"<="&$E61) ->  | I61: =AVERAGEIFS('USDA ESALQ weekly IPPs'!$H$10:$H$739,'USDA ESALQ weekly IPPs'!$B$10:$B$739,">="&$D61,'USDA ESALQ weekly IPPs'!$B$10:$B$739,"<="&$E61) ->  | J61: =AVERAGEIFS('USDA ESALQ weekly IPPs'!$I$10:$I$739,'USDA ESALQ weekly IPPs'!$B$10:$B$739,">="&$D61,'USDA ESALQ weekly IPPs'!$B$10:$B$739,"<="&$E61) ->  | K61: =AVERAGEIFS('USDA ESALQ weekly IPPs'!$J$10:$J$739,'USDA ESALQ weekly IPPs'!$B$10:$B$739,">="&$D61,'USDA ESALQ weekly IPPs'!$B$10:$B$739,"<="&$E61) ->  | L61: =AVERAGEIFS('USDA ESALQ weekly IPPs'!$L$10:$L$739,'USDA ESALQ weekly IPPs'!$B$10:$B$739,">="&$D61,'USDA ESALQ weekly IPPs'!$B$10:$B$739,"<="&$E61) ->  | M61: =AVERAGEIFS('USDA ESALQ weekly IPPs'!$M$10:$M$739,'USDA ESALQ weekly IPPs'!$B$10:$B$739,">="&$D61,'USDA ESALQ weekly IPPs'!$B$10:$B$739,"<="&$E61) ->  | N61: =AVERAGEIFS('USDA ESALQ weekly IPPs'!$N$10:$N$739,'USDA ESALQ weekly IPPs'!$B$10:$B$739,">="&$D61,'USDA ESALQ weekly IPPs'!$B$10:$B$739,"<="&$E61) ->  | O61: =AVERAGEIFS('USDA ESALQ weekly IPPs'!$O$10:$O$739,'USDA ESALQ weekly IPPs'!$B$10:$B$739,">="&$D61,'USDA ESALQ weekly IPPs'!$B$10:$B$739,"<="&$E61) ->  | S61: =NA() -> 
B62: 2026-01-01 | C62: 2026-03-31 | D62: 2025-03-01 | E62: 2025-11-30 | F62: =AVERAGEIFS('USDA ESALQ weekly IPPs'!$E$10:$E$739,'USDA ESALQ weekly IPPs'!$B$10:$B$739,">="&$D62,'USDA ESALQ weekly IPPs'!$B$10:$B$739,"<="&$E62) ->  | G62: =AVERAGEIFS('USDA ESALQ weekly IPPs'!$F$10:$F$739,'USDA ESALQ weekly IPPs'!$B$10:$B$739,">="&$D62,'USDA ESALQ weekly IPPs'!$B$10:$B$739,"<="&$E62) ->  | H62: =AVERAGEIFS('USDA ESALQ weekly IPPs'!$G$10:$G$739,'USDA ESALQ weekly IPPs'!$B$10:$B$739,">="&$D62,'USDA ESALQ weekly IPPs'!$B$10:$B$739,"<="&$E62) ->  | I62: =AVERAGEIFS('USDA ESALQ weekly IPPs'!$H$10:$H$739,'USDA ESALQ weekly IPPs'!$B$10:$B$739,">="&$D62,'USDA ESALQ weekly IPPs'!$B$10:$B$739,"<="&$E62) ->  | J62: =AVERAGEIFS('USDA ESALQ weekly IPPs'!$I$10:$I$739,'USDA ESALQ weekly IPPs'!$B$10:$B$739,">="&$D62,'USDA ESALQ weekly IPPs'!$B$10:$B$739,"<="&$E62) ->  | K62: =AVERAGEIFS('USDA ESALQ weekly IPPs'!$J$10:$J$739,'USDA ESALQ weekly IPPs'!$B$10:$B$739,">="&$D62,'USDA ESALQ weekly IPPs'!$B$10:$B$739,"<="&$E62) ->  | L62: =AVERAGEIFS('USDA ESALQ weekly IPPs'!$L$10:$L$739,'USDA ESALQ weekly IPPs'!$B$10:$B$739,">="&$D62,'USDA ESALQ weekly IPPs'!$B$10:$B$739,"<="&$E62) ->  | M62: =AVERAGEIFS('USDA ESALQ weekly IPPs'!$M$10:$M$739,'USDA ESALQ weekly IPPs'!$B$10:$B$739,">="&$D62,'USDA ESALQ weekly IPPs'!$B$10:$B$739,"<="&$E62) ->  | N62: =AVERAGEIFS('USDA ESALQ weekly IPPs'!$N$10:$N$739,'USDA ESALQ weekly IPPs'!$B$10:$B$739,">="&$D62,'USDA ESALQ weekly IPPs'!$B$10:$B$739,"<="&$E62) ->  | O62: =AVERAGEIFS('USDA ESALQ weekly IPPs'!$O$10:$O$739,'USDA ESALQ weekly IPPs'!$B$10:$B$739,">="&$D62,'USDA ESALQ weekly IPPs'!$B$10:$B$739,"<="&$E62) ->  | S62: =NA() -> 
B63: 2026-04-01 | C63: 2026-06-30 | D63: 2025-06-01 | E63: 2026-02-28 | F63: =AVERAGEIFS('USDA ESALQ weekly IPPs'!$E$10:$E$739,'USDA ESALQ weekly IPPs'!$B$10:$B$739,">="&$D63,'USDA ESALQ weekly IPPs'!$B$10:$B$739,"<="&$E63) ->  | G63: =AVERAGEIFS('USDA ESALQ weekly IPPs'!$F$10:$F$739,'USDA ESALQ weekly IPPs'!$B$10:$B$739,">="&$D63,'USDA ESALQ weekly IPPs'!$B$10:$B$739,"<="&$E63) ->  | H63: =AVERAGEIFS('USDA ESALQ weekly IPPs'!$G$10:$G$739,'USDA ESALQ weekly IPPs'!$B$10:$B$739,">="&$D63,'USDA ESALQ weekly IPPs'!$B$10:$B$739,"<="&$E63) ->  | I63: =AVERAGEIFS('USDA ESALQ weekly IPPs'!$H$10:$H$739,'USDA ESALQ weekly IPPs'!$B$10:$B$739,">="&$D63,'USDA ESALQ weekly IPPs'!$B$10:$B$739,"<="&$E63) ->  | J63: =AVERAGEIFS('USDA ESALQ weekly IPPs'!$I$10:$I$739,'USDA ESALQ weekly IPPs'!$B$10:$B$739,">="&$D63,'USDA ESALQ weekly IPPs'!$B$10:$B$739,"<="&$E63) ->  | K63: =AVERAGEIFS('USDA ESALQ weekly IPPs'!$J$10:$J$739,'USDA ESALQ weekly IPPs'!$B$10:$B$739,">="&$D63,'USDA ESALQ weekly IPPs'!$B$10:$B$739,"<="&$E63) ->  | L63: =AVERAGEIFS('USDA ESALQ weekly IPPs'!$L$10:$L$739,'USDA ESALQ weekly IPPs'!$B$10:$B$739,">="&$D63,'USDA ESALQ weekly IPPs'!$B$10:$B$739,"<="&$E63) ->  | M63: =AVERAGEIFS('USDA ESALQ weekly IPPs'!$M$10:$M$739,'USDA ESALQ weekly IPPs'!$B$10:$B$739,">="&$D63,'USDA ESALQ weekly IPPs'!$B$10:$B$739,"<="&$E63) ->  | N63: =AVERAGEIFS('USDA ESALQ weekly IPPs'!$N$10:$N$739,'USDA ESALQ weekly IPPs'!$B$10:$B$739,">="&$D63,'USDA ESALQ weekly IPPs'!$B$10:$B$739,"<="&$E63) ->  | O63: =AVERAGEIFS('USDA ESALQ weekly IPPs'!$O$10:$O$739,'USDA ESALQ weekly IPPs'!$B$10:$B$739,">="&$D63,'USDA ESALQ weekly IPPs'!$B$10:$B$739,"<="&$E63) ->  | S63: =NA() -> 
B64: 2026-07-01 | C64: 2026-09-30 | D64: 2025-09-01 | E64: 2026-05-31 | F64: =AVERAGEIFS('USDA ESALQ weekly IPPs'!$E$10:$E$739,'USDA ESALQ weekly IPPs'!$B$10:$B$739,">="&$D64,'USDA ESALQ weekly IPPs'!$B$10:$B$739,"<="&$E64) ->  | G64: =AVERAGEIFS('USDA ESALQ weekly IPPs'!$F$10:$F$739,'USDA ESALQ weekly IPPs'!$B$10:$B$739,">="&$D64,'USDA ESALQ weekly IPPs'!$B$10:$B$739,"<="&$E64) ->  | H64: =AVERAGEIFS('USDA ESALQ weekly IPPs'!$G$10:$G$739,'USDA ESALQ weekly IPPs'!$B$10:$B$739,">="&$D64,'USDA ESALQ weekly IPPs'!$B$10:$B$739,"<="&$E64) ->  | I64: =AVERAGEIFS('USDA ESALQ weekly IPPs'!$H$10:$H$739,'USDA ESALQ weekly IPPs'!$B$10:$B$739,">="&$D64,'USDA ESALQ weekly IPPs'!$B$10:$B$739,"<="&$E64) ->  | J64: =AVERAGEIFS('USDA ESALQ weekly IPPs'!$I$10:$I$739,'USDA ESALQ weekly IPPs'!$B$10:$B$739,">="&$D64,'USDA ESALQ weekly IPPs'!$B$10:$B$739,"<="&$E64) ->  | K64: =AVERAGEIFS('USDA ESALQ weekly IPPs'!$J$10:$J$739,'USDA ESALQ weekly IPPs'!$B$10:$B$739,">="&$D64,'USDA ESALQ weekly IPPs'!$B$10:$B$739,"<="&$E64) ->  | L64: =AVERAGEIFS('USDA ESALQ weekly IPPs'!$L$10:$L$739,'USDA ESALQ weekly IPPs'!$B$10:$B$739,">="&$D64,'USDA ESALQ weekly IPPs'!$B$10:$B$739,"<="&$E64) ->  | M64: =AVERAGEIFS('USDA ESALQ weekly IPPs'!$M$10:$M$739,'USDA ESALQ weekly IPPs'!$B$10:$B$739,">="&$D64,'USDA ESALQ weekly IPPs'!$B$10:$B$739,"<="&$E64) ->  | N64: =AVERAGEIFS('USDA ESALQ weekly IPPs'!$N$10:$N$739,'USDA ESALQ weekly IPPs'!$B$10:$B$739,">="&$D64,'USDA ESALQ weekly IPPs'!$B$10:$B$739,"<="&$E64) ->  | O64: =AVERAGEIFS('USDA ESALQ weekly IPPs'!$O$10:$O$739,'USDA ESALQ weekly IPPs'!$B$10:$B$739,">="&$D64,'USDA ESALQ weekly IPPs'!$B$10:$B$739,"<="&$E64) ->  | S64: =NA() -> 
B65: 2026-10-01 | C65: 2026-12-31 | D65: 2025-12-01 | E65: 2026-08-31 | F65: =AVERAGEIFS('USDA ESALQ weekly IPPs'!$E$10:$E$739,'USDA ESALQ weekly IPPs'!$B$10:$B$739,">="&$D65,'USDA ESALQ weekly IPPs'!$B$10:$B$739,"<="&$E65) ->  | G65: =AVERAGEIFS('USDA ESALQ weekly IPPs'!$F$10:$F$739,'USDA ESALQ weekly IPPs'!$B$10:$B$739,">="&$D65,'USDA ESALQ weekly IPPs'!$B$10:$B$739,"<="&$E65) ->  | H65: =AVERAGEIFS('USDA ESALQ weekly IPPs'!$G$10:$G$739,'USDA ESALQ weekly IPPs'!$B$10:$B$739,">="&$D65,'USDA ESALQ weekly IPPs'!$B$10:$B$739,"<="&$E65) ->  | I65: =AVERAGEIFS('USDA ESALQ weekly IPPs'!$H$10:$H$739,'USDA ESALQ weekly IPPs'!$B$10:$B$739,">="&$D65,'USDA ESALQ weekly IPPs'!$B$10:$B$739,"<="&$E65) ->  | J65: =AVERAGEIFS('USDA ESALQ weekly IPPs'!$I$10:$I$739,'USDA ESALQ weekly IPPs'!$B$10:$B$739,">="&$D65,'USDA ESALQ weekly IPPs'!$B$10:$B$739,"<="&$E65) ->  | K65: =AVERAGEIFS('USDA ESALQ weekly IPPs'!$J$10:$J$739,'USDA ESALQ weekly IPPs'!$B$10:$B$739,">="&$D65,'USDA ESALQ weekly IPPs'!$B$10:$B$739,"<="&$E65) ->  | L65: =AVERAGEIFS('USDA ESALQ weekly IPPs'!$L$10:$L$739,'USDA ESALQ weekly IPPs'!$B$10:$B$739,">="&$D65,'USDA ESALQ weekly IPPs'!$B$10:$B$739,"<="&$E65) ->  | M65: =AVERAGEIFS('USDA ESALQ weekly IPPs'!$M$10:$M$739,'USDA ESALQ weekly IPPs'!$B$10:$B$739,">="&$D65,'USDA ESALQ weekly IPPs'!$B$10:$B$739,"<="&$E65) ->  | N65: =AVERAGEIFS('USDA ESALQ weekly IPPs'!$N$10:$N$739,'USDA ESALQ weekly IPPs'!$B$10:$B$739,">="&$D65,'USDA ESALQ weekly IPPs'!$B$10:$B$739,"<="&$E65) ->  | O65: =AVERAGEIFS('USDA ESALQ weekly IPPs'!$O$10:$O$739,'USDA ESALQ weekly IPPs'!$B$10:$B$739,">="&$D65,'USDA ESALQ weekly IPPs'!$B$10:$B$739,"<="&$E65) ->  | S65: =NA() -> 
B66: 2027-01-01 | C66: 2027-03-31 | D66: 2026-03-01 | E66: 2026-11-30 | F66: =AVERAGEIFS('USDA ESALQ weekly IPPs'!$E$10:$E$739,'USDA ESALQ weekly IPPs'!$B$10:$B$739,">="&$D66,'USDA ESALQ weekly IPPs'!$B$10:$B$739,"<="&$E66) ->  | G66: =AVERAGEIFS('USDA ESALQ weekly IPPs'!$F$10:$F$739,'USDA ESALQ weekly IPPs'!$B$10:$B$739,">="&$D66,'USDA ESALQ weekly IPPs'!$B$10:$B$739,"<="&$E66) ->  | H66: =AVERAGEIFS('USDA ESALQ weekly IPPs'!$G$10:$G$739,'USDA ESALQ weekly IPPs'!$B$10:$B$739,">="&$D66,'USDA ESALQ weekly IPPs'!$B$10:$B$739,"<="&$E66) ->  | I66: =AVERAGEIFS('USDA ESALQ weekly IPPs'!$H$10:$H$739,'USDA ESALQ weekly IPPs'!$B$10:$B$739,">="&$D66,'USDA ESALQ weekly IPPs'!$B$10:$B$739,"<="&$E66) ->  | J66: =AVERAGEIFS('USDA ESALQ weekly IPPs'!$I$10:$I$739,'USDA ESALQ weekly IPPs'!$B$10:$B$739,">="&$D66,'USDA ESALQ weekly IPPs'!$B$10:$B$739,"<="&$E66) ->  | K66: =AVERAGEIFS('USDA ESALQ weekly IPPs'!$J$10:$J$739,'USDA ESALQ weekly IPPs'!$B$10:$B$739,">="&$D66,'USDA ESALQ weekly IPPs'!$B$10:$B$739,"<="&$E66) ->  | L66: =AVERAGEIFS('USDA ESALQ weekly IPPs'!$L$10:$L$739,'USDA ESALQ weekly IPPs'!$B$10:$B$739,">="&$D66,'USDA ESALQ weekly IPPs'!$B$10:$B$739,"<="&$E66) ->  | M66: =AVERAGEIFS('USDA ESALQ weekly IPPs'!$M$10:$M$739,'USDA ESALQ weekly IPPs'!$B$10:$B$739,">="&$D66,'USDA ESALQ weekly IPPs'!$B$10:$B$739,"<="&$E66) ->  | N66: =AVERAGEIFS('USDA ESALQ weekly IPPs'!$N$10:$N$739,'USDA ESALQ weekly IPPs'!$B$10:$B$739,">="&$D66,'USDA ESALQ weekly IPPs'!$B$10:$B$739,"<="&$E66) ->  | O66: =AVERAGEIFS('USDA ESALQ weekly IPPs'!$O$10:$O$739,'USDA ESALQ weekly IPPs'!$B$10:$B$739,">="&$D66,'USDA ESALQ weekly IPPs'!$B$10:$B$739,"<="&$E66) ->  | S66: =NA() -> 
B67: 2027-04-01 | C67: 2027-06-30 | D67: 2026-06-01 | E67: 2027-02-28 | F67: =AVERAGEIFS('USDA ESALQ weekly IPPs'!$E$10:$E$739,'USDA ESALQ weekly IPPs'!$B$10:$B$739,">="&$D67,'USDA ESALQ weekly IPPs'!$B$10:$B$739,"<="&$E67) ->  | G67: =AVERAGEIFS('USDA ESALQ weekly IPPs'!$F$10:$F$739,'USDA ESALQ weekly IPPs'!$B$10:$B$739,">="&$D67,'USDA ESALQ weekly IPPs'!$B$10:$B$739,"<="&$E67) ->  | H67: =AVERAGEIFS('USDA ESALQ weekly IPPs'!$G$10:$G$739,'USDA ESALQ weekly IPPs'!$B$10:$B$739,">="&$D67,'USDA ESALQ weekly IPPs'!$B$10:$B$739,"<="&$E67) ->  | I67: =AVERAGEIFS('USDA ESALQ weekly IPPs'!$H$10:$H$739,'USDA ESALQ weekly IPPs'!$B$10:$B$739,">="&$D67,'USDA ESALQ weekly IPPs'!$B$10:$B$739,"<="&$E67) ->  | J67: =AVERAGEIFS('USDA ESALQ weekly IPPs'!$I$10:$I$739,'USDA ESALQ weekly IPPs'!$B$10:$B$739,">="&$D67,'USDA ESALQ weekly IPPs'!$B$10:$B$739,"<="&$E67) ->  | K67: =AVERAGEIFS('USDA ESALQ weekly IPPs'!$J$10:$J$739,'USDA ESALQ weekly IPPs'!$B$10:$B$739,">="&$D67,'USDA ESALQ weekly IPPs'!$B$10:$B$739,"<="&$E67) ->  | L67: =AVERAGEIFS('USDA ESALQ weekly IPPs'!$L$10:$L$739,'USDA ESALQ weekly IPPs'!$B$10:$B$739,">="&$D67,'USDA ESALQ weekly IPPs'!$B$10:$B$739,"<="&$E67) ->  | M67: =AVERAGEIFS('USDA ESALQ weekly IPPs'!$M$10:$M$739,'USDA ESALQ weekly IPPs'!$B$10:$B$739,">="&$D67,'USDA ESALQ weekly IPPs'!$B$10:$B$739,"<="&$E67) ->  | N67: =AVERAGEIFS('USDA ESALQ weekly IPPs'!$N$10:$N$739,'USDA ESALQ weekly IPPs'!$B$10:$B$739,">="&$D67,'USDA ESALQ weekly IPPs'!$B$10:$B$739,"<="&$E67) ->  | O67: =AVERAGEIFS('USDA ESALQ weekly IPPs'!$O$10:$O$739,'USDA ESALQ weekly IPPs'!$B$10:$B$739,">="&$D67,'USDA ESALQ weekly IPPs'!$B$10:$B$739,"<="&$E67) ->  | S67: =NA() -> 
B68: 2027-07-01 | C68: 2027-09-30 | D68: 2026-09-01 | E68: 2027-05-31 | F68: =AVERAGEIFS('USDA ESALQ weekly IPPs'!$E$10:$E$739,'USDA ESALQ weekly IPPs'!$B$10:$B$739,">="&$D68,'USDA ESALQ weekly IPPs'!$B$10:$B$739,"<="&$E68) ->  | G68: =AVERAGEIFS('USDA ESALQ weekly IPPs'!$F$10:$F$739,'USDA ESALQ weekly IPPs'!$B$10:$B$739,">="&$D68,'USDA ESALQ weekly IPPs'!$B$10:$B$739,"<="&$E68) ->  | H68: =AVERAGEIFS('USDA ESALQ weekly IPPs'!$G$10:$G$739,'USDA ESALQ weekly IPPs'!$B$10:$B$739,">="&$D68,'USDA ESALQ weekly IPPs'!$B$10:$B$739,"<="&$E68) ->  | I68: =AVERAGEIFS('USDA ESALQ weekly IPPs'!$H$10:$H$739,'USDA ESALQ weekly IPPs'!$B$10:$B$739,">="&$D68,'USDA ESALQ weekly IPPs'!$B$10:$B$739,"<="&$E68) ->  | J68: =AVERAGEIFS('USDA ESALQ weekly IPPs'!$I$10:$I$739,'USDA ESALQ weekly IPPs'!$B$10:$B$739,">="&$D68,'USDA ESALQ weekly IPPs'!$B$10:$B$739,"<="&$E68) ->  | K68: =AVERAGEIFS('USDA ESALQ weekly IPPs'!$J$10:$J$739,'USDA ESALQ weekly IPPs'!$B$10:$B$739,">="&$D68,'USDA ESALQ weekly IPPs'!$B$10:$B$739,"<="&$E68) ->  | L68: =AVERAGEIFS('USDA ESALQ weekly IPPs'!$L$10:$L$739,'USDA ESALQ weekly IPPs'!$B$10:$B$739,">="&$D68,'USDA ESALQ weekly IPPs'!$B$10:$B$739,"<="&$E68) ->  | M68: =AVERAGEIFS('USDA ESALQ weekly IPPs'!$M$10:$M$739,'USDA ESALQ weekly IPPs'!$B$10:$B$739,">="&$D68,'USDA ESALQ weekly IPPs'!$B$10:$B$739,"<="&$E68) ->  | N68: =AVERAGEIFS('USDA ESALQ weekly IPPs'!$N$10:$N$739,'USDA ESALQ weekly IPPs'!$B$10:$B$739,">="&$D68,'USDA ESALQ weekly IPPs'!$B$10:$B$739,"<="&$E68) ->  | O68: =AVERAGEIFS('USDA ESALQ weekly IPPs'!$O$10:$O$739,'USDA ESALQ weekly IPPs'!$B$10:$B$739,">="&$D68,'USDA ESALQ weekly IPPs'!$B$10:$B$739,"<="&$E68) ->  | S68: =NA() -> 
B69: 2027-10-01 | C69: 2027-12-31 | D69: 2026-12-01 | E69: 2027-08-31 | F69: =AVERAGEIFS('USDA ESALQ weekly IPPs'!$E$10:$E$739,'USDA ESALQ weekly IPPs'!$B$10:$B$739,">="&$D69,'USDA ESALQ weekly IPPs'!$B$10:$B$739,"<="&$E69) ->  | G69: =AVERAGEIFS('USDA ESALQ weekly IPPs'!$F$10:$F$739,'USDA ESALQ weekly IPPs'!$B$10:$B$739,">="&$D69,'USDA ESALQ weekly IPPs'!$B$10:$B$739,"<="&$E69) ->  | H69: =AVERAGEIFS('USDA ESALQ weekly IPPs'!$G$10:$G$739,'USDA ESALQ weekly IPPs'!$B$10:$B$739,">="&$D69,'USDA ESALQ weekly IPPs'!$B$10:$B$739,"<="&$E69) ->  | I69: =AVERAGEIFS('USDA ESALQ weekly IPPs'!$H$10:$H$739,'USDA ESALQ weekly IPPs'!$B$10:$B$739,">="&$D69,'USDA ESALQ weekly IPPs'!$B$10:$B$739,"<="&$E69) ->  | J69: =AVERAGEIFS('USDA ESALQ weekly IPPs'!$I$10:$I$739,'USDA ESALQ weekly IPPs'!$B$10:$B$739,">="&$D69,'USDA ESALQ weekly IPPs'!$B$10:$B$739,"<="&$E69) ->  | K69: =AVERAGEIFS('USDA ESALQ weekly IPPs'!$J$10:$J$739,'USDA ESALQ weekly IPPs'!$B$10:$B$739,">="&$D69,'USDA ESALQ weekly IPPs'!$B$10:$B$739,"<="&$E69) ->  | L69: =AVERAGEIFS('USDA ESALQ weekly IPPs'!$L$10:$L$739,'USDA ESALQ weekly IPPs'!$B$10:$B$739,">="&$D69,'USDA ESALQ weekly IPPs'!$B$10:$B$739,"<="&$E69) ->  | M69: =AVERAGEIFS('USDA ESALQ weekly IPPs'!$M$10:$M$739,'USDA ESALQ weekly IPPs'!$B$10:$B$739,">="&$D69,'USDA ESALQ weekly IPPs'!$B$10:$B$739,"<="&$E69) ->  | N69: =AVERAGEIFS('USDA ESALQ weekly IPPs'!$N$10:$N$739,'USDA ESALQ weekly IPPs'!$B$10:$B$739,">="&$D69,'USDA ESALQ weekly IPPs'!$B$10:$B$739,"<="&$E69) ->  | O69: =AVERAGEIFS('USDA ESALQ weekly IPPs'!$O$10:$O$739,'USDA ESALQ weekly IPPs'!$B$10:$B$739,">="&$D69,'USDA ESALQ weekly IPPs'!$B$10:$B$739,"<="&$E69) ->  | S69: =NA() -> 
B70: 2028-01-01 | C70: 2028-03-31 | D70: 2027-03-01 | E70: 2027-11-30 | F70: =AVERAGEIFS('USDA ESALQ weekly IPPs'!$E$10:$E$739,'USDA ESALQ weekly IPPs'!$B$10:$B$739,">="&$D70,'USDA ESALQ weekly IPPs'!$B$10:$B$739,"<="&$E70) ->  | G70: =AVERAGEIFS('USDA ESALQ weekly IPPs'!$F$10:$F$739,'USDA ESALQ weekly IPPs'!$B$10:$B$739,">="&$D70,'USDA ESALQ weekly IPPs'!$B$10:$B$739,"<="&$E70) ->  | H70: =AVERAGEIFS('USDA ESALQ weekly IPPs'!$G$10:$G$739,'USDA ESALQ weekly IPPs'!$B$10:$B$739,">="&$D70,'USDA ESALQ weekly IPPs'!$B$10:$B$739,"<="&$E70) ->  | I70: =AVERAGEIFS('USDA ESALQ weekly IPPs'!$H$10:$H$739,'USDA ESALQ weekly IPPs'!$B$10:$B$739,">="&$D70,'USDA ESALQ weekly IPPs'!$B$10:$B$739,"<="&$E70) ->  | J70: =AVERAGEIFS('USDA ESALQ weekly IPPs'!$I$10:$I$739,'USDA ESALQ weekly IPPs'!$B$10:$B$739,">="&$D70,'USDA ESALQ weekly IPPs'!$B$10:$B$739,"<="&$E70) ->  | K70: =AVERAGEIFS('USDA ESALQ weekly IPPs'!$J$10:$J$739,'USDA ESALQ weekly IPPs'!$B$10:$B$739,">="&$D70,'USDA ESALQ weekly IPPs'!$B$10:$B$739,"<="&$E70) ->  | L70: =AVERAGEIFS('USDA ESALQ weekly IPPs'!$L$10:$L$739,'USDA ESALQ weekly IPPs'!$B$10:$B$739,">="&$D70,'USDA ESALQ weekly IPPs'!$B$10:$B$739,"<="&$E70) ->  | M70: =AVERAGEIFS('USDA ESALQ weekly IPPs'!$M$10:$M$739,'USDA ESALQ weekly IPPs'!$B$10:$B$739,">="&$D70,'USDA ESALQ weekly IPPs'!$B$10:$B$739,"<="&$E70) ->  | N70: =AVERAGEIFS('USDA ESALQ weekly IPPs'!$N$10:$N$739,'USDA ESALQ weekly IPPs'!$B$10:$B$739,">="&$D70,'USDA ESALQ weekly IPPs'!$B$10:$B$739,"<="&$E70) ->  | O70: =AVERAGEIFS('USDA ESALQ weekly IPPs'!$O$10:$O$739,'USDA ESALQ weekly IPPs'!$B$10:$B$739,">="&$D70,'USDA ESALQ weekly IPPs'!$B$10:$B$739,"<="&$E70) ->  | S70: =NA() -> 
B71: 2028-04-01 | C71: =DATE(YEAR(B71),MONTH(B71)+3,DAY(B71)-1) -> 2028-06-30 | D71: =DATE(YEAR(B71),MONTH(B71)-10,DAY(B71)) -> 2027-06-01 | E71: =DATE(YEAR(D71),MONTH(D71)+9,DAY(D71)-1) -> 2028-02-29 | F71: =AVERAGEIFS('USDA ESALQ weekly IPPs'!$E$10:$E$739,'USDA ESALQ weekly IPPs'!$B$10:$B$739,">="&$D71,'USDA ESALQ weekly IPPs'!$B$10:$B$739,"<="&$E71) ->  | G71: =AVERAGEIFS('USDA ESALQ weekly IPPs'!$F$10:$F$739,'USDA ESALQ weekly IPPs'!$B$10:$B$739,">="&$D71,'USDA ESALQ weekly IPPs'!$B$10:$B$739,"<="&$E71) ->  | H71: =AVERAGEIFS('USDA ESALQ weekly IPPs'!$G$10:$G$739,'USDA ESALQ weekly IPPs'!$B$10:$B$739,">="&$D71,'USDA ESALQ weekly IPPs'!$B$10:$B$739,"<="&$E71) ->  | I71: =AVERAGEIFS('USDA ESALQ weekly IPPs'!$H$10:$H$739,'USDA ESALQ weekly IPPs'!$B$10:$B$739,">="&$D71,'USDA ESALQ weekly IPPs'!$B$10:$B$739,"<="&$E71) ->  | J71: =AVERAGEIFS('USDA ESALQ weekly IPPs'!$I$10:$I$739,'USDA ESALQ weekly IPPs'!$B$10:$B$739,">="&$D71,'USDA ESALQ weekly IPPs'!$B$10:$B$739,"<="&$E71) ->  | K71: =AVERAGEIFS('USDA ESALQ weekly IPPs'!$J$10:$J$739,'USDA ESALQ weekly IPPs'!$B$10:$B$739,">="&$D71,'USDA ESALQ weekly IPPs'!$B$10:$B$739,"<="&$E71) ->  | L71: =AVERAGEIFS('USDA ESALQ weekly IPPs'!$L$10:$L$739,'USDA ESALQ weekly IPPs'!$B$10:$B$739,">="&$D71,'USDA ESALQ weekly IPPs'!$B$10:$B$739,"<="&$E71) ->  | M71: =AVERAGEIFS('USDA ESALQ weekly IPPs'!$M$10:$M$739,'USDA ESALQ weekly IPPs'!$B$10:$B$739,">="&$D71,'USDA ESALQ weekly IPPs'!$B$10:$B$739,"<="&$E71) ->  | N71: =AVERAGEIFS('USDA ESALQ weekly IPPs'!$N$10:$N$739,'USDA ESALQ weekly IPPs'!$B$10:$B$739,">="&$D71,'USDA ESALQ weekly IPPs'!$B$10:$B$739,"<="&$E71) ->  | O71: =AVERAGEIFS('USDA ESALQ weekly IPPs'!$O$10:$O$739,'USDA ESALQ weekly IPPs'!$B$10:$B$739,">="&$D71,'USDA ESALQ weekly IPPs'!$B$10:$B$739,"<="&$E71) ->  | P71: =100*IFERROR(SUM(F71:O71),NA()) ->  | Q71: =IF(B71<DATE(2017,1,1),P71,NA()) ->  | R71: =IF(C71>=DATE(2017,1,1),P71,NA()) ->  | S71: =NA() -> 
B72: =C71+1 -> 2028-07-01 | C72: 2028-09-30 | D72: 2027-09-01 | E72: 2028-05-31 | F72: =AVERAGEIFS('USDA ESALQ weekly IPPs'!$E$10:$E$739,'USDA ESALQ weekly IPPs'!$B$10:$B$739,">="&$D72,'USDA ESALQ weekly IPPs'!$B$10:$B$739,"<="&$E72) ->  | G72: =AVERAGEIFS('USDA ESALQ weekly IPPs'!$F$10:$F$739,'USDA ESALQ weekly IPPs'!$B$10:$B$739,">="&$D72,'USDA ESALQ weekly IPPs'!$B$10:$B$739,"<="&$E72) ->  | H72: =AVERAGEIFS('USDA ESALQ weekly IPPs'!$G$10:$G$739,'USDA ESALQ weekly IPPs'!$B$10:$B$739,">="&$D72,'USDA ESALQ weekly IPPs'!$B$10:$B$739,"<="&$E72) ->  | I72: =AVERAGEIFS('USDA ESALQ weekly IPPs'!$H$10:$H$739,'USDA ESALQ weekly IPPs'!$B$10:$B$739,">="&$D72,'USDA ESALQ weekly IPPs'!$B$10:$B$739,"<="&$E72) ->  | J72: =AVERAGEIFS('USDA ESALQ weekly IPPs'!$I$10:$I$739,'USDA ESALQ weekly IPPs'!$B$10:$B$739,">="&$D72,'USDA ESALQ weekly IPPs'!$B$10:$B$739,"<="&$E72) ->  | K72: =AVERAGEIFS('USDA ESALQ weekly IPPs'!$J$10:$J$739,'USDA ESALQ weekly IPPs'!$B$10:$B$739,">="&$D72,'USDA ESALQ weekly IPPs'!$B$10:$B$739,"<="&$E72) ->  | L72: =AVERAGEIFS('USDA ESALQ weekly IPPs'!$L$10:$L$739,'USDA ESALQ weekly IPPs'!$B$10:$B$739,">="&$D72,'USDA ESALQ weekly IPPs'!$B$10:$B$739,"<="&$E72) ->  | M72: =AVERAGEIFS('USDA ESALQ weekly IPPs'!$M$10:$M$739,'USDA ESALQ weekly IPPs'!$B$10:$B$739,">="&$D72,'USDA ESALQ weekly IPPs'!$B$10:$B$739,"<="&$E72) ->  | N72: =AVERAGEIFS('USDA ESALQ weekly IPPs'!$N$10:$N$739,'USDA ESALQ weekly IPPs'!$B$10:$B$739,">="&$D72,'USDA ESALQ weekly IPPs'!$B$10:$B$739,"<="&$E72) ->  | O72: =AVERAGEIFS('USDA ESALQ weekly IPPs'!$O$10:$O$739,'USDA ESALQ weekly IPPs'!$B$10:$B$739,">="&$D72,'USDA ESALQ weekly IPPs'!$B$10:$B$739,"<="&$E72) ->  | S72: =NA() -> 
B73: 2028-10-01 | C73: 2028-12-31 | D73: 2027-12-01 | E73: 2028-08-31 | F73: =AVERAGEIFS('USDA ESALQ weekly IPPs'!$E$10:$E$739,'USDA ESALQ weekly IPPs'!$B$10:$B$739,">="&$D73,'USDA ESALQ weekly IPPs'!$B$10:$B$739,"<="&$E73) ->  | G73: =AVERAGEIFS('USDA ESALQ weekly IPPs'!$F$10:$F$739,'USDA ESALQ weekly IPPs'!$B$10:$B$739,">="&$D73,'USDA ESALQ weekly IPPs'!$B$10:$B$739,"<="&$E73) ->  | H73: =AVERAGEIFS('USDA ESALQ weekly IPPs'!$G$10:$G$739,'USDA ESALQ weekly IPPs'!$B$10:$B$739,">="&$D73,'USDA ESALQ weekly IPPs'!$B$10:$B$739,"<="&$E73) ->  | I73: =AVERAGEIFS('USDA ESALQ weekly IPPs'!$H$10:$H$739,'USDA ESALQ weekly IPPs'!$B$10:$B$739,">="&$D73,'USDA ESALQ weekly IPPs'!$B$10:$B$739,"<="&$E73) ->  | J73: =AVERAGEIFS('USDA ESALQ weekly IPPs'!$I$10:$I$739,'USDA ESALQ weekly IPPs'!$B$10:$B$739,">="&$D73,'USDA ESALQ weekly IPPs'!$B$10:$B$739,"<="&$E73) ->  | K73: =AVERAGEIFS('USDA ESALQ weekly IPPs'!$J$10:$J$739,'USDA ESALQ weekly IPPs'!$B$10:$B$739,">="&$D73,'USDA ESALQ weekly IPPs'!$B$10:$B$739,"<="&$E73) ->  | L73: =AVERAGEIFS('USDA ESALQ weekly IPPs'!$L$10:$L$739,'USDA ESALQ weekly IPPs'!$B$10:$B$739,">="&$D73,'USDA ESALQ weekly IPPs'!$B$10:$B$739,"<="&$E73) ->  | M73: =AVERAGEIFS('USDA ESALQ weekly IPPs'!$M$10:$M$739,'USDA ESALQ weekly IPPs'!$B$10:$B$739,">="&$D73,'USDA ESALQ weekly IPPs'!$B$10:$B$739,"<="&$E73) ->  | N73: =AVERAGEIFS('USDA ESALQ weekly IPPs'!$N$10:$N$739,'USDA ESALQ weekly IPPs'!$B$10:$B$739,">="&$D73,'USDA ESALQ weekly IPPs'!$B$10:$B$739,"<="&$E73) ->  | O73: =AVERAGEIFS('USDA ESALQ weekly IPPs'!$O$10:$O$739,'USDA ESALQ weekly IPPs'!$B$10:$B$739,">="&$D73,'USDA ESALQ weekly IPPs'!$B$10:$B$739,"<="&$E73) ->  | S73: =NA() -> 
B74: 2029-01-01 | C74: 2029-03-31 | D74: 2028-03-01 | E74: 2028-11-30 | F74: =AVERAGEIFS('USDA ESALQ weekly IPPs'!$E$10:$E$739,'USDA ESALQ weekly IPPs'!$B$10:$B$739,">="&$D74,'USDA ESALQ weekly IPPs'!$B$10:$B$739,"<="&$E74) ->  | G74: =AVERAGEIFS('USDA ESALQ weekly IPPs'!$F$10:$F$739,'USDA ESALQ weekly IPPs'!$B$10:$B$739,">="&$D74,'USDA ESALQ weekly IPPs'!$B$10:$B$739,"<="&$E74) ->  | H74: =AVERAGEIFS('USDA ESALQ weekly IPPs'!$G$10:$G$739,'USDA ESALQ weekly IPPs'!$B$10:$B$739,">="&$D74,'USDA ESALQ weekly IPPs'!$B$10:$B$739,"<="&$E74) ->  | I74: =AVERAGEIFS('USDA ESALQ weekly IPPs'!$H$10:$H$739,'USDA ESALQ weekly IPPs'!$B$10:$B$739,">="&$D74,'USDA ESALQ weekly IPPs'!$B$10:$B$739,"<="&$E74) ->  | J74: =AVERAGEIFS('USDA ESALQ weekly IPPs'!$I$10:$I$739,'USDA ESALQ weekly IPPs'!$B$10:$B$739,">="&$D74,'USDA ESALQ weekly IPPs'!$B$10:$B$739,"<="&$E74) ->  | K74: =AVERAGEIFS('USDA ESALQ weekly IPPs'!$J$10:$J$739,'USDA ESALQ weekly IPPs'!$B$10:$B$739,">="&$D74,'USDA ESALQ weekly IPPs'!$B$10:$B$739,"<="&$E74) ->  | L74: =AVERAGEIFS('USDA ESALQ weekly IPPs'!$L$10:$L$739,'USDA ESALQ weekly IPPs'!$B$10:$B$739,">="&$D74,'USDA ESALQ weekly IPPs'!$B$10:$B$739,"<="&$E74) ->  | M74: =AVERAGEIFS('USDA ESALQ weekly IPPs'!$M$10:$M$739,'USDA ESALQ weekly IPPs'!$B$10:$B$739,">="&$D74,'USDA ESALQ weekly IPPs'!$B$10:$B$739,"<="&$E74) ->  | N74: =AVERAGEIFS('USDA ESALQ weekly IPPs'!$N$10:$N$739,'USDA ESALQ weekly IPPs'!$B$10:$B$739,">="&$D74,'USDA ESALQ weekly IPPs'!$B$10:$B$739,"<="&$E74) ->  | O74: =AVERAGEIFS('USDA ESALQ weekly IPPs'!$O$10:$O$739,'USDA ESALQ weekly IPPs'!$B$10:$B$739,">="&$D74,'USDA ESALQ weekly IPPs'!$B$10:$B$739,"<="&$E74) ->  | S74: =NA() -> 
B75: 2029-04-01 | C75: 2029-06-30 | D75: 2028-06-01 | E75: 2029-02-28 | F75: =AVERAGEIFS('USDA ESALQ weekly IPPs'!$E$10:$E$739,'USDA ESALQ weekly IPPs'!$B$10:$B$739,">="&$D75,'USDA ESALQ weekly IPPs'!$B$10:$B$739,"<="&$E75) ->  | G75: =AVERAGEIFS('USDA ESALQ weekly IPPs'!$F$10:$F$739,'USDA ESALQ weekly IPPs'!$B$10:$B$739,">="&$D75,'USDA ESALQ weekly IPPs'!$B$10:$B$739,"<="&$E75) ->  | H75: =AVERAGEIFS('USDA ESALQ weekly IPPs'!$G$10:$G$739,'USDA ESALQ weekly IPPs'!$B$10:$B$739,">="&$D75,'USDA ESALQ weekly IPPs'!$B$10:$B$739,"<="&$E75) ->  | I75: =AVERAGEIFS('USDA ESALQ weekly IPPs'!$H$10:$H$739,'USDA ESALQ weekly IPPs'!$B$10:$B$739,">="&$D75,'USDA ESALQ weekly IPPs'!$B$10:$B$739,"<="&$E75) ->  | J75: =AVERAGEIFS('USDA ESALQ weekly IPPs'!$I$10:$I$739,'USDA ESALQ weekly IPPs'!$B$10:$B$739,">="&$D75,'USDA ESALQ weekly IPPs'!$B$10:$B$739,"<="&$E75) ->  | K75: =AVERAGEIFS('USDA ESALQ weekly IPPs'!$J$10:$J$739,'USDA ESALQ weekly IPPs'!$B$10:$B$739,">="&$D75,'USDA ESALQ weekly IPPs'!$B$10:$B$739,"<="&$E75) ->  | L75: =AVERAGEIFS('USDA ESALQ weekly IPPs'!$L$10:$L$739,'USDA ESALQ weekly IPPs'!$B$10:$B$739,">="&$D75,'USDA ESALQ weekly IPPs'!$B$10:$B$739,"<="&$E75) ->  | M75: =AVERAGEIFS('USDA ESALQ weekly IPPs'!$M$10:$M$739,'USDA ESALQ weekly IPPs'!$B$10:$B$739,">="&$D75,'USDA ESALQ weekly IPPs'!$B$10:$B$739,"<="&$E75) ->  | N75: =AVERAGEIFS('USDA ESALQ weekly IPPs'!$N$10:$N$739,'USDA ESALQ weekly IPPs'!$B$10:$B$739,">="&$D75,'USDA ESALQ weekly IPPs'!$B$10:$B$739,"<="&$E75) ->  | O75: =AVERAGEIFS('USDA ESALQ weekly IPPs'!$O$10:$O$739,'USDA ESALQ weekly IPPs'!$B$10:$B$739,">="&$D75,'USDA ESALQ weekly IPPs'!$B$10:$B$739,"<="&$E75) ->  | S75: =NA() -> 
B76: 2029-07-01 | C76: 2029-09-30 | D76: 2028-09-01 | E76: 2029-05-31 | F76: =AVERAGEIFS('USDA ESALQ weekly IPPs'!$E$10:$E$739,'USDA ESALQ weekly IPPs'!$B$10:$B$739,">="&$D76,'USDA ESALQ weekly IPPs'!$B$10:$B$739,"<="&$E76) ->  | G76: =AVERAGEIFS('USDA ESALQ weekly IPPs'!$F$10:$F$739,'USDA ESALQ weekly IPPs'!$B$10:$B$739,">="&$D76,'USDA ESALQ weekly IPPs'!$B$10:$B$739,"<="&$E76) ->  | H76: =AVERAGEIFS('USDA ESALQ weekly IPPs'!$G$10:$G$739,'USDA ESALQ weekly IPPs'!$B$10:$B$739,">="&$D76,'USDA ESALQ weekly IPPs'!$B$10:$B$739,"<="&$E76) ->  | I76: =AVERAGEIFS('USDA ESALQ weekly IPPs'!$H$10:$H$739,'USDA ESALQ weekly IPPs'!$B$10:$B$739,">="&$D76,'USDA ESALQ weekly IPPs'!$B$10:$B$739,"<="&$E76) ->  | J76: =AVERAGEIFS('USDA ESALQ weekly IPPs'!$I$10:$I$739,'USDA ESALQ weekly IPPs'!$B$10:$B$739,">="&$D76,'USDA ESALQ weekly IPPs'!$B$10:$B$739,"<="&$E76) ->  | K76: =AVERAGEIFS('USDA ESALQ weekly IPPs'!$J$10:$J$739,'USDA ESALQ weekly IPPs'!$B$10:$B$739,">="&$D76,'USDA ESALQ weekly IPPs'!$B$10:$B$739,"<="&$E76) ->  | L76: =AVERAGEIFS('USDA ESALQ weekly IPPs'!$L$10:$L$739,'USDA ESALQ weekly IPPs'!$B$10:$B$739,">="&$D76,'USDA ESALQ weekly IPPs'!$B$10:$B$739,"<="&$E76) ->  | M76: =AVERAGEIFS('USDA ESALQ weekly IPPs'!$M$10:$M$739,'USDA ESALQ weekly IPPs'!$B$10:$B$739,">="&$D76,'USDA ESALQ weekly IPPs'!$B$10:$B$739,"<="&$E76) ->  | N76: =AVERAGEIFS('USDA ESALQ weekly IPPs'!$N$10:$N$739,'USDA ESALQ weekly IPPs'!$B$10:$B$739,">="&$D76,'USDA ESALQ weekly IPPs'!$B$10:$B$739,"<="&$E76) ->  | O76: =AVERAGEIFS('USDA ESALQ weekly IPPs'!$O$10:$O$739,'USDA ESALQ weekly IPPs'!$B$10:$B$739,">="&$D76,'USDA ESALQ weekly IPPs'!$B$10:$B$739,"<="&$E76) ->  | S76: =NA() -> 
B77: 2029-10-01 | C77: 2029-12-31 | D77: 2028-12-01 | E77: 2029-08-31 | F77: =AVERAGEIFS('USDA ESALQ weekly IPPs'!$E$10:$E$739,'USDA ESALQ weekly IPPs'!$B$10:$B$739,">="&$D77,'USDA ESALQ weekly IPPs'!$B$10:$B$739,"<="&$E77) ->  | G77: =AVERAGEIFS('USDA ESALQ weekly IPPs'!$F$10:$F$739,'USDA ESALQ weekly IPPs'!$B$10:$B$739,">="&$D77,'USDA ESALQ weekly IPPs'!$B$10:$B$739,"<="&$E77) ->  | H77: =AVERAGEIFS('USDA ESALQ weekly IPPs'!$G$10:$G$739,'USDA ESALQ weekly IPPs'!$B$10:$B$739,">="&$D77,'USDA ESALQ weekly IPPs'!$B$10:$B$739,"<="&$E77) ->  | I77: =AVERAGEIFS('USDA ESALQ weekly IPPs'!$H$10:$H$739,'USDA ESALQ weekly IPPs'!$B$10:$B$739,">="&$D77,'USDA ESALQ weekly IPPs'!$B$10:$B$739,"<="&$E77) ->  | J77: =AVERAGEIFS('USDA ESALQ weekly IPPs'!$I$10:$I$739,'USDA ESALQ weekly IPPs'!$B$10:$B$739,">="&$D77,'USDA ESALQ weekly IPPs'!$B$10:$B$739,"<="&$E77) ->  | K77: =AVERAGEIFS('USDA ESALQ weekly IPPs'!$J$10:$J$739,'USDA ESALQ weekly IPPs'!$B$10:$B$739,">="&$D77,'USDA ESALQ weekly IPPs'!$B$10:$B$739,"<="&$E77) ->  | L77: =AVERAGEIFS('USDA ESALQ weekly IPPs'!$L$10:$L$739,'USDA ESALQ weekly IPPs'!$B$10:$B$739,">="&$D77,'USDA ESALQ weekly IPPs'!$B$10:$B$739,"<="&$E77) ->  | M77: =AVERAGEIFS('USDA ESALQ weekly IPPs'!$M$10:$M$739,'USDA ESALQ weekly IPPs'!$B$10:$B$739,">="&$D77,'USDA ESALQ weekly IPPs'!$B$10:$B$739,"<="&$E77) ->  | N77: =AVERAGEIFS('USDA ESALQ weekly IPPs'!$N$10:$N$739,'USDA ESALQ weekly IPPs'!$B$10:$B$739,">="&$D77,'USDA ESALQ weekly IPPs'!$B$10:$B$739,"<="&$E77) ->  | O77: =AVERAGEIFS('USDA ESALQ weekly IPPs'!$O$10:$O$739,'USDA ESALQ weekly IPPs'!$B$10:$B$739,">="&$D77,'USDA ESALQ weekly IPPs'!$B$10:$B$739,"<="&$E77) ->  | S77: =NA() -> 
B78: 2030-01-01 | C78: 2030-03-31 | D78: 2029-03-01 | E78: 2029-11-30 | F78: =AVERAGEIFS('USDA ESALQ weekly IPPs'!$E$10:$E$739,'USDA ESALQ weekly IPPs'!$B$10:$B$739,">="&$D78,'USDA ESALQ weekly IPPs'!$B$10:$B$739,"<="&$E78) ->  | G78: =AVERAGEIFS('USDA ESALQ weekly IPPs'!$F$10:$F$739,'USDA ESALQ weekly IPPs'!$B$10:$B$739,">="&$D78,'USDA ESALQ weekly IPPs'!$B$10:$B$739,"<="&$E78) ->  | H78: =AVERAGEIFS('USDA ESALQ weekly IPPs'!$G$10:$G$739,'USDA ESALQ weekly IPPs'!$B$10:$B$739,">="&$D78,'USDA ESALQ weekly IPPs'!$B$10:$B$739,"<="&$E78) ->  | I78: =AVERAGEIFS('USDA ESALQ weekly IPPs'!$H$10:$H$739,'USDA ESALQ weekly IPPs'!$B$10:$B$739,">="&$D78,'USDA ESALQ weekly IPPs'!$B$10:$B$739,"<="&$E78) ->  | J78: =AVERAGEIFS('USDA ESALQ weekly IPPs'!$I$10:$I$739,'USDA ESALQ weekly IPPs'!$B$10:$B$739,">="&$D78,'USDA ESALQ weekly IPPs'!$B$10:$B$739,"<="&$E78) ->  | K78: =AVERAGEIFS('USDA ESALQ weekly IPPs'!$J$10:$J$739,'USDA ESALQ weekly IPPs'!$B$10:$B$739,">="&$D78,'USDA ESALQ weekly IPPs'!$B$10:$B$739,"<="&$E78) ->  | L78: =AVERAGEIFS('USDA ESALQ weekly IPPs'!$L$10:$L$739,'USDA ESALQ weekly IPPs'!$B$10:$B$739,">="&$D78,'USDA ESALQ weekly IPPs'!$B$10:$B$739,"<="&$E78) ->  | M78: =AVERAGEIFS('USDA ESALQ weekly IPPs'!$M$10:$M$739,'USDA ESALQ weekly IPPs'!$B$10:$B$739,">="&$D78,'USDA ESALQ weekly IPPs'!$B$10:$B$739,"<="&$E78) ->  | N78: =AVERAGEIFS('USDA ESALQ weekly IPPs'!$N$10:$N$739,'USDA ESALQ weekly IPPs'!$B$10:$B$739,">="&$D78,'USDA ESALQ weekly IPPs'!$B$10:$B$739,"<="&$E78) ->  | O78: =AVERAGEIFS('USDA ESALQ weekly IPPs'!$O$10:$O$739,'USDA ESALQ weekly IPPs'!$B$10:$B$739,">="&$D78,'USDA ESALQ weekly IPPs'!$B$10:$B$739,"<="&$E78) ->  | S78: =NA() -> 
B79: 2030-04-01 | C79: 2030-06-30 | D79: 2029-06-01 | E79: 2030-02-28 | F79: =AVERAGEIFS('USDA ESALQ weekly IPPs'!$E$10:$E$739,'USDA ESALQ weekly IPPs'!$B$10:$B$739,">="&$D79,'USDA ESALQ weekly IPPs'!$B$10:$B$739,"<="&$E79) ->  | G79: =AVERAGEIFS('USDA ESALQ weekly IPPs'!$F$10:$F$739,'USDA ESALQ weekly IPPs'!$B$10:$B$739,">="&$D79,'USDA ESALQ weekly IPPs'!$B$10:$B$739,"<="&$E79) ->  | H79: =AVERAGEIFS('USDA ESALQ weekly IPPs'!$G$10:$G$739,'USDA ESALQ weekly IPPs'!$B$10:$B$739,">="&$D79,'USDA ESALQ weekly IPPs'!$B$10:$B$739,"<="&$E79) ->  | I79: =AVERAGEIFS('USDA ESALQ weekly IPPs'!$H$10:$H$739,'USDA ESALQ weekly IPPs'!$B$10:$B$739,">="&$D79,'USDA ESALQ weekly IPPs'!$B$10:$B$739,"<="&$E79) ->  | J79: =AVERAGEIFS('USDA ESALQ weekly IPPs'!$I$10:$I$739,'USDA ESALQ weekly IPPs'!$B$10:$B$739,">="&$D79,'USDA ESALQ weekly IPPs'!$B$10:$B$739,"<="&$E79) ->  | K79: =AVERAGEIFS('USDA ESALQ weekly IPPs'!$J$10:$J$739,'USDA ESALQ weekly IPPs'!$B$10:$B$739,">="&$D79,'USDA ESALQ weekly IPPs'!$B$10:$B$739,"<="&$E79) ->  | L79: =AVERAGEIFS('USDA ESALQ weekly IPPs'!$L$10:$L$739,'USDA ESALQ weekly IPPs'!$B$10:$B$739,">="&$D79,'USDA ESALQ weekly IPPs'!$B$10:$B$739,"<="&$E79) ->  | M79: =AVERAGEIFS('USDA ESALQ weekly IPPs'!$M$10:$M$739,'USDA ESALQ weekly IPPs'!$B$10:$B$739,">="&$D79,'USDA ESALQ weekly IPPs'!$B$10:$B$739,"<="&$E79) ->  | N79: =AVERAGEIFS('USDA ESALQ weekly IPPs'!$N$10:$N$739,'USDA ESALQ weekly IPPs'!$B$10:$B$739,">="&$D79,'USDA ESALQ weekly IPPs'!$B$10:$B$739,"<="&$E79) ->  | O79: =AVERAGEIFS('USDA ESALQ weekly IPPs'!$O$10:$O$739,'USDA ESALQ weekly IPPs'!$B$10:$B$739,">="&$D79,'USDA ESALQ weekly IPPs'!$B$10:$B$739,"<="&$E79) ->  | S79: =NA() -> 
B80: 2030-07-01 | C80: 2030-09-30 | D80: 2029-09-01 | E80: 2030-05-31 | F80: =AVERAGEIFS('USDA ESALQ weekly IPPs'!$E$10:$E$739,'USDA ESALQ weekly IPPs'!$B$10:$B$739,">="&$D80,'USDA ESALQ weekly IPPs'!$B$10:$B$739,"<="&$E80) ->  | G80: =AVERAGEIFS('USDA ESALQ weekly IPPs'!$F$10:$F$739,'USDA ESALQ weekly IPPs'!$B$10:$B$739,">="&$D80,'USDA ESALQ weekly IPPs'!$B$10:$B$739,"<="&$E80) ->  | H80: =AVERAGEIFS('USDA ESALQ weekly IPPs'!$G$10:$G$739,'USDA ESALQ weekly IPPs'!$B$10:$B$739,">="&$D80,'USDA ESALQ weekly IPPs'!$B$10:$B$739,"<="&$E80) ->  | I80: =AVERAGEIFS('USDA ESALQ weekly IPPs'!$H$10:$H$739,'USDA ESALQ weekly IPPs'!$B$10:$B$739,">="&$D80,'USDA ESALQ weekly IPPs'!$B$10:$B$739,"<="&$E80) ->  | J80: =AVERAGEIFS('USDA ESALQ weekly IPPs'!$I$10:$I$739,'USDA ESALQ weekly IPPs'!$B$10:$B$739,">="&$D80,'USDA ESALQ weekly IPPs'!$B$10:$B$739,"<="&$E80) ->  | K80: =AVERAGEIFS('USDA ESALQ weekly IPPs'!$J$10:$J$739,'USDA ESALQ weekly IPPs'!$B$10:$B$739,">="&$D80,'USDA ESALQ weekly IPPs'!$B$10:$B$739,"<="&$E80) ->  | L80: =AVERAGEIFS('USDA ESALQ weekly IPPs'!$L$10:$L$739,'USDA ESALQ weekly IPPs'!$B$10:$B$739,">="&$D80,'USDA ESALQ weekly IPPs'!$B$10:$B$739,"<="&$E80) ->  | M80: =AVERAGEIFS('USDA ESALQ weekly IPPs'!$M$10:$M$739,'USDA ESALQ weekly IPPs'!$B$10:$B$739,">="&$D80,'USDA ESALQ weekly IPPs'!$B$10:$B$739,"<="&$E80) ->  | N80: =AVERAGEIFS('USDA ESALQ weekly IPPs'!$N$10:$N$739,'USDA ESALQ weekly IPPs'!$B$10:$B$739,">="&$D80,'USDA ESALQ weekly IPPs'!$B$10:$B$739,"<="&$E80) ->  | O80: =AVERAGEIFS('USDA ESALQ weekly IPPs'!$O$10:$O$739,'USDA ESALQ weekly IPPs'!$B$10:$B$739,">="&$D80,'USDA ESALQ weekly IPPs'!$B$10:$B$739,"<="&$E80) ->  | S80: =NA() -> 
B81: 2030-10-01 | C81: 2030-12-31 | D81: 2029-12-01 | E81: 2030-08-31 | F81: =AVERAGEIFS('USDA ESALQ weekly IPPs'!$E$10:$E$739,'USDA ESALQ weekly IPPs'!$B$10:$B$739,">="&$D81,'USDA ESALQ weekly IPPs'!$B$10:$B$739,"<="&$E81) ->  | G81: =AVERAGEIFS('USDA ESALQ weekly IPPs'!$F$10:$F$739,'USDA ESALQ weekly IPPs'!$B$10:$B$739,">="&$D81,'USDA ESALQ weekly IPPs'!$B$10:$B$739,"<="&$E81) ->  | H81: =AVERAGEIFS('USDA ESALQ weekly IPPs'!$G$10:$G$739,'USDA ESALQ weekly IPPs'!$B$10:$B$739,">="&$D81,'USDA ESALQ weekly IPPs'!$B$10:$B$739,"<="&$E81) ->  | I81: =AVERAGEIFS('USDA ESALQ weekly IPPs'!$H$10:$H$739,'USDA ESALQ weekly IPPs'!$B$10:$B$739,">="&$D81,'USDA ESALQ weekly IPPs'!$B$10:$B$739,"<="&$E81) ->  | J81: =AVERAGEIFS('USDA ESALQ weekly IPPs'!$I$10:$I$739,'USDA ESALQ weekly IPPs'!$B$10:$B$739,">="&$D81,'USDA ESALQ weekly IPPs'!$B$10:$B$739,"<="&$E81) ->  | K81: =AVERAGEIFS('USDA ESALQ weekly IPPs'!$J$10:$J$739,'USDA ESALQ weekly IPPs'!$B$10:$B$739,">="&$D81,'USDA ESALQ weekly IPPs'!$B$10:$B$739,"<="&$E81) ->  | L81: =AVERAGEIFS('USDA ESALQ weekly IPPs'!$L$10:$L$739,'USDA ESALQ weekly IPPs'!$B$10:$B$739,">="&$D81,'USDA ESALQ weekly IPPs'!$B$10:$B$739,"<="&$E81) ->  | M81: =AVERAGEIFS('USDA ESALQ weekly IPPs'!$M$10:$M$739,'USDA ESALQ weekly IPPs'!$B$10:$B$739,">="&$D81,'USDA ESALQ weekly IPPs'!$B$10:$B$739,"<="&$E81) ->  | N81: =AVERAGEIFS('USDA ESALQ weekly IPPs'!$N$10:$N$739,'USDA ESALQ weekly IPPs'!$B$10:$B$739,">="&$D81,'USDA ESALQ weekly IPPs'!$B$10:$B$739,"<="&$E81) ->  | O81: =AVERAGEIFS('USDA ESALQ weekly IPPs'!$O$10:$O$739,'USDA ESALQ weekly IPPs'!$B$10:$B$739,">="&$D81,'USDA ESALQ weekly IPPs'!$B$10:$B$739,"<="&$E81) ->  | S81: =NA() -> 
B82: 2031-01-01 | C82: 2031-03-31 | D82: 2030-03-01 | E82: 2030-11-30 | F82: =AVERAGEIFS('USDA ESALQ weekly IPPs'!$E$10:$E$739,'USDA ESALQ weekly IPPs'!$B$10:$B$739,">="&$D82,'USDA ESALQ weekly IPPs'!$B$10:$B$739,"<="&$E82) ->  | G82: =AVERAGEIFS('USDA ESALQ weekly IPPs'!$F$10:$F$739,'USDA ESALQ weekly IPPs'!$B$10:$B$739,">="&$D82,'USDA ESALQ weekly IPPs'!$B$10:$B$739,"<="&$E82) ->  | H82: =AVERAGEIFS('USDA ESALQ weekly IPPs'!$G$10:$G$739,'USDA ESALQ weekly IPPs'!$B$10:$B$739,">="&$D82,'USDA ESALQ weekly IPPs'!$B$10:$B$739,"<="&$E82) ->  | I82: =AVERAGEIFS('USDA ESALQ weekly IPPs'!$H$10:$H$739,'USDA ESALQ weekly IPPs'!$B$10:$B$739,">="&$D82,'USDA ESALQ weekly IPPs'!$B$10:$B$739,"<="&$E82) ->  | J82: =AVERAGEIFS('USDA ESALQ weekly IPPs'!$I$10:$I$739,'USDA ESALQ weekly IPPs'!$B$10:$B$739,">="&$D82,'USDA ESALQ weekly IPPs'!$B$10:$B$739,"<="&$E82) ->  | K82: =AVERAGEIFS('USDA ESALQ weekly IPPs'!$J$10:$J$739,'USDA ESALQ weekly IPPs'!$B$10:$B$739,">="&$D82,'USDA ESALQ weekly IPPs'!$B$10:$B$739,"<="&$E82) ->  | L82: =AVERAGEIFS('USDA ESALQ weekly IPPs'!$L$10:$L$739,'USDA ESALQ weekly IPPs'!$B$10:$B$739,">="&$D82,'USDA ESALQ weekly IPPs'!$B$10:$B$739,"<="&$E82) ->  | M82: =AVERAGEIFS('USDA ESALQ weekly IPPs'!$M$10:$M$739,'USDA ESALQ weekly IPPs'!$B$10:$B$739,">="&$D82,'USDA ESALQ weekly IPPs'!$B$10:$B$739,"<="&$E82) ->  | N82: =AVERAGEIFS('USDA ESALQ weekly IPPs'!$N$10:$N$739,'USDA ESALQ weekly IPPs'!$B$10:$B$739,">="&$D82,'USDA ESALQ weekly IPPs'!$B$10:$B$739,"<="&$E82) ->  | O82: =AVERAGEIFS('USDA ESALQ weekly IPPs'!$O$10:$O$739,'USDA ESALQ weekly IPPs'!$B$10:$B$739,">="&$D82,'USDA ESALQ weekly IPPs'!$B$10:$B$739,"<="&$E82) ->  | S82: =NA() -> 
B83: 2031-04-01 | C83: 2031-06-30 | D83: 2030-06-01 | E83: 2031-02-28 | F83: =AVERAGEIFS('USDA ESALQ weekly IPPs'!$E$10:$E$739,'USDA ESALQ weekly IPPs'!$B$10:$B$739,">="&$D83,'USDA ESALQ weekly IPPs'!$B$10:$B$739,"<="&$E83) ->  | G83: =AVERAGEIFS('USDA ESALQ weekly IPPs'!$F$10:$F$739,'USDA ESALQ weekly IPPs'!$B$10:$B$739,">="&$D83,'USDA ESALQ weekly IPPs'!$B$10:$B$739,"<="&$E83) ->  | H83: =AVERAGEIFS('USDA ESALQ weekly IPPs'!$G$10:$G$739,'USDA ESALQ weekly IPPs'!$B$10:$B$739,">="&$D83,'USDA ESALQ weekly IPPs'!$B$10:$B$739,"<="&$E83) ->  | I83: =AVERAGEIFS('USDA ESALQ weekly IPPs'!$H$10:$H$739,'USDA ESALQ weekly IPPs'!$B$10:$B$739,">="&$D83,'USDA ESALQ weekly IPPs'!$B$10:$B$739,"<="&$E83) ->  | J83: =AVERAGEIFS('USDA ESALQ weekly IPPs'!$I$10:$I$739,'USDA ESALQ weekly IPPs'!$B$10:$B$739,">="&$D83,'USDA ESALQ weekly IPPs'!$B$10:$B$739,"<="&$E83) ->  | K83: =AVERAGEIFS('USDA ESALQ weekly IPPs'!$J$10:$J$739,'USDA ESALQ weekly IPPs'!$B$10:$B$739,">="&$D83,'USDA ESALQ weekly IPPs'!$B$10:$B$739,"<="&$E83) ->  | L83: =AVERAGEIFS('USDA ESALQ weekly IPPs'!$L$10:$L$739,'USDA ESALQ weekly IPPs'!$B$10:$B$739,">="&$D83,'USDA ESALQ weekly IPPs'!$B$10:$B$739,"<="&$E83) ->  | M83: =AVERAGEIFS('USDA ESALQ weekly IPPs'!$M$10:$M$739,'USDA ESALQ weekly IPPs'!$B$10:$B$739,">="&$D83,'USDA ESALQ weekly IPPs'!$B$10:$B$739,"<="&$E83) ->  | N83: =AVERAGEIFS('USDA ESALQ weekly IPPs'!$N$10:$N$739,'USDA ESALQ weekly IPPs'!$B$10:$B$739,">="&$D83,'USDA ESALQ weekly IPPs'!$B$10:$B$739,"<="&$E83) ->  | O83: =AVERAGEIFS('USDA ESALQ weekly IPPs'!$O$10:$O$739,'USDA ESALQ weekly IPPs'!$B$10:$B$739,">="&$D83,'USDA ESALQ weekly IPPs'!$B$10:$B$739,"<="&$E83) ->  | S83: =NA() -> 
B84: 2031-07-01 | C84: 2031-09-30 | D84: 2030-09-01 | E84: 2031-05-31 | F84: =AVERAGEIFS('USDA ESALQ weekly IPPs'!$E$10:$E$739,'USDA ESALQ weekly IPPs'!$B$10:$B$739,">="&$D84,'USDA ESALQ weekly IPPs'!$B$10:$B$739,"<="&$E84) ->  | G84: =AVERAGEIFS('USDA ESALQ weekly IPPs'!$F$10:$F$739,'USDA ESALQ weekly IPPs'!$B$10:$B$739,">="&$D84,'USDA ESALQ weekly IPPs'!$B$10:$B$739,"<="&$E84) ->  | H84: =AVERAGEIFS('USDA ESALQ weekly IPPs'!$G$10:$G$739,'USDA ESALQ weekly IPPs'!$B$10:$B$739,">="&$D84,'USDA ESALQ weekly IPPs'!$B$10:$B$739,"<="&$E84) ->  | I84: =AVERAGEIFS('USDA ESALQ weekly IPPs'!$H$10:$H$739,'USDA ESALQ weekly IPPs'!$B$10:$B$739,">="&$D84,'USDA ESALQ weekly IPPs'!$B$10:$B$739,"<="&$E84) ->  | J84: =AVERAGEIFS('USDA ESALQ weekly IPPs'!$I$10:$I$739,'USDA ESALQ weekly IPPs'!$B$10:$B$739,">="&$D84,'USDA ESALQ weekly IPPs'!$B$10:$B$739,"<="&$E84) ->  | K84: =AVERAGEIFS('USDA ESALQ weekly IPPs'!$J$10:$J$739,'USDA ESALQ weekly IPPs'!$B$10:$B$739,">="&$D84,'USDA ESALQ weekly IPPs'!$B$10:$B$739,"<="&$E84) ->  | L84: =AVERAGEIFS('USDA ESALQ weekly IPPs'!$L$10:$L$739,'USDA ESALQ weekly IPPs'!$B$10:$B$739,">="&$D84,'USDA ESALQ weekly IPPs'!$B$10:$B$739,"<="&$E84) ->  | M84: =AVERAGEIFS('USDA ESALQ weekly IPPs'!$M$10:$M$739,'USDA ESALQ weekly IPPs'!$B$10:$B$739,">="&$D84,'USDA ESALQ weekly IPPs'!$B$10:$B$739,"<="&$E84) ->  | N84: =AVERAGEIFS('USDA ESALQ weekly IPPs'!$N$10:$N$739,'USDA ESALQ weekly IPPs'!$B$10:$B$739,">="&$D84,'USDA ESALQ weekly IPPs'!$B$10:$B$739,"<="&$E84) ->  | O84: =AVERAGEIFS('USDA ESALQ weekly IPPs'!$O$10:$O$739,'USDA ESALQ weekly IPPs'!$B$10:$B$739,">="&$D84,'USDA ESALQ weekly IPPs'!$B$10:$B$739,"<="&$E84) ->  | S84: =NA() -> 
B85: 2031-10-01 | C85: 2031-12-31 | D85: 2030-12-01 | E85: 2031-08-31 | F85: =AVERAGEIFS('USDA ESALQ weekly IPPs'!$E$10:$E$739,'USDA ESALQ weekly IPPs'!$B$10:$B$739,">="&$D85,'USDA ESALQ weekly IPPs'!$B$10:$B$739,"<="&$E85) ->  | G85: =AVERAGEIFS('USDA ESALQ weekly IPPs'!$F$10:$F$739,'USDA ESALQ weekly IPPs'!$B$10:$B$739,">="&$D85,'USDA ESALQ weekly IPPs'!$B$10:$B$739,"<="&$E85) ->  | H85: =AVERAGEIFS('USDA ESALQ weekly IPPs'!$G$10:$G$739,'USDA ESALQ weekly IPPs'!$B$10:$B$739,">="&$D85,'USDA ESALQ weekly IPPs'!$B$10:$B$739,"<="&$E85) ->  | I85: =AVERAGEIFS('USDA ESALQ weekly IPPs'!$H$10:$H$739,'USDA ESALQ weekly IPPs'!$B$10:$B$739,">="&$D85,'USDA ESALQ weekly IPPs'!$B$10:$B$739,"<="&$E85) ->  | J85: =AVERAGEIFS('USDA ESALQ weekly IPPs'!$I$10:$I$739,'USDA ESALQ weekly IPPs'!$B$10:$B$739,">="&$D85,'USDA ESALQ weekly IPPs'!$B$10:$B$739,"<="&$E85) ->  | K85: =AVERAGEIFS('USDA ESALQ weekly IPPs'!$J$10:$J$739,'USDA ESALQ weekly IPPs'!$B$10:$B$739,">="&$D85,'USDA ESALQ weekly IPPs'!$B$10:$B$739,"<="&$E85) ->  | L85: =AVERAGEIFS('USDA ESALQ weekly IPPs'!$L$10:$L$739,'USDA ESALQ weekly IPPs'!$B$10:$B$739,">="&$D85,'USDA ESALQ weekly IPPs'!$B$10:$B$739,"<="&$E85) ->  | M85: =AVERAGEIFS('USDA ESALQ weekly IPPs'!$M$10:$M$739,'USDA ESALQ weekly IPPs'!$B$10:$B$739,">="&$D85,'USDA ESALQ weekly IPPs'!$B$10:$B$739,"<="&$E85) ->  | N85: =AVERAGEIFS('USDA ESALQ weekly IPPs'!$N$10:$N$739,'USDA ESALQ weekly IPPs'!$B$10:$B$739,">="&$D85,'USDA ESALQ weekly IPPs'!$B$10:$B$739,"<="&$E85) ->  | O85: =AVERAGEIFS('USDA ESALQ weekly IPPs'!$O$10:$O$739,'USDA ESALQ weekly IPPs'!$B$10:$B$739,">="&$D85,'USDA ESALQ weekly IPPs'!$B$10:$B$739,"<="&$E85) ->  | S85: =NA() -> 
B86: 2032-01-01 | C86: 2032-03-31 | D86: 2031-03-01 | E86: 2031-11-30 | F86: =AVERAGEIFS('USDA ESALQ weekly IPPs'!$E$10:$E$739,'USDA ESALQ weekly IPPs'!$B$10:$B$739,">="&$D86,'USDA ESALQ weekly IPPs'!$B$10:$B$739,"<="&$E86) ->  | G86: =AVERAGEIFS('USDA ESALQ weekly IPPs'!$F$10:$F$739,'USDA ESALQ weekly IPPs'!$B$10:$B$739,">="&$D86,'USDA ESALQ weekly IPPs'!$B$10:$B$739,"<="&$E86) ->  | H86: =AVERAGEIFS('USDA ESALQ weekly IPPs'!$G$10:$G$739,'USDA ESALQ weekly IPPs'!$B$10:$B$739,">="&$D86,'USDA ESALQ weekly IPPs'!$B$10:$B$739,"<="&$E86) ->  | I86: =AVERAGEIFS('USDA ESALQ weekly IPPs'!$H$10:$H$739,'USDA ESALQ weekly IPPs'!$B$10:$B$739,">="&$D86,'USDA ESALQ weekly IPPs'!$B$10:$B$739,"<="&$E86) ->  | J86: =AVERAGEIFS('USDA ESALQ weekly IPPs'!$I$10:$I$739,'USDA ESALQ weekly IPPs'!$B$10:$B$739,">="&$D86,'USDA ESALQ weekly IPPs'!$B$10:$B$739,"<="&$E86) ->  | K86: =AVERAGEIFS('USDA ESALQ weekly IPPs'!$J$10:$J$739,'USDA ESALQ weekly IPPs'!$B$10:$B$739,">="&$D86,'USDA ESALQ weekly IPPs'!$B$10:$B$739,"<="&$E86) ->  | L86: =AVERAGEIFS('USDA ESALQ weekly IPPs'!$L$10:$L$739,'USDA ESALQ weekly IPPs'!$B$10:$B$739,">="&$D86,'USDA ESALQ weekly IPPs'!$B$10:$B$739,"<="&$E86) ->  | M86: =AVERAGEIFS('USDA ESALQ weekly IPPs'!$M$10:$M$739,'USDA ESALQ weekly IPPs'!$B$10:$B$739,">="&$D86,'USDA ESALQ weekly IPPs'!$B$10:$B$739,"<="&$E86) ->  | N86: =AVERAGEIFS('USDA ESALQ weekly IPPs'!$N$10:$N$739,'USDA ESALQ weekly IPPs'!$B$10:$B$739,">="&$D86,'USDA ESALQ weekly IPPs'!$B$10:$B$739,"<="&$E86) ->  | O86: =AVERAGEIFS('USDA ESALQ weekly IPPs'!$O$10:$O$739,'USDA ESALQ weekly IPPs'!$B$10:$B$739,">="&$D86,'USDA ESALQ weekly IPPs'!$B$10:$B$739,"<="&$E86) ->  | S86: =NA() -> 
B87: 2032-04-01 | C87: 2032-06-30 | D87: 2031-06-01 | E87: 2032-02-29 | F87: =AVERAGEIFS('USDA ESALQ weekly IPPs'!$E$10:$E$739,'USDA ESALQ weekly IPPs'!$B$10:$B$739,">="&$D87,'USDA ESALQ weekly IPPs'!$B$10:$B$739,"<="&$E87) ->  | G87: =AVERAGEIFS('USDA ESALQ weekly IPPs'!$F$10:$F$739,'USDA ESALQ weekly IPPs'!$B$10:$B$739,">="&$D87,'USDA ESALQ weekly IPPs'!$B$10:$B$739,"<="&$E87) ->  | H87: =AVERAGEIFS('USDA ESALQ weekly IPPs'!$G$10:$G$739,'USDA ESALQ weekly IPPs'!$B$10:$B$739,">="&$D87,'USDA ESALQ weekly IPPs'!$B$10:$B$739,"<="&$E87) ->  | I87: =AVERAGEIFS('USDA ESALQ weekly IPPs'!$H$10:$H$739,'USDA ESALQ weekly IPPs'!$B$10:$B$739,">="&$D87,'USDA ESALQ weekly IPPs'!$B$10:$B$739,"<="&$E87) ->  | J87: =AVERAGEIFS('USDA ESALQ weekly IPPs'!$I$10:$I$739,'USDA ESALQ weekly IPPs'!$B$10:$B$739,">="&$D87,'USDA ESALQ weekly IPPs'!$B$10:$B$739,"<="&$E87) ->  | K87: =AVERAGEIFS('USDA ESALQ weekly IPPs'!$J$10:$J$739,'USDA ESALQ weekly IPPs'!$B$10:$B$739,">="&$D87,'USDA ESALQ weekly IPPs'!$B$10:$B$739,"<="&$E87) ->  | L87: =AVERAGEIFS('USDA ESALQ weekly IPPs'!$L$10:$L$739,'USDA ESALQ weekly IPPs'!$B$10:$B$739,">="&$D87,'USDA ESALQ weekly IPPs'!$B$10:$B$739,"<="&$E87) ->  | M87: =AVERAGEIFS('USDA ESALQ weekly IPPs'!$M$10:$M$739,'USDA ESALQ weekly IPPs'!$B$10:$B$739,">="&$D87,'USDA ESALQ weekly IPPs'!$B$10:$B$739,"<="&$E87) ->  | N87: =AVERAGEIFS('USDA ESALQ weekly IPPs'!$N$10:$N$739,'USDA ESALQ weekly IPPs'!$B$10:$B$739,">="&$D87,'USDA ESALQ weekly IPPs'!$B$10:$B$739,"<="&$E87) ->  | O87: =AVERAGEIFS('USDA ESALQ weekly IPPs'!$O$10:$O$739,'USDA ESALQ weekly IPPs'!$B$10:$B$739,">="&$D87,'USDA ESALQ weekly IPPs'!$B$10:$B$739,"<="&$E87) ->  | S87: =NA() -> 
B88: 2032-07-01 | C88: 2032-09-30 | D88: 2031-09-01 | E88: 2032-05-31 | F88: =AVERAGEIFS('USDA ESALQ weekly IPPs'!$E$10:$E$739,'USDA ESALQ weekly IPPs'!$B$10:$B$739,">="&$D88,'USDA ESALQ weekly IPPs'!$B$10:$B$739,"<="&$E88) ->  | G88: =AVERAGEIFS('USDA ESALQ weekly IPPs'!$F$10:$F$739,'USDA ESALQ weekly IPPs'!$B$10:$B$739,">="&$D88,'USDA ESALQ weekly IPPs'!$B$10:$B$739,"<="&$E88) ->  | H88: =AVERAGEIFS('USDA ESALQ weekly IPPs'!$G$10:$G$739,'USDA ESALQ weekly IPPs'!$B$10:$B$739,">="&$D88,'USDA ESALQ weekly IPPs'!$B$10:$B$739,"<="&$E88) ->  | I88: =AVERAGEIFS('USDA ESALQ weekly IPPs'!$H$10:$H$739,'USDA ESALQ weekly IPPs'!$B$10:$B$739,">="&$D88,'USDA ESALQ weekly IPPs'!$B$10:$B$739,"<="&$E88) ->  | J88: =AVERAGEIFS('USDA ESALQ weekly IPPs'!$I$10:$I$739,'USDA ESALQ weekly IPPs'!$B$10:$B$739,">="&$D88,'USDA ESALQ weekly IPPs'!$B$10:$B$739,"<="&$E88) ->  | K88: =AVERAGEIFS('USDA ESALQ weekly IPPs'!$J$10:$J$739,'USDA ESALQ weekly IPPs'!$B$10:$B$739,">="&$D88,'USDA ESALQ weekly IPPs'!$B$10:$B$739,"<="&$E88) ->  | L88: =AVERAGEIFS('USDA ESALQ weekly IPPs'!$L$10:$L$739,'USDA ESALQ weekly IPPs'!$B$10:$B$739,">="&$D88,'USDA ESALQ weekly IPPs'!$B$10:$B$739,"<="&$E88) ->  | M88: =AVERAGEIFS('USDA ESALQ weekly IPPs'!$M$10:$M$739,'USDA ESALQ weekly IPPs'!$B$10:$B$739,">="&$D88,'USDA ESALQ weekly IPPs'!$B$10:$B$739,"<="&$E88) ->  | N88: =AVERAGEIFS('USDA ESALQ weekly IPPs'!$N$10:$N$739,'USDA ESALQ weekly IPPs'!$B$10:$B$739,">="&$D88,'USDA ESALQ weekly IPPs'!$B$10:$B$739,"<="&$E88) ->  | O88: =AVERAGEIFS('USDA ESALQ weekly IPPs'!$O$10:$O$739,'USDA ESALQ weekly IPPs'!$B$10:$B$739,">="&$D88,'USDA ESALQ weekly IPPs'!$B$10:$B$739,"<="&$E88) ->  | S88: =NA() -> 
B89: 2032-10-01 | C89: 2032-12-31 | D89: 2031-12-01 | E89: 2032-08-31 | F89: =AVERAGEIFS('USDA ESALQ weekly IPPs'!$E$10:$E$739,'USDA ESALQ weekly IPPs'!$B$10:$B$739,">="&$D89,'USDA ESALQ weekly IPPs'!$B$10:$B$739,"<="&$E89) ->  | G89: =AVERAGEIFS('USDA ESALQ weekly IPPs'!$F$10:$F$739,'USDA ESALQ weekly IPPs'!$B$10:$B$739,">="&$D89,'USDA ESALQ weekly IPPs'!$B$10:$B$739,"<="&$E89) ->  | H89: =AVERAGEIFS('USDA ESALQ weekly IPPs'!$G$10:$G$739,'USDA ESALQ weekly IPPs'!$B$10:$B$739,">="&$D89,'USDA ESALQ weekly IPPs'!$B$10:$B$739,"<="&$E89) ->  | I89: =AVERAGEIFS('USDA ESALQ weekly IPPs'!$H$10:$H$739,'USDA ESALQ weekly IPPs'!$B$10:$B$739,">="&$D89,'USDA ESALQ weekly IPPs'!$B$10:$B$739,"<="&$E89) ->  | J89: =AVERAGEIFS('USDA ESALQ weekly IPPs'!$I$10:$I$739,'USDA ESALQ weekly IPPs'!$B$10:$B$739,">="&$D89,'USDA ESALQ weekly IPPs'!$B$10:$B$739,"<="&$E89) ->  | K89: =AVERAGEIFS('USDA ESALQ weekly IPPs'!$J$10:$J$739,'USDA ESALQ weekly IPPs'!$B$10:$B$739,">="&$D89,'USDA ESALQ weekly IPPs'!$B$10:$B$739,"<="&$E89) ->  | L89: =AVERAGEIFS('USDA ESALQ weekly IPPs'!$L$10:$L$739,'USDA ESALQ weekly IPPs'!$B$10:$B$739,">="&$D89,'USDA ESALQ weekly IPPs'!$B$10:$B$739,"<="&$E89) ->  | M89: =AVERAGEIFS('USDA ESALQ weekly IPPs'!$M$10:$M$739,'USDA ESALQ weekly IPPs'!$B$10:$B$739,">="&$D89,'USDA ESALQ weekly IPPs'!$B$10:$B$739,"<="&$E89) ->  | N89: =AVERAGEIFS('USDA ESALQ weekly IPPs'!$N$10:$N$739,'USDA ESALQ weekly IPPs'!$B$10:$B$739,">="&$D89,'USDA ESALQ weekly IPPs'!$B$10:$B$739,"<="&$E89) ->  | O89: =AVERAGEIFS('USDA ESALQ weekly IPPs'!$O$10:$O$739,'USDA ESALQ weekly IPPs'!$B$10:$B$739,">="&$D89,'USDA ESALQ weekly IPPs'!$B$10:$B$739,"<="&$E89) ->  | S89: =NA() -> 
B90: =C89+1 -> 2033-01-01 | C90: 2033-03-31 | D90: 2032-03-01 | E90: 2032-11-30 | F90: =AVERAGEIFS('USDA ESALQ weekly IPPs'!$E$10:$E$739,'USDA ESALQ weekly IPPs'!$B$10:$B$739,">="&$D90,'USDA ESALQ weekly IPPs'!$B$10:$B$739,"<="&$E90) ->  | G90: =AVERAGEIFS('USDA ESALQ weekly IPPs'!$F$10:$F$739,'USDA ESALQ weekly IPPs'!$B$10:$B$739,">="&$D90,'USDA ESALQ weekly IPPs'!$B$10:$B$739,"<="&$E90) ->  | H90: =AVERAGEIFS('USDA ESALQ weekly IPPs'!$G$10:$G$739,'USDA ESALQ weekly IPPs'!$B$10:$B$739,">="&$D90,'USDA ESALQ weekly IPPs'!$B$10:$B$739,"<="&$E90) ->  | I90: =AVERAGEIFS('USDA ESALQ weekly IPPs'!$H$10:$H$739,'USDA ESALQ weekly IPPs'!$B$10:$B$739,">="&$D90,'USDA ESALQ weekly IPPs'!$B$10:$B$739,"<="&$E90) ->  | J90: =AVERAGEIFS('USDA ESALQ weekly IPPs'!$I$10:$I$739,'USDA ESALQ weekly IPPs'!$B$10:$B$739,">="&$D90,'USDA ESALQ weekly IPPs'!$B$10:$B$739,"<="&$E90) ->  | K90: =AVERAGEIFS('USDA ESALQ weekly IPPs'!$J$10:$J$739,'USDA ESALQ weekly IPPs'!$B$10:$B$739,">="&$D90,'USDA ESALQ weekly IPPs'!$B$10:$B$739,"<="&$E90) ->  | L90: =AVERAGEIFS('USDA ESALQ weekly IPPs'!$L$10:$L$739,'USDA ESALQ weekly IPPs'!$B$10:$B$739,">="&$D90,'USDA ESALQ weekly IPPs'!$B$10:$B$739,"<="&$E90) ->  | M90: =AVERAGEIFS('USDA ESALQ weekly IPPs'!$M$10:$M$739,'USDA ESALQ weekly IPPs'!$B$10:$B$739,">="&$D90,'USDA ESALQ weekly IPPs'!$B$10:$B$739,"<="&$E90) ->  | N90: =AVERAGEIFS('USDA ESALQ weekly IPPs'!$N$10:$N$739,'USDA ESALQ weekly IPPs'!$B$10:$B$739,">="&$D90,'USDA ESALQ weekly IPPs'!$B$10:$B$739,"<="&$E90) ->  | O90: =AVERAGEIFS('USDA ESALQ weekly IPPs'!$O$10:$O$739,'USDA ESALQ weekly IPPs'!$B$10:$B$739,">="&$D90,'USDA ESALQ weekly IPPs'!$B$10:$B$739,"<="&$E90) ->  | S90: =NA() -> 
B91: 2033-04-01 | C91: 2033-06-30 | D91: 2032-06-01 | E91: 2033-02-28 | F91: =AVERAGEIFS('USDA ESALQ weekly IPPs'!$E$10:$E$739,'USDA ESALQ weekly IPPs'!$B$10:$B$739,">="&$D91,'USDA ESALQ weekly IPPs'!$B$10:$B$739,"<="&$E91) ->  | G91: =AVERAGEIFS('USDA ESALQ weekly IPPs'!$F$10:$F$739,'USDA ESALQ weekly IPPs'!$B$10:$B$739,">="&$D91,'USDA ESALQ weekly IPPs'!$B$10:$B$739,"<="&$E91) ->  | H91: =AVERAGEIFS('USDA ESALQ weekly IPPs'!$G$10:$G$739,'USDA ESALQ weekly IPPs'!$B$10:$B$739,">="&$D91,'USDA ESALQ weekly IPPs'!$B$10:$B$739,"<="&$E91) ->  | I91: =AVERAGEIFS('USDA ESALQ weekly IPPs'!$H$10:$H$739,'USDA ESALQ weekly IPPs'!$B$10:$B$739,">="&$D91,'USDA ESALQ weekly IPPs'!$B$10:$B$739,"<="&$E91) ->  | J91: =AVERAGEIFS('USDA ESALQ weekly IPPs'!$I$10:$I$739,'USDA ESALQ weekly IPPs'!$B$10:$B$739,">="&$D91,'USDA ESALQ weekly IPPs'!$B$10:$B$739,"<="&$E91) ->  | K91: =AVERAGEIFS('USDA ESALQ weekly IPPs'!$J$10:$J$739,'USDA ESALQ weekly IPPs'!$B$10:$B$739,">="&$D91,'USDA ESALQ weekly IPPs'!$B$10:$B$739,"<="&$E91) ->  | L91: =AVERAGEIFS('USDA ESALQ weekly IPPs'!$L$10:$L$739,'USDA ESALQ weekly IPPs'!$B$10:$B$739,">="&$D91,'USDA ESALQ weekly IPPs'!$B$10:$B$739,"<="&$E91) ->  | M91: =AVERAGEIFS('USDA ESALQ weekly IPPs'!$M$10:$M$739,'USDA ESALQ weekly IPPs'!$B$10:$B$739,">="&$D91,'USDA ESALQ weekly IPPs'!$B$10:$B$739,"<="&$E91) ->  | N91: =AVERAGEIFS('USDA ESALQ weekly IPPs'!$N$10:$N$739,'USDA ESALQ weekly IPPs'!$B$10:$B$739,">="&$D91,'USDA ESALQ weekly IPPs'!$B$10:$B$739,"<="&$E91) ->  | O91: =AVERAGEIFS('USDA ESALQ weekly IPPs'!$O$10:$O$739,'USDA ESALQ weekly IPPs'!$B$10:$B$739,">="&$D91,'USDA ESALQ weekly IPPs'!$B$10:$B$739,"<="&$E91) ->  | S91: =NA() -> 
B92: 2033-07-01 | C92: 2033-09-30 | D92: 2032-09-01 | E92: 2033-05-31 | F92: =AVERAGEIFS('USDA ESALQ weekly IPPs'!$E$10:$E$739,'USDA ESALQ weekly IPPs'!$B$10:$B$739,">="&$D92,'USDA ESALQ weekly IPPs'!$B$10:$B$739,"<="&$E92) ->  | G92: =AVERAGEIFS('USDA ESALQ weekly IPPs'!$F$10:$F$739,'USDA ESALQ weekly IPPs'!$B$10:$B$739,">="&$D92,'USDA ESALQ weekly IPPs'!$B$10:$B$739,"<="&$E92) ->  | H92: =AVERAGEIFS('USDA ESALQ weekly IPPs'!$G$10:$G$739,'USDA ESALQ weekly IPPs'!$B$10:$B$739,">="&$D92,'USDA ESALQ weekly IPPs'!$B$10:$B$739,"<="&$E92) ->  | I92: =AVERAGEIFS('USDA ESALQ weekly IPPs'!$H$10:$H$739,'USDA ESALQ weekly IPPs'!$B$10:$B$739,">="&$D92,'USDA ESALQ weekly IPPs'!$B$10:$B$739,"<="&$E92) ->  | J92: =AVERAGEIFS('USDA ESALQ weekly IPPs'!$I$10:$I$739,'USDA ESALQ weekly IPPs'!$B$10:$B$739,">="&$D92,'USDA ESALQ weekly IPPs'!$B$10:$B$739,"<="&$E92) ->  | K92: =AVERAGEIFS('USDA ESALQ weekly IPPs'!$J$10:$J$739,'USDA ESALQ weekly IPPs'!$B$10:$B$739,">="&$D92,'USDA ESALQ weekly IPPs'!$B$10:$B$739,"<="&$E92) ->  | L92: =AVERAGEIFS('USDA ESALQ weekly IPPs'!$L$10:$L$739,'USDA ESALQ weekly IPPs'!$B$10:$B$739,">="&$D92,'USDA ESALQ weekly IPPs'!$B$10:$B$739,"<="&$E92) ->  | M92: =AVERAGEIFS('USDA ESALQ weekly IPPs'!$M$10:$M$739,'USDA ESALQ weekly IPPs'!$B$10:$B$739,">="&$D92,'USDA ESALQ weekly IPPs'!$B$10:$B$739,"<="&$E92) ->  | N92: =AVERAGEIFS('USDA ESALQ weekly IPPs'!$N$10:$N$739,'USDA ESALQ weekly IPPs'!$B$10:$B$739,">="&$D92,'USDA ESALQ weekly IPPs'!$B$10:$B$739,"<="&$E92) ->  | O92: =AVERAGEIFS('USDA ESALQ weekly IPPs'!$O$10:$O$739,'USDA ESALQ weekly IPPs'!$B$10:$B$739,">="&$D92,'USDA ESALQ weekly IPPs'!$B$10:$B$739,"<="&$E92) ->  | S92: =NA() -> 
B93: 2033-10-01 | C93: 2033-12-31 | D93: 2032-12-01 | E93: 2033-08-31 | F93: =AVERAGEIFS('USDA ESALQ weekly IPPs'!$E$10:$E$739,'USDA ESALQ weekly IPPs'!$B$10:$B$739,">="&$D93,'USDA ESALQ weekly IPPs'!$B$10:$B$739,"<="&$E93) ->  | G93: =AVERAGEIFS('USDA ESALQ weekly IPPs'!$F$10:$F$739,'USDA ESALQ weekly IPPs'!$B$10:$B$739,">="&$D93,'USDA ESALQ weekly IPPs'!$B$10:$B$739,"<="&$E93) ->  | H93: =AVERAGEIFS('USDA ESALQ weekly IPPs'!$G$10:$G$739,'USDA ESALQ weekly IPPs'!$B$10:$B$739,">="&$D93,'USDA ESALQ weekly IPPs'!$B$10:$B$739,"<="&$E93) ->  | I93: =AVERAGEIFS('USDA ESALQ weekly IPPs'!$H$10:$H$739,'USDA ESALQ weekly IPPs'!$B$10:$B$739,">="&$D93,'USDA ESALQ weekly IPPs'!$B$10:$B$739,"<="&$E93) ->  | J93: =AVERAGEIFS('USDA ESALQ weekly IPPs'!$I$10:$I$739,'USDA ESALQ weekly IPPs'!$B$10:$B$739,">="&$D93,'USDA ESALQ weekly IPPs'!$B$10:$B$739,"<="&$E93) ->  | K93: =AVERAGEIFS('USDA ESALQ weekly IPPs'!$J$10:$J$739,'USDA ESALQ weekly IPPs'!$B$10:$B$739,">="&$D93,'USDA ESALQ weekly IPPs'!$B$10:$B$739,"<="&$E93) ->  | L93: =AVERAGEIFS('USDA ESALQ weekly IPPs'!$L$10:$L$739,'USDA ESALQ weekly IPPs'!$B$10:$B$739,">="&$D93,'USDA ESALQ weekly IPPs'!$B$10:$B$739,"<="&$E93) ->  | M93: =AVERAGEIFS('USDA ESALQ weekly IPPs'!$M$10:$M$739,'USDA ESALQ weekly IPPs'!$B$10:$B$739,">="&$D93,'USDA ESALQ weekly IPPs'!$B$10:$B$739,"<="&$E93) ->  | N93: =AVERAGEIFS('USDA ESALQ weekly IPPs'!$N$10:$N$739,'USDA ESALQ weekly IPPs'!$B$10:$B$739,">="&$D93,'USDA ESALQ weekly IPPs'!$B$10:$B$739,"<="&$E93) ->  | O93: =AVERAGEIFS('USDA ESALQ weekly IPPs'!$O$10:$O$739,'USDA ESALQ weekly IPPs'!$B$10:$B$739,">="&$D93,'USDA ESALQ weekly IPPs'!$B$10:$B$739,"<="&$E93) ->  | S93: =NA() -> 
B94: 2034-01-01 | C94: 2034-03-31 | D94: 2033-03-01 | E94: 2033-11-30 | F94: =AVERAGEIFS('USDA ESALQ weekly IPPs'!$E$10:$E$739,'USDA ESALQ weekly IPPs'!$B$10:$B$739,">="&$D94,'USDA ESALQ weekly IPPs'!$B$10:$B$739,"<="&$E94) ->  | G94: =AVERAGEIFS('USDA ESALQ weekly IPPs'!$F$10:$F$739,'USDA ESALQ weekly IPPs'!$B$10:$B$739,">="&$D94,'USDA ESALQ weekly IPPs'!$B$10:$B$739,"<="&$E94) ->  | H94: =AVERAGEIFS('USDA ESALQ weekly IPPs'!$G$10:$G$739,'USDA ESALQ weekly IPPs'!$B$10:$B$739,">="&$D94,'USDA ESALQ weekly IPPs'!$B$10:$B$739,"<="&$E94) ->  | I94: =AVERAGEIFS('USDA ESALQ weekly IPPs'!$H$10:$H$739,'USDA ESALQ weekly IPPs'!$B$10:$B$739,">="&$D94,'USDA ESALQ weekly IPPs'!$B$10:$B$739,"<="&$E94) ->  | J94: =AVERAGEIFS('USDA ESALQ weekly IPPs'!$I$10:$I$739,'USDA ESALQ weekly IPPs'!$B$10:$B$739,">="&$D94,'USDA ESALQ weekly IPPs'!$B$10:$B$739,"<="&$E94) ->  | K94: =AVERAGEIFS('USDA ESALQ weekly IPPs'!$J$10:$J$739,'USDA ESALQ weekly IPPs'!$B$10:$B$739,">="&$D94,'USDA ESALQ weekly IPPs'!$B$10:$B$739,"<="&$E94) ->  | L94: =AVERAGEIFS('USDA ESALQ weekly IPPs'!$L$10:$L$739,'USDA ESALQ weekly IPPs'!$B$10:$B$739,">="&$D94,'USDA ESALQ weekly IPPs'!$B$10:$B$739,"<="&$E94) ->  | M94: =AVERAGEIFS('USDA ESALQ weekly IPPs'!$M$10:$M$739,'USDA ESALQ weekly IPPs'!$B$10:$B$739,">="&$D94,'USDA ESALQ weekly IPPs'!$B$10:$B$739,"<="&$E94) ->  | N94: =AVERAGEIFS('USDA ESALQ weekly IPPs'!$N$10:$N$739,'USDA ESALQ weekly IPPs'!$B$10:$B$739,">="&$D94,'USDA ESALQ weekly IPPs'!$B$10:$B$739,"<="&$E94) ->  | O94: =AVERAGEIFS('USDA ESALQ weekly IPPs'!$O$10:$O$739,'USDA ESALQ weekly IPPs'!$B$10:$B$739,">="&$D94,'USDA ESALQ weekly IPPs'!$B$10:$B$739,"<="&$E94) ->  | S94: =NA() -> 
B95: 2034-04-01 | C95: 2034-06-30 | D95: 2033-06-01 | E95: 2034-02-28 | F95: =AVERAGEIFS('USDA ESALQ weekly IPPs'!$E$10:$E$739,'USDA ESALQ weekly IPPs'!$B$10:$B$739,">="&$D95,'USDA ESALQ weekly IPPs'!$B$10:$B$739,"<="&$E95) ->  | G95: =AVERAGEIFS('USDA ESALQ weekly IPPs'!$F$10:$F$739,'USDA ESALQ weekly IPPs'!$B$10:$B$739,">="&$D95,'USDA ESALQ weekly IPPs'!$B$10:$B$739,"<="&$E95) ->  | H95: =AVERAGEIFS('USDA ESALQ weekly IPPs'!$G$10:$G$739,'USDA ESALQ weekly IPPs'!$B$10:$B$739,">="&$D95,'USDA ESALQ weekly IPPs'!$B$10:$B$739,"<="&$E95) ->  | I95: =AVERAGEIFS('USDA ESALQ weekly IPPs'!$H$10:$H$739,'USDA ESALQ weekly IPPs'!$B$10:$B$739,">="&$D95,'USDA ESALQ weekly IPPs'!$B$10:$B$739,"<="&$E95) ->  | J95: =AVERAGEIFS('USDA ESALQ weekly IPPs'!$I$10:$I$739,'USDA ESALQ weekly IPPs'!$B$10:$B$739,">="&$D95,'USDA ESALQ weekly IPPs'!$B$10:$B$739,"<="&$E95) ->  | K95: =AVERAGEIFS('USDA ESALQ weekly IPPs'!$J$10:$J$739,'USDA ESALQ weekly IPPs'!$B$10:$B$739,">="&$D95,'USDA ESALQ weekly IPPs'!$B$10:$B$739,"<="&$E95) ->  | L95: =AVERAGEIFS('USDA ESALQ weekly IPPs'!$L$10:$L$739,'USDA ESALQ weekly IPPs'!$B$10:$B$739,">="&$D95,'USDA ESALQ weekly IPPs'!$B$10:$B$739,"<="&$E95) ->  | M95: =AVERAGEIFS('USDA ESALQ weekly IPPs'!$M$10:$M$739,'USDA ESALQ weekly IPPs'!$B$10:$B$739,">="&$D95,'USDA ESALQ weekly IPPs'!$B$10:$B$739,"<="&$E95) ->  | N95: =AVERAGEIFS('USDA ESALQ weekly IPPs'!$N$10:$N$739,'USDA ESALQ weekly IPPs'!$B$10:$B$739,">="&$D95,'USDA ESALQ weekly IPPs'!$B$10:$B$739,"<="&$E95) ->  | O95: =AVERAGEIFS('USDA ESALQ weekly IPPs'!$O$10:$O$739,'USDA ESALQ weekly IPPs'!$B$10:$B$739,">="&$D95,'USDA ESALQ weekly IPPs'!$B$10:$B$739,"<="&$E95) ->  | S95: =NA() -> 
B96: 2034-07-01 | C96: 2034-09-30 | D96: 2033-09-01 | E96: 2034-05-31 | F96: =AVERAGEIFS('USDA ESALQ weekly IPPs'!$E$10:$E$739,'USDA ESALQ weekly IPPs'!$B$10:$B$739,">="&$D96,'USDA ESALQ weekly IPPs'!$B$10:$B$739,"<="&$E96) ->  | G96: =AVERAGEIFS('USDA ESALQ weekly IPPs'!$F$10:$F$739,'USDA ESALQ weekly IPPs'!$B$10:$B$739,">="&$D96,'USDA ESALQ weekly IPPs'!$B$10:$B$739,"<="&$E96) ->  | H96: =AVERAGEIFS('USDA ESALQ weekly IPPs'!$G$10:$G$739,'USDA ESALQ weekly IPPs'!$B$10:$B$739,">="&$D96,'USDA ESALQ weekly IPPs'!$B$10:$B$739,"<="&$E96) ->  | I96: =AVERAGEIFS('USDA ESALQ weekly IPPs'!$H$10:$H$739,'USDA ESALQ weekly IPPs'!$B$10:$B$739,">="&$D96,'USDA ESALQ weekly IPPs'!$B$10:$B$739,"<="&$E96) ->  | J96: =AVERAGEIFS('USDA ESALQ weekly IPPs'!$I$10:$I$739,'USDA ESALQ weekly IPPs'!$B$10:$B$739,">="&$D96,'USDA ESALQ weekly IPPs'!$B$10:$B$739,"<="&$E96) ->  | K96: =AVERAGEIFS('USDA ESALQ weekly IPPs'!$J$10:$J$739,'USDA ESALQ weekly IPPs'!$B$10:$B$739,">="&$D96,'USDA ESALQ weekly IPPs'!$B$10:$B$739,"<="&$E96) ->  | L96: =AVERAGEIFS('USDA ESALQ weekly IPPs'!$L$10:$L$739,'USDA ESALQ weekly IPPs'!$B$10:$B$739,">="&$D96,'USDA ESALQ weekly IPPs'!$B$10:$B$739,"<="&$E96) ->  | M96: =AVERAGEIFS('USDA ESALQ weekly IPPs'!$M$10:$M$739,'USDA ESALQ weekly IPPs'!$B$10:$B$739,">="&$D96,'USDA ESALQ weekly IPPs'!$B$10:$B$739,"<="&$E96) ->  | N96: =AVERAGEIFS('USDA ESALQ weekly IPPs'!$N$10:$N$739,'USDA ESALQ weekly IPPs'!$B$10:$B$739,">="&$D96,'USDA ESALQ weekly IPPs'!$B$10:$B$739,"<="&$E96) ->  | O96: =AVERAGEIFS('USDA ESALQ weekly IPPs'!$O$10:$O$739,'USDA ESALQ weekly IPPs'!$B$10:$B$739,">="&$D96,'USDA ESALQ weekly IPPs'!$B$10:$B$739,"<="&$E96) ->  | S96: =NA() -> 
B97: 2034-10-01 | C97: 2034-12-31 | D97: 2033-12-01 | E97: 2034-08-31 | F97: =AVERAGEIFS('USDA ESALQ weekly IPPs'!$E$10:$E$739,'USDA ESALQ weekly IPPs'!$B$10:$B$739,">="&$D97,'USDA ESALQ weekly IPPs'!$B$10:$B$739,"<="&$E97) ->  | G97: =AVERAGEIFS('USDA ESALQ weekly IPPs'!$F$10:$F$739,'USDA ESALQ weekly IPPs'!$B$10:$B$739,">="&$D97,'USDA ESALQ weekly IPPs'!$B$10:$B$739,"<="&$E97) ->  | H97: =AVERAGEIFS('USDA ESALQ weekly IPPs'!$G$10:$G$739,'USDA ESALQ weekly IPPs'!$B$10:$B$739,">="&$D97,'USDA ESALQ weekly IPPs'!$B$10:$B$739,"<="&$E97) ->  | I97: =AVERAGEIFS('USDA ESALQ weekly IPPs'!$H$10:$H$739,'USDA ESALQ weekly IPPs'!$B$10:$B$739,">="&$D97,'USDA ESALQ weekly IPPs'!$B$10:$B$739,"<="&$E97) ->  | J97: =AVERAGEIFS('USDA ESALQ weekly IPPs'!$I$10:$I$739,'USDA ESALQ weekly IPPs'!$B$10:$B$739,">="&$D97,'USDA ESALQ weekly IPPs'!$B$10:$B$739,"<="&$E97) ->  | K97: =AVERAGEIFS('USDA ESALQ weekly IPPs'!$J$10:$J$739,'USDA ESALQ weekly IPPs'!$B$10:$B$739,">="&$D97,'USDA ESALQ weekly IPPs'!$B$10:$B$739,"<="&$E97) ->  | L97: =AVERAGEIFS('USDA ESALQ weekly IPPs'!$L$10:$L$739,'USDA ESALQ weekly IPPs'!$B$10:$B$739,">="&$D97,'USDA ESALQ weekly IPPs'!$B$10:$B$739,"<="&$E97) ->  | M97: =AVERAGEIFS('USDA ESALQ weekly IPPs'!$M$10:$M$739,'USDA ESALQ weekly IPPs'!$B$10:$B$739,">="&$D97,'USDA ESALQ weekly IPPs'!$B$10:$B$739,"<="&$E97) ->  | N97: =AVERAGEIFS('USDA ESALQ weekly IPPs'!$N$10:$N$739,'USDA ESALQ weekly IPPs'!$B$10:$B$739,">="&$D97,'USDA ESALQ weekly IPPs'!$B$10:$B$739,"<="&$E97) ->  | O97: =AVERAGEIFS('USDA ESALQ weekly IPPs'!$O$10:$O$739,'USDA ESALQ weekly IPPs'!$B$10:$B$739,">="&$D97,'USDA ESALQ weekly IPPs'!$B$10:$B$739,"<="&$E97) ->  | S97: =NA() -> 
B98: 2035-01-01 | C98: 2035-03-31 | D98: 2034-03-01 | E98: 2034-11-30 | F98: =AVERAGEIFS('USDA ESALQ weekly IPPs'!$E$10:$E$739,'USDA ESALQ weekly IPPs'!$B$10:$B$739,">="&$D98,'USDA ESALQ weekly IPPs'!$B$10:$B$739,"<="&$E98) ->  | G98: =AVERAGEIFS('USDA ESALQ weekly IPPs'!$F$10:$F$739,'USDA ESALQ weekly IPPs'!$B$10:$B$739,">="&$D98,'USDA ESALQ weekly IPPs'!$B$10:$B$739,"<="&$E98) ->  | H98: =AVERAGEIFS('USDA ESALQ weekly IPPs'!$G$10:$G$739,'USDA ESALQ weekly IPPs'!$B$10:$B$739,">="&$D98,'USDA ESALQ weekly IPPs'!$B$10:$B$739,"<="&$E98) ->  | I98: =AVERAGEIFS('USDA ESALQ weekly IPPs'!$H$10:$H$739,'USDA ESALQ weekly IPPs'!$B$10:$B$739,">="&$D98,'USDA ESALQ weekly IPPs'!$B$10:$B$739,"<="&$E98) ->  | J98: =AVERAGEIFS('USDA ESALQ weekly IPPs'!$I$10:$I$739,'USDA ESALQ weekly IPPs'!$B$10:$B$739,">="&$D98,'USDA ESALQ weekly IPPs'!$B$10:$B$739,"<="&$E98) ->  | K98: =AVERAGEIFS('USDA ESALQ weekly IPPs'!$J$10:$J$739,'USDA ESALQ weekly IPPs'!$B$10:$B$739,">="&$D98,'USDA ESALQ weekly IPPs'!$B$10:$B$739,"<="&$E98) ->  | L98: =AVERAGEIFS('USDA ESALQ weekly IPPs'!$L$10:$L$739,'USDA ESALQ weekly IPPs'!$B$10:$B$739,">="&$D98,'USDA ESALQ weekly IPPs'!$B$10:$B$739,"<="&$E98) ->  | M98: =AVERAGEIFS('USDA ESALQ weekly IPPs'!$M$10:$M$739,'USDA ESALQ weekly IPPs'!$B$10:$B$739,">="&$D98,'USDA ESALQ weekly IPPs'!$B$10:$B$739,"<="&$E98) ->  | N98: =AVERAGEIFS('USDA ESALQ weekly IPPs'!$N$10:$N$739,'USDA ESALQ weekly IPPs'!$B$10:$B$739,">="&$D98,'USDA ESALQ weekly IPPs'!$B$10:$B$739,"<="&$E98) ->  | O98: =AVERAGEIFS('USDA ESALQ weekly IPPs'!$O$10:$O$739,'USDA ESALQ weekly IPPs'!$B$10:$B$739,">="&$D98,'USDA ESALQ weekly IPPs'!$B$10:$B$739,"<="&$E98) ->  | S98: =NA() -> 
B99: 2035-04-01 | C99: 2035-06-30 | D99: 2034-06-01 | E99: 2035-02-28 | F99: =AVERAGEIFS('USDA ESALQ weekly IPPs'!$E$10:$E$739,'USDA ESALQ weekly IPPs'!$B$10:$B$739,">="&$D99,'USDA ESALQ weekly IPPs'!$B$10:$B$739,"<="&$E99) ->  | G99: =AVERAGEIFS('USDA ESALQ weekly IPPs'!$F$10:$F$739,'USDA ESALQ weekly IPPs'!$B$10:$B$739,">="&$D99,'USDA ESALQ weekly IPPs'!$B$10:$B$739,"<="&$E99) ->  | H99: =AVERAGEIFS('USDA ESALQ weekly IPPs'!$G$10:$G$739,'USDA ESALQ weekly IPPs'!$B$10:$B$739,">="&$D99,'USDA ESALQ weekly IPPs'!$B$10:$B$739,"<="&$E99) ->  | I99: =AVERAGEIFS('USDA ESALQ weekly IPPs'!$H$10:$H$739,'USDA ESALQ weekly IPPs'!$B$10:$B$739,">="&$D99,'USDA ESALQ weekly IPPs'!$B$10:$B$739,"<="&$E99) ->  | J99: =AVERAGEIFS('USDA ESALQ weekly IPPs'!$I$10:$I$739,'USDA ESALQ weekly IPPs'!$B$10:$B$739,">="&$D99,'USDA ESALQ weekly IPPs'!$B$10:$B$739,"<="&$E99) ->  | K99: =AVERAGEIFS('USDA ESALQ weekly IPPs'!$J$10:$J$739,'USDA ESALQ weekly IPPs'!$B$10:$B$739,">="&$D99,'USDA ESALQ weekly IPPs'!$B$10:$B$739,"<="&$E99) ->  | L99: =AVERAGEIFS('USDA ESALQ weekly IPPs'!$L$10:$L$739,'USDA ESALQ weekly IPPs'!$B$10:$B$739,">="&$D99,'USDA ESALQ weekly IPPs'!$B$10:$B$739,"<="&$E99) ->  | M99: =AVERAGEIFS('USDA ESALQ weekly IPPs'!$M$10:$M$739,'USDA ESALQ weekly IPPs'!$B$10:$B$739,">="&$D99,'USDA ESALQ weekly IPPs'!$B$10:$B$739,"<="&$E99) ->  | N99: =AVERAGEIFS('USDA ESALQ weekly IPPs'!$N$10:$N$739,'USDA ESALQ weekly IPPs'!$B$10:$B$739,">="&$D99,'USDA ESALQ weekly IPPs'!$B$10:$B$739,"<="&$E99) ->  | O99: =AVERAGEIFS('USDA ESALQ weekly IPPs'!$O$10:$O$739,'USDA ESALQ weekly IPPs'!$B$10:$B$739,">="&$D99,'USDA ESALQ weekly IPPs'!$B$10:$B$739,"<="&$E99) ->  | S99: =NA() -> 
B100: 2035-07-01 | C100: 2035-09-30 | D100: 2034-09-01 | E100: 2035-05-31 | F100: =AVERAGEIFS('USDA ESALQ weekly IPPs'!$E$10:$E$739,'USDA ESALQ weekly IPPs'!$B$10:$B$739,">="&$D100,'USDA ESALQ weekly IPPs'!$B$10:$B$739,"<="&$E100) ->  | G100: =AVERAGEIFS('USDA ESALQ weekly IPPs'!$F$10:$F$739,'USDA ESALQ weekly IPPs'!$B$10:$B$739,">="&$D100,'USDA ESALQ weekly IPPs'!$B$10:$B$739,"<="&$E100) ->  | H100: =AVERAGEIFS('USDA ESALQ weekly IPPs'!$G$10:$G$739,'USDA ESALQ weekly IPPs'!$B$10:$B$739,">="&$D100,'USDA ESALQ weekly IPPs'!$B$10:$B$739,"<="&$E100) ->  | I100: =AVERAGEIFS('USDA ESALQ weekly IPPs'!$H$10:$H$739,'USDA ESALQ weekly IPPs'!$B$10:$B$739,">="&$D100,'USDA ESALQ weekly IPPs'!$B$10:$B$739,"<="&$E100) ->  | J100: =AVERAGEIFS('USDA ESALQ weekly IPPs'!$I$10:$I$739,'USDA ESALQ weekly IPPs'!$B$10:$B$739,">="&$D100,'USDA ESALQ weekly IPPs'!$B$10:$B$739,"<="&$E100) ->  | K100: =AVERAGEIFS('USDA ESALQ weekly IPPs'!$J$10:$J$739,'USDA ESALQ weekly IPPs'!$B$10:$B$739,">="&$D100,'USDA ESALQ weekly IPPs'!$B$10:$B$739,"<="&$E100) ->  | L100: =AVERAGEIFS('USDA ESALQ weekly IPPs'!$L$10:$L$739,'USDA ESALQ weekly IPPs'!$B$10:$B$739,">="&$D100,'USDA ESALQ weekly IPPs'!$B$10:$B$739,"<="&$E100) ->  | M100: =AVERAGEIFS('USDA ESALQ weekly IPPs'!$M$10:$M$739,'USDA ESALQ weekly IPPs'!$B$10:$B$739,">="&$D100,'USDA ESALQ weekly IPPs'!$B$10:$B$739,"<="&$E100) ->  | N100: =AVERAGEIFS('USDA ESALQ weekly IPPs'!$N$10:$N$739,'USDA ESALQ weekly IPPs'!$B$10:$B$739,">="&$D100,'USDA ESALQ weekly IPPs'!$B$10:$B$739,"<="&$E100) ->  | O100: =AVERAGEIFS('USDA ESALQ weekly IPPs'!$O$10:$O$739,'USDA ESALQ weekly IPPs'!$B$10:$B$739,">="&$D100,'USDA ESALQ weekly IPPs'!$B$10:$B$739,"<="&$E100) ->  | S100: =NA() -> 
B101: 2035-10-01 | C101: 2035-12-31 | D101: 2034-12-01 | E101: 2035-08-31 | F101: =AVERAGEIFS('USDA ESALQ weekly IPPs'!$E$10:$E$739,'USDA ESALQ weekly IPPs'!$B$10:$B$739,">="&$D101,'USDA ESALQ weekly IPPs'!$B$10:$B$739,"<="&$E101) ->  | G101: =AVERAGEIFS('USDA ESALQ weekly IPPs'!$F$10:$F$739,'USDA ESALQ weekly IPPs'!$B$10:$B$739,">="&$D101,'USDA ESALQ weekly IPPs'!$B$10:$B$739,"<="&$E101) ->  | H101: =AVERAGEIFS('USDA ESALQ weekly IPPs'!$G$10:$G$739,'USDA ESALQ weekly IPPs'!$B$10:$B$739,">="&$D101,'USDA ESALQ weekly IPPs'!$B$10:$B$739,"<="&$E101) ->  | I101: =AVERAGEIFS('USDA ESALQ weekly IPPs'!$H$10:$H$739,'USDA ESALQ weekly IPPs'!$B$10:$B$739,">="&$D101,'USDA ESALQ weekly IPPs'!$B$10:$B$739,"<="&$E101) ->  | J101: =AVERAGEIFS('USDA ESALQ weekly IPPs'!$I$10:$I$739,'USDA ESALQ weekly IPPs'!$B$10:$B$739,">="&$D101,'USDA ESALQ weekly IPPs'!$B$10:$B$739,"<="&$E101) ->  | K101: =AVERAGEIFS('USDA ESALQ weekly IPPs'!$J$10:$J$739,'USDA ESALQ weekly IPPs'!$B$10:$B$739,">="&$D101,'USDA ESALQ weekly IPPs'!$B$10:$B$739,"<="&$E101) ->  | L101: =AVERAGEIFS('USDA ESALQ weekly IPPs'!$L$10:$L$739,'USDA ESALQ weekly IPPs'!$B$10:$B$739,">="&$D101,'USDA ESALQ weekly IPPs'!$B$10:$B$739,"<="&$E101) ->  | M101: =AVERAGEIFS('USDA ESALQ weekly IPPs'!$M$10:$M$739,'USDA ESALQ weekly IPPs'!$B$10:$B$739,">="&$D101,'USDA ESALQ weekly IPPs'!$B$10:$B$739,"<="&$E101) ->  | N101: =AVERAGEIFS('USDA ESALQ weekly IPPs'!$N$10:$N$739,'USDA ESALQ weekly IPPs'!$B$10:$B$739,">="&$D101,'USDA ESALQ weekly IPPs'!$B$10:$B$739,"<="&$E101) ->  | O101: =AVERAGEIFS('USDA ESALQ weekly IPPs'!$O$10:$O$739,'USDA ESALQ weekly IPPs'!$B$10:$B$739,">="&$D101,'USDA ESALQ weekly IPPs'!$B$10:$B$739,"<="&$E101) ->  | S101: =NA() -> 

Sheet USDA ESALQ weekly IPPs
B2: Weekly IPPs based on US and Brazilian ethanol prices
D5: Origin specific IPP components for lowest weekly IPP | L5: US and Brazil common IPP elements | Q5: Exchange rates | T5: Brazil specific IPP elements | AI5: US specific IPP elements
L7: Elements in AUD | T7: Elements in USD or BRL | Y7: Elements in AUD | AI7: Elements in USD | AP7: Elements in AUD
B8: Week ending Friday | D8: Lowest priced origin | E8: Mill gate prices | F8: Local transport | G8: Local port costs | H8: Sea Freight | I8: Insurance | J8: Customes value duty | L8: Fuel excise | M8: Wharfage | N8: Import terminal storage and handling | O8: Transport from import terminal to fuel wholesale terminal | Q8: Median weekly AUD/USD exchange rate | R8: Median weekly AUD/BRL exchange rate | T8: ESALQ price | U8: Local transport | V8: Local port costs | W8: Sea Freight | Y8: =T8 -> ESALQ price | Z8: =U8 -> Local transport | AA8: =V8 -> Local port costs | AB8: TOTAL Brazil FOB Price | AC8: =W8 -> Sea Freight | AD8: Insurance | AE8: Customes value duty | AG8: TOTAL | AI8: USDA price | AJ8: Local transport | AK8: Local port costs | AL8: TOTAL US FOB Price | AN8: Sea Freight | AP8: =AI8 -> USDA price | AQ8: Local transport | AR8: Local port costs | AS8: =AL8 -> TOTAL US FOB Price | AT8: =AN8 -> Sea Freight | AU8: Insurance | AV8: Customes value duty | AX8: TOTAL
E9: AUD/litre | F9: AUD/litre | G9: AUD/litre | H9: AUD/litre | I9: AUD/litre | J9: AUD/litre | L9: AUD/litre | M9: AUD/litre | N9: AUD/litre | O9: AUD/litre | T9: USD/litre | U9: BRL/litre | V9: BRL/litre | W9: USD/litre | Y9: AUD/litre | Z9: AUD/litre | AA9: AUD/litre | AB9: AUD/litre | AC9: AUD/litre | AD9: AUD/litre | AE9: AUD/litre | AG9: AUD/litre | AI9: USD/litre | AJ9: USD/litre | AK9: USD/litre | AL9: USD/litre | AN9: USD/litre | AP9: AUD/litre | AQ9: AUD/litre | AR9: AUD/litre | AS9: AUD/litre | AT9: AUD/litre | AU9: AUD/litre | AV9: AUD/litre | AX9: AUD/litre
B10: 2007-01-05 | D10: =IF(MIN(AG10,AX10)=AG10,"Brazil","US") -> Brazil | E10: =IF($D10="Brazil",Y10,AP10) -> 0.5181392997 | F10: =IF($D10="Brazil",Z10,AQ10) -> 0.05903144075 | G10: =IF($D10="Brazil",AA10,AR10) -> 0.05903144075 | H10: =IF($D10="Brazil",AC10,AT10) -> 0.08730091013 | I10: =IF($D10="Brazil",AD10,AU10) -> 0.002894012365 | J10: =IF($D10="Brazil",AE10,AV10) -> 0.02544808725 | L10: =IF(B10<Other_Inputs!$D$45,Other_Inputs!$F$45,INDEX(Other_Inputs!$F$45:$F$46,MATCH(B10,Other_Inputs!$D$45:$D$46,1))) -> 0.395 | M10: =IF(B10<Other_Inputs!$D$51,Other_Inputs!$F$51,INDEX(Other_Inputs!$F$51:$F$52,MATCH(B10,Other_Inputs!$D$51:$D$52,1))) -> 0.001917999 | N10: =Storage_import_terminal -> 0.03 | O10: =Transport_to_Wholesaler -> 0.015 | Q10: =INDEX('ExRate Calcs'!$E$7:$E$4761,MATCH(B10,'ExRate Calcs'!$C$7:$C$4761,0)) -> 0.7911 | R10: =INDEX('ExRate Calcs'!$H$7:$H$4761,MATCH('USDA ESALQ weekly IPPs'!B10,'ExRate Calcs'!$C$7:$C$4761,0)) -> 1.694012525 | T10: =INDEX('ESALQ calcs'!$D$7:$D$1995,MATCH('USDA ESALQ weekly IPPs'!B10,'ESALQ calcs'!$C$7:$C$1995,0)) -> 0.4099 | U10: =To_Santos -> 0.1 | V10: =Other_Inputs!$F$16 -> 0.1 | W10: =Santos_to_Sydney -> 0.06906375 | Y10: =T10/$Q10 -> 0.5181392997 | Z10: =U10/$R10 -> 0.05903144075 | AA10: =V10/$R10 -> 0.05903144075 | AB10: =SUM(Y10:AA10) -> 0.6362021812 | AC10: =W10/Q10 -> 0.08730091013 | AD10: =SUM(AB10:AC10)*Insurance -> 0.002894012365 | AE10: =AB10*Customs_Value_Duty -> 0.02544808725 | AG10: =SUM(AB10:AE10) -> 0.7518451909 | AI10: =IFERROR(INDEX('USDA calcs'!$G$12:$G$4000,MATCH($B10,'USDA calcs'!$C$12:$C$4000,0)),INDEX('USDA historical daily prices'!$AA$14:$AA$3707,MATCH($B10,'USDA historical daily prices'!$C$14:$C$3707,0))) -> 0.6155211721 | AJ10: =Other_Inputs!$F$23 -> 0.0553 | AK10: =Other_Inputs!$F$25 -> 0.0242 | AL10: =SUM(AI10,AJ10:AK10) -> 0.6950211721 | AN10: =Other_Inputs!$F$28 -> 0.069995124 | AP10: =AI10/$Q10 -> 0.7780573532 | AQ10: =AJ10/$Q10 -> 0.06990266717 | AR10: 0.03059031728 | AS10: =AL10/$Q10 -> 0.8785503376 | AT10: =AN10/$Q10 -> 0.08847822526 | AU10: =SUM(AS10:AT10)*Insurance -> 0.003868114251 | AV10: =AS10*Other_Inputs!$F$40 -> 0 | AX10: =SUM(AS10:AV10) -> 0.9708966771
B11: =B10+7 -> 2007-01-12 | D11: =IF(MIN(AG11,AX11)=AG11,"Brazil","US") -> Brazil | E11: 0.5214841749 | F11: 0.05960853042 | G11: 0.05960853042 | H11: 0.08842536874 | I11: 0.002916506418 | J11: 0.02562804943 | L11: =IF(B11<Other_Inputs!$D$45,Other_Inputs!$F$45,INDEX(Other_Inputs!$F$45:$F$46,MATCH(B11,Other_Inputs!$D$45:$D$46,1))) -> 0.395 | M11: =IF(B11<Other_Inputs!$D$51,Other_Inputs!$F$51,INDEX(Other_Inputs!$F$51:$F$52,MATCH(B11,Other_Inputs!$D$51:$D$52,1))) -> 0.001917999 | N11: 0.03 | O11: 0.015 | Q11: =INDEX('ExRate Calcs'!$E$7:$E$4761,MATCH(B11,'ExRate Calcs'!$C$7:$C$4761,0)) -> 0.78104 | R11: =INDEX('ExRate Calcs'!$H$7:$H$4761,MATCH('USDA ESALQ weekly IPPs'!B11,'ExRate Calcs'!$C$7:$C$4761,0)) -> 1.677612236 | T11: =INDEX('ESALQ calcs'!$D$7:$D$1995,MATCH('USDA ESALQ weekly IPPs'!B11,'ESALQ calcs'!$C$7:$C$1995,0)) -> 0.4073 | U11: 0.1 | V11: =Other_Inputs!$F$16 -> 0.1 | W11: 0.06906375 | Y11: 0.5214841749 | Z11: =U11/$R11 -> 0.05960853042 | AA11: =V11/$R11 -> 0.05960853042 | AB11: =SUM(Y11:AA11) -> 0.6407012358 | AC11: 0.08842536874 | AD11: 0.002916506418 | AE11: 0.02562804943 | AG11: =SUM(AB11:AE11) -> 0.7576711604 | AI11: =IFERROR(INDEX('USDA calcs'!$G$12:$G$4000,MATCH($B11,'USDA calcs'!$C$12:$C$4000,0)),IFERROR(INDEX('USDA historical daily prices'!$AA$14:$AA$3707,MATCH($B11,'USDA historical daily prices'!$C$14:$C$3707,0)),AI10)) -> 0.5838205109 | AJ11: =Other_Inputs!$F$23 -> 0.0553 | AK11: =Other_Inputs!$F$25 -> 0.0242 | AL11: 0.6633205109 | AN11: =Other_Inputs!$F$28 -> 0.069995124 | AP11: 0.7474911795 | AQ11: 0.07080303185 | AR11: 0.03098432859 | AS11: 0.84927854 | AT11: =AN11/$Q11 -> 0.089617848 | AU11: 0.003755585552 | AV11: =AS11*Other_Inputs!$F$40 -> 0 | AX11: =SUM(AS11:AV11) -> 0.9426519735
B12: =B11+7 -> 2007-01-19 | D12: Brazil | E12: 0.5202238616 | F12: 0.05961857182 | G12: 0.05961857182 | H12: 0.08784501399 | I12: 0.002909224077 | J12: 0.02557844021 | L12: =IF(B12<Other_Inputs!$D$45,Other_Inputs!$F$45,INDEX(Other_Inputs!$F$45:$F$46,MATCH(B12,Other_Inputs!$D$45:$D$46,1))) -> 0.395 | M12: =IF(B12<Other_Inputs!$D$51,Other_Inputs!$F$51,INDEX(Other_Inputs!$F$51:$F$52,MATCH(B12,Other_Inputs!$D$51:$D$52,1))) -> 0.001917999 | N12: 0.03 | O12: 0.015 | Q12: =INDEX('ExRate Calcs'!$E$7:$E$4761,MATCH(B12,'ExRate Calcs'!$C$7:$C$4761,0)) -> 0.7862 | R12: =INDEX('ExRate Calcs'!$H$7:$H$4761,MATCH('USDA ESALQ weekly IPPs'!B12,'ExRate Calcs'!$C$7:$C$4761,0)) -> 1.67732968 | T12: =INDEX('ESALQ calcs'!$D$7:$D$1995,MATCH('USDA ESALQ weekly IPPs'!B12,'ESALQ calcs'!$C$7:$C$1995,0)) -> 0.409 | U12: 0.1 | V12: =Other_Inputs!$F$16 -> 0.1 | W12: 0.06906375 | Y12: 0.5202238616 | Z12: 0.05961857182 | AA12: 0.05961857182 | AB12: 0.6394610053 | AC12: 0.08784501399 | AD12: 0.002909224077 | AE12: 0.02557844021 | AG12: 0.7557936835 | AI12: =IFERROR(INDEX('USDA calcs'!$G$12:$G$4000,MATCH($B12,'USDA calcs'!$C$12:$C$4000,0)),IFERROR(INDEX('USDA historical daily prices'!$AA$14:$AA$3707,MATCH($B12,'USDA historical daily prices'!$C$14:$C$3707,0)),AI11)) -> 0.5415529626 | AJ12: =Other_Inputs!$F$23 -> 0.0553 | AK12: =Other_Inputs!$F$25 -> 0.0242 | AL12: 0.6210529626 | AN12: =Other_Inputs!$F$28 -> 0.069995124 | AP12: 0.688823407 | AQ12: 0.0703383363 | AR12: 0.03078097176 | AS12: 0.789942715 | AT12: 0.08902966675 | AU12: 0.003515889527 | AV12: =AS12*Other_Inputs!$F$40 -> 0 | AX12: 0.8824882713
B13: 2007-01-26 | D13: Brazil | E13: 0.5154350455 | F13: 0.05973667655 | G13: 0.05973667655 | H13: 0.08791770097 | I13: 0.002891304398 | J13: 0.02539633594 | L13: =IF(B13<Other_Inputs!$D$45,Other_Inputs!$F$45,INDEX(Other_Inputs!$F$45:$F$46,MATCH(B13,Other_Inputs!$D$45:$D$46,1))) -> 0.395 | M13: =IF(B13<Other_Inputs!$D$51,Other_Inputs!$F$51,INDEX(Other_Inputs!$F$51:$F$52,MATCH(B13,Other_Inputs!$D$51:$D$52,1))) -> 0.001917999 | N13: 0.03 | O13: 0.015 | Q13: =INDEX('ExRate Calcs'!$E$7:$E$4761,MATCH(B13,'ExRate Calcs'!$C$7:$C$4761,0)) -> 0.78555 | R13: =INDEX('ExRate Calcs'!$H$7:$H$4761,MATCH('USDA ESALQ weekly IPPs'!B13,'ExRate Calcs'!$C$7:$C$4761,0)) -> 1.67401345 | T13: =INDEX('ESALQ calcs'!$D$7:$D$1995,MATCH('USDA ESALQ weekly IPPs'!B13,'ESALQ calcs'!$C$7:$C$1995,0)) -> 0.4049 | U13: 0.1 | V13: =Other_Inputs!$F$16 -> 0.1 | W13: 0.06906375 | Y13: 0.5154350455 | Z13: 0.05973667655 | AA13: 0.05973667655 | AB13: 0.6349083986 | AC13: 0.08791770097 | AD13: 0.002891304398 | AE13: 0.02539633594 | AG13: 0.7511137399 | AI13: =IFERROR(INDEX('USDA calcs'!$G$12:$G$4000,MATCH($B13,'USDA calcs'!$C$12:$C$4000,0)),IFERROR(INDEX('USDA historical daily prices'!$AA$14:$AA$3707,MATCH($B13,'USDA historical daily prices'!$C$14:$C$3707,0)),AI12)) -> 0.4768307792 | AJ13: =Other_Inputs!$F$23 -> 0.0553 | AK13: =Other_Inputs!$F$25 -> 0.0242 | AL13: 0.5563307792 | AN13: =Other_Inputs!$F$28 -> 0.069995124 | AP13: 0.6070024559 | AQ13: 0.07039653746 | AR13: 0.03080644135 | AS13: 0.7082054347 | AT13: 0.08910333397 | AU13: 0.003189235075 | AV13: =AS13*Other_Inputs!$F$40 -> 0 | AX13: 0.8004980037
B14: 2007-02-02 | D14: Brazil | E14: 0.5156185354 | F14: 0.06102339837 | G14: 0.06102339837 | H14: 0.08929425683 | I14: 0.002907838356 | J14: 0.02550661328 | L14: =IF(B14<Other_Inputs!$D$45,Other_Inputs!$F$45,INDEX(Other_Inputs!$F$45:$F$46,MATCH(B14,Other_Inputs!$D$45:$D$46,1))) -> 0.395 | M14: =IF(B14<Other_Inputs!$D$51,Other_Inputs!$F$51,INDEX(Other_Inputs!$F$51:$F$52,MATCH(B14,Other_Inputs!$D$51:$D$52,1))) -> 0.001917999 | N14: 0.03 | O14: 0.015 | Q14: =INDEX('ExRate Calcs'!$E$7:$E$4761,MATCH(B14,'ExRate Calcs'!$C$7:$C$4761,0)) -> 0.77344 | R14: =INDEX('ExRate Calcs'!$H$7:$H$4761,MATCH('USDA ESALQ weekly IPPs'!B14,'ExRate Calcs'!$C$7:$C$4761,0)) -> 1.638715684 | T14: =INDEX('ESALQ calcs'!$D$7:$D$1995,MATCH('USDA ESALQ weekly IPPs'!B14,'ESALQ calcs'!$C$7:$C$1995,0)) -> 0.3988 | U14: 0.1 | V14: =Other_Inputs!$F$16 -> 0.1 | W14: 0.06906375 | Y14: 0.5156185354 | Z14: 0.06102339837 | AA14: 0.06102339837 | AB14: 0.6376653321 | AC14: 0.08929425683 | AD14: 0.002907838356 | AE14: 0.02550661328 | AG14: 0.7553740406 | AI14: =IFERROR(INDEX('USDA calcs'!$G$12:$G$4000,MATCH($B14,'USDA calcs'!$C$12:$C$4000,0)),IFERROR(INDEX('USDA historical daily prices'!$AA$14:$AA$3707,MATCH($B14,'USDA historical daily prices'!$C$14:$C$3707,0)),AI13)) -> 0.4728681966 | AJ14: =Other_Inputs!$F$23 -> 0.0553 | AK14: =Other_Inputs!$F$25 -> 0.0242 | AL14: 0.5523681966 | AN14: =Other_Inputs!$F$28 -> 0.069995124 | AP14: 0.6113831669 | AQ14: 0.07149875879 | AR14: 0.03128878775 | AS14: 0.7141707134 | AT14: 0.09049845366 | AU14: 0.003218676668 | AV14: =AS14*Other_Inputs!$F$40 -> 0 | AX14: 0.8078878437
B15: 2007-02-09 | D15: Brazil | E15: 0.5031770123 | F15: 0.06148915057 | G15: 0.06148915057 | H15: 0.08883254444 | I15: 0.002859951432 | J15: 0.02504621254 | L15: =IF(B15<Other_Inputs!$D$45,Other_Inputs!$F$45,INDEX(Other_Inputs!$F$45:$F$46,MATCH(B15,Other_Inputs!$D$45:$D$46,1))) -> 0.395 | M15: =IF(B15<Other_Inputs!$D$51,Other_Inputs!$F$51,INDEX(Other_Inputs!$F$51:$F$52,MATCH(B15,Other_Inputs!$D$51:$D$52,1))) -> 0.001917999 | N15: 0.03 | O15: 0.015 | Q15: =INDEX('ExRate Calcs'!$E$7:$E$4761,MATCH(B15,'ExRate Calcs'!$C$7:$C$4761,0)) -> 0.77746 | R15: =INDEX('ExRate Calcs'!$H$7:$H$4761,MATCH('USDA ESALQ weekly IPPs'!B15,'ExRate Calcs'!$C$7:$C$4761,0)) -> 1.626303162 | T15: =INDEX('ESALQ calcs'!$D$7:$D$1995,MATCH('USDA ESALQ weekly IPPs'!B15,'ESALQ calcs'!$C$7:$C$1995,0)) -> 0.3912 | U15: 0.1 | V15: =Other_Inputs!$F$16 -> 0.1 | W15: 0.06906375 | Y15: 0.5031770123 | Z15: 0.06148915057 | AA15: 0.06148915057 | AB15: 0.6261553135 | AC15: 0.08883254444 | AD15: 0.002859951432 | AE15: 0.02504621254 | AG15: 0.7428940219 | AI15: =IFERROR(INDEX('USDA calcs'!$G$12:$G$4000,MATCH($B15,'USDA calcs'!$C$12:$C$4000,0)),IFERROR(INDEX('USDA historical daily prices'!$AA$14:$AA$3707,MATCH($B15,'USDA historical daily prices'!$C$14:$C$3707,0)),AI14)) -> 0.4979645534 | AJ15: =Other_Inputs!$F$23 -> 0.0553 | AK15: =Other_Inputs!$F$25 -> 0.0242 | AL15: 0.5774645534 | AN15: =Other_Inputs!$F$28 -> 0.069995124 | AP15: 0.6405018308 | AQ15: 0.0711290613 | AR15: 0.03112700332 | AS15: 0.7427578954 | AT15: 0.09003051475 | AU15: 0.003331153641 | AV15: =AS15*Other_Inputs!$F$40 -> 0 | AX15: 0.8361195638
B16: 2007-02-16 | D16: Brazil | E16: 0.5132977358 | F16: 0.0611454896 | G16: 0.0611454896 | H16: 0.08864782821 | I16: 0.002896946173 | J16: 0.0254235486 | L16: =IF(B16<Other_Inputs!$D$45,Other_Inputs!$F$45,INDEX(Other_Inputs!$F$45:$F$46,MATCH(B16,Other_Inputs!$D$45:$D$46,1))) -> 0.395 | M16: =IF(B16<Other_Inputs!$D$51,Other_Inputs!$F$51,INDEX(Other_Inputs!$F$51:$F$52,MATCH(B16,Other_Inputs!$D$51:$D$52,1))) -> 0.001917999 | N16: 0.03 | O16: 0.015 | Q16: =INDEX('ExRate Calcs'!$E$7:$E$4761,MATCH(B16,'ExRate Calcs'!$C$7:$C$4761,0)) -> 0.77908 | R16: =INDEX('ExRate Calcs'!$H$7:$H$4761,MATCH('USDA ESALQ weekly IPPs'!B16,'ExRate Calcs'!$C$7:$C$4761,0)) -> 1.635443606 | T16: =INDEX('ESALQ calcs'!$D$7:$D$1995,MATCH('USDA ESALQ weekly IPPs'!B16,'ESALQ calcs'!$C$7:$C$1995,0)) -> 0.3999 | U16: 0.1 | V16: =Other_Inputs!$F$16 -> 0.1 | W16: 0.06906375 | Y16: 0.5132977358 | Z16: 0.0611454896 | AA16: 0.0611454896 | AB16: 0.635588715 | AC16: 0.08864782821 | AD16: 0.002896946173 | AE16: 0.0254235486 | AG16: 0.752557038 | AI16: =IFERROR(INDEX('USDA calcs'!$G$12:$G$4000,MATCH($B16,'USDA calcs'!$C$12:$C$4000,0)),IFERROR(INDEX('USDA historical daily prices'!$AA$14:$AA$3707,MATCH($B16,'USDA historical daily prices'!$C$14:$C$3707,0)),AI15)) -> 0.5217400493 | AJ16: =Other_Inputs!$F$23 -> 0.0553 | AK16: =Other_Inputs!$F$25 -> 0.0242 | AL16: 0.6012400493 | AN16: =Other_Inputs!$F$28 -> 0.069995124 | AP16: 0.6696873868 | AQ16: 0.07098115726 | AR16: 0.03106227858 | AS16: 0.7717308226 | AT16: 0.08984330749 | AU16: 0.00344629652 | AV16: =AS16*Other_Inputs!$F$40 -> 0 | AX16: 0.8650204266
B17: 2007-02-23 | D17: Brazil | E17: 0.5134613921 | F17: 0.06097632613 | G17: 0.06097632613 | H17: 0.08762433708 | I17: 0.002892153526 | J17: 0.02541656177 | L17: =IF(B17<Other_Inputs!$D$45,Other_Inputs!$F$45,INDEX(Other_Inputs!$F$45:$F$46,MATCH(B17,Other_Inputs!$D$45:$D$46,1))) -> 0.395 | M17: =IF(B17<Other_Inputs!$D$51,Other_Inputs!$F$51,INDEX(Other_Inputs!$F$51:$F$52,MATCH(B17,Other_Inputs!$D$51:$D$52,1))) -> 0.001917999 | N17: 0.03 | O17: 0.015 | Q17: =INDEX('ExRate Calcs'!$E$7:$E$4761,MATCH(B17,'ExRate Calcs'!$C$7:$C$4761,0)) -> 0.78818 | R17: =INDEX('ExRate Calcs'!$H$7:$H$4761,MATCH('USDA ESALQ weekly IPPs'!B17,'ExRate Calcs'!$C$7:$C$4761,0)) -> 1.639980732 | T17: =INDEX('ESALQ calcs'!$D$7:$D$1995,MATCH('USDA ESALQ weekly IPPs'!B17,'ESALQ calcs'!$C$7:$C$1995,0)) -> 0.4047 | U17: 0.1 | V17: =Other_Inputs!$F$16 -> 0.1 | W17: 0.06906375 | Y17: 0.5134613921 | Z17: 0.06097632613 | AA17: 0.06097632613 | AB17: 0.6354140443 | AC17: 0.08762433708 | AD17: 0.002892153526 | AE17: 0.02541656177 | AG17: 0.7513470967 | AI17: =IFERROR(INDEX('USDA calcs'!$G$12:$G$4000,MATCH($B17,'USDA calcs'!$C$12:$C$4000,0)),IFERROR(INDEX('USDA historical daily prices'!$AA$14:$AA$3707,MATCH($B17,'USDA historical daily prices'!$C$14:$C$3707,0)),AI16)) -> 0.5336277973 | AJ17: =Other_Inputs!$F$23 -> 0.0553 | AK17: =Other_Inputs!$F$25 -> 0.0242 | AL17: 0.6131277973 | AN17: =Other_Inputs!$F$28 -> 0.069995124 | AP17: 0.6770379828 | AQ17: 0.0701616382 | AR17: 0.03070364638 | AS17: 0.7779032673 | AT17: 0.08880601385 | AU17: 0.003466837125 | AV17: =AS17*Other_Inputs!$F$40 -> 0 | AX17: 0.8701761183
B18: 2007-03-02 | D18: Brazil | E18: 0.5017871175 | F18: 0.06006319619 | G18: 0.06006319619 | H18: 0.08753548886 | I18: 0.002837795995 | J18: 0.0248765404 | L18: =IF(B18<Other_Inputs!$D$45,Other_Inputs!$F$45,INDEX(Other_Inputs!$F$45:$F$46,MATCH(B18,Other_Inputs!$D$45:$D$46,1))) -> 0.395 | M18: =IF(B18<Other_Inputs!$D$51,Other_Inputs!$F$51,INDEX(Other_Inputs!$F$51:$F$52,MATCH(B18,Other_Inputs!$D$51:$D$52,1))) -> 0.001917999 | N18: 0.03 | O18: 0.015 | Q18: =INDEX('ExRate Calcs'!$E$7:$E$4761,MATCH(B18,'ExRate Calcs'!$C$7:$C$4761,0)) -> 0.78898 | R18: =INDEX('ExRate Calcs'!$H$7:$H$4761,MATCH('USDA ESALQ weekly IPPs'!B18,'ExRate Calcs'!$C$7:$C$4761,0)) -> 1.664913064 | T18: =INDEX('ESALQ calcs'!$D$7:$D$1995,MATCH('USDA ESALQ weekly IPPs'!B18,'ESALQ calcs'!$C$7:$C$1995,0)) -> 0.3959 | U18: 0.1 | V18: =Other_Inputs!$F$16 -> 0.1 | W18: 0.06906375 | Y18: 0.5017871175 | Z18: 0.06006319619 | AA18: 0.06006319619 | AB18: 0.6219135099 | AC18: 0.08753548886 | AD18: 0.002837795995 | AE18: 0.0248765404 | AG18: 0.7371633352 | AI18: =IFERROR(INDEX('USDA calcs'!$G$12:$G$4000,MATCH($B18,'USDA calcs'!$C$12:$C$4000,0)),IFERROR(INDEX('USDA historical daily prices'!$AA$14:$AA$3707,MATCH($B18,'USDA historical daily prices'!$C$14:$C$3707,0)),AI17)) -> 0.5600450149 | AJ18: =Other_Inputs!$F$23 -> 0.0553 | AK18: =Other_Inputs!$F$25 -> 0.0242 | AL18: 0.6395450149 | AN18: =Other_Inputs!$F$28 -> 0.069995124 | AP18: 0.7098342353 | AQ18: 0.07009049659 | AR18: 0.03067251388 | AS18: 0.8105972457 | AT18: 0.08871596745 | AU18: 0.003597252853 | AV18: =AS18*Other_Inputs!$F$40 -> 0 | AX18: 0.902910466
B19: 2007-03-09 | D19: Brazil | E19: 0.5149993563 | F19: 0.0608757663 | G19: 0.0608757663 | H19: 0.08891946698 | I19: 0.002902681423 | J19: 0.02547003555 | L19: =IF(B19<Other_Inputs!$D$45,Other_Inputs!$F$45,INDEX(Other_Inputs!$F$45:$F$46,MATCH(B19,Other_Inputs!$D$45:$D$46,1))) -> 0.395 | M19: =IF(B19<Other_Inputs!$D$51,Other_Inputs!$F$51,INDEX(Other_Inputs!$F$51:$F$52,MATCH(B19,Other_Inputs!$D$51:$D$52,1))) -> 0.001917999 | N19: 0.03 | O19: 0.015 | Q19: =INDEX('ExRate Calcs'!$E$7:$E$4761,MATCH(B19,'ExRate Calcs'!$C$7:$C$4761,0)) -> 0.7767 | R19: =INDEX('ExRate Calcs'!$H$7:$H$4761,MATCH('USDA ESALQ weekly IPPs'!B19,'ExRate Calcs'!$C$7:$C$4761,0)) -> 1.642689794 | T19: =INDEX('ESALQ calcs'!$D$7:$D$1995,MATCH('USDA ESALQ weekly IPPs'!B19,'ESALQ calcs'!$C$7:$C$1995,0)) -> 0.4 | U19: 0.1 | V19: =Other_Inputs!$F$16 -> 0.1 | W19: 0.06906375 | Y19: 0.5149993563 | Z19: 0.0608757663 | AA19: 0.0608757663 | AB19: 0.6367508888 | AC19: 0.08891946698 | AD19: 0.002902681423 | AE19: 0.02547003555 | AG19: 0.7540430728 | AI19: =IFERROR(INDEX('USDA calcs'!$G$12:$G$4000,MATCH($B19,'USDA calcs'!$C$12:$C$4000,0)),IFERROR(INDEX('USDA historical daily prices'!$AA$14:$AA$3707,MATCH($B19,'USDA historical daily prices'!$C$14:$C$3707,0)),AI18)) -> 0.5745744847 | AJ19: =Other_Inputs!$F$23 -> 0.0553 | AK19: =Other_Inputs!$F$25 -> 0.0242 | AL19: 0.6540744847 | AN19: =Other_Inputs!$F$28 -> 0.069995124 | AP19: 0.7397637243 | AQ19: 0.071198661 | AR19: 0.03115746105 | AS19: 0.8421198464 | AT19: 0.0901186095 | AU19: 0.003728953823 | AV19: =AS19*Other_Inputs!$F$40 -> 0 | AX19: 0.9359674097
B20: 2007-03-16 | D20: Brazil | E20: 0.5275754952 | F20: 0.06082154285 | G20: 0.06082154285 | H20: 0.08792553598 | I20: 0.002948576468 | J20: 0.02596874324 | L20: =IF(B20<Other_Inputs!$D$45,Other_Inputs!$F$45,INDEX(Other_Inputs!$F$45:$F$46,MATCH(B20,Other_Inputs!$D$45:$D$46,1))) -> 0.395 | M20: =IF(B20<Other_Inputs!$D$51,Other_Inputs!$F$51,INDEX(Other_Inputs!$F$51:$F$52,MATCH(B20,Other_Inputs!$D$51:$D$52,1))) -> 0.001917999 | N20: 0.03 | O20: 0.015 | Q20: =INDEX('ExRate Calcs'!$E$7:$E$4761,MATCH(B20,'ExRate Calcs'!$C$7:$C$4761,0)) -> 0.78548 | R20: =INDEX('ExRate Calcs'!$H$7:$H$4761,MATCH('USDA ESALQ weekly IPPs'!B20,'ExRate Calcs'!$C$7:$C$4761,0)) -> 1.64415428 | T20: =INDEX('ESALQ calcs'!$D$7:$D$1995,MATCH('USDA ESALQ weekly IPPs'!B20,'ESALQ calcs'!$C$7:$C$1995,0)) -> 0.4144 | U20: 0.1 | V20: =Other_Inputs!$F$16 -> 0.1 | W20: 0.06906375 | Y20: 0.5275754952 | Z20: 0.06082154285 | AA20: 0.06082154285 | AB20: 0.6492185809 | AC20: 0.08792553598 | AD20: 0.002948576468 | AE20: 0.02596874324 | AG20: 0.7660614366 | AI20: =IFERROR(INDEX('USDA calcs'!$G$12:$G$4000,MATCH($B20,'USDA calcs'!$C$12:$C$4000,0)),IFERROR(INDEX('USDA historical daily prices'!$AA$14:$AA$3707,MATCH($B20,'USDA historical daily prices'!$C$14:$C$3707,0)),AI19)) -> 0.5943873979 | AJ20: =Other_Inputs!$F$23 -> 0.0553 | AK20: =Other_Inputs!$F$25 -> 0.0242 | AL20: 0.6738873979 | AN20: =Other_Inputs!$F$28 -> 0.069995124 | AP20: 0.7567186917 | AQ20: 0.07040281102 | AR20: 0.03080918674 | AS20: 0.8579306894 | AT20: 0.08911127463 | AU20: 0.003788167856 | AV20: =AS20*Other_Inputs!$F$40 -> 0 | AX20: 0.9508301319
B21: 2007-03-23 | D21: Brazil | E21: 0.5853439457 | F21: 0.06027550194 | G21: 0.06027550194 | H21: 0.08615952244 | I21: 0.003168217888 | J21: 0.02823579798 | L21: =IF(B21<Other_Inputs!$D$45,Other_Inputs!$F$45,INDEX(Other_Inputs!$F$45:$F$46,MATCH(B21,Other_Inputs!$D$45:$D$46,1))) -> 0.395 | M21: =IF(B21<Other_Inputs!$D$51,Other_Inputs!$F$51,INDEX(Other_Inputs!$F$51:$F$52,MATCH(B21,Other_Inputs!$D$51:$D$52,1))) -> 0.001917999 | N21: 0.03 | O21: 0.015 | Q21: =INDEX('ExRate Calcs'!$E$7:$E$4761,MATCH(B21,'ExRate Calcs'!$C$7:$C$4761,0)) -> 0.80158 | R21: =INDEX('ExRate Calcs'!$H$7:$H$4761,MATCH('USDA ESALQ weekly IPPs'!B21,'ExRate Calcs'!$C$7:$C$4761,0)) -> 1.659048814 | T21: =INDEX('ESALQ calcs'!$D$7:$D$1995,MATCH('USDA ESALQ weekly IPPs'!B21,'ESALQ calcs'!$C$7:$C$1995,0)) -> 0.4692 | U21: 0.1 | V21: =Other_Inputs!$F$16 -> 0.1 | W21: 0.06906375 | Y21: 0.5853439457 | Z21: 0.06027550194 | AA21: 0.06027550194 | AB21: 0.7058949496 | AC21: 0.08615952244 | AD21: 0.003168217888 | AE21: 0.02823579798 | AG21: 0.8234584879 | AI21: =IFERROR(INDEX('USDA calcs'!$G$12:$G$4000,MATCH($B21,'USDA calcs'!$C$12:$C$4000,0)),IFERROR(INDEX('USDA historical daily prices'!$AA$14:$AA$3707,MATCH($B21,'USDA historical daily prices'!$C$14:$C$3707,0)),AI20)) -> 0.5891039544 | AJ21: =Other_Inputs!$F$23 -> 0.0553 | AK21: =Other_Inputs!$F$25 -> 0.0242 | AL21: 0.6686039544 | AN21: =Other_Inputs!$F$28 -> 0.069995124 | AP21: 0.7349284593 | AQ21: 0.06898874722 | AR21: 0.03019037401 | AS21: 0.8341075805 | AT21: 0.08732144515 | AU21: 0.003685716103 | AV21: =AS21*Other_Inputs!$F$40 -> 0 | AX21: 0.9251147418
B22: 2007-03-30 | D22: US | E22: 0.6878630768 | F22: 0.06856788593 | G22: 0.03000619963 | H22: 0.08678874644 | I22: 0.003492903635 | J22: 0 | L22: =IF(B22<Other_Inputs!$D$45,Other_Inputs!$F$45,INDEX(Other_Inputs!$F$45:$F$46,MATCH(B22,Other_Inputs!$D$45:$D$46,1))) -> 0.395 | M22: =IF(B22<Other_Inputs!$D$51,Other_Inputs!$F$51,INDEX(Other_Inputs!$F$51:$F$52,MATCH(B22,Other_Inputs!$D$51:$D$52,1))) -> 0.001917999 | N22: 0.03 | O22: 0.015 | Q22: =INDEX('ExRate Calcs'!$E$7:$E$4761,MATCH(B22,'ExRate Calcs'!$C$7:$C$4761,0)) -> 0.8065 | R22: =INDEX('ExRate Calcs'!$H$7:$H$4761,MATCH('USDA ESALQ weekly IPPs'!B22,'ExRate Calcs'!$C$7:$C$4761,0)) -> 1.6627076 | T22: =INDEX('ESALQ calcs'!$D$7:$D$1995,MATCH('USDA ESALQ weekly IPPs'!B22,'ESALQ calcs'!$C$7:$C$1995,0)) -> 0.5198 | U22: 0.1 | V22: =Other_Inputs!$F$16 -> 0.1 | W22: 0.06906375 | Y22: 0.6445133292 | Z22: 0.06014286577 | AA22: 0.06014286577 | AB22: 0.7647990607 | AC22: 0.08563391197 | AD22: 0.003401731891 | AE22: 0.03059196243 | AG22: 0.884426667 | AI22: =IFERROR(INDEX('USDA calcs'!$G$12:$G$4000,MATCH($B22,'USDA calcs'!$C$12:$C$4000,0)),IFERROR(INDEX('USDA historical daily prices'!$AA$14:$AA$3707,MATCH($B22,'USDA historical daily prices'!$C$14:$C$3707,0)),AI21)) -> 0.5547615714 | AJ22: =Other_Inputs!$F$23 -> 0.0553 | AK22: =Other_Inputs!$F$25 -> 0.0242 | AL22: 0.6342615714 | AN22: =Other_Inputs!$F$28 -> 0.069995124 | AP22: 0.6878630768 | AQ22: 0.06856788593 | AR22: 0.03000619963 | AS22: 0.7864371623 | AT22: 0.08678874644 | AU22: 0.003492903635 | AV22: =AS22*Other_Inputs!$F$40 -> 0 | AX22: 0.8767188124
B23: 2007-04-06 | D23: US | E23: 0.6894269276 | F23: 0.06791525944 | G23: 0.02972060178 | H23: 0.0859626945 | I23: 0.003492101933 | J23: 0 | L23: =IF(B23<Other_Inputs!$D$45,Other_Inputs!$F$45,INDEX(Other_Inputs!$F$45:$F$46,MATCH(B23,Other_Inputs!$D$45:$D$46,1))) -> 0.395 | M23: =IF(B23<Other_Inputs!$D$51,Other_Inputs!$F$51,INDEX(Other_Inputs!$F$51:$F$52,MATCH(B23,Other_Inputs!$D$51:$D$52,1))) -> 0.001917999 | N23: 0.03 | O23: 0.015 | Q23: =INDEX('ExRate Calcs'!$E$7:$E$4761,MATCH(B23,'ExRate Calcs'!$C$7:$C$4761,0)) -> 0.81425 | R23: =INDEX('ExRate Calcs'!$H$7:$H$4761,MATCH('USDA ESALQ weekly IPPs'!B23,'ExRate Calcs'!$C$7:$C$4761,0)) -> 1.657954108 | T23: =INDEX('ESALQ calcs'!$D$7:$D$1995,MATCH('USDA ESALQ weekly IPPs'!B23,'ESALQ calcs'!$C$7:$C$1995,0)) -> 0.5258 | U23: 0.1 | V23: =Other_Inputs!$F$16 -> 0.1 | W23: 0.06906375 | Y23: 0.6457476205 | Z23: 0.06031530037 | AA23: 0.06031530037 | AB23: 0.7663782213 | AC23: 0.0848188517 | AD23: 0.003404788292 | AE23: 0.03065512885 | AG23: 0.8852569901 | AI23: =IFERROR(INDEX('USDA calcs'!$G$12:$G$4000,MATCH($B23,'USDA calcs'!$C$12:$C$4000,0)),IFERROR(INDEX('USDA historical daily prices'!$AA$14:$AA$3707,MATCH($B23,'USDA historical daily prices'!$C$14:$C$3707,0)),AI22)) -> 0.5613658758 | AJ23: =Other_Inputs!$F$23 -> 0.0553 | AK23: =Other_Inputs!$F$25 -> 0.0242 | AL23: 0.6408658758 | AN23: =Other_Inputs!$F$28 -> 0.069995124 | AP23: 0.6894269276 | AQ23: 0.06791525944 | AR23: 0.02972060178 | AS23: 0.7870627889 | AT23: 0.0859626945 | AU23: 0.003492101933 | AV23: =AS23*Other_Inputs!$F$40 -> 0 | AX23: 0.8765175853
B24: 2007-04-13 | D24: US | E24: 0.6874487778 | F24: 0.06693294602 | G24: 0.02929072864 | H24: 0.08471934641 | I24: 0.003473567196 | J24: 0 | L24: =IF(B24<Other_Inputs!$D$45,Other_Inputs!$F$45,INDEX(Other_Inputs!$F$45:$F$46,MATCH(B24,Other_Inputs!$D$45:$D$46,1))) -> 0.395 | M24: =IF(B24<Other_Inputs!$D$51,Other_Inputs!$F$51,INDEX(Other_Inputs!$F$51:$F$52,MATCH(B24,Other_Inputs!$D$51:$D$52,1))) -> 0.001917999 | N24: 0.03 | O24: 0.015 | Q24: =INDEX('ExRate Calcs'!$E$7:$E$4761,MATCH(B24,'ExRate Calcs'!$C$7:$C$4761,0)) -> 0.8262 | R24: =INDEX('ExRate Calcs'!$H$7:$H$4761,MATCH('USDA ESALQ weekly IPPs'!B24,'ExRate Calcs'!$C$7:$C$4761,0)) -> 1.676628613 | T24: =INDEX('ESALQ calcs'!$D$7:$D$1995,MATCH('USDA ESALQ weekly IPPs'!B24,'ESALQ calcs'!$C$7:$C$1995,0)) -> 0.5277 | U24: 0.1 | V24: =Other_Inputs!$F$16 -> 0.1 | W24: 0.06906375 | Y24: 0.6387073348 | Z24: 0.05964350081 | AA24: 0.05964350081 | AB24: 0.7579943364 | AC24: 0.08359204793 | AD24: 0.003366345537 | AE24: 0.03031977346 | AG24: 0.8752725033 | AI24: =IFERROR(INDEX('USDA calcs'!$G$12:$G$4000,MATCH($B24,'USDA calcs'!$C$12:$C$4000,0)),IFERROR(INDEX('USDA historical daily prices'!$AA$14:$AA$3707,MATCH($B24,'USDA historical daily prices'!$C$14:$C$3707,0)),AI23)) -> 0.5679701802 | AJ24: =Other_Inputs!$F$23 -> 0.0553 | AK24: =Other_Inputs!$F$25 -> 0.0242 | AL24: 0.6474701802 | AN24: =Other_Inputs!$F$28 -> 0.069995124 | AP24: 0.6874487778 | AQ24: 0.06693294602 | AR24: 0.02929072864 | AS24: 0.7836724525 | AT24: 0.08471934641 | AU24: 0.003473567196 | AV24: =AS24*Other_Inputs!$F$40 -> 0 | AX24: 0.8718653661
B25: 2007-04-20 | D25: US | E25: 0.6958573481 | F25: 0.06636265451 | G25: 0.02904116165 | H25: 0.0839975087 | I25: 0.003501034692 | J25: 0 | L25: =IF(B25<Other_Inputs!$D$45,Other_Inputs!$F$45,INDEX(Other_Inputs!$F$45:$F$46,MATCH(B25,Other_Inputs!$D$45:$D$46,1))) -> 0.395 | M25: =IF(B25<Other_Inputs!$D$51,Other_Inputs!$F$51,INDEX(Other_Inputs!$F$51:$F$52,MATCH(B25,Other_Inputs!$D$51:$D$52,1))) -> 0.001917999 | N25: 0.03 | O25: 0.015 | Q25: =INDEX('ExRate Calcs'!$E$7:$E$4761,MATCH(B25,'ExRate Calcs'!$C$7:$C$4761,0)) -> 0.8333 | R25: =INDEX('ExRate Calcs'!$H$7:$H$4761,MATCH('USDA ESALQ weekly IPPs'!B25,'ExRate Calcs'!$C$7:$C$4761,0)) -> 1.692651542 | T25: =INDEX('ESALQ calcs'!$D$7:$D$1995,MATCH('USDA ESALQ weekly IPPs'!B25,'ESALQ calcs'!$C$7:$C$1995,0)) -> 0.5369 | U25: 0.1 | V25: =Other_Inputs!$F$16 -> 0.1 | W25: 0.06906375 | Y25: 0.6443057722 | Z25: 0.05907890521 | AA25: 0.05907890521 | AB25: 0.7624635826 | AC25: 0.08287981519 | AD25: 0.003381373591 | AE25: 0.03049854331 | AG25: 0.8792233147 | AI25: =IFERROR(INDEX('USDA calcs'!$G$12:$G$4000,MATCH($B25,'USDA calcs'!$C$12:$C$4000,0)),IFERROR(INDEX('USDA historical daily prices'!$AA$14:$AA$3707,MATCH($B25,'USDA historical daily prices'!$C$14:$C$3707,0)),AI24)) -> 0.5798579282 | AJ25: =Other_Inputs!$F$23 -> 0.0553 | AK25: =Other_Inputs!$F$25 -> 0.0242 | AL25: 0.6593579282 | AN25: =Other_Inputs!$F$28 -> 0.069995124 | AP25: 0.6958573481 | AQ25: 0.06636265451 | AR25: 0.02904116165 | AS25: 0.7912611643 | AT25: 0.0839975087 | AU25: 0.003501034692 | AV25: =AS25*Other_Inputs!$F$40 -> 0 | AX25: 0.8787597077
B26: 2007-04-27 | D26: US | E26: 0.6847964556 | F26: 0.06667470461 | G26: 0.02917771883 | H26: 0.08439248131 | I26: 0.003460165441 | J26: 0 | L26: =IF(B26<Other_Inputs!$D$45,Other_Inputs!$F$45,INDEX(Other_Inputs!$F$45:$F$46,MATCH(B26,Other_Inputs!$D$45:$D$46,1))) -> 0.395 | M26: =IF(B26<Other_Inputs!$D$51,Other_Inputs!$F$51,INDEX(Other_Inputs!$F$51:$F$52,MATCH(B26,Other_Inputs!$D$51:$D$52,1))) -> 0.001917999 | N26: 0.03 | O26: 0.015 | Q26: =INDEX('ExRate Calcs'!$E$7:$E$4761,MATCH(B26,'ExRate Calcs'!$C$7:$C$4761,0)) -> 0.8294 | R26: =INDEX('ExRate Calcs'!$H$7:$H$4761,MATCH('USDA ESALQ weekly IPPs'!B26,'ExRate Calcs'!$C$7:$C$4761,0)) -> 1.68168796 | T26: =INDEX('ESALQ calcs'!$D$7:$D$1995,MATCH('USDA ESALQ weekly IPPs'!B26,'ESALQ calcs'!$C$7:$C$1995,0)) -> 0.5295 | U26: 0.1 | V26: =Other_Inputs!$F$16 -> 0.1 | W26: 0.06906375 | Y26: 0.6384133108 | Z26: 0.05946406371 | AA26: 0.05946406371 | AB26: 0.7573414383 | AC26: 0.08326953219 | AD26: 0.003362443882 | AE26: 0.03029365753 | AG26: 0.8742670719 | AI26: =IFERROR(INDEX('USDA calcs'!$G$12:$G$4000,MATCH($B26,'USDA calcs'!$C$12:$C$4000,0)),IFERROR(INDEX('USDA historical daily prices'!$AA$14:$AA$3707,MATCH($B26,'USDA historical daily prices'!$C$14:$C$3707,0)),AI25)) -> 0.5679701802 | AJ26: =Other_Inputs!$F$23 -> 0.0553 | AK26: =Other_Inputs!$F$25 -> 0.0242 | AL26: 0.6474701802 | AN26: =Other_Inputs!$F$28 -> 0.069995124 | AP26: 0.6847964556 | AQ26: =AJ26/$Q26 -> 0.06667470461 | AR26: =AK26/$Q26 -> 0.02917771883 | AS26: 0.780648879 | AT26: 0.08439248131 | AU26: 0.003460165441 | AV26: =AS26*Other_Inputs!$F$40 -> 0 | AX26: 0.8685015258
B27: 2007-05-04 | D27: Brazil | E27: 0.636244605 | F27: 0.05979011791 | G27: 0.05979011791 | H27: 0.08372987488 | I27: 0.003358218863 | J27: 0.03023299363 | L27: =IF(B27<Other_Inputs!$D$45,Other_Inputs!$F$45,INDEX(Other_Inputs!$F$45:$F$46,MATCH(B27,Other_Inputs!$D$45:$D$46,1))) -> 0.395 | M27: =IF(B27<Other_Inputs!$D$51,Other_Inputs!$F$51,INDEX(Other_Inputs!$F$51:$F$52,MATCH(B27,Other_Inputs!$D$51:$D$52,1))) -> 0.001917999 | N27: 0.03 | O27: 0.015 | Q27: =INDEX('ExRate Calcs'!$E$7:$E$4761,MATCH(B27,'ExRate Calcs'!$C$7:$C$4761,0)) -> 0.82484 | R27: =INDEX('ExRate Calcs'!$H$7:$H$4761,MATCH('USDA ESALQ weekly IPPs'!B27,'ExRate Calcs'!$C$7:$C$4761,0)) -> 1.67251719 | T27: =INDEX('ESALQ calcs'!$D$7:$D$1995,MATCH('USDA ESALQ weekly IPPs'!B27,'ESALQ calcs'!$C$7:$C$1995,0)) -> 0.5248 | U27: 0.1 | V27: =Other_Inputs!$F$16 -> 0.1 | W27: 0.06906375 | Y27: 0.636244605 | Z27: 0.05979011791 | AA27: 0.05979011791 | AB27: 0.7558248408 | AC27: 0.08372987488 | AD27: 0.003358218863 | AE27: 0.03023299363 | AG27: 0.8731459282 | AI27: =IFERROR(INDEX('USDA calcs'!$G$12:$G$4000,MATCH($B27,'USDA calcs'!$C$12:$C$4000,0)),IFERROR(INDEX('USDA historical daily prices'!$AA$14:$AA$3707,MATCH($B27,'USDA historical daily prices'!$C$14:$C$3707,0)),AI26)) -> 0.5692910411 | AJ27: =Other_Inputs!$F$23 -> 0.0553 | AK27: =Other_Inputs!$F$25 -> 0.0242 | AL27: 0.6487910411 | AN27: =Other_Inputs!$F$28 -> 0.069995124 | AP27: 0.6901836006 | AQ27: 0.06704330537 | AR27: 0.02933902333 | AS27: 0.7865659293 | AT27: 0.08485903205 | AU27: 0.003485699845 | AV27: =AS27*Other_Inputs!$F$40 -> 0 | AX27: 0.8749106612
B28: 2007-05-11 | D28: Brazil | E28: 0.5846254009 | F28: 0.05966275741 | G28: 0.05966275741 | H28: 0.08326752429 | I28: 0.00314887376 | J28: 0.02815803663 | L28: =IF(B28<Other_Inputs!$D$45,Other_Inputs!$F$45,INDEX(Other_Inputs!$F$45:$F$46,MATCH(B28,Other_Inputs!$D$45:$D$46,1))) -> 0.395 | M28: =IF(B28<Other_Inputs!$D$51,Other_Inputs!$F$51,INDEX(Other_Inputs!$F$51:$F$52,MATCH(B28,Other_Inputs!$D$51:$D$52,1))) -> 0.001917999 | N28: 0.03 | O28: 0.015 | Q28: =INDEX('ExRate Calcs'!$E$7:$E$4761,MATCH(B28,'ExRate Calcs'!$C$7:$C$4761,0)) -> 0.82942 | R28: =INDEX('ExRate Calcs'!$H$7:$H$4761,MATCH('USDA ESALQ weekly IPPs'!B28,'ExRate Calcs'!$C$7:$C$4761,0)) -> 1.676087468 | T28: =INDEX('ESALQ calcs'!$D$7:$D$1995,MATCH('USDA ESALQ weekly IPPs'!B28,'ESALQ calcs'!$C$7:$C$1995,0)) -> 0.4849 | U28: 0.1 | V28: =Other_Inputs!$F$16 -> 0.1 | W28: 0.06906375 | Y28: 0.5846254009 | Z28: 0.05966275741 | AA28: 0.05966275741 | AB28: 0.7039509157 | AC28: 0.08326752429 | AD28: 0.00314887376 | AE28: 0.02815803663 | AG28: 0.8185253504 | AI28: =IFERROR(INDEX('USDA calcs'!$G$12:$G$4000,MATCH($B28,'USDA calcs'!$C$12:$C$4000,0)),IFERROR(INDEX('USDA historical daily prices'!$AA$14:$AA$3707,MATCH($B28,'USDA historical daily prices'!$C$14:$C$3707,0)),AI27)) -> 0.5758953456 | AJ28: =Other_Inputs!$F$23 -> 0.0553 | AK28: =Other_Inputs!$F$25 -> 0.0242 | AL28: 0.6553953456 | AN28: =Other_Inputs!$F$28 -> 0.069995124 | AP28: 0.6943350119 | AQ28: 0.06667309686 | AR28: 0.02917701526 | AS28: 0.790185124 | AT28: 0.08439044634 | AU28: 0.003498302281 | AV28: =AS28*Other_Inputs!$F$40 -> 0 | AX28: 0.8780738726
B29: 2007-05-18 | D29: Brazil | E29: 0.5420335303 | F29: 0.06103700353 | G29: 0.06103700353 | H29: 0.08329966228 | I29: 0.002989628799 | J29: 0.0265643015 | L29: =IF(B29<Other_Inputs!$D$45,Other_Inputs!$F$45,INDEX(Other_Inputs!$F$45:$F$46,MATCH(B29,Other_Inputs!$D$45:$D$46,1))) -> 0.395 | M29: =IF(B29<Other_Inputs!$D$51,Other_Inputs!$F$51,INDEX(Other_Inputs!$F$51:$F$52,MATCH(B29,Other_Inputs!$D$51:$D$52,1))) -> 0.001917999 | N29: 0.03 | O29: 0.015 | Q29: =INDEX('ExRate Calcs'!$E$7:$E$4761,MATCH(B29,'ExRate Calcs'!$C$7:$C$4761,0)) -> 0.8291 | R29: =INDEX('ExRate Calcs'!$H$7:$H$4761,MATCH('USDA ESALQ weekly IPPs'!B29,'ExRate Calcs'!$C$7:$C$4761,0)) -> 1.638350414 | T29: =INDEX('ESALQ calcs'!$D$7:$D$1995,MATCH('USDA ESALQ weekly IPPs'!B29,'ESALQ calcs'!$C$7:$C$1995,0)) -> 0.4494 | U29: 0.1 | V29: =Other_Inputs!$F$16 -> 0.1 | W29: 0.06906375 | Y29: 0.5420335303 | Z29: 0.06103700353 | AA29: 0.06103700353 | AB29: 0.6641075374 | AC29: 0.08329966228 | AD29: 0.002989628799 | AE29: 0.0265643015 | AG29: 0.77696113 | AI29: =IFERROR(INDEX('USDA calcs'!$G$12:$G$4000,MATCH($B29,'USDA calcs'!$C$12:$C$4000,0)),IFERROR(INDEX('USDA historical daily prices'!$AA$14:$AA$3707,MATCH($B29,'USDA historical daily prices'!$C$14:$C$3707,0)),AI28)) -> 0.5745744847 | AJ29: =Other_Inputs!$F$23 -> 0.0553 | AK29: =Other_Inputs!$F$25 -> 0.0242 | AL29: 0.6540744847 | AN29: =Other_Inputs!$F$28 -> 0.069995124 | AP29: 0.6930098717 | AQ29: 0.06669883006 | AR29: 0.02918827644 | AS29: 0.7888969782 | AT29: 0.08442301773 | AU29: 0.003493279984 | AV29: =AS29*Other_Inputs!$F$40 -> 0 | AX29: 0.876813276
B30: 2007-05-25 | D30: Brazil | E30: 0.4764917746 | F30: 0.06251242544 | G30: 0.06251242544 | H30: 0.08403551786 | I30: 0.002742208573 | J30: 0.02406066502 | L30: =IF(B30<Other_Inputs!$D$45,Other_Inputs!$F$45,INDEX(Other_Inputs!$F$45:$F$46,MATCH(B30,Other_Inputs!$D$45:$D$46,1))) -> 0.395 | M30: =IF(B30<Other_Inputs!$D$51,Other_Inputs!$F$51,INDEX(Other_Inputs!$F$51:$F$52,MATCH(B30,Other_Inputs!$D$51:$D$52,1))) -> 0.001917999 | N30: 0.03 | O30: 0.015 | Q30: =INDEX('ExRate Calcs'!$E$7:$E$4761,MATCH(B30,'ExRate Calcs'!$C$7:$C$4761,0)) -> 0.82184 | R30: =INDEX('ExRate Calcs'!$H$7:$H$4761,MATCH('USDA ESALQ weekly IPPs'!B30,'ExRate Calcs'!$C$7:$C$4761,0)) -> 1.599681972 | T30: =INDEX('ESALQ calcs'!$D$7:$D$1995,MATCH('USDA ESALQ weekly IPPs'!B30,'ESALQ calcs'!$C$7:$C$1995,0)) -> 0.3916 | U30: 0.1 | V30: =Other_Inputs!$F$16 -> 0.1 | W30: 0.06906375 | Y30: 0.4764917746 | Z30: 0.06251242544 | AA30: 0.06251242544 | AB30: 0.6015166254 | AC30: 0.08403551786 | AD30: 0.002742208573 | AE30: 0.02406066502 | AG30: 0.7123550169 | AI30: =IFERROR(INDEX('USDA calcs'!$G$12:$G$4000,MATCH($B30,'USDA calcs'!$C$12:$C$4000,0)),IFERROR(INDEX('USDA historical daily prices'!$AA$14:$AA$3707,MATCH($B30,'USDA historical daily prices'!$C$14:$C$3707,0)),AI29)) -> 0.5679701802 | AJ30: =Other_Inputs!$F$23 -> 0.0553 | AK30: =Other_Inputs!$F$25 -> 0.0242 | AL30: 0.6474701802 | AN30: =Other_Inputs!$F$28 -> 0.069995124 | AP30: 0.6910958097 | AQ30: 0.0672880366 | AR30: 0.0294461209 | AS30: 0.7878299672 | AT30: 0.08516879685 | AU30: 0.003491995056 | AV30: =AS30*Other_Inputs!$F$40 -> 0 | AX30: 0.8764907591
B31: 2007-06-01 | D31: Brazil | E31: 0.4439928942 | F31: 0.06303505395 | G31: 0.06303505395 | H31: 0.08403347285 | I31: 0.0026163859 | J31: 0.02280252008 | L31: =IF(B31<Other_Inputs!$D$45,Other_Inputs!$F$45,INDEX(Other_Inputs!$F$45:$F$46,MATCH(B31,Other_Inputs!$D$45:$D$46,1))) -> 0.395 | M31: =IF(B31<Other_Inputs!$D$51,Other_Inputs!$F$51,INDEX(Other_Inputs!$F$51:$F$52,MATCH(B31,Other_Inputs!$D$51:$D$52,1))) -> 0.001917999 | N31: 0.03 | O31: 0.015 | Q31: =INDEX('ExRate Calcs'!$E$7:$E$4761,MATCH(B31,'ExRate Calcs'!$C$7:$C$4761,0)) -> 0.82186 | R31: =INDEX('ExRate Calcs'!$H$7:$H$4761,MATCH('USDA ESALQ weekly IPPs'!B31,'ExRate Calcs'!$C$7:$C$4761,0)) -> 1.586418885 | T31: =INDEX('ESALQ calcs'!$D$7:$D$1995,MATCH('USDA ESALQ weekly IPPs'!B31,'ESALQ calcs'!$C$7:$C$1995,0)) -> 0.3649 | U31: 0.1 | V31: =Other_Inputs!$F$16 -> 0.1 | W31: 0.06906375 | Y31: 0.4439928942 | Z31: 0.06303505395 | AA31: 0.06303505395 | AB31: 0.5700630021 | AC31: 0.08403347285 | AD31: 0.0026163859 | AE31: 0.02280252008 | AG31: 0.6795153809 | AI31: =IFERROR(INDEX('USDA calcs'!$G$12:$G$4000,MATCH($B31,'USDA calcs'!$C$12:$C$4000,0)),IFERROR(INDEX('USDA historical daily prices'!$AA$14:$AA$3707,MATCH($B31,'USDA historical daily prices'!$C$14:$C$3707,0)),AI30)) -> 0.5745744847 | AJ31: =Other_Inputs!$F$23 -> 0.0553 | AK31: =Other_Inputs!$F$25 -> 0.0242 | AL31: 0.6540744847 | AN31: =Other_Inputs!$F$28 -> 0.069995124 | AP31: 0.6991147941 | AQ31: 0.06728639914 | AR31: 0.02944540433 | AS31: 0.7958465976 | AT31: 0.08516672426 | AU31: 0.003524053287 | AV31: =AS31*Other_Inputs!$F$40 -> 0 | AX31: 0.8845373751
B32: 2007-06-08 | D32: Brazil | E32: 0.4198700402 | F32: 0.06096385994 | G32: 0.06096385994 | H32: 0.08219330921 | I32: 0.002495964277 | J32: 0.0216719104 | L32: =IF(B32<Other_Inputs!$D$45,Other_Inputs!$F$45,INDEX(Other_Inputs!$F$45:$F$46,MATCH(B32,Other_Inputs!$D$45:$D$46,1))) -> 0.395 | M32: =IF(B32<Other_Inputs!$D$51,Other_Inputs!$F$51,INDEX(Other_Inputs!$F$51:$F$52,MATCH(B32,Other_Inputs!$D$51:$D$52,1))) -> 0.001917999 | N32: 0.03 | O32: 0.015 | Q32: =INDEX('ExRate Calcs'!$E$7:$E$4761,MATCH(B32,'ExRate Calcs'!$C$7:$C$4761,0)) -> 0.84026 | R32: =INDEX('ExRate Calcs'!$H$7:$H$4761,MATCH('USDA ESALQ weekly IPPs'!B32,'ExRate Calcs'!$C$7:$C$4761,0)) -> 1.640316084 | T32: =INDEX('ESALQ calcs'!$D$7:$D$1995,MATCH('USDA ESALQ weekly IPPs'!B32,'ESALQ calcs'!$C$7:$C$1995,0)) -> 0.3528 | U32: 0.1 | V32: =Other_Inputs!$F$16 -> 0.1 | W32: 0.06906375 | Y32: 0.4198700402 | Z32: 0.06096385994 | AA32: 0.06096385994 | AB32: 0.5417977601 | AC32: 0.08219330921 | AD32: 0.002495964277 | AE32: 0.0216719104 | AG32: 0.648158944 | AI32: =IFERROR(INDEX('USDA calcs'!$G$12:$G$4000,MATCH($B32,'USDA calcs'!$C$12:$C$4000,0)),IFERROR(INDEX('USDA historical daily prices'!$AA$14:$AA$3707,MATCH($B32,'USDA historical daily prices'!$C$14:$C$3707,0)),AI31)) -> 0.5587241541 | AJ32: =Other_Inputs!$F$23 -> 0.0553 | AK32: =Other_Inputs!$F$25 -> 0.0242 | AL32: 0.6382241541 | AN32: =Other_Inputs!$F$28 -> 0.069995124 | AP32: 0.6649419871 | AQ32: 0.06581296265 | AR32: 0.02880060934 | AS32: 0.7595555591 | AT32: 0.0833017447 | AU32: 0.003371429215 | AV32: =AS32*Other_Inputs!$F$40 -> 0 | AX32: 0.846228733
B33: 2007-06-15 | D33: Brazil | E33: 0.4145114729 | F33: 0.06162789043 | G33: 0.06162789043 | H33: 0.08221630309 | I33: 0.002479934227 | J33: 0.02151069015 | L33: =IF(B33<Other_Inputs!$D$45,Other_Inputs!$F$45,INDEX(Other_Inputs!$F$45:$F$46,MATCH(B33,Other_Inputs!$D$45:$D$46,1))) -> 0.395 | M33: =IF(B33<Other_Inputs!$D$51,Other_Inputs!$F$51,INDEX(Other_Inputs!$F$51:$F$52,MATCH(B33,Other_Inputs!$D$51:$D$52,1))) -> 0.001917999 | N33: 0.03 | O33: 0.015 | Q33: =INDEX('ExRate Calcs'!$E$7:$E$4761,MATCH(B33,'ExRate Calcs'!$C$7:$C$4761,0)) -> 0.840025 | R33: =INDEX('ExRate Calcs'!$H$7:$H$4761,MATCH('USDA ESALQ weekly IPPs'!B33,'ExRate Calcs'!$C$7:$C$4761,0)) -> 1.622641945 | T33: =INDEX('ESALQ calcs'!$D$7:$D$1995,MATCH('USDA ESALQ weekly IPPs'!B33,'ESALQ calcs'!$C$7:$C$1995,0)) -> 0.3482 | U33: 0.1 | V33: =Other_Inputs!$F$16 -> 0.1 | W33: 0.06906375 | Y33: 0.4145114729 | Z33: 0.06162789043 | AA33: 0.06162789043 | AB33: 0.5377672537 | AC33: 0.08221630309 | AD33: 0.002479934227 | AE33: 0.02151069015 | AG33: 0.6439741812 | AI33: =IFERROR(INDEX('USDA calcs'!$G$12:$G$4000,MATCH($B33,'USDA calcs'!$C$12:$C$4000,0)),IFERROR(INDEX('USDA historical daily prices'!$AA$14:$AA$3707,MATCH($B33,'USDA historical daily prices'!$C$14:$C$3707,0)),AI32)) -> 0.5402321017 | AJ33: =Other_Inputs!$F$23 -> 0.0553 | AK33: =Other_Inputs!$F$25 -> 0.0242 | AL33: 0.6197321017 | AN33: =Other_Inputs!$F$28 -> 0.069995124 | AP33: 0.6431143141 | AQ33: 0.06583137407 | AR33: 0.02880866641 | AS33: 0.7377543545 | AT33: 0.08332504866 | AU33: 0.003284317613 | AV33: =AS33*Other_Inputs!$F$40 -> 0 | AX33: 0.8243637208
B34: 2007-06-22 | D34: Brazil | E34: 0.4122991742 | F34: 0.0618488613 | G34: 0.0618488613 | H34: 0.08170710787 | I34: 0.002470816019 | J34: 0.02143987587 | L34: =IF(B34<Other_Inputs!$D$45,Other_Inputs!$F$45,INDEX(Other_Inputs!$F$45:$F$46,MATCH(B34,Other_Inputs!$D$45:$D$46,1))) -> 0.395 | M34: =IF(B34<Other_Inputs!$D$51,Other_Inputs!$F$51,INDEX(Other_Inputs!$F$51:$F$52,MATCH(B34,Other_Inputs!$D$51:$D$52,1))) -> 0.001917999 | N34: 0.03 | O34: 0.015 | Q34: =INDEX('ExRate Calcs'!$E$7:$E$4761,MATCH(B34,'ExRate Calcs'!$C$7:$C$4761,0)) -> 0.84526 | R34: =INDEX('ExRate Calcs'!$H$7:$H$4761,MATCH('USDA ESALQ weekly IPPs'!B34,'ExRate Calcs'!$C$7:$C$4761,0)) -> 1.616844642 | T34: =INDEX('ESALQ calcs'!$D$7:$D$1995,MATCH('USDA ESALQ weekly IPPs'!B34,'ESALQ calcs'!$C$7:$C$1995,0)) -> 0.3485 | U34: 0.1 | V34: =Other_Inputs!$F$16 -> 0.1 | W34: 0.06906375 | Y34: 0.4122991742 | Z34: 0.0618488613 | AA34: 0.0618488613 | AB34: 0.5359968968 | AC34: 0.08170710787 | AD34: 0.002470816019 | AE34: 0.02143987587 | AG34: 0.6416146966 | AI34: =IFERROR(INDEX('USDA calcs'!$G$12:$G$4000,MATCH($B34,'USDA calcs'!$C$12:$C$4000,0)),IFERROR(INDEX('USDA historical daily prices'!$AA$14:$AA$3707,MATCH($B34,'USDA historical daily prices'!$C$14:$C$3707,0)),AI33)) -> 0.5375903799 | AJ34: =Other_Inputs!$F$23 -> 0.0553 | AK34: =Other_Inputs!$F$25 -> 0.0242 | AL34: 0.6170903799 | AN34: =Other_Inputs!$F$28 -> 0.069995124 | AP34: 0.6360059389 | AQ34: 0.06542365663 | AR34: 0.02863024395 | AS34: 0.7300598395 | AT34: 0.08280898658 | AU34: 0.003251475304 | AV34: =AS34*Other_Inputs!$F$40 -> 0 | AX34: 0.8161203014
B35: 2007-06-29 | D35: Brazil | E35: 0.4037369915 | F35: 0.06106428672 | G35: 0.06106428672 | H35: 0.08167425497 | I35: 0.00243015928 | J35: 0.0210346226 | L35: =IF(B35<Other_Inputs!$D$45,Other_Inputs!$F$45,INDEX(Other_Inputs!$F$45:$F$46,MATCH(B35,Other_Inputs!$D$45:$D$46,1))) -> 0.395 | M35: =IF(B35<Other_Inputs!$D$51,Other_Inputs!$F$51,INDEX(Other_Inputs!$F$51:$F$52,MATCH(B35,Other_Inputs!$D$51:$D$52,1))) -> 0.001917999 | N35: 0.03 | O35: 0.015 | Q35: =INDEX('ExRate Calcs'!$E$7:$E$4761,MATCH(B35,'ExRate Calcs'!$C$7:$C$4761,0)) -> 0.8456 | R35: =INDEX('ExRate Calcs'!$H$7:$H$4761,MATCH('USDA ESALQ weekly IPPs'!B35,'ExRate Calcs'!$C$7:$C$4761,0)) -> 1.637618408 | T35: =INDEX('ESALQ calcs'!$D$7:$D$1995,MATCH('USDA ESALQ weekly IPPs'!B35,'ESALQ calcs'!$C$7:$C$1995,0)) -> 0.3414 | U35: 0.1 | V35: =Other_Inputs!$F$16 -> 0.1 | W35: 0.06906375 | Y35: 0.4037369915 | Z35: 0.06106428672 | AA35: 0.06106428672 | AB35: 0.5258655649 | AC35: 0.08167425497 | AD35: 0.00243015928 | AE35: 0.0210346226 | AG35: 0.6310046018 | AI35: =IFERROR(INDEX('USDA calcs'!$G$12:$G$4000,MATCH($B35,'USDA calcs'!$C$12:$C$4000,0)),IFERROR(INDEX('USDA historical daily prices'!$AA$14:$AA$3707,MATCH($B35,'USDA historical daily prices'!$C$14:$C$3707,0)),AI34)) -> 0.5237213406 | AJ35: =Other_Inputs!$F$23 -> 0.0553 | AK35: =Other_Inputs!$F$25 -> 0.0242 | AL35: 0.6032213406 | AN35: =Other_Inputs!$F$28 -> 0.069995124 | AP35: 0.6193487945 | AQ35: 0.06539735099 | AR35: 0.02861873226 | AS35: 0.7133648777 | AT35: 0.08277569063 | AU35: 0.003184562274 | AV35: =AS35*Other_Inputs!$F$40 -> 0 | AX35: 0.7993251307
B36: 2007-07-06 | D36: Brazil | E36: 0.4057683326 | F36: 0.06111928498 | G36: 0.06111928498 | H36: 0.0806442667 | I36: 0.002434604677 | J36: 0.0211202761 | L36: =IF(B36<Other_Inputs!$D$45,Other_Inputs!$F$45,INDEX(Other_Inputs!$F$45:$F$46,MATCH(B36,Other_Inputs!$D$45:$D$46,1))) -> 0.395 | M36: =IF(B36<Other_Inputs!$D$51,Other_Inputs!$F$51,INDEX(Other_Inputs!$F$51:$F$52,MATCH(B36,Other_Inputs!$D$51:$D$52,1))) -> 0.001917999 | N36: 0.03 | O36: 0.015 | Q36: =INDEX('ExRate Calcs'!$E$7:$E$4761,MATCH(B36,'ExRate Calcs'!$C$7:$C$4761,0)) -> 0.8564 | R36: =INDEX('ExRate Calcs'!$H$7:$H$4761,MATCH('USDA ESALQ weekly IPPs'!B36,'ExRate Calcs'!$C$7:$C$4761,0)) -> 1.636144795 | T36: =INDEX('ESALQ calcs'!$D$7:$D$1995,MATCH('USDA ESALQ weekly IPPs'!B36,'ESALQ calcs'!$C$7:$C$1995,0)) -> 0.3475 | U36: 0.1 | V36: =Other_Inputs!$F$16 -> 0.1 | W36: 0.06906375 | Y36: 0.4057683326 | Z36: 0.06111928498 | AA36: 0.06111928498 | AB36: 0.5280069025 | AC36: 0.0806442667 | AD36: 0.002434604677 | AE36: 0.0211202761 | AG36: 0.63220605 | AI36: =IFERROR(INDEX('USDA calcs'!$G$12:$G$4000,MATCH($B36,'USDA calcs'!$C$12:$C$4000,0)),IFERROR(INDEX('USDA historical daily prices'!$AA$14:$AA$3707,MATCH($B36,'USDA historical daily prices'!$C$14:$C$3707,0)),AI35)) -> 0.5257026319 | AJ36: =Other_Inputs!$F$23 -> 0.0553 | AK36: =Other_Inputs!$F$25 -> 0.0242 | AL36: 0.6052026319 | AN36: =Other_Inputs!$F$28 -> 0.069995124 | AP36: 0.6138517421 | AQ36: 0.06457262961 | AR36: 0.02825782345 | AS36: 0.7066821952 | AT36: 0.08173181224 | AU36: 0.00315365603 | AV36: =AS36*Other_Inputs!$F$40 -> 0 | AX36: 0.7915676634
B37: 2007-07-13 | D37: Brazil | E37: 0.4088174491 | F37: 0.06161373715 | G37: 0.06161373715 | H37: 0.08021155142 | I37: 0.002449025899 | J37: 0.02128179693 | L37: =IF(B37<Other_Inputs!$D$45,Other_Inputs!$F$45,INDEX(Other_Inputs!$F$45:$F$46,MATCH(B37,Other_Inputs!$D$45:$D$46,1))) -> 0.395 | M37: =IF(B37<Other_Inputs!$D$51,Other_Inputs!$F$51,INDEX(Other_Inputs!$F$51:$F$52,MATCH(B37,Other_Inputs!$D$51:$D$52,1))) -> 0.001917999 | N37: 0.03 | O37: 0.015 | Q37: =INDEX('ExRate Calcs'!$E$7:$E$4761,MATCH(B37,'ExRate Calcs'!$C$7:$C$4761,0)) -> 0.86102 | R37: =INDEX('ExRate Calcs'!$H$7:$H$4761,MATCH('USDA ESALQ weekly IPPs'!B37,'ExRate Calcs'!$C$7:$C$4761,0)) -> 1.623014682 | T37: =INDEX('ESALQ calcs'!$D$7:$D$1995,MATCH('USDA ESALQ weekly IPPs'!B37,'ESALQ calcs'!$C$7:$C$1995,0)) -> 0.352 | U37: 0.1 | V37: =Other_Inputs!$F$16 -> 0.1 | W37: 0.06906375 | Y37: 0.4088174491 | Z37: 0.06161373715 | AA37: 0.06161373715 | AB37: 0.5320449234 | AC37: 0.08021155142 | AD37: 0.002449025899 | AE37: 0.02128179693 | AG37: 0.6359872976 | AI37: =IFERROR(INDEX('USDA calcs'!$G$12:$G$4000,MATCH($B37,'USDA calcs'!$C$12:$C$4000,0)),IFERROR(INDEX('USDA historical daily prices'!$AA$14:$AA$3707,MATCH($B37,'USDA historical daily prices'!$C$14:$C$3707,0)),AI36)) -> 0.5124940231 | AJ37: =Other_Inputs!$F$23 -> 0.0553 | AK37: =Other_Inputs!$F$25 -> 0.0242 | AL37: 0.5919940231 | AN37: =Other_Inputs!$F$28 -> 0.069995124 | AP37: 0.5952173272 | AQ37: 0.06422615038 | AR37: 0.02810619962 | AS37: 0.6875496772 | AT37: 0.08129326148 | AU37: 0.003075371755 | AV37: =AS37*Other_Inputs!$F$40 -> 0 | AX37: 0.7719183105
B38: 2007-07-20 | D38: Brazil | E38: 0.410372838 | F38: 0.0612962034 | G38: 0.0612962034 | H38: 0.07879312509 | I38: 0.00244703348 | J38: 0.02131860979 | L38: =IF(B38<Other_Inputs!$D$45,Other_Inputs!$F$45,INDEX(Other_Inputs!$F$45:$F$46,MATCH(B38,Other_Inputs!$D$45:$D$46,1))) -> 0.395 | M38: =IF(B38<Other_Inputs!$D$51,Other_Inputs!$F$51,INDEX(Other_Inputs!$F$51:$F$52,MATCH(B38,Other_Inputs!$D$51:$D$52,1))) -> 0.001917999 | N38: 0.03 | O38: 0.015 | Q38: =INDEX('ExRate Calcs'!$E$7:$E$4761,MATCH(B38,'ExRate Calcs'!$C$7:$C$4761,0)) -> 0.87652 | R38: =INDEX('ExRate Calcs'!$H$7:$H$4761,MATCH('USDA ESALQ weekly IPPs'!B38,'ExRate Calcs'!$C$7:$C$4761,0)) -> 1.631422412 | T38: =INDEX('ESALQ calcs'!$D$7:$D$1995,MATCH('USDA ESALQ weekly IPPs'!B38,'ESALQ calcs'!$C$7:$C$1995,0)) -> 0.3597 | U38: 0.1 | V38: =Other_Inputs!$F$16 -> 0.1 | W38: 0.06906375 | Y38: 0.410372838 | Z38: 0.0612962034 | AA38: 0.0612962034 | AB38: 0.5329652448 | AC38: 0.07879312509 | AD38: 0.00244703348 | AE38: 0.02131860979 | AG38: 0.6355240132 | AI38: =IFERROR(INDEX('USDA calcs'!$G$12:$G$4000,MATCH($B38,'USDA calcs'!$C$12:$C$4000,0)),IFERROR(INDEX('USDA historical daily prices'!$AA$14:$AA$3707,MATCH($B38,'USDA historical daily prices'!$C$14:$C$3707,0)),AI37)) -> 0.5157961753 | AJ38: =Other_Inputs!$F$23 -> 0.0553 | AK38: =Other_Inputs!$F$25 -> 0.0242 | AL38: 0.5952961753 | AN38: =Other_Inputs!$F$28 -> 0.069995124 | AP38: 0.5884591057 | AQ38: 0.06309040296 | AR38: 0.02760918176 | AS38: 0.6791586904 | AT38: 0.07985570666 | AU38: 0.003036057588 | AV38: =AS38*Other_Inputs!$F$40 -> 0 | AX38: 0.7620504547
B39: 2007-07-27 | D39: Brazil | E39: 0.4074342866 | F39: 0.06049436842 | G39: 0.06049436842 | H39: 0.07831600254 | I39: 0.002426956104 | J39: 0.02113692094 | L39: =IF(B39<Other_Inputs!$D$45,Other_Inputs!$F$45,INDEX(Other_Inputs!$F$45:$F$46,MATCH(B39,Other_Inputs!$D$45:$D$46,1))) -> 0.395 | M39: =IF(B39<Other_Inputs!$D$51,Other_Inputs!$F$51,INDEX(Other_Inputs!$F$51:$F$52,MATCH(B39,Other_Inputs!$D$51:$D$52,1))) -> 0.001917999 | N39: 0.03 | O39: 0.015 | Q39: =INDEX('ExRate Calcs'!$E$7:$E$4761,MATCH(B39,'ExRate Calcs'!$C$7:$C$4761,0)) -> 0.88186 | R39: =INDEX('ExRate Calcs'!$H$7:$H$4761,MATCH('USDA ESALQ weekly IPPs'!B39,'ExRate Calcs'!$C$7:$C$4761,0)) -> 1.653046434 | T39: =INDEX('ESALQ calcs'!$D$7:$D$1995,MATCH('USDA ESALQ weekly IPPs'!B39,'ESALQ calcs'!$C$7:$C$1995,0)) -> 0.3593 | U39: 0.1 | V39: =Other_Inputs!$F$16 -> 0.1 | W39: 0.06906375 | Y39: 0.4074342866 | Z39: 0.06049436842 | AA39: 0.06049436842 | AB39: 0.5284230235 | AC39: 0.07831600254 | AD39: 0.002426956104 | AE39: 0.02113692094 | AG39: 0.6303029031 | AI39: =IFERROR(INDEX('USDA calcs'!$G$12:$G$4000,MATCH($B39,'USDA calcs'!$C$12:$C$4000,0)),IFERROR(INDEX('USDA historical daily prices'!$AA$14:$AA$3707,MATCH($B39,'USDA historical daily prices'!$C$14:$C$3707,0)),AI38)) -> 0.5204191884 | AJ39: =Other_Inputs!$F$23 -> 0.0553 | AK39: =Other_Inputs!$F$25 -> 0.0242 | AL39: 0.5999191884 | AN39: =Other_Inputs!$F$28 -> 0.069995124 | AP39: 0.590138104 | AQ39: 0.06270836641 | AR39: 0.0274419976 | AS39: 0.680288468 | AT39: 0.07937214977 | AU39: 0.003038642471 | AV39: =AS39*Other_Inputs!$F$40 -> 0 | AX39: 0.7626992603
B40: 2007-08-03 | D40: Brazil | E40: 0.4159045073 | F40: 0.06247833384 | G40: 0.06247833384 | H40: 0.08098089911 | I40: 0.002487368296 | J40: 0.021634447 | L40: =IF(B40<Other_Inputs!$D$45,Other_Inputs!$F$45,INDEX(Other_Inputs!$F$45:$F$46,MATCH(B40,Other_Inputs!$D$45:$D$46,1))) -> 0.395 | M40: =IF(B40<Other_Inputs!$D$51,Other_Inputs!$F$51,INDEX(Other_Inputs!$F$51:$F$52,MATCH(B40,Other_Inputs!$D$51:$D$52,1))) -> 0.001917999 | N40: 0.03 | O40: 0.015 | Q40: =INDEX('ExRate Calcs'!$E$7:$E$4761,MATCH(B40,'ExRate Calcs'!$C$7:$C$4761,0)) -> 0.85284 | R40: =INDEX('ExRate Calcs'!$H$7:$H$4761,MATCH('USDA ESALQ weekly IPPs'!B40,'ExRate Calcs'!$C$7:$C$4761,0)) -> 1.600554846 | T40: =INDEX('ESALQ calcs'!$D$7:$D$1995,MATCH('USDA ESALQ weekly IPPs'!B40,'ESALQ calcs'!$C$7:$C$1995,0)) -> 0.3547 | U40: 0.1 | V40: =Other_Inputs!$F$16 -> 0.1 | W40: 0.06906375 | Y40: 0.4159045073 | Z40: 0.06247833384 | AA40: 0.06247833384 | AB40: 0.540861175 | AC40: 0.08098089911 | AD40: 0.002487368296 | AE40: 0.021634447 | AG40: 0.6459638894 | AI40: =IFERROR(INDEX('USDA calcs'!$G$12:$G$4000,MATCH($B40,'USDA calcs'!$C$12:$C$4000,0)),IFERROR(INDEX('USDA historical daily prices'!$AA$14:$AA$3707,MATCH($B40,'USDA historical daily prices'!$C$14:$C$3707,0)),AI39)) -> 0.513814884 | AJ40: =Other_Inputs!$F$23 -> 0.0553 | AK40: =Other_Inputs!$F$25 -> 0.0242 | AL40: 0.593314884 | AN40: =Other_Inputs!$F$28 -> 0.069995124 | AP40: 0.6024751231 | AQ40: 0.06484217438 | AR40: 0.02837577975 | AS40: 0.6956930772 | AT40: 0.08207298438 | AU40: 0.003111064246 | AV40: =AS40*Other_Inputs!$F$40 -> 0 | AX40: 0.7808771259
B41: 2007-08-10 | D41: Brazil | E41: 0.4059495631 | F41: 0.06113139183 | G41: 0.06113139183 | H41: 0.08072674673 | I41: 0.002435756374 | J41: 0.02112849387 | L41: =IF(B41<Other_Inputs!$D$45,Other_Inputs!$F$45,INDEX(Other_Inputs!$F$45:$F$46,MATCH(B41,Other_Inputs!$D$45:$D$46,1))) -> 0.395 | M41: =IF(B41<Other_Inputs!$D$51,Other_Inputs!$F$51,INDEX(Other_Inputs!$F$51:$F$52,MATCH(B41,Other_Inputs!$D$51:$D$52,1))) -> 0.001917999 | N41: 0.03 | O41: 0.015 | Q41: =INDEX('ExRate Calcs'!$E$7:$E$4761,MATCH(B41,'ExRate Calcs'!$C$7:$C$4761,0)) -> 0.855525 | R41: =INDEX('ExRate Calcs'!$H$7:$H$4761,MATCH('USDA ESALQ weekly IPPs'!B41,'ExRate Calcs'!$C$7:$C$4761,0)) -> 1.635820762 | T41: =INDEX('ESALQ calcs'!$D$7:$D$1995,MATCH('USDA ESALQ weekly IPPs'!B41,'ESALQ calcs'!$C$7:$C$1995,0)) -> 0.3473 | U41: 0.1 | V41: =Other_Inputs!$F$16 -> 0.1 | W41: 0.06906375 | Y41: 0.4059495631 | Z41: 0.06113139183 | AA41: 0.06113139183 | AB41: 0.5282123468 | AC41: 0.08072674673 | AD41: 0.002435756374 | AE41: 0.02112849387 | AG41: 0.6325033438 | AI41: =IFERROR(INDEX('USDA calcs'!$G$12:$G$4000,MATCH($B41,'USDA calcs'!$C$12:$C$4000,0)),IFERROR(INDEX('USDA historical daily prices'!$AA$14:$AA$3707,MATCH($B41,'USDA historical daily prices'!$C$14:$C$3707,0)),AI40)) -> 0.4840955141 | AJ41: =Other_Inputs!$F$23 -> 0.0553 | AK41: =Other_Inputs!$F$25 -> 0.0242 | AL41: 0.5635955141 | AN41: =Other_Inputs!$F$28 -> 0.069995124 | AP41: 0.5658461344 | AQ41: 0.06463867216 | AR41: 0.02828672453 | AS41: 0.658771531 | AT41: 0.08181540458 | AU41: 0.002962347742 | AV41: =AS41*Other_Inputs!$F$40 -> 0 | AX41: 0.7435492834
B42: 2007-08-17 | D42: Brazil | E42: 0.4008433676 | F42: 0.06069200379 | G42: 0.06069200379 | H42: 0.08417070882 | I42: 0.002425592336 | J42: 0.02088909501 | L42: =IF(B42<Other_Inputs!$D$45,Other_Inputs!$F$45,INDEX(Other_Inputs!$F$45:$F$46,MATCH(B42,Other_Inputs!$D$45:$D$46,1))) -> 0.395 | M42: =IF(B42<Other_Inputs!$D$51,Other_Inputs!$F$51,INDEX(Other_Inputs!$F$51:$F$52,MATCH(B42,Other_Inputs!$D$51:$D$52,1))) -> 0.001917999 | N42: 0.03 | O42: 0.015 | Q42: =INDEX('ExRate Calcs'!$E$7:$E$4761,MATCH(B42,'ExRate Calcs'!$C$7:$C$4761,0)) -> 0.82052 | R42: =INDEX('ExRate Calcs'!$H$7:$H$4761,MATCH('USDA ESALQ weekly IPPs'!B42,'ExRate Calcs'!$C$7:$C$4761,0)) -> 1.64766351 | T42: =INDEX('ESALQ calcs'!$D$7:$D$1995,MATCH('USDA ESALQ weekly IPPs'!B42,'ESALQ calcs'!$C$7:$C$1995,0)) -> 0.3289 | U42: 0.1 | V42: =Other_Inputs!$F$16 -> 0.1 | W42: 0.06906375 | Y42: 0.4008433676 | Z42: 0.06069200379 | AA42: 0.06069200379 | AB42: 0.5222273752 | AC42: 0.08417070882 | AD42: 0.002425592336 | AE42: 0.02088909501 | AG42: 0.6297127714 | AI42: =IFERROR(INDEX('USDA calcs'!$G$12:$G$4000,MATCH($B42,'USDA calcs'!$C$12:$C$4000,0)),IFERROR(INDEX('USDA historical daily prices'!$AA$14:$AA$3707,MATCH($B42,'USDA historical daily prices'!$C$14:$C$3707,0)),AI41)) -> 0.4801329314 | AJ42: =Other_Inputs!$F$23 -> 0.0553 | AK42: =Other_Inputs!$F$25 -> 0.0242 | AL42: 0.5596329314 | AN42: =Other_Inputs!$F$28 -> 0.069995124 | AP42: 0.5851568901 | AQ42: 0.06739628528 | AR42: 0.02949349193 | AS42: 0.6820466673 | AT42: 0.08530581095 | AU42: 0.003069409913 | AV42: =AS42*Other_Inputs!$F$40 -> 0 | AX42: 0.7704218881
B43: 2007-08-24 | D43: Brazil | E43: 0.4117749046 | F43: 0.0616055214 | G43: 0.0616055214 | H43: 0.08552998217 | I43: 0.002482063718 | J43: 0.0213994379 | L43: =IF(B43<Other_Inputs!$D$45,Other_Inputs!$F$45,INDEX(Other_Inputs!$F$45:$F$46,MATCH(B43,Other_Inputs!$D$45:$D$46,1))) -> 0.395 | M43: =IF(B43<Other_Inputs!$D$51,Other_Inputs!$F$51,INDEX(Other_Inputs!$F$51:$F$52,MATCH(B43,Other_Inputs!$D$51:$D$52,1))) -> 0.001917999 | N43: 0.03 | O43: 0.015 | Q43: =INDEX('ExRate Calcs'!$E$7:$E$4761,MATCH(B43,'ExRate Calcs'!$C$7:$C$4761,0)) -> 0.80748 | R43: =INDEX('ExRate Calcs'!$H$7:$H$4761,MATCH('USDA ESALQ weekly IPPs'!B43,'ExRate Calcs'!$C$7:$C$4761,0)) -> 1.623231128 | T43: =INDEX('ESALQ calcs'!$D$7:$D$1995,MATCH('USDA ESALQ weekly IPPs'!B43,'ESALQ calcs'!$C$7:$C$1995,0)) -> 0.3325 | U43: 0.1 | V43: =Other_Inputs!$F$16 -> 0.1 | W43: 0.06906375 | Y43: 0.4117749046 | Z43: 0.0616055214 | AA43: 0.0616055214 | AB43: 0.5349859475 | AC43: 0.08552998217 | AD43: 0.002482063718 | AE43: 0.0213994379 | AG43: 0.6443974312 | AI43: =IFERROR(INDEX('USDA calcs'!$G$12:$G$4000,MATCH($B43,'USDA calcs'!$C$12:$C$4000,0)),IFERROR(INDEX('USDA historical daily prices'!$AA$14:$AA$3707,MATCH($B43,'USDA historical daily prices'!$C$14:$C$3707,0)),AI42)) -> 0.4623013095 | AJ43: =Other_Inputs!$F$23 -> 0.0553 | AK43: =Other_Inputs!$F$25 -> 0.0242 | AL43: 0.5418013095 | AN43: =Other_Inputs!$F$28 -> 0.069995124 | AP43: 0.5725235418 | AQ43: 0.06848466835 | AR43: 0.02996978253 | AS43: 0.6709779926 | AT43: 0.08668341507 | AU43: 0.003030645631 | AV43: =AS43*Other_Inputs!$F$40 -> 0 | AX43: 0.7606920533
B44: 2007-08-31 | D44: Brazil | E44: 0.4086585366 | F44: 0.06190295168 | G44: 0.06190295168 | H44: 0.08422408537 | I44: 0.002466754101 | J44: 0.0212985776 | L44: =IF(B44<Other_Inputs!$D$45,Other_Inputs!$F$45,INDEX(Other_Inputs!$F$45:$F$46,MATCH(B44,Other_Inputs!$D$45:$D$46,1))) -> 0.395 | M44: =IF(B44<Other_Inputs!$D$51,Other_Inputs!$F$51,INDEX(Other_Inputs!$F$51:$F$52,MATCH(B44,Other_Inputs!$D$51:$D$52,1))) -> 0.001917999 | N44: 0.03 | O44: 0.015 | Q44: =INDEX('ExRate Calcs'!$E$7:$E$4761,MATCH(B44,'ExRate Calcs'!$C$7:$C$4761,0)) -> 0.82 | R44: =INDEX('ExRate Calcs'!$H$7:$H$4761,MATCH('USDA ESALQ weekly IPPs'!B44,'ExRate Calcs'!$C$7:$C$4761,0)) -> 1.615431854 | T44: =INDEX('ESALQ calcs'!$D$7:$D$1995,MATCH('USDA ESALQ weekly IPPs'!B44,'ESALQ calcs'!$C$7:$C$1995,0)) -> 0.3351 | U44: 0.1 | V44: =Other_Inputs!$F$16 -> 0.1 | W44: 0.06906375 | Y44: 0.4086585366 | Z44: 0.06190295168 | AA44: 0.06190295168 | AB44: 0.5324644399 | AC44: 0.08422408537 | AD44: 0.002466754101 | AE44: 0.0212985776 | AG44: 0.640453857 | AI44: =IFERROR(INDEX('USDA calcs'!$G$12:$G$4000,MATCH($B44,'USDA calcs'!$C$12:$C$4000,0)),IFERROR(INDEX('USDA historical daily prices'!$AA$14:$AA$3707,MATCH($B44,'USDA historical daily prices'!$C$14:$C$3707,0)),AI43)) -> 0.4438092571 | AJ44: =Other_Inputs!$F$23 -> 0.0553 | AK44: =Other_Inputs!$F$25 -> 0.0242 | AL44: 0.5233092571 | AN44: =Other_Inputs!$F$28 -> 0.069995124 | AP44: 0.5412308014 | AQ44: 0.06743902439 | AR44: 0.02951219512 | AS44: 0.6381820209 | AT44: 0.08535990732 | AU44: 0.002894167713 | AV44: =AS44*Other_Inputs!$F$40 -> 0 | AX44: 0.7264360959
B45: 2007-09-07 | D45: Brazil | E45: 0.4103995389 | F45: 0.06198785672 | G45: 0.06198785672 | H45: 0.08380760246 | I45: 0.002472731419 | J45: 0.02137501009 | L45: =IF(B45<Other_Inputs!$D$45,Other_Inputs!$F$45,INDEX(Other_Inputs!$F$45:$F$46,MATCH(B45,Other_Inputs!$D$45:$D$46,1))) -> 0.395 | M45: =IF(B45<Other_Inputs!$D$51,Other_Inputs!$F$51,INDEX(Other_Inputs!$F$51:$F$52,MATCH(B45,Other_Inputs!$D$51:$D$52,1))) -> 0.001917999 | N45: 0.03 | O45: 0.015 | Q45: =INDEX('ExRate Calcs'!$E$7:$E$4761,MATCH(B45,'ExRate Calcs'!$C$7:$C$4761,0)) -> 0.824075 | R45: =INDEX('ExRate Calcs'!$H$7:$H$4761,MATCH('USDA ESALQ weekly IPPs'!B45,'ExRate Calcs'!$C$7:$C$4761,0)) -> 1.61321919 | T45: =INDEX('ESALQ calcs'!$D$7:$D$1995,MATCH('USDA ESALQ weekly IPPs'!B45,'ESALQ calcs'!$C$7:$C$1995,0)) -> 0.3382 | U45: 0.1 | V45: =Other_Inputs!$F$16 -> 0.1 | W45: 0.06906375 | Y45: 0.4103995389 | Z45: 0.06198785672 | AA45: 0.06198785672 | AB45: 0.5343752523 | AC45: 0.08380760246 | AD45: 0.002472731419 | AE45: 0.02137501009 | AG45: 0.6420305963 | AI45: =IFERROR(INDEX('USDA calcs'!$G$12:$G$4000,MATCH($B45,'USDA calcs'!$C$12:$C$4000,0)),IFERROR(INDEX('USDA historical daily prices'!$AA$14:$AA$3707,MATCH($B45,'USDA historical daily prices'!$C$14:$C$3707,0)),AI44)) -> 0.422675483 | AJ45: =Other_Inputs!$F$23 -> 0.0553 | AK45: =Other_Inputs!$F$25 -> 0.0242 | AL45: 0.502175483 | AN45: =Other_Inputs!$F$28 -> 0.069995124 | AP45: 0.5129089985 | AQ45: 0.06710554258 | AR45: 0.02936625914 | AS45: 0.6093808003 | AT45: 0.08493780785 | AU45: 0.002777274432 | AV45: =AS45*Other_Inputs!$F$40 -> 0 | AX45: 0.6970958825
B46: 2007-09-14 | D46: Brazil | E46: 0.4138734713 | F46: 0.0626284009 | G46: 0.0626284009 | H46: 0.0829714193 | I46: 0.002488406769 | J46: 0.02156521092 | L46: =IF(B46<Other_Inputs!$D$45,Other_Inputs!$F$45,INDEX(Other_Inputs!$F$45:$F$46,MATCH(B46,Other_Inputs!$D$45:$D$46,1))) -> 0.395 | M46: =IF(B46<Other_Inputs!$D$51,Other_Inputs!$F$51,INDEX(Other_Inputs!$F$51:$F$52,MATCH(B46,Other_Inputs!$D$51:$D$52,1))) -> 0.001917999 | N46: 0.03 | O46: 0.015 | Q46: =INDEX('ExRate Calcs'!$E$7:$E$4761,MATCH(B46,'ExRate Calcs'!$C$7:$C$4761,0)) -> 0.83238 | R46: =INDEX('ExRate Calcs'!$H$7:$H$4761,MATCH('USDA ESALQ weekly IPPs'!B46,'ExRate Calcs'!$C$7:$C$4761,0)) -> 1.596719676 | T46: =INDEX('ESALQ calcs'!$D$7:$D$1995,MATCH('USDA ESALQ weekly IPPs'!B46,'ESALQ calcs'!$C$7:$C$1995,0)) -> 0.3445 | U46: 0.1 | V46: =Other_Inputs!$F$16 -> 0.1 | W46: 0.06906375 | Y46: 0.4138734713 | Z46: 0.0626284009 | AA46: 0.0626284009 | AB46: 0.5391302731 | AC46: 0.0829714193 | AD46: 0.002488406769 | AE46: 0.02156521092 | AG46: 0.6461553101 | AI46: =IFERROR(INDEX('USDA calcs'!$G$12:$G$4000,MATCH($B46,'USDA calcs'!$C$12:$C$4000,0)),IFERROR(INDEX('USDA historical daily prices'!$AA$14:$AA$3707,MATCH($B46,'USDA historical daily prices'!$C$14:$C$3707,0)),AI45)) -> 0.4068251524 | AJ46: =Other_Inputs!$F$23 -> 0.0553 | AK46: =Other_Inputs!$F$25 -> 0.0242 | AL46: 0.4863251524 | AN46: =Other_Inputs!$F$28 -> 0.069995124 | AP46: 0.488749312 | AQ46: 0.06643600279 | AR46: 0.02907325981 | AS46: 0.5842585746 | AT46: 0.08409034816 | AU46: 0.002673395691 | AV46: =AS46*Other_Inputs!$F$40 -> 0 | AX46: 0.6710223185
B47: 2007-09-21 | D47: Brazil | E47: 0.4126424627 | F47: 0.06249744143 | G47: 0.06249744143 | H47: 0.08114645753 | I47: 0.002475135212 | J47: 0.02150549382 | L47: =IF(B47<Other_Inputs!$D$45,Other_Inputs!$F$45,INDEX(Other_Inputs!$F$45:$F$46,MATCH(B47,Other_Inputs!$D$45:$D$46,1))) -> 0.395 | M47: =IF(B47<Other_Inputs!$D$51,Other_Inputs!$F$51,INDEX(Other_Inputs!$F$51:$F$52,MATCH(B47,Other_Inputs!$D$51:$D$52,1))) -> 0.001917999 | N47: 0.03 | O47: 0.015 | Q47: =INDEX('ExRate Calcs'!$E$7:$E$4761,MATCH(B47,'ExRate Calcs'!$C$7:$C$4761,0)) -> 0.8511 | R47: =INDEX('ExRate Calcs'!$H$7:$H$4761,MATCH('USDA ESALQ weekly IPPs'!B47,'ExRate Calcs'!$C$7:$C$4761,0)) -> 1.600065502 | T47: =INDEX('ESALQ calcs'!$D$7:$D$1995,MATCH('USDA ESALQ weekly IPPs'!B47,'ESALQ calcs'!$C$7:$C$1995,0)) -> 0.3512 | U47: 0.1 | V47: =Other_Inputs!$F$16 -> 0.1 | W47: 0.06906375 | Y47: 0.4126424627 | Z47: 0.06249744143 | AA47: 0.06249744143 | AB47: 0.5376373456 | AC47: 0.08114645753 | AD47: 0.002475135212 | AE47: 0.02150549382 | AG47: 0.6427644321 | AI47: =IFERROR(INDEX('USDA calcs'!$G$12:$G$4000,MATCH($B47,'USDA calcs'!$C$12:$C$4000,0)),IFERROR(INDEX('USDA historical daily prices'!$AA$14:$AA$3707,MATCH($B47,'USDA historical daily prices'!$C$14:$C$3707,0)),AI46)) -> 0.4015417088 | AJ47: =Other_Inputs!$F$23 -> 0.0553 | AK47: =Other_Inputs!$F$25 -> 0.0242 | AL47: 0.4810417088 | AN47: =Other_Inputs!$F$28 -> 0.069995124 | AP47: 0.4717914567 | AQ47: 0.06497473857 | AR47: 0.02843379156 | AS47: 0.5651999869 | AT47: 0.08224077547 | AU47: 0.002589763049 | AV47: =AS47*Other_Inputs!$F$40 -> 0 | AX47: 0.6500305254
B48: 2007-09-28 | D48: US | E48: 0.4559542449 | F48: 0.06331432759 | G48: 0.0277071741 | H48: 0.08013913581 | I48: 0.00250845953 | J48: 0 | L48: =IF(B48<Other_Inputs!$D$45,Other_Inputs!$F$45,INDEX(Other_Inputs!$F$45:$F$46,MATCH(B48,Other_Inputs!$D$45:$D$46,1))) -> 0.395 | M48: =IF(B48<Other_Inputs!$D$51,Other_Inputs!$F$51,INDEX(Other_Inputs!$F$51:$F$52,MATCH(B48,Other_Inputs!$D$51:$D$52,1))) -> 0.001917999 | N48: 0.03 | O48: 0.015 | Q48: =INDEX('ExRate Calcs'!$E$7:$E$4761,MATCH(B48,'ExRate Calcs'!$C$7:$C$4761,0)) -> 0.87342 | R48: =INDEX('ExRate Calcs'!$H$7:$H$4761,MATCH('USDA ESALQ weekly IPPs'!B48,'ExRate Calcs'!$C$7:$C$4761,0)) -> 1.61783734 | T48: =INDEX('ESALQ calcs'!$D$7:$D$1995,MATCH('USDA ESALQ weekly IPPs'!B48,'ESALQ calcs'!$C$7:$C$1995,0)) -> 0.3567 | U48: 0.1 | V48: =Other_Inputs!$F$16 -> 0.1 | W48: 0.06906375 | Y48: 0.4083945868 | Z48: 0.0618109111 | AA48: 0.0618109111 | AB48: 0.532016409 | AC48: 0.07907278285 | AD48: 0.002444356767 | AE48: 0.02128065636 | AG48: 0.634814205 | AI48: =IFERROR(INDEX('USDA calcs'!$G$12:$G$4000,MATCH($B48,'USDA calcs'!$C$12:$C$4000,0)),IFERROR(INDEX('USDA historical daily prices'!$AA$14:$AA$3707,MATCH($B48,'USDA historical daily prices'!$C$14:$C$3707,0)),AI47)) -> 0.3982395566 | AJ48: =Other_Inputs!$F$23 -> 0.0553 | AK48: =Other_Inputs!$F$25 -> 0.0242 | AL48: 0.4777395566 | AN48: =Other_Inputs!$F$28 -> 0.069995124 | AP48: 0.4559542449 | AQ48: 0.06331432759 | AR48: 0.0277071741 | AS48: 0.5469757466 | AT48: 0.08013913581 | AU48: 0.00250845953 | AV48: =AS48*Other_Inputs!$F$40 -> 0 | AX48: 0.629623342
B49: 2007-10-05 | D49: US | E49: 0.4474587305 | F49: 0.0624453039 | G49: 0.02732687802 | H49: 0.07903918245 | I49: 0.00246508038 | J49: 0 | L49: =IF(B49<Other_Inputs!$D$45,Other_Inputs!$F$45,INDEX(Other_Inputs!$F$45:$F$46,MATCH(B49,Other_Inputs!$D$45:$D$46,1))) -> 0.395 | M49: =IF(B49<Other_Inputs!$D$51,Other_Inputs!$F$51,INDEX(Other_Inputs!$F$51:$F$52,MATCH(B49,Other_Inputs!$D$51:$D$52,1))) -> 0.001917999 | N49: 0.03 | O49: 0.015 | Q49: =INDEX('ExRate Calcs'!$E$7:$E$4761,MATCH(B49,'ExRate Calcs'!$C$7:$C$4761,0)) -> 0.885575 | R49: =INDEX('ExRate Calcs'!$H$7:$H$4761,MATCH('USDA ESALQ weekly IPPs'!B49,'ExRate Calcs'!$C$7:$C$4761,0)) -> 1.61251018 | T49: =INDEX('ESALQ calcs'!$D$7:$D$1995,MATCH('USDA ESALQ weekly IPPs'!B49,'ESALQ calcs'!$C$7:$C$1995,0)) -> 0.3623 | U49: 0.1 | V49: =Other_Inputs!$F$16 -> 0.1 | W49: 0.06906375 | Y49: 0.4091127234 | Z49: 0.06201511236 | AA49: 0.06201511236 | AB49: 0.5331429481 | AC49: 0.07798746577 | AD49: 0.002444521655 | AE49: 0.02132571792 | AG49: 0.6349006534 | AI49: =IFERROR(INDEX('USDA calcs'!$G$12:$G$4000,MATCH($B49,'USDA calcs'!$C$12:$C$4000,0)),IFERROR(INDEX('USDA historical daily prices'!$AA$14:$AA$3707,MATCH($B49,'USDA historical daily prices'!$C$14:$C$3707,0)),AI48)) -> 0.3962582653 | AJ49: =Other_Inputs!$F$23 -> 0.0553 | AK49: =Other_Inputs!$F$25 -> 0.0242 | AL49: 0.4757582653 | AN49: =Other_Inputs!$F$28 -> 0.069995124 | AP49: 0.4474587305 | AQ49: 0.0624453039 | AR49: 0.02732687802 | AS49: 0.5372309124 | AT49: 0.07903918245 | AU49: 0.00246508038 | AV49: =AS49*Other_Inputs!$F$40 -> 0 | AX49: 0.6187351753
B50: 2007-10-12 | D50: US | E50: 0.4380916031 | F50: 0.06154839284 | G50: 0.02693437806 | H50: 0.07790393108 | I50: 0.00241791322 | J50: 0 | L50: =IF(B50<Other_Inputs!$D$45,Other_Inputs!$F$45,INDEX(Other_Inputs!$F$45:$F$46,MATCH(B50,Other_Inputs!$D$45:$D$46,1))) -> 0.395 | M50: =IF(B50<Other_Inputs!$D$51,Other_Inputs!$F$51,INDEX(Other_Inputs!$F$51:$F$52,MATCH(B50,Other_Inputs!$D$51:$D$52,1))) -> 0.001917999 | N50: 0.03 | O50: 0.015 | Q50: =INDEX('ExRate Calcs'!$E$7:$E$4761,MATCH(B50,'ExRate Calcs'!$C$7:$C$4761,0)) -> 0.89848 | R50: =INDEX('ExRate Calcs'!$H$7:$H$4761,MATCH('USDA ESALQ weekly IPPs'!B50,'ExRate Calcs'!$C$7:$C$4761,0)) -> 1.616852458 | T50: =INDEX('ESALQ calcs'!$D$7:$D$1995,MATCH('USDA ESALQ weekly IPPs'!B50,'ESALQ calcs'!$C$7:$C$1995,0)) -> 0.364 | U50: 0.1 | V50: =Other_Inputs!$F$16 -> 0.1 | W50: 0.06906375 | Y50: 0.4051286617 | Z50: 0.06184856231 | AA50: 0.06184856231 | AB50: 0.5288257864 | AC50: 0.07686732036 | AD50: 0.002422772427 | AE50: 0.02115303145 | AG50: 0.6292689106 | AI50: =IFERROR(INDEX('USDA calcs'!$G$12:$G$4000,MATCH($B50,'USDA calcs'!$C$12:$C$4000,0)),IFERROR(INDEX('USDA historical daily prices'!$AA$14:$AA$3707,MATCH($B50,'USDA historical daily prices'!$C$14:$C$3707,0)),AI49)) -> 0.3936165435 | AJ50: =Other_Inputs!$F$23 -> 0.0553 | AK50: =Other_Inputs!$F$25 -> 0.0242 | AL50: 0.4731165435 | AN50: =Other_Inputs!$F$28 -> 0.069995124 | AP50: 0.4380916031 | AQ50: 0.06154839284 | AR50: 0.02693437806 | AS50: 0.526574374 | AT50: 0.07790393108 | AU50: 0.00241791322 | AV50: =AS50*Other_Inputs!$F$40 -> 0 | AX50: 0.6068962183
B51: 2007-10-19 | D51: US | E51: 0.452925602 | F51: 0.06176700547 | G51: 0.02703004579 | H51: 0.07818063666 | I51: 0.00247961316 | J51: 0 | L51: =IF(B51<Other_Inputs!$D$45,Other_Inputs!$F$45,INDEX(Other_Inputs!$F$45:$F$46,MATCH(B51,Other_Inputs!$D$45:$D$46,1))) -> 0.395 | M51: =IF(B51<Other_Inputs!$D$51,Other_Inputs!$F$51,INDEX(Other_Inputs!$F$51:$F$52,MATCH(B51,Other_Inputs!$D$51:$D$52,1))) -> 0.001917999 | N51: 0.03 | O51: 0.015 | Q51: =INDEX('ExRate Calcs'!$E$7:$E$4761,MATCH(B51,'ExRate Calcs'!$C$7:$C$4761,0)) -> 0.8953 | R51: =INDEX('ExRate Calcs'!$H$7:$H$4761,MATCH('USDA ESALQ weekly IPPs'!B51,'ExRate Calcs'!$C$7:$C$4761,0)) -> 1.618150036 | T51: =INDEX('ESALQ calcs'!$D$7:$D$1995,MATCH('USDA ESALQ weekly IPPs'!B51,'ESALQ calcs'!$C$7:$C$1995,0)) -> 0.3643 | U51: 0.1 | V51: =Other_Inputs!$F$16 -> 0.1 | W51: 0.06906375 | Y51: 0.4069027142 | Z51: 0.06179896658 | AA51: 0.06179896658 | AB51: 0.5305006473 | AC51: 0.07714034402 | AD51: 0.002430563965 | AE51: 0.02122002589 | AG51: 0.6312915812 | AI51: =IFERROR(INDEX('USDA calcs'!$G$12:$G$4000,MATCH($B51,'USDA calcs'!$C$12:$C$4000,0)),IFERROR(INDEX('USDA historical daily prices'!$AA$14:$AA$3707,MATCH($B51,'USDA historical daily prices'!$C$14:$C$3707,0)),AI50)) -> 0.4055042915 | AJ51: =Other_Inputs!$F$23 -> 0.0553 | AK51: =Other_Inputs!$F$25 -> 0.0242 | AL51: 0.4850042915 | AN51: =Other_Inputs!$F$28 -> 0.069995124 | AP51: 0.452925602 | AQ51: 0.06176700547 | AR51: 0.02703004579 | AS51: 0.5417226533 | AT51: 0.07818063666 | AU51: 0.00247961316 | AV51: =AS51*Other_Inputs!$F$40 -> 0 | AX51: 0.6223829031
B52: 2007-10-26 | D52: US | E52: 0.469099577 | F52: 0.06156620872 | G52: 0.02694217452 | H52: 0.07792648126 | I52: 0.002542137766 | J52: 0 | L52: =IF(B52<Other_Inputs!$D$45,Other_Inputs!$F$45,INDEX(Other_Inputs!$F$45:$F$46,MATCH(B52,Other_Inputs!$D$45:$D$46,1))) -> 0.395 | M52: =IF(B52<Other_Inputs!$D$51,Other_Inputs!$F$51,INDEX(Other_Inputs!$F$51:$F$52,MATCH(B52,Other_Inputs!$D$51:$D$52,1))) -> 0.001917999 | N52: 0.03 | O52: 0.015 | Q52: =INDEX('ExRate Calcs'!$E$7:$E$4761,MATCH(B52,'ExRate Calcs'!$C$7:$C$4761,0)) -> 0.89822 | R52: =INDEX('ExRate Calcs'!$H$7:$H$4761,MATCH('USDA ESALQ weekly IPPs'!B52,'ExRate Calcs'!$C$7:$C$4761,0)) -> 1.614899756 | T52: =INDEX('ESALQ calcs'!$D$7:$D$1995,MATCH('USDA ESALQ weekly IPPs'!B52,'ESALQ calcs'!$C$7:$C$1995,0)) -> 0.3719 | U52: 0.1 | V52: =Other_Inputs!$F$16 -> 0.1 | W52: 0.06906375 | Y52: 0.4140411035 | Z52: 0.06192334826 | AA52: 0.06192334826 | AB52: 0.5378878 | AC52: 0.07688957048 | AD52: 0.002459109482 | AE52: 0.021515512 | AG52: 0.638751992 | AI52: =IFERROR(INDEX('USDA calcs'!$G$12:$G$4000,MATCH($B52,'USDA calcs'!$C$12:$C$4000,0)),IFERROR(INDEX('USDA historical daily prices'!$AA$14:$AA$3707,MATCH($B52,'USDA historical daily prices'!$C$14:$C$3707,0)),AI51)) -> 0.4213546221 | AJ52: =Other_Inputs!$F$23 -> 0.0553 | AK52: =Other_Inputs!$F$25 -> 0.0242 | AL52: 0.5008546221 | AN52: =Other_Inputs!$F$28 -> 0.069995124 | AP52: 0.469099577 | AQ52: 0.06156620872 | AR52: 0.02694217452 | AS52: 0.5576079603 | AT52: 0.07792648126 | AU52: 0.002542137766 | AV52: =AS52*Other_Inputs!$F$40 -> 0 | AX52: 0.6380765793
B53: 2007-11-02 | D53: US | E53: 0.4763821633 | F53: 0.05998351267 | G53: 0.02624956612 | H53: 0.07592320809 | I53: 0.002554153801 | J53: 0 | L53: =IF(B53<Other_Inputs!$D$45,Other_Inputs!$F$45,INDEX(Other_Inputs!$F$45:$F$46,MATCH(B53,Other_Inputs!$D$45:$D$46,1))) -> 0.395 | M53: =IF(B53<Other_Inputs!$D$51,Other_Inputs!$F$51,INDEX(Other_Inputs!$F$51:$F$52,MATCH(B53,Other_Inputs!$D$51:$D$52,1))) -> 0.001917999 | N53: 0.03 | O53: 0.015 | Q53: =INDEX('ExRate Calcs'!$E$7:$E$4761,MATCH(B53,'ExRate Calcs'!$C$7:$C$4761,0)) -> 0.92192 | R53: =INDEX('ExRate Calcs'!$H$7:$H$4761,MATCH('USDA ESALQ weekly IPPs'!B53,'ExRate Calcs'!$C$7:$C$4761,0)) -> 1.612726362 | T53: =INDEX('ESALQ calcs'!$D$7:$D$1995,MATCH('USDA ESALQ weekly IPPs'!B53,'ESALQ calcs'!$C$7:$C$1995,0)) -> 0.408 | U53: 0.1 | V53: =Other_Inputs!$F$16 -> 0.1 | W53: 0.06906375 | Y53: 0.4425546685 | Z53: 0.06200679939 | AA53: 0.06200679939 | AB53: 0.5665682673 | AC53: 0.0749129534 | AD53: 0.002565924883 | AE53: 0.02266273069 | AG53: 0.6667098763 | AI53: =IFERROR(INDEX('USDA calcs'!$G$12:$G$4000,MATCH($B53,'USDA calcs'!$C$12:$C$4000,0)),IFERROR(INDEX('USDA historical daily prices'!$AA$14:$AA$3707,MATCH($B53,'USDA historical daily prices'!$C$14:$C$3707,0)),AI52)) -> 0.439186244 | AJ53: =Other_Inputs!$F$23 -> 0.0553 | AK53: =Other_Inputs!$F$25 -> 0.0242 | AL53: 0.518686244 | AN53: =Other_Inputs!$F$28 -> 0.069995124 | AP53: 0.4763821633 | AQ53: 0.05998351267 | AR53: 0.02624956612 | AS53: 0.5626152421 | AT53: 0.07592320809 | AU53: 0.002554153801 | AV53: =AS53*Other_Inputs!$F$40 -> 0 | AX53: 0.641092604
B54: 2007-11-09 | D54: US | E54: 0.4874866968 | F54: 0.05967668832 | G54: 0.02611529579 | H54: 0.07553484989 | I54: 0.002595254123 | J54: 0 | L54: =IF(B54<Other_Inputs!$D$45,Other_Inputs!$F$45,INDEX(Other_Inputs!$F$45:$F$46,MATCH(B54,Other_Inputs!$D$45:$D$46,1))) -> 0.395 | M54: =IF(B54<Other_Inputs!$D$51,Other_Inputs!$F$51,INDEX(Other_Inputs!$F$51:$F$52,MATCH(B54,Other_Inputs!$D$51:$D$52,1))) -> 0.001917999 | N54: 0.03 | O54: 0.015 | Q54: =INDEX('ExRate Calcs'!$E$7:$E$4761,MATCH(B54,'ExRate Calcs'!$C$7:$C$4761,0)) -> 0.92666 | R54: =INDEX('ExRate Calcs'!$H$7:$H$4761,MATCH('USDA ESALQ weekly IPPs'!B54,'ExRate Calcs'!$C$7:$C$4761,0)) -> 1.612346058 | T54: =INDEX('ESALQ calcs'!$D$7:$D$1995,MATCH('USDA ESALQ weekly IPPs'!B54,'ESALQ calcs'!$C$7:$C$1995,0)) -> 0.4461 | U54: 0.1 | V54: =Other_Inputs!$F$16 -> 0.1 | W54: 0.06906375 | Y54: 0.4814063411 | Z54: 0.06202142493 | AA54: 0.06202142493 | AB54: 0.6054491909 | AC54: 0.0745297628 | AD54: 0.002719915815 | AE54: 0.02421796764 | AG54: 0.7069168372 | AI54: =IFERROR(INDEX('USDA calcs'!$G$12:$G$4000,MATCH($B54,'USDA calcs'!$C$12:$C$4000,0)),IFERROR(INDEX('USDA historical daily prices'!$AA$14:$AA$3707,MATCH($B54,'USDA historical daily prices'!$C$14:$C$3707,0)),AI53)) -> 0.4517344224 | AJ54: =Other_Inputs!$F$23 -> 0.0553 | AK54: =Other_Inputs!$F$25 -> 0.0242 | AL54: 0.5312344224 | AN54: =Other_Inputs!$F$28 -> 0.069995124 | AP54: 0.4874866968 | AQ54: 0.05967668832 | AR54: 0.02611529579 | AS54: 0.5732786809 | AT54: 0.07553484989 | AU54: 0.002595254123 | AV54: =AS54*Other_Inputs!$F$40 -> 0 | AX54: 0.6514087849
B55: 2007-11-16 | D55: US | E55: 0.5215713143 | F55: 0.06185959103 | G55: 0.02707056244 | H55: 0.07829782541 | I55: 0.002755197173 | J55: 0 | L55: =IF(B55<Other_Inputs!$D$45,Other_Inputs!$F$45,INDEX(Other_Inputs!$F$45:$F$46,MATCH(B55,Other_Inputs!$D$45:$D$46,1))) -> 0.395 | M55: =IF(B55<Other_Inputs!$D$51,Other_Inputs!$F$51,INDEX(Other_Inputs!$F$51:$F$52,MATCH(B55,Other_Inputs!$D$51:$D$52,1))) -> 0.001917999 | N55: 0.03 | O55: 0.015 | Q55: =INDEX('ExRate Calcs'!$E$7:$E$4761,MATCH(B55,'ExRate Calcs'!$C$7:$C$4761,0)) -> 0.89396 | R55: =INDEX('ExRate Calcs'!$H$7:$H$4761,MATCH('USDA ESALQ weekly IPPs'!B55,'ExRate Calcs'!$C$7:$C$4761,0)) -> 1.56253763 | T55: =INDEX('ESALQ calcs'!$D$7:$D$1995,MATCH('USDA ESALQ weekly IPPs'!B55,'ESALQ calcs'!$C$7:$C$1995,0)) -> 0.481 | U55: 0.1 | V55: =Other_Inputs!$F$16 -> 0.1 | W55: 0.06906375 | Y55: 0.538055394 | Z55: 0.06399845871 | AA55: 0.06399845871 | AB55: 0.6660523114 | AC55: 0.07725597342 | AD55: 0.002973233139 | AE55: 0.02664209246 | AG55: 0.7729236104 | AI55: =IFERROR(INDEX('USDA calcs'!$G$12:$G$4000,MATCH($B55,'USDA calcs'!$C$12:$C$4000,0)),IFERROR(INDEX('USDA historical daily prices'!$AA$14:$AA$3707,MATCH($B55,'USDA historical daily prices'!$C$14:$C$3707,0)),AI54)) -> 0.4662638922 | AJ55: =Other_Inputs!$F$23 -> 0.0553 | AK55: =Other_Inputs!$F$25 -> 0.0242 | AL55: 0.5457638922 | AN55: =Other_Inputs!$F$28 -> 0.069995124 | AP55: 0.5215713143 | AQ55: 0.06185959103 | AR55: 0.02707056244 | AS55: 0.6105014678 | AT55: 0.07829782541 | AU55: 0.002755197173 | AV55: =AS55*Other_Inputs!$F$40 -> 0 | AX55: 0.6915544904
B56: 2007-11-23 | D56: US | E56: 0.5388336487 | F56: 0.06266430967 | G56: 0.0274227178 | H56: 0.07931638564 | I56: 0.002832948247 | J56: 0 | L56: =IF(B56<Other_Inputs!$D$45,Other_Inputs!$F$45,INDEX(Other_Inputs!$F$45:$F$46,MATCH(B56,Other_Inputs!$D$45:$D$46,1))) -> 0.395 | M56: =IF(B56<Other_Inputs!$D$51,Other_Inputs!$F$51,INDEX(Other_Inputs!$F$51:$F$52,MATCH(B56,Other_Inputs!$D$51:$D$52,1))) -> 0.001917999 | N56: 0.03 | O56: 0.015 | Q56: =INDEX('ExRate Calcs'!$E$7:$E$4761,MATCH(B56,'ExRate Calcs'!$C$7:$C$4761,0)) -> 0.88248 | R56: =INDEX('ExRate Calcs'!$H$7:$H$4761,MATCH('USDA ESALQ weekly IPPs'!B56,'ExRate Calcs'!$C$7:$C$4761,0)) -> 1.56927868 | T56: =INDEX('ESALQ calcs'!$D$7:$D$1995,MATCH('USDA ESALQ weekly IPPs'!B56,'ESALQ calcs'!$C$7:$C$1995,0)) -> 0.4754 | U56: 0.1 | V56: =Other_Inputs!$F$16 -> 0.1 | W56: 0.06906375 | Y56: 0.5387090926 | Z56: 0.06372354463 | AA56: 0.06372354463 | AB56: 0.6661561818 | AC56: 0.07826098042 | AD56: 0.002977668649 | AE56: 0.02664624727 | AG56: 0.7740410782 | AI56: =IFERROR(INDEX('USDA calcs'!$G$12:$G$4000,MATCH($B56,'USDA calcs'!$C$12:$C$4000,0)),IFERROR(INDEX('USDA historical daily prices'!$AA$14:$AA$3707,MATCH($B56,'USDA historical daily prices'!$C$14:$C$3707,0)),AI55)) -> 0.4755099183 | AJ56: =Other_Inputs!$F$23 -> 0.0553 | AK56: =Other_Inputs!$F$25 -> 0.0242 | AL56: 0.5550099183 | AN56: =Other_Inputs!$F$28 -> 0.069995124 | AP56: 0.5388336487 | AQ56: 0.06266430967 | AR56: 0.0274227178 | AS56: 0.6289206762 | AT56: 0.07931638564 | AU56: 0.002832948247 | AV56: =AS56*Other_Inputs!$F$40 -> 0 | AX56: 0.7110700101
B57: 2007-11-30 | D57: US | E57: 0.5573758439 | F57: 0.06272970643 | G57: 0.02745133627 | H57: 0.07939916058 | I57: 0.002907824189 | J57: 0 | L57: =IF(B57<Other_Inputs!$D$45,Other_Inputs!$F$45,INDEX(Other_Inputs!$F$45:$F$46,MATCH(B57,Other_Inputs!$D$45:$D$46,1))) -> 0.395 | M57: =IF(B57<Other_Inputs!$D$51,Other_Inputs!$F$51,INDEX(Other_Inputs!$F$51:$F$52,MATCH(B57,Other_Inputs!$D$51:$D$52,1))) -> 0.001917999 | N57: 0.03 | O57: 0.015 | Q57: =INDEX('ExRate Calcs'!$E$7:$E$4761,MATCH(B57,'ExRate Calcs'!$C$7:$C$4761,0)) -> 0.88156 | R57: =INDEX('ExRate Calcs'!$H$7:$H$4761,MATCH('USDA ESALQ weekly IPPs'!B57,'ExRate Calcs'!$C$7:$C$4761,0)) -> 1.590619332 | T57: =INDEX('ESALQ calcs'!$D$7:$D$1995,MATCH('USDA ESALQ weekly IPPs'!B57,'ESALQ calcs'!$C$7:$C$1995,0)) -> 0.4689 | U57: 0.1 | V57: =Other_Inputs!$F$16 -> 0.1 | W57: 0.06906375 | Y57: 0.531897999 | Z57: 0.06286859338 | AA57: 0.06286859338 | AB57: 0.6576351858 | AC57: 0.07834265393 | AD57: 0.002943911359 | AE57: 0.02630540743 | AG57: 0.7652271585 | AI57: =IFERROR(INDEX('USDA calcs'!$G$12:$G$4000,MATCH($B57,'USDA calcs'!$C$12:$C$4000,0)),IFERROR(INDEX('USDA historical daily prices'!$AA$14:$AA$3707,MATCH($B57,'USDA historical daily prices'!$C$14:$C$3707,0)),AI56)) -> 0.491360249 | AJ57: =Other_Inputs!$F$23 -> 0.0553 | AK57: =Other_Inputs!$F$25 -> 0.0242 | AL57: 0.570860249 | AN57: =Other_Inputs!$F$28 -> 0.069995124 | AP57: 0.5573758439 | AQ57: 0.06272970643 | AR57: 0.02745133627 | AS57: 0.6475568866 | AT57: 0.07939916058 | AU57: 0.002907824189 | AV57: =AS57*Other_Inputs!$F$40 -> 0 | AX57: 0.7298638714
B58: 2007-12-07 | D58: US | E58: 0.5584843982 | F58: 0.06319422224 | G58: 0.02765461444 | H58: 0.07998711432 | I58: 0.002917281397 | J58: 0 | L58: =IF(B58<Other_Inputs!$D$45,Other_Inputs!$F$45,INDEX(Other_Inputs!$F$45:$F$46,MATCH(B58,Other_Inputs!$D$45:$D$46,1))) -> 0.395 | M58: =IF(B58<Other_Inputs!$D$51,Other_Inputs!$F$51,INDEX(Other_Inputs!$F$51:$F$52,MATCH(B58,Other_Inputs!$D$51:$D$52,1))) -> 0.001917999 | N58: 0.03 | O58: 0.015 | Q58: =INDEX('ExRate Calcs'!$E$7:$E$4761,MATCH(B58,'ExRate Calcs'!$C$7:$C$4761,0)) -> 0.87508 | R58: =INDEX('ExRate Calcs'!$H$7:$H$4761,MATCH('USDA ESALQ weekly IPPs'!B58,'ExRate Calcs'!$C$7:$C$4761,0)) -> 1.565667752 | T58: =INDEX('ESALQ calcs'!$D$7:$D$1995,MATCH('USDA ESALQ weekly IPPs'!B58,'ESALQ calcs'!$C$7:$C$1995,0)) -> 0.4787 | U58: =To_Santos -> 0.1 | V58: =Other_Inputs!$F$16 -> 0.1 | W58: =Santos_to_Sydney -> 0.06906375 | Y58: 0.5470356996 | Z58: 0.0638705114 | AA58: 0.0638705114 | AB58: 0.6747767224 | AC58: 0.0789227842 | AD58: 0.003014798026 | AE58: 0.0269910689 | AG58: 0.7837053735 | AI58: =IFERROR(INDEX('USDA calcs'!$G$12:$G$4000,MATCH($B58,'USDA calcs'!$C$12:$C$4000,0)),IFERROR(INDEX('USDA historical daily prices'!$AA$14:$AA$3707,MATCH($B58,'USDA historical daily prices'!$C$14:$C$3707,0)),AI57)) -> 0.4887185272 | AJ58: =Other_Inputs!$F$23 -> 0.0553 | AK58: =Other_Inputs!$F$25 -> 0.0242 | AL58: 0.5682185272 | AN58: =Other_Inputs!$F$28 -> 0.069995124 | AP58: 0.5584843982 | AQ58: 0.06319422224 | AR58: 0.02765461444 | AS58: 0.6493332349 | AT58: 0.07998711432 | AU58: 0.002917281397 | AV58: =AS58*Other_Inputs!$F$40 -> 0 | AX58: 0.7322376306
B59: 2007-12-14 | D59: US | E59: 0.5808257911 | F59: 0.0628351968 | G59: 0.02749750023 | H59: 0.07953268339 | I59: 0.003002764686 | J59: 0 | L59: =IF(B59<Other_Inputs!$D$45,Other_Inputs!$F$45,INDEX(Other_Inputs!$F$45:$F$46,MATCH(B59,Other_Inputs!$D$45:$D$46,1))) -> 0.395 | M59: =IF(B59<Other_Inputs!$D$51,Other_Inputs!$F$51,INDEX(Other_Inputs!$F$51:$F$52,MATCH(B59,Other_Inputs!$D$51:$D$52,1))) -> 0.001917999 | N59: 0.03 | O59: 0.015 | Q59: =INDEX('ExRate Calcs'!$E$7:$E$4761,MATCH(B59,'ExRate Calcs'!$C$7:$C$4761,0)) -> 0.88008 | R59: =INDEX('ExRate Calcs'!$H$7:$H$4761,MATCH('USDA ESALQ weekly IPPs'!B59,'ExRate Calcs'!$C$7:$C$4761,0)) -> 1.557845066 | T59: =INDEX('ESALQ calcs'!$D$7:$D$1995,MATCH('USDA ESALQ weekly IPPs'!B59,'ESALQ calcs'!$C$7:$C$1995,0)) -> 0.4822 | U59: 0.1 | V59: =Other_Inputs!$F$16 -> 0.1 | W59: 0.06906375 | Y59: 0.5479047359 | Z59: 0.06419123582 | AA59: 0.06419123582 | AB59: 0.6762872076 | AC59: 0.07847440005 | AD59: 0.00301904643 | AE59: 0.0270514883 | AG59: 0.7848321424 | AI59: =IFERROR(INDEX('USDA calcs'!$G$12:$G$4000,MATCH($B59,'USDA calcs'!$C$12:$C$4000,0)),IFERROR(INDEX('USDA historical daily prices'!$AA$14:$AA$3707,MATCH($B59,'USDA historical daily prices'!$C$14:$C$3707,0)),AI58)) -> 0.5111731622 | AJ59: =Other_Inputs!$F$23 -> 0.0553 | AK59: =Other_Inputs!$F$25 -> 0.0242 | AL59: 0.5906731622 | AN59: =Other_Inputs!$F$28 -> 0.069995124 | AP59: 0.5808257911 | AQ59: 0.0628351968 | AR59: 0.02749750023 | AS59: 0.6711584881 | AT59: 0.07953268339 | AU59: 0.003002764686 | AV59: =AS59*Other_Inputs!$F$40 -> 0 | AX59: 0.7536939362
B60: 2007-12-21 | D60: Brazil | E60: 0.5461325774 | F60: 0.06439649646 | G60: 0.06439649646 | H60: 0.08023391575 | I60: 0.003020637944 | J60: 0.02699702281 | L60: =IF(B60<Other_Inputs!$D$45,Other_Inputs!$F$45,INDEX(Other_Inputs!$F$45:$F$46,MATCH(B60,Other_Inputs!$D$45:$D$46,1))) -> 0.395 | M60: =IF(B60<Other_Inputs!$D$51,Other_Inputs!$F$51,INDEX(Other_Inputs!$F$51:$F$52,MATCH(B60,Other_Inputs!$D$51:$D$52,1))) -> 0.001917999 | N60: 0.03 | O60: 0.015 | Q60: =INDEX('ExRate Calcs'!$E$7:$E$4761,MATCH(B60,'ExRate Calcs'!$C$7:$C$4761,0)) -> 0.86078 | R60: =INDEX('ExRate Calcs'!$H$7:$H$4761,MATCH('USDA ESALQ weekly IPPs'!B60,'ExRate Calcs'!$C$7:$C$4761,0)) -> 1.552879512 | T60: =INDEX('ESALQ calcs'!$D$7:$D$1995,MATCH('USDA ESALQ weekly IPPs'!B60,'ESALQ calcs'!$C$7:$C$1995,0)) -> 0.4701 | U60: 0.1 | V60: =Other_Inputs!$F$16 -> 0.1 | W60: 0.06906375 | Y60: 0.5461325774 | Z60: 0.06439649646 | AA60: 0.06439649646 | AB60: 0.6749255704 | AC60: 0.08023391575 | AD60: 0.003020637944 | AE60: 0.02699702281 | AG60: 0.7851771469 | AI60: =IFERROR(INDEX('USDA calcs'!$G$12:$G$4000,MATCH($B60,'USDA calcs'!$C$12:$C$4000,0)),IFERROR(INDEX('USDA historical daily prices'!$AA$14:$AA$3707,MATCH($B60,'USDA historical daily prices'!$C$14:$C$3707,0)),AI59)) -> 0.5507989887 | AJ60: =Other_Inputs!$F$23 -> 0.0553 | AK60: =Other_Inputs!$F$25 -> 0.0242 | AL60: 0.6302989887 | AN60: =Other_Inputs!$F$28 -> 0.069995124 | AP60: 0.6398835809 | AQ60: 0.06424405772 | AR60: 0.02811403611 | AS60: 0.7322416747 | AT60: 0.08131592741 | AU60: 0.003254230408 | AV60: =AS60*Other_Inputs!$F$40 -> 0 | AX60: 0.8168118325
B61: 2007-12-28 | D61: Brazil | E61: 0.5401833461 | F61: 0.06444953894 | G61: 0.06444953894 | H61: 0.07914104278 | I61: 0.002992893867 | J61: 0.02676329696 | L61: =IF(B61<Other_Inputs!$D$45,Other_Inputs!$F$45,INDEX(Other_Inputs!$F$45:$F$46,MATCH(B61,Other_Inputs!$D$45:$D$46,1))) -> 0.395 | M61: =IF(B61<Other_Inputs!$D$51,Other_Inputs!$F$51,INDEX(Other_Inputs!$F$51:$F$52,MATCH(B61,Other_Inputs!$D$51:$D$52,1))) -> 0.001917999 | N61: 0.03 | O61: 0.015 | Q61: =INDEX('ExRate Calcs'!$E$7:$E$4761,MATCH(B61,'ExRate Calcs'!$C$7:$C$4761,0)) -> 0.8726666667 | R61: =INDEX('ExRate Calcs'!$H$7:$H$4761,MATCH('USDA ESALQ weekly IPPs'!B61,'ExRate Calcs'!$C$7:$C$4761,0)) -> 1.55160148 | T61: =INDEX('ESALQ calcs'!$D$7:$D$1995,MATCH('USDA ESALQ weekly IPPs'!B61,'ESALQ calcs'!$C$7:$C$1995,0)) -> 0.4714 | U61: 0.1 | V61: =Other_Inputs!$F$16 -> 0.1 | W61: 0.06906375 | Y61: 0.5401833461 | Z61: 0.06444953894 | AA61: 0.06444953894 | AB61: 0.6690824239 | AC61: 0.07914104278 | AD61: 0.002992893867 | AE61: 0.02676329696 | AG61: 0.7779796575 | AI61: =IFERROR(INDEX('USDA calcs'!$G$12:$G$4000,MATCH($B61,'USDA calcs'!$C$12:$C$4000,0)),IFERROR(INDEX('USDA historical daily prices'!$AA$14:$AA$3707,MATCH($B61,'USDA historical daily prices'!$C$14:$C$3707,0)),AI60)) -> 0.5587241541 | AJ61: =Other_Inputs!$F$23 -> 0.0553 | AK61: =Other_Inputs!$F$25 -> 0.0242 | AL61: 0.6382241541 | AN61: =Other_Inputs!$F$28 -> 0.069995124 | AP61: 0.6402492216 | AQ61: 0.06336898396 | AR61: 0.02773109244 | AS61: 0.731349298 | AT61: 0.08020831627 | AU61: 0.003246230457 | AV61: =AS61*Other_Inputs!$F$40 -> 0 | AX61: 0.8148038447
B62: 2008-01-04 | D62: Brazil | E62: 0.5327508439 | F62: 0.06431402625 | G62: 0.06431402625 | H62: 0.07836798956 | I62: 0.002958987544 | J62: 0.02645515586 | L62: =IF(B62<Other_Inputs!$D$45,Other_Inputs!$F$45,INDEX(Other_Inputs!$F$45:$F$46,MATCH(B62,Other_Inputs!$D$45:$D$46,1))) -> 0.395 | M62: =IF(B62<Other_Inputs!$D$51,Other_Inputs!$F$51,INDEX(Other_Inputs!$F$51:$F$52,MATCH(B62,Other_Inputs!$D$51:$D$52,1))) -> 0.001917999 | N62: 0.03 | O62: 0.015 | Q62: =INDEX('ExRate Calcs'!$E$7:$E$4761,MATCH(B62,'ExRate Calcs'!$C$7:$C$4761,0)) -> 0.881275 | R62: =INDEX('ExRate Calcs'!$H$7:$H$4761,MATCH('USDA ESALQ weekly IPPs'!B62,'ExRate Calcs'!$C$7:$C$4761,0)) -> 1.554870777 | T62: =INDEX('ESALQ calcs'!$D$7:$D$1995,MATCH('USDA ESALQ weekly IPPs'!B62,'ESALQ calcs'!$C$7:$C$1995,0)) -> 0.4695 | U62: 0.1 | V62: =Other_Inputs!$F$16 -> 0.1 | W62: 0.06906375 | Y62: 0.5327508439 | Z62: 0.06431402625 | AA62: 0.06431402625 | AB62: 0.6613788964 | AC62: 0.07836798956 | AD62: 0.002958987544 | AE62: 0.02645515586 | AG62: 0.7691610294 | AI62: =IFERROR(INDEX('USDA calcs'!$G$12:$G$4000,MATCH($B62,'USDA calcs'!$C$12:$C$4000,0)),IFERROR(INDEX('USDA historical daily prices'!$AA$14:$AA$3707,MATCH($B62,'USDA historical daily prices'!$C$14:$C$3707,0)),AI61)) -> 0.5970291197 | AJ62: =Other_Inputs!$F$23 -> 0.0553 | AK62: =Other_Inputs!$F$25 -> 0.0242 | AL62: 0.6765291197 | AN62: =Other_Inputs!$F$28 -> 0.069995124 | AP62: 0.6774606334 | AQ62: 0.06274999291 | AR62: 0.02746021389 | AS62: 0.7676708402 | AT62: 0.07942483788 | AU62: 0.003388382712 | AV62: =AS62*Other_Inputs!$F$40 -> 0 | AX62: 0.8504840608
B63: 2008-01-11 | D63: Brazil | E63: 0.514802557 | F63: 0.06432850552 | G63: 0.06432850552 | H63: 0.07827872104 | I63: 0.002886953156 | J63: 0.02573838272 | L63: =IF(B63<Other_Inputs!$D$45,Other_Inputs!$F$45,INDEX(Other_Inputs!$F$45:$F$46,MATCH(B63,Other_Inputs!$D$45:$D$46,1))) -> 0.395 | M63: =IF(B63<Other_Inputs!$D$51,Other_Inputs!$F$51,INDEX(Other_Inputs!$F$51:$F$52,MATCH(B63,Other_Inputs!$D$51:$D$52,1))) -> 0.001917999 | N63: 0.03 | O63: 0.015 | Q63: =INDEX('ExRate Calcs'!$E$7:$E$4761,MATCH(B63,'ExRate Calcs'!$C$7:$C$4761,0)) -> 0.88228 | R63: =INDEX('ExRate Calcs'!$H$7:$H$4761,MATCH('USDA ESALQ weekly IPPs'!B63,'ExRate Calcs'!$C$7:$C$4761,0)) -> 1.554520802 | T63: =INDEX('ESALQ calcs'!$D$7:$D$1995,MATCH('USDA ESALQ weekly IPPs'!B63,'ESALQ calcs'!$C$7:$C$1995,0)) -> 0.4542 | U63: 0.1 | V63: =Other_Inputs!$F$16 -> 0.1 | W63: 0.06906375 | Y63: 0.514802557 | Z63: 0.06432850552 | AA63: 0.06432850552 | AB63: 0.6434595681 | AC63: 0.07827872104 | AD63: 0.002886953156 | AE63: 0.02573838272 | AG63: 0.750363625 | AI63: =IFERROR(INDEX('USDA calcs'!$G$12:$G$4000,MATCH($B63,'USDA calcs'!$C$12:$C$4000,0)),IFERROR(INDEX('USDA historical daily prices'!$AA$14:$AA$3707,MATCH($B63,'USDA historical daily prices'!$C$14:$C$3707,0)),AI62)) -> 0.5745744847 | AJ63: =Other_Inputs!$F$23 -> 0.0553 | AK63: =Other_Inputs!$F$25 -> 0.0242 | AL63: 0.6540744847 | AN63: =Other_Inputs!$F$28 -> 0.069995124 | AP63: 0.6512382517 | AQ63: 0.06267851476 | AR63: 0.02742893413 | AS63: 0.7413457005 | AT63: 0.07933436551 | AU63: 0.003282720264 | AV63: =AS63*Other_Inputs!$F$40 -> 0 | AX63: 0.8239627863
B64: 2008-01-18 | D64: Brazil | E64: 0.5004057344 | F64: 0.0638901842 | G64: 0.0638901842 | H64: 0.07783760481 | I64: 0.00282409483 | J64: 0.02512744411 | L64: =IF(B64<Other_Inputs!$D$45,Other_Inputs!$F$45,INDEX(Other_Inputs!$F$45:$F$46,MATCH(B64,Other_Inputs!$D$45:$D$46,1))) -> 0.395 | M64: =IF(B64<Other_Inputs!$D$51,Other_Inputs!$F$51,INDEX(Other_Inputs!$F$51:$F$52,MATCH(B64,Other_Inputs!$D$51:$D$52,1))) -> 0.001917999 | N64: 0.03 | O64: 0.015 | Q64: =INDEX('ExRate Calcs'!$E$7:$E$4761,MATCH(B64,'ExRate Calcs'!$C$7:$C$4761,0)) -> 0.88728 | R64: =INDEX('ExRate Calcs'!$H$7:$H$4761,MATCH('USDA ESALQ weekly IPPs'!B64,'ExRate Calcs'!$C$7:$C$4761,0)) -> 1.565185658 | T64: =INDEX('ESALQ calcs'!$D$7:$D$1995,MATCH('USDA ESALQ weekly IPPs'!B64,'ESALQ calcs'!$C$7:$C$1995,0)) -> 0.444 | U64: 0.1 | V64: =Other_Inputs!$F$16 -> 0.1 | W64: 0.06906375 | Y64: 0.5004057344 | Z64: 0.0638901842 | AA64: 0.0638901842 | AB64: 0.6281861028 | AC64: 0.07783760481 | AD64: 0.00282409483 | AE64: 0.02512744411 | AG64: 0.7339752465 | AI64: =IFERROR(INDEX('USDA calcs'!$G$12:$G$4000,MATCH($B64,'USDA calcs'!$C$12:$C$4000,0)),IFERROR(INDEX('USDA historical daily prices'!$AA$14:$AA$3707,MATCH($B64,'USDA historical daily prices'!$C$14:$C$3707,0)),AI63)) -> 0.5719327629 | AJ64: =Other_Inputs!$F$23 -> 0.0553 | AK64: =Other_Inputs!$F$25 -> 0.0242 | AL64: 0.6514327629 | AN64: =Other_Inputs!$F$28 -> 0.069995124 | AP64: 0.6445910681 | AQ64: 0.06232530881 | AR64: 0.0272743666 | AS64: 0.7341907435 | AT64: 0.07888730051 | AU64: 0.003252312176 | AV64: =AS64*Other_Inputs!$F$40 -> 0 | AX64: 0.8163303562
B65: 2008-01-25 | D65: Brazil | E65: 0.4899013082 | F65: 0.06393870284 | G65: 0.06393870284 | H65: 0.07925608217 | I65: 0.002788139184 | J65: 0.02471114856 | L65: =IF(B65<Other_Inputs!$D$45,Other_Inputs!$F$45,INDEX(Other_Inputs!$F$45:$F$46,MATCH(B65,Other_Inputs!$D$45:$D$46,1))) -> 0.395 | M65: =IF(B65<Other_Inputs!$D$51,Other_Inputs!$F$51,INDEX(Other_Inputs!$F$51:$F$52,MATCH(B65,Other_Inputs!$D$51:$D$52,1))) -> 0.001917999 | N65: 0.03 | O65: 0.015 | Q65: =INDEX('ExRate Calcs'!$E$7:$E$4761,MATCH(B65,'ExRate Calcs'!$C$7:$C$4761,0)) -> 0.8714 | R65: =INDEX('ExRate Calcs'!$H$7:$H$4761,MATCH('USDA ESALQ weekly IPPs'!B65,'ExRate Calcs'!$C$7:$C$4761,0)) -> 1.563997948 | T65: =INDEX('ESALQ calcs'!$D$7:$D$1995,MATCH('USDA ESALQ weekly IPPs'!B65,'ESALQ calcs'!$C$7:$C$1995,0)) -> 0.4269 | U65: 0.1 | V65: =Other_Inputs!$F$16 -> 0.1 | W65: 0.06906375 | Y65: 0.4899013082 | Z65: 0.06393870284 | AA65: 0.06393870284 | AB65: 0.6177787139 | AC65: 0.07925608217 | AD65: 0.002788139184 | AE65: 0.02471114856 | AG65: 0.7245340838 | AI65: =IFERROR(INDEX('USDA calcs'!$G$12:$G$4000,MATCH($B65,'USDA calcs'!$C$12:$C$4000,0)),IFERROR(INDEX('USDA historical daily prices'!$AA$14:$AA$3707,MATCH($B65,'USDA historical daily prices'!$C$14:$C$3707,0)),AI64)) -> 0.5745744847 | AJ65: =Other_Inputs!$F$23 -> 0.0553 | AK65: =Other_Inputs!$F$25 -> 0.0242 | AL65: 0.6540744847 | AN65: =Other_Inputs!$F$28 -> 0.069995124 | AP65: 0.659369388 | AQ65: 0.06346109709 | AR65: 0.02777140234 | AS65: 0.7506018874 | AT65: 0.08032490705 | AU65: 0.003323707178 | AV65: =AS65*Other_Inputs!$F$40 -> 0 | AX65: 0.8342505016
B66: 2008-02-01 | D66: Brazil | E66: 0.4835609509 | F66: 0.0637567788 | G66: 0.0637567788 | H66: 0.07763024785 | I66: 0.002754819026 | J66: 0.02444298034 | L66: =IF(B66<Other_Inputs!$D$45,Other_Inputs!$F$45,INDEX(Other_Inputs!$F$45:$F$46,MATCH(B66,Other_Inputs!$D$45:$D$46,1))) -> 0.395 | M66: =IF(B66<Other_Inputs!$D$51,Other_Inputs!$F$51,INDEX(Other_Inputs!$F$51:$F$52,MATCH(B66,Other_Inputs!$D$51:$D$52,1))) -> 0.001917999 | N66: 0.03 | O66: 0.015 | Q66: =INDEX('ExRate Calcs'!$E$7:$E$4761,MATCH(B66,'ExRate Calcs'!$C$7:$C$4761,0)) -> 0.88965 | R66: =INDEX('ExRate Calcs'!$H$7:$H$4761,MATCH('USDA ESALQ weekly IPPs'!B66,'ExRate Calcs'!$C$7:$C$4761,0)) -> 1.56846067 | T66: =INDEX('ESALQ calcs'!$D$7:$D$1995,MATCH('USDA ESALQ weekly IPPs'!B66,'ESALQ calcs'!$C$7:$C$1995,0)) -> 0.4302 | U66: 0.1 | V66: =Other_Inputs!$F$16 -> 0.1 | W66: 0.06906375 | Y66: 0.4835609509 | Z66: 0.0637567788 | AA66: 0.0637567788 | AB66: 0.6110745085 | AC66: 0.07763024785 | AD66: 0.002754819026 | AE66: 0.02444298034 | AG66: 0.7159025558 | AI66: =IFERROR(INDEX('USDA calcs'!$G$12:$G$4000,MATCH($B66,'USDA calcs'!$C$12:$C$4000,0)),IFERROR(INDEX('USDA historical daily prices'!$AA$14:$AA$3707,MATCH($B66,'USDA historical daily prices'!$C$14:$C$3707,0)),AI65)) -> 0.5653284585 | AJ66: =Other_Inputs!$F$23 -> 0.0553 | AK66: =Other_Inputs!$F$25 -> 0.0242 | AL66: 0.6448284585 | AN66: =Other_Inputs!$F$28 -> 0.069995124 | AP66: 0.6354504114 | AQ66: 0.06215927612 | AR66: 0.02720170854 | AS66: 0.724811396 | AT66: 0.07867714719 | AU66: 0.003213954173 | AV66: =AS66*Other_Inputs!$F$40 -> 0 | AX66: 0.8067024974
B67: 2008-02-08 | D67: Brazil | E67: 0.4812227463 | F67: 0.06332512752 | G67: 0.06332512752 | H67: 0.07682627703 | I67: 0.002738797113 | J67: 0.02431492005 | L67: =IF(B67<Other_Inputs!$D$45,Other_Inputs!$F$45,INDEX(Other_Inputs!$F$45:$F$46,MATCH(B67,Other_Inputs!$D$45:$D$46,1))) -> 0.395 | M67: =IF(B67<Other_Inputs!$D$51,Other_Inputs!$F$51,INDEX(Other_Inputs!$F$51:$F$52,MATCH(B67,Other_Inputs!$D$51:$D$52,1))) -> 0.001917999 | N67: 0.03 | O67: 0.015 | Q67: =INDEX('ExRate Calcs'!$E$7:$E$4761,MATCH(B67,'ExRate Calcs'!$C$7:$C$4761,0)) -> 0.89896 | R67: =INDEX('ExRate Calcs'!$H$7:$H$4761,MATCH('USDA ESALQ weekly IPPs'!B67,'ExRate Calcs'!$C$7:$C$4761,0)) -> 1.579151972 | T67: =INDEX('ESALQ calcs'!$D$7:$D$1995,MATCH('USDA ESALQ weekly IPPs'!B67,'ESALQ calcs'!$C$7:$C$1995,0)) -> 0.4326 | U67: 0.1 | V67: =Other_Inputs!$F$16 -> 0.1 | W67: 0.06906375 | Y67: 0.4812227463 | Z67: 0.06332512752 | AA67: 0.06332512752 | AB67: 0.6078730013 | AC67: 0.07682627703 | AD67: 0.002738797113 | AE67: 0.02431492005 | AG67: 0.7117529955 | AI67: =IFERROR(INDEX('USDA calcs'!$G$12:$G$4000,MATCH($B67,'USDA calcs'!$C$12:$C$4000,0)),IFERROR(INDEX('USDA historical daily prices'!$AA$14:$AA$3707,MATCH($B67,'USDA historical daily prices'!$C$14:$C$3707,0)),AI66)) -> 0.548157267 | AJ67: =Other_Inputs!$F$23 -> 0.0553 | AK67: =Other_Inputs!$F$25 -> 0.0242 | AL67: 0.627657267 | AN67: =Other_Inputs!$F$28 -> 0.069995124 | AP67: 0.6097682511 | AQ67: 0.06151552906 | AR67: 0.02691999644 | AS67: 0.6982037766 | AT67: 0.07786233425 | AU67: 0.003104264443 | AV67: =AS67*Other_Inputs!$F$40 -> 0 | AX67: 0.7791703753
B68: 2008-02-15 | D68: Brazil | E68: 0.4992028697 | F68: 0.06327242502 | G68: 0.06327242502 | H68: 0.07646223595 | I68: 0.002808839823 | J68: 0.02502990879 | L68: =IF(B68<Other_Inputs!$D$45,Other_Inputs!$F$45,INDEX(Other_Inputs!$F$45:$F$46,MATCH(B68,Other_Inputs!$D$45:$D$46,1))) -> 0.395 | M68: =IF(B68<Other_Inputs!$D$51,Other_Inputs!$F$51,INDEX(Other_Inputs!$F$51:$F$52,MATCH(B68,Other_Inputs!$D$51:$D$52,1))) -> 0.001917999 | N68: 0.03 | O68: 0.015 | Q68: =INDEX('ExRate Calcs'!$E$7:$E$4761,MATCH(B68,'ExRate Calcs'!$C$7:$C$4761,0)) -> 0.90324 | R68: =INDEX('ExRate Calcs'!$H$7:$H$4761,MATCH('USDA ESALQ weekly IPPs'!B68,'ExRate Calcs'!$C$7:$C$4761,0)) -> 1.58046732 | T68: =INDEX('ESALQ calcs'!$D$7:$D$1995,MATCH('USDA ESALQ weekly IPPs'!B68,'ESALQ calcs'!$C$7:$C$1995,0)) -> 0.4509 | U68: 0.1 | V68: =Other_Inputs!$F$16 -> 0.1 | W68: 0.06906375 | Y68: 0.4992028697 | Z68: 0.06327242502 | AA68: 0.06327242502 | AB68: 0.6257477197 | AC68: 0.07646223595 | AD68: 0.002808839823 | AE68: 0.02502990879 | AG68: 0.7300487043 | AI68: =IFERROR(INDEX('USDA calcs'!$G$12:$G$4000,MATCH($B68,'USDA calcs'!$C$12:$C$4000,0)),IFERROR(INDEX('USDA historical daily prices'!$AA$14:$AA$3707,MATCH($B68,'USDA historical daily prices'!$C$14:$C$3707,0)),AI67)) -> 0.5494781279 | AJ68: =Other_Inputs!$F$23 -> 0.0553 | AK68: =Other_Inputs!$F$25 -> 0.0242 | AL68: 0.6289781279 | AN68: =Other_Inputs!$F$28 -> 0.069995124 | AP68: 0.6083412248 | AQ68: 0.06122403791 | AR68: 0.02679243612 | AS68: 0.6963576988 | AT68: 0.07749338382 | AU68: 0.00309540433 | AV68: =AS68*Other_Inputs!$F$40 -> 0 | AX68: 0.7769464869
B69: 2008-02-22 | D69: Brazil | E69: 0.5201997079 | F69: 0.06329734348 | G69: 0.06329734348 | H69: 0.07528697102 | I69: 0.002888325463 | J69: 0.02587177579 | L69: =IF(B69<Other_Inputs!$D$45,Other_Inputs!$F$45,INDEX(Other_Inputs!$F$45:$F$46,MATCH(B69,Other_Inputs!$D$45:$D$46,1))) -> 0.395 | M69: =IF(B69<Other_Inputs!$D$51,Other_Inputs!$F$51,INDEX(Other_Inputs!$F$51:$F$52,MATCH(B69,Other_Inputs!$D$51:$D$52,1))) -> 0.001917999 | N69: 0.03 | O69: 0.015 | Q69: =INDEX('ExRate Calcs'!$E$7:$E$4761,MATCH(B69,'ExRate Calcs'!$C$7:$C$4761,0)) -> 0.91734 | R69: =INDEX('ExRate Calcs'!$H$7:$H$4761,MATCH('USDA ESALQ weekly IPPs'!B69,'ExRate Calcs'!$C$7:$C$4761,0)) -> 1.579845133 | T69: =INDEX('ESALQ calcs'!$D$7:$D$1995,MATCH('USDA ESALQ weekly IPPs'!B69,'ESALQ calcs'!$C$7:$C$1995,0)) -> 0.4772 | U69: 0.1 | V69: =Other_Inputs!$F$16 -> 0.1 | W69: 0.06906375 | Y69: 0.5201997079 | Z69: 0.06329734348 | AA69: 0.06329734348 | AB69: 0.6467943948 | AC69: 0.07528697102 | AD69: 0.002888325463 | AE69: 0.02587177579 | AG69: 0.7508414671 | AI69: =IFERROR(INDEX('USDA calcs'!$G$12:$G$4000,MATCH($B69,'USDA calcs'!$C$12:$C$4000,0)),IFERROR(INDEX('USDA historical daily prices'!$AA$14:$AA$3707,MATCH($B69,'USDA historical daily prices'!$C$14:$C$3707,0)),AI68)) -> 0.5758953456 | AJ69: =Other_Inputs!$F$23 -> 0.0553 | AK69: =Other_Inputs!$F$25 -> 0.0242 | AL69: 0.6553953456 | AN69: =Other_Inputs!$F$28 -> 0.069995124 | AP69: 0.6277883288 | AQ69: 0.06028299213 | AR69: 0.02638062223 | AS69: 0.7144519432 | AT69: 0.07630226961 | AU69: 0.003163016851 | AV69: =AS69*Other_Inputs!$F$40 -> 0 | AX69: 0.7939172296
B70: 2008-02-29 | D70: Brazil | E70: 0.531189188 | F70: 0.06347409053 | G70: 0.06347409053 | H70: 0.07384443898 | I70: 0.002927927232 | J70: 0.02632549476 | L70: =IF(B70<Other_Inputs!$D$45,Other_Inputs!$F$45,INDEX(Other_Inputs!$F$45:$F$46,MATCH(B70,Other_Inputs!$D$45:$D$46,1))) -> 0.395 | M70: =IF(B70<Other_Inputs!$D$51,Other_Inputs!$F$51,INDEX(Other_Inputs!$F$51:$F$52,MATCH(B70,Other_Inputs!$D$51:$D$52,1))) -> 0.001917999 | N70: 0.03 | O70: 0.015 | Q70: =INDEX('ExRate Calcs'!$E$7:$E$4761,MATCH(B70,'ExRate Calcs'!$C$7:$C$4761,0)) -> 0.93526 | R70: =INDEX('ExRate Calcs'!$H$7:$H$4761,MATCH('USDA ESALQ weekly IPPs'!B70,'ExRate Calcs'!$C$7:$C$4761,0)) -> 1.575445968 | T70: =INDEX('ESALQ calcs'!$D$7:$D$1995,MATCH('USDA ESALQ weekly IPPs'!B70,'ESALQ calcs'!$C$7:$C$1995,0)) -> 0.4968 | U70: 0.1 | V70: =Other_Inputs!$F$16 -> 0.1 | W70: 0.06906375 | Y70: 0.531189188 | Z70: 0.06347409053 | AA70: 0.06347409053 | AB70: 0.6581373691 | AC70: 0.07384443898 | AD70: 0.002927927232 | AE70: 0.02632549476 | AG70: 0.7612352301 | AI70: =IFERROR(INDEX('USDA calcs'!$G$12:$G$4000,MATCH($B70,'USDA calcs'!$C$12:$C$4000,0)),IFERROR(INDEX('USDA historical daily prices'!$AA$14:$AA$3707,MATCH($B70,'USDA historical daily prices'!$C$14:$C$3707,0)),AI69)) -> 0.5970291197 | AJ70: =Other_Inputs!$F$23 -> 0.0553 | AK70: =Other_Inputs!$F$25 -> 0.0242 | AL70: 0.6765291197 | AN70: =Other_Inputs!$F$28 -> 0.069995124 | AP70: 0.638356307 | AQ70: 0.05912794303 | AR70: 0.02587515771 | AS70: 0.7233594078 | AT70: 0.07484028399 | AU70: 0.003192798767 | AV70: =AS70*Other_Inputs!$F$40 -> 0 | AX70: 0.8013924905
B71: 2008-03-07 | D71: Brazil | E71: 0.5375037633 | F71: 0.06412899339 | G71: 0.06412899339 | H71: 0.07425890284 | I71: 0.002960082612 | J71: 0.02663047 | L71: =IF(B71<Other_Inputs!$D$45,Other_Inputs!$F$45,INDEX(Other_Inputs!$F$45:$F$46,MATCH(B71,Other_Inputs!$D$45:$D$46,1))) -> 0.395 | M71: =IF(B71<Other_Inputs!$D$51,Other_Inputs!$F$51,INDEX(Other_Inputs!$F$51:$F$52,MATCH(B71,Other_Inputs!$D$51:$D$52,1))) -> 0.001917999 | N71: 0.03 | O71: 0.015 | Q71: =INDEX('ExRate Calcs'!$E$7:$E$4761,MATCH(B71,'ExRate Calcs'!$C$7:$C$4761,0)) -> 0.93004 | R71: =INDEX('ExRate Calcs'!$H$7:$H$4761,MATCH('USDA ESALQ weekly IPPs'!B71,'ExRate Calcs'!$C$7:$C$4761,0)) -> 1.559357082 | T71: =INDEX('ESALQ calcs'!$D$7:$D$1995,MATCH('USDA ESALQ weekly IPPs'!B71,'ESALQ calcs'!$C$7:$C$1995,0)) -> 0.4999 | U71: 0.1 | V71: =Other_Inputs!$F$16 -> 0.1 | W71: 0.06906375 | Y71: 0.5375037633 | Z71: 0.06412899339 | AA71: 0.06412899339 | AB71: 0.6657617501 | AC71: 0.07425890284 | AD71: 0.002960082612 | AE71: 0.02663047 | AG71: 0.7696112055 | AI71: =IFERROR(INDEX('USDA calcs'!$G$12:$G$4000,MATCH($B71,'USDA calcs'!$C$12:$C$4000,0)),IFERROR(INDEX('USDA historical daily prices'!$AA$14:$AA$3707,MATCH($B71,'USDA historical daily prices'!$C$14:$C$3707,0)),AI70)) -> 0.6075960068 | AJ71: =Other_Inputs!$F$23 -> 0.0553 | AK71: =Other_Inputs!$F$25 -> 0.0242 | AL71: 0.6870960068 | AN71: =Other_Inputs!$F$28 -> 0.069995124 | AP71: 0.6533009406 | AQ71: 0.05945980818 | AR71: 0.02602038622 | AS71: 0.738781135 | AT71: 0.07526033719 | AU71: 0.003256165889 | AV71: =AS71*Other_Inputs!$F$40 -> 0 | AX71: 0.8172976381
B72: 2008-03-14 | D72: Brazil | E72: 0.5318463817 | F72: 0.0632245234 | G72: 0.0632245234 | H72: 0.0741297791 | I72: 0.002929700831 | J72: 0.02633181714 | L72: =IF(B72<Other_Inputs!$D$45,Other_Inputs!$F$45,INDEX(Other_Inputs!$F$45:$F$46,MATCH(B72,Other_Inputs!$D$45:$D$46,1))) -> 0.395 | M72: =IF(B72<Other_Inputs!$D$51,Other_Inputs!$F$51,INDEX(Other_Inputs!$F$51:$F$52,MATCH(B72,Other_Inputs!$D$51:$D$52,1))) -> 0.001917999 | N72: 0.03 | O72: 0.015 | Q72: =INDEX('ExRate Calcs'!$E$7:$E$4761,MATCH(B72,'ExRate Calcs'!$C$7:$C$4761,0)) -> 0.93166 | R72: =INDEX('ExRate Calcs'!$H$7:$H$4761,MATCH('USDA ESALQ weekly IPPs'!B72,'ExRate Calcs'!$C$7:$C$4761,0)) -> 1.58166475 | T72: =INDEX('ESALQ calcs'!$D$7:$D$1995,MATCH('USDA ESALQ weekly IPPs'!B72,'ESALQ calcs'!$C$7:$C$1995,0)) -> 0.4955 | U72: 0.1 | V72: =Other_Inputs!$F$16 -> 0.1 | W72: 0.06906375 | Y72: 0.5318463817 | Z72: 0.0632245234 | AA72: 0.0632245234 | AB72: 0.6582954285 | AC72: 0.0741297791 | AD72: 0.002929700831 | AE72: 0.02633181714 | AG72: 0.7616867256 | AI72: =IFERROR(INDEX('USDA calcs'!$G$12:$G$4000,MATCH($B72,'USDA calcs'!$C$12:$C$4000,0)),IFERROR(INDEX('USDA historical daily prices'!$AA$14:$AA$3707,MATCH($B72,'USDA historical daily prices'!$C$14:$C$3707,0)),AI71)) -> 0.6208046156 | AJ72: =Other_Inputs!$F$23 -> 0.0553 | AK72: =Other_Inputs!$F$25 -> 0.0242 | AL72: 0.7003046156 | AN72: =Other_Inputs!$F$28 -> 0.069995124 | AP72: 0.6663424593 | AQ72: 0.05935641758 | AR72: 0.02597514115 | AS72: 0.751674018 | AT72: 0.07512947213 | AU72: 0.003307213961 | AV72: =AS72*Other_Inputs!$F$40 -> 0 | AX72: 0.8301107041
B73: 2008-03-21 | D73: Brazil | E73: 0.5258231204 | F73: 0.06303947061 | G73: 0.06303947061 | H73: 0.07473825177 | I73: 0.002906561254 | J73: 0.02607608247 | L73: =IF(B73<Other_Inputs!$D$45,Other_Inputs!$F$45,INDEX(Other_Inputs!$F$45:$F$46,MATCH(B73,Other_Inputs!$D$45:$D$46,1))) -> 0.395 | M73: =IF(B73<Other_Inputs!$D$51,Other_Inputs!$F$51,INDEX(Other_Inputs!$F$51:$F$52,MATCH(B73,Other_Inputs!$D$51:$D$52,1))) -> 0.001917999 | N73: 0.03 | O73: 0.015 | Q73: =INDEX('ExRate Calcs'!$E$7:$E$4761,MATCH(B73,'ExRate Calcs'!$C$7:$C$4761,0)) -> 0.924075 | R73: =INDEX('ExRate Calcs'!$H$7:$H$4761,MATCH('USDA ESALQ weekly IPPs'!B73,'ExRate Calcs'!$C$7:$C$4761,0)) -> 1.586307738 | T73: =INDEX('ESALQ calcs'!$D$7:$D$1995,MATCH('USDA ESALQ weekly IPPs'!B73,'ESALQ calcs'!$C$7:$C$1995,0)) -> 0.4859 | U73: 0.1 | V73: =Other_Inputs!$F$16 -> 0.1 | W73: 0.06906375 | Y73: 0.5258231204 | Z73: 0.06303947061 | AA73: 0.06303947061 | AB73: 0.6519020616 | AC73: 0.07473825177 | AD73: 0.002906561254 | AE73: 0.02607608247 | AG73: 0.7556229571 | AI73: =IFERROR(INDEX('USDA calcs'!$G$12:$G$4000,MATCH($B73,'USDA calcs'!$C$12:$C$4000,0)),IFERROR(INDEX('USDA historical daily prices'!$AA$14:$AA$3707,MATCH($B73,'USDA historical daily prices'!$C$14:$C$3707,0)),AI72)) -> 0.6142003112 | AJ73: =Other_Inputs!$F$23 -> 0.0553 | AK73: =Other_Inputs!$F$25 -> 0.0242 | AL73: 0.6937003112 | AN73: =Other_Inputs!$F$28 -> 0.069995124 | AP73: 0.6646650014 | AQ73: 0.05984362741 | AR73: 0.02618835051 | AS73: 0.7506969794 | AT73: 0.07574615047 | AU73: 0.003305772519 | AV73: =AS73*Other_Inputs!$F$40 -> 0 | AX73: 0.8297489023
B74: 2008-03-28 | D74: Brazil | E74: =IF($D74="Brazil",Y74,AP74) -> 0.5146281667 | F74: =IF($D74="Brazil",Z74,AQ74) -> 0.06274655179 | G74: =IF($D74="Brazil",AA74,AR74) -> 0.06274655179 | H74: =IF($D74="Brazil",AC74,AT74) -> 0.07525333697 | I74: =IF($D74="Brazil",AD74,AU74) -> 0.002861498429 | J74: =IF($D74="Brazil",AE74,AV74) -> 0.02560485081 | L74: =IF(B74<Other_Inputs!$D$45,Other_Inputs!$F$45,INDEX(Other_Inputs!$F$45:$F$46,MATCH(B74,Other_Inputs!$D$45:$D$46,1))) -> 0.395 | M74: =IF(B74<Other_Inputs!$D$51,Other_Inputs!$F$51,INDEX(Other_Inputs!$F$51:$F$52,MATCH(B74,Other_Inputs!$D$51:$D$52,1))) -> 0.001917999 | N74: =Storage_import_terminal -> 0.03 | O74: =Transport_to_Wholesaler -> 0.015 | Q74: =INDEX('ExRate Calcs'!$E$7:$E$4761,MATCH(B74,'ExRate Calcs'!$C$7:$C$4761,0)) -> 0.91775 | R74: =INDEX('ExRate Calcs'!$H$7:$H$4761,MATCH('USDA ESALQ weekly IPPs'!B74,'ExRate Calcs'!$C$7:$C$4761,0)) -> 1.593713075 | T74: =INDEX('ESALQ calcs'!$D$7:$D$1995,MATCH('USDA ESALQ weekly IPPs'!B74,'ESALQ calcs'!$C$7:$C$1995,0)) -> 0.4723 | U74: 0.1 | V74: =Other_Inputs!$F$16 -> 0.1 | W74: 0.06906375 | Y74: =T74/$Q74 -> 0.5146281667 | Z74: 0.06274655179 | AA74: 0.06274655179 | AB74: 0.6401212703 | AC74: =W74/Q74 -> 0.07525333697 | AD74: =SUM(AB74:AC74)*Insurance -> 0.002861498429 | AE74: =AB74*Customs_Value_Duty -> 0.02560485081 | AG74: 0.7438409565 | AI74: =IFERROR(INDEX('USDA calcs'!$G$12:$G$4000,MATCH($B74,'USDA calcs'!$C$12:$C$4000,0)),IFERROR(INDEX('USDA historical daily prices'!$AA$14:$AA$3707,MATCH($B74,'USDA historical daily prices'!$C$14:$C$3707,0)),AI73)) -> 0.6208046156 | AJ74: =Other_Inputs!$F$23 -> 0.0553 | AK74: =Other_Inputs!$F$25 -> 0.0242 | AL74: =SUM(AI74,AJ74:AK74) -> 0.7003046156 | AN74: =Other_Inputs!$F$28 -> 0.069995124 | AP74: =AI74/$Q74 -> 0.6764419674 | AQ74: 0.06025606102 | AR74: 0.02636883683 | AS74: =AL74/$Q74 -> 0.7630668653 | AT74: 0.07626818197 | AU74: =SUM(AS74:AT74)*Insurance -> 0.003357340189 | AV74: =AS74*Other_Inputs!$F$40 -> 0 | AX74: 0.8426923874
B75: 2008-04-04 | D75: =IF(MIN(AG75,AX75)=AG75,"Brazil","US") -> Brazil | E75: 0.5116289265 | F75: 0.06342507936 | G75: 0.06342507936 | H75: 0.07569625595 | I75: 0.002856701365 | J75: 0.02553916341 | L75: =IF(B75<Other_Inputs!$D$45,Other_Inputs!$F$45,INDEX(Other_Inputs!$F$45:$F$46,MATCH(B75,Other_Inputs!$D$45:$D$46,1))) -> 0.395 | M75: =IF(B75<Other_Inputs!$D$51,Other_Inputs!$F$51,INDEX(Other_Inputs!$F$51:$F$52,MATCH(B75,Other_Inputs!$D$51:$D$52,1))) -> 0.001917999 | N75: 0.03 | O75: 0.015 | Q75: =INDEX('ExRate Calcs'!$E$7:$E$4761,MATCH(B75,'ExRate Calcs'!$C$7:$C$4761,0)) -> 0.91238 | R75: =INDEX('ExRate Calcs'!$H$7:$H$4761,MATCH('USDA ESALQ weekly IPPs'!B75,'ExRate Calcs'!$C$7:$C$4761,0)) -> 1.57666338 | T75: =INDEX('ESALQ calcs'!$D$7:$D$1995,MATCH('USDA ESALQ weekly IPPs'!B75,'ESALQ calcs'!$C$7:$C$1995,0)) -> 0.4668 | U75: 0.1 | V75: =Other_Inputs!$F$16 -> 0.1 | W75: 0.06906375 | Y75: 0.5116289265 | Z75: =U75/$R75 -> 0.06342507936 | AA75: =V75/$R75 -> 0.06342507936 | AB75: =SUM(Y75:AA75) -> 0.6384790853 | AC75: 0.07569625595 | AD75: 0.002856701365 | AE75: 0.02553916341 | AG75: =SUM(AB75:AE75) -> 0.742571206 | AI75: =IFERROR(INDEX('USDA calcs'!$G$12:$G$4000,MATCH($B75,'USDA calcs'!$C$12:$C$4000,0)),IFERROR(INDEX('USDA historical daily prices'!$AA$14:$AA$3707,MATCH($B75,'USDA historical daily prices'!$C$14:$C$3707,0)),AI74)) -> 0.6419383898 | AJ75: =Other_Inputs!$F$23 -> 0.0553 | AK75: =Other_Inputs!$F$25 -> 0.0242 | AL75: 0.7214383898 | AN75: =Other_Inputs!$F$28 -> 0.069995124 | AP75: 0.7035866522 | AQ75: 0.06061071045 | AR75: 0.02652403604 | AS75: 0.7907213987 | AT75: =AN75/$Q75 -> 0.07671707403 | AU75: 0.003469753891 | AV75: =AS75*Other_Inputs!$F$40 -> 0 | AX75: =SUM(AS75:AV75) -> 0.8709082266
B76: =B75+7 -> 2008-04-11 | D76: Brazil | E76: 0.4959817293 | F76: 0.06377064127 | G76: 0.06377064127 | H76: 0.0744012992 | I76: 0.002791697244 | J76: 0.02494092047 | L76: =IF(B76<Other_Inputs!$D$45,Other_Inputs!$F$45,INDEX(Other_Inputs!$F$45:$F$46,MATCH(B76,Other_Inputs!$D$45:$D$46,1))) -> 0.395 | M76: =IF(B76<Other_Inputs!$D$51,Other_Inputs!$F$51,INDEX(Other_Inputs!$F$51:$F$52,MATCH(B76,Other_Inputs!$D$51:$D$52,1))) -> 0.001917999 | N76: 0.03 | O76: 0.015 | Q76: =INDEX('ExRate Calcs'!$E$7:$E$4761,MATCH(B76,'ExRate Calcs'!$C$7:$C$4761,0)) -> 0.92826 | R76: =INDEX('ExRate Calcs'!$H$7:$H$4761,MATCH('USDA ESALQ weekly IPPs'!B76,'ExRate Calcs'!$C$7:$C$4761,0)) -> 1.568119718 | T76: =INDEX('ESALQ calcs'!$D$7:$D$1995,MATCH('USDA ESALQ weekly IPPs'!B76,'ESALQ calcs'!$C$7:$C$1995,0)) -> 0.4604 | U76: 0.1 | V76: =Other_Inputs!$F$16 -> 0.1 | W76: 0.06906375 | Y76: 0.4959817293 | Z76: 0.06377064127 | AA76: 0.06377064127 | AB76: 0.6235230118 | AC76: 0.0744012992 | AD76: 0.002791697244 | AE76: 0.02494092047 | AG76: 0.7256569287 | AI76: =IFERROR(INDEX('USDA calcs'!$G$12:$G$4000,MATCH($B76,'USDA calcs'!$C$12:$C$4000,0)),IFERROR(INDEX('USDA historical daily prices'!$AA$14:$AA$3707,MATCH($B76,'USDA historical daily prices'!$C$14:$C$3707,0)),AI75)) -> 0.6472218333 | AJ76: =Other_Inputs!$F$23 -> 0.0553 | AK76: =Other_Inputs!$F$25 -> 0.0242 | AL76: 0.7267218333 | AN76: =Other_Inputs!$F$28 -> 0.069995124 | AP76: 0.6972419724 | AQ76: 0.0595738263 | AR76: 0.02607028203 | AS76: 0.7828860807 | AT76: 0.07540465387 | AU76: 0.003433162938 | AV76: =AS76*Other_Inputs!$F$40 -> 0 | AX76: 0.8617238975
